Workbook

Sheet Instructions
C3: TAG OVERLAP STATISTIC CALCULATOR - Version 2026
B6: Purpose
B7: The tag overlap statistic calculator is provided to assist with achieving an appropriate tag overlap match. The calculator also provides an indicative tagging rate at Subarea scale only (see the limitations of the calculator section for further explanation), and users should refer to the appropriate Conservation Measure to ensure they are meeting the correct tagging rate requirements
B10: Instructions
B12: Loading the data
B14: The calculator uses the haul position, catches and tagging data reported in the C2 workbook (Set and Haul Details, Haul Catch and Tagging worksheets), and the lengths measured by the scientific observer and reported in the observer logbook. (Biological Sampling worksheet). To enable this calculation to be made in this spreadsheet, is it essential that all data from these worksheets are correctly entered into the calculator using the same numeric and date formats, and that the 'haul number' reported in the C2 Haul Catch and Tagging worksheets corresponds with the 'Set number' reported in the observer Biological Sampling worksheet
B18: For accurate estimation of the tag overlap statistic, please ensure that all hauls reported in the C2 data are also reported in the observer logbook, and vice versa.
B20: The following steps are required to update the data used by the calculator:
B22: C2 - Set and Haul Details | C22: select data cells in the 'Set and Haul' worksheet in the C2 data form (starting at cell B9), and copy and paste values into the calculator worksheet 'Raw Set and Haul Details'
B23: C2 - Haul Catch | C23: select data cells in the 'Haul Catch' worksheet in the C2 data form (starting at cell B9), and copy and paste values into the calculator worksheet 'Raw Haul Catch'
B24: Observer - Biological Sampling | C24: select data cells in the 'Biological Sampling' worksheet in the observer logbook (starting at cell B7), and copy and paste values into the calculator worksheet 'Raw Biological Sampling'
B25: C2 - Tagging | C25: select data cells in main section of the 'Tagging' worksheet in the vessel logbook (starting at cell B12), and copy and paste values into the calculator worksheet 'Raw Tagging'
B27: To copy and paste | C27: Step 1: Select - Go to the Observer or C2 logbook and select the data cells in that worksheet. These are the cells which have a white background
C28: Tip: select the first row of data cells. The example below is from the C2 - Haul Catch worksheet, where you would select B9 to N9, then Ctrl+Shift+'arrow down'. This will select all data where there is a value in column B. Scroll down to check there are no missing Haul numbers
C35: Step 2: Copy the selected data cells using CTRL+C or the menu option
C37: Step 3: Paste values - Go to the first cell with a white background in the appropriate calculator worksheet, and paste values
C38: (right click and then use 'paste special' menu option + 'paste values') or the menu option
B40: The tag overlap statistic is displayed in the calculator worksheet 'Tag Overlap Statistic', and the calculation is derived from the data in the raw data worksheets.
C42: Select the fishery subarea/division: Select the fishery subarea or division (ASD) using the drop down list in worksheet 'Tag Overlap Statistic'.
C43: The calculator is designed for use in exploratory fisheries and the selection of subareas and divisions reflects this focus.
C44: Note: Macros need to be enabled to use the drop down list (if required, go to 'Macro Security' and lower the security level).
C45: If macros can not be enabled, or to select other areas, relocate the drop down list (in 'design mode') and enter the CCAMLR code directly in cell D8.
C47: The worksheet cells are recalculated each time a fishery subarea or division is selected; calculations may take up to a minute to complete.
B49: Limitations of the calculator
B50: The calculator is limited to a maximum of 250 hauls, 6000 length measurements, and 1000 tagging records. The calculator will only filter records for calculation to the selected Subarea/ Division level as the boundaries of all SSRUs, and Research Blocks are too complicated define in the workbook. Therefore, if you require a tag overlap statistic calculation for individual research blocks or SSRUs, the Secretariat recommends that you use a separate tag overlap statistic calculator file for each management area and enter the appropriate data.
B52: About the calculator
B54: Vessels participating in exploratory fisheries for Dissostichus spp. are required to conduct the tagging program described in Conservation Measure 41-01, Annex C. The program requires, inter alia, that the length frequency of Dissostichus spp. tagged matches the length frequency of the catch of each species of Dissostichus. The degree to which this match is achieved is evaluated using the tag overlap statistic (CM 41-01, Annex C, footnote 3). This statistic ranges from 0-100 %, and a high value (> 60 %) indicates a good match between the length frequency of tagged fish and the length frequency of fish caught.
B56: The calculation in this spreadsheet is indicative only, and it is the responsibility of Flag States to ensure compliance with this statistic and related requirements of CM 41-01.
B58: In accordance with Conservation Measure 41-01, Annex C, each vessel shall achieve a minimum tag-overlap statistic3 of 60% for each species of Dissostichus. However, for any vessel fishing for Dissostichus spp. which meets the required tagging rate, the minimum tag overlap statistic of 60% shall not apply for a species of Dissostichus for which less than 30 fish have been tagged.
B62: Tag overlap statistic
B64: The calculation of the tag overlap statistic (θ) uses the formula in footnote 3 of CM 41-01, Annex C:
B72: where | C72: Pt is the proportion of all fish tagged in length bin i
C73: Pc is the proportion of all fish caught (i.e. the sum of all fish caught and either landed or tagged and released)
C74: for lengths aggregated in 10cm length bins
B76: and | C76: Pt is derived from the measured lengths reported in the C2 Tagging Worksheet
C77: Pc is derived from the measured lengths reported in the observer Biological Sampling worksheet, and the C2 Tagging worksheet, and the total number of fish caught and reported in the C2 Haul Catch worksheet. The measured length-frequency distribution of fish caught in each haul is scaled to the total number of fish caught in that haul, and the scaled length-frequency distributions are summed across all completed hauls.
B81: Tagging rate
B83: The calculator also includes an indicative tagging rate at the subarea scale (number of fish tagged per tonne of green weight caught) for each individual species, and for both species combined.

Sheet Tag Overlap Statistic
B2: CCAMLR TAG OVERLAP STATISTIC CALCULATOR | F2: See the 'instructions' tab for information about this calculator
B3: Version | C3: v2026
B6: The calculation below is indicative only - it is the responsibility of the Flag State to ensure compliance with Conservation Measure 41-01 and related measures and requirements
C8: Select or enter the fishery subarea/division | D8: 881 | F8: Data Loaded | I8: refer to the instructions for loading data
C9: Select or enter subarea/division (ASD) from the drop down list | F9: C2 hauls | G9: =IF(MIN('Raw Set and Haul Details'!$C:$C)=0,"",TEXT(MIN('Raw Set and Haul Details'!$C:$C),"dd-mmm-yy")&" to "&TEXT(MAX('Raw Set and Haul Details'!$D:$D),"dd-mmm-yy")) ->  | I9: =IF(G9="","no data available, please load C2 data","total number of records - "&COUNT('Raw Set and Haul Details'!$B$7:$B$502)) -> no data available, please load C2 data
C10: NOTE: calculations may take up to a minute | F10: Biological Sampling | I10: =IF(COUNT('Raw Biological Sampling'!$B$7:$B$10003)=0,"no data available, please load Biological Sampling data","total number of records - "&COUNT('Raw Biological Sampling'!$B$7:$B$10003)) -> no data available, please load Biological Sampling data
C11: Cells are recalculated after each selection | F11: Tagging | I11: =IF(COUNT('Raw Tagging'!$B$12:$B$10000)=0,"no data available, please load Tagging data","total number of records - "&COUNT('Raw Tagging'!$B$12:$B$10000)) -> no data available, please load Tagging data
B14: Dissostichus mawsoni (TOA) | J14: Length | K14: Proportion of fish at length | M14: Difference
C15: Number of hauls reported in C2 data | D15: ='C2 Totals'!$C$20 -> 0 | F15: =IF($G$9="","warning: C2 catch data are incomplete","") -> warning: C2 catch data are incomplete | J15: (midpoint of 10cm bin) | K15: Caught (Pc) | L15: Tagged (Pt) | M15: abs(Pt-Pc)
C16: Total green weight caught (tonne) | D16: ='C2 Totals'!IU5/1000 -> 0 | F16: =IF($I$10="no data available, please load Biological Sampling data","warning: Biological Sampling data are incomplete","") -> warning: Biological Sampling data are incomplete | J16: ='Tagged Lengths'!C5+5 -> 15 | K16: ='Tagged Lengths'!IU67 -> 0 | L16: ='Tagged Lengths'!IU5 -> 0 | M16: =ABS(L16-K16) -> 0 | R16: =COUNT('Raw Biological Sampling'!$B$7:$B$10003) -> 0
C17: Total number of fish caught | D17: =SUM('C2 Totals'!D6:IS6) -> 0 | F17: =IF($I$11="no data available, please load Tagging data","warning: Tagging data are incomplete","") -> warning: Tagging data are incomplete | J17: ='Tagged Lengths'!C6+5 -> 25 | K17: ='Tagged Lengths'!IU68 -> 0 | L17: ='Tagged Lengths'!IU6 -> 0 | M17: =ABS(L17-K17) -> 0
C18: Total number of fish tagged | D18: ='Tagged Lengths'!IT30 -> 0 | F18: =IF(D18=0,"no fish have been tagged","") -> no fish have been tagged | J18: ='Tagged Lengths'!C7+5 -> 35 | K18: ='Tagged Lengths'!IU69 -> 0 | L18: ='Tagged Lengths'!IU7 -> 0 | M18: 0
C19: Tagging rate (fish/tonne green weight caught) | D19: =IF(D16>0,D18/D16,0) -> 0 | E19: =IF(D19>0,CONCATENATE("(combined rate for Dissostichus spp. ",IF(D16+D46>0,ROUND((D18+D48)/(D16+D46),2),0)," see instructions)"),"") ->  | J19: ='Tagged Lengths'!C8+5 -> 45 | K19: ='Tagged Lengths'!IU70 -> 0 | L19: ='Tagged Lengths'!IU8 -> 0 | M19: 0
C20: Tag overlap statistic (%) | D20: =IF(AND(D18>0,D18<30),"n/a",M42) -> n/a | J20: ='Tagged Lengths'!C9+5 -> 55 | K20: ='Tagged Lengths'!IU71 -> 0 | L20: ='Tagged Lengths'!IU9 -> 0 | M20: 0
C21: =IF(D15=0,"",IF(OR(D18=0,D18>=30),"","Tag overlap statistic does not apply if the vessel meets required tagging rate and less than 30 fish have been tagged, see CM 41-01.")) ->  | J21: ='Tagged Lengths'!C10+5 -> 65 | K21: ='Tagged Lengths'!IU72 -> 0 | L21: ='Tagged Lengths'!IU10 -> 0 | M21: 0
J22: ='Tagged Lengths'!C11+5 -> 75 | K22: ='Tagged Lengths'!IU73 -> 0 | L22: ='Tagged Lengths'!IU11 -> 0 | M22: 0
J23: ='Tagged Lengths'!C12+5 -> 85 | K23: ='Tagged Lengths'!IU74 -> 0 | L23: ='Tagged Lengths'!IU12 -> 0 | M23: 0
J24: ='Tagged Lengths'!C13+5 -> 95 | K24: ='Tagged Lengths'!IU75 -> 0 | L24: ='Tagged Lengths'!IU13 -> 0 | M24: 0
J25: ='Tagged Lengths'!C14+5 -> 105 | K25: ='Tagged Lengths'!IU76 -> 0 | L25: ='Tagged Lengths'!IU14 -> 0 | M25: 0
J26: ='Tagged Lengths'!C15+5 -> 115 | K26: ='Tagged Lengths'!IU77 -> 0 | L26: ='Tagged Lengths'!IU15 -> 0 | M26: 0
J27: ='Tagged Lengths'!C16+5 -> 125 | K27: ='Tagged Lengths'!IU78 -> 0 | L27: ='Tagged Lengths'!IU16 -> 0 | M27: 0
J28: ='Tagged Lengths'!C17+5 -> 135 | K28: ='Tagged Lengths'!IU79 -> 0 | L28: ='Tagged Lengths'!IU17 -> 0 | M28: 0
J29: ='Tagged Lengths'!C18+5 -> 145 | K29: ='Tagged Lengths'!IU80 -> 0 | L29: ='Tagged Lengths'!IU18 -> 0 | M29: 0
J30: ='Tagged Lengths'!C19+5 -> 155 | K30: ='Tagged Lengths'!IU81 -> 0 | L30: ='Tagged Lengths'!IU19 -> 0 | M30: 0
J31: ='Tagged Lengths'!C20+5 -> 165 | K31: ='Tagged Lengths'!IU82 -> 0 | L31: ='Tagged Lengths'!IU20 -> 0 | M31: 0
J32: ='Tagged Lengths'!C21+5 -> 175 | K32: ='Tagged Lengths'!IU83 -> 0 | L32: ='Tagged Lengths'!IU21 -> 0 | M32: 0
J33: ='Tagged Lengths'!C22+5 -> 185 | K33: ='Tagged Lengths'!IU84 -> 0 | L33: ='Tagged Lengths'!IU22 -> 0 | M33: 0
J34: ='Tagged Lengths'!C23+5 -> 195 | K34: ='Tagged Lengths'!IU85 -> 0 | L34: ='Tagged Lengths'!IU23 -> 0 | M34: 0
J35: ='Tagged Lengths'!C24+5 -> 205 | K35: ='Tagged Lengths'!IU86 -> 0 | L35: ='Tagged Lengths'!IU24 -> 0 | M35: 0
J36: ='Tagged Lengths'!C25+5 -> 215 | K36: ='Tagged Lengths'!IU87 -> 0 | L36: ='Tagged Lengths'!IU25 -> 0 | M36: 0
J37: ='Tagged Lengths'!C26+5 -> 225 | K37: ='Tagged Lengths'!IU88 -> 0 | L37: ='Tagged Lengths'!IU26 -> 0 | M37: 0
J38: ='Tagged Lengths'!C27+5 -> 235 | K38: ='Tagged Lengths'!IU89 -> 0 | L38: ='Tagged Lengths'!IU27 -> 0 | M38: 0
J39: ='Tagged Lengths'!C28+5 -> 245 | K39: ='Tagged Lengths'!IU90 -> 0 | L39: ='Tagged Lengths'!IU28 -> 0 | M39: 0
J40: ='Tagged Lengths'!C29+5 -> 255 | K40: ='Tagged Lengths'!IU91 -> 0 | L40: ='Tagged Lengths'!IU29 -> 0 | M40: 0
J41: Total | K41: =SUM(K16:K40) -> 0 | L41: =SUM(L16:L40) -> 0 | M41: =SUM(M16:M40) -> 0
J42: Tag overlap statistic (%) | M42: =IF(L41>0,100*(1-M41/2),"n/a") -> n/a
B44: Dissostichus eleginoides (TOP) | J44: Length | K44: Proportion of fish at length | M44: Difference
C45: Number of hauls reported in C2 data | D45: =D15 -> 0 | F45: =IF($G$9="","warning: C2 catch data are incomplete","") -> warning: C2 catch data are incomplete | J45: (midpoint of 10cm bin) | K45: Caught (Pc) | L45: Tagged (Pt) | M45: abs(Pt-Pc)
C46: Total green weight caught (tonne) | D46: ='C2 Totals'!IU13/1000 -> 0 | F46: =IF($I$10="no data available, please load Biological Sampling data","warning: Biological Sampling data are incomplete","") -> warning: Biological Sampling data are incomplete | J46: ='Tagged Lengths'!C35+5 -> 15 | K46: ='Tagged Lengths'!IU97 -> 0 | L46: ='Tagged Lengths'!IU35 -> 0 | M46: =ABS(L46-K46) -> 0
C47: Total number of fish caught | D47: ='C2 Totals'!IU14 -> 0 | F47: =IF($I$11="no data available, please load Tagging data","warning: Tagging data are incomplete","") -> warning: Tagging data are incomplete | J47: ='Tagged Lengths'!C36+5 -> 25 | K47: ='Tagged Lengths'!IU98 -> 0 | L47: ='Tagged Lengths'!IU36 -> 0 | M47: =ABS(L47-K47) -> 0
C48: Total number of fish tagged | D48: ='Tagged Lengths'!IT60 -> 0 | F48: =IF(D48=0,"no fish have been tagged","") -> no fish have been tagged | J48: ='Tagged Lengths'!C37+5 -> 35 | K48: ='Tagged Lengths'!IU99 -> 0 | L48: ='Tagged Lengths'!IU37 -> 0 | M48: 0
C49: Tagging rate (fish/tonne green weight caught) | D49: =IF(D46>0,D48/D46,0) -> 0 | E49: =IF(D49>0,E19,"") ->  | J49: ='Tagged Lengths'!C38+5 -> 45 | K49: ='Tagged Lengths'!IU100 -> 0 | L49: ='Tagged Lengths'!IU38 -> 0 | M49: 0
C50: Tag overlap statistic (%) | D50: =IF(AND(D48>0,D48<30),"n/a",M72) -> n/a | E50: =IF(D50="n/a","",IF(D46>=2,"","note: catch < 2 tonnes, see CM 41-01")) ->  | J50: ='Tagged Lengths'!C39+5 -> 55 | K50: ='Tagged Lengths'!IU101 -> 0 | L50: ='Tagged Lengths'!IU39 -> 0 | M50: 0
C51: =IF(D45=0,"",IF(OR(D48=0,D48>=30),"","Tag overlap statistic does not apply if the vessel meets required tagging rate and less than 30 fish have been tagged, see CM 41-01.")) ->  | J51: ='Tagged Lengths'!C40+5 -> 65 | K51: ='Tagged Lengths'!IU102 -> 0 | L51: ='Tagged Lengths'!IU40 -> 0 | M51: 0
J52: ='Tagged Lengths'!C41+5 -> 75 | K52: ='Tagged Lengths'!IU103 -> 0 | L52: ='Tagged Lengths'!IU41 -> 0 | M52: 0
J53: ='Tagged Lengths'!C42+5 -> 85 | K53: ='Tagged Lengths'!IU104 -> 0 | L53: ='Tagged Lengths'!IU42 -> 0 | M53: 0
J54: ='Tagged Lengths'!C43+5 -> 95 | K54: ='Tagged Lengths'!IU105 -> 0 | L54: ='Tagged Lengths'!IU43 -> 0 | M54: 0
J55: ='Tagged Lengths'!C44+5 -> 105 | K55: ='Tagged Lengths'!IU106 -> 0 | L55: ='Tagged Lengths'!IU44 -> 0 | M55: 0
J56: ='Tagged Lengths'!C45+5 -> 115 | K56: ='Tagged Lengths'!IU107 -> 0 | L56: ='Tagged Lengths'!IU45 -> 0 | M56: 0
J57: ='Tagged Lengths'!C46+5 -> 125 | K57: ='Tagged Lengths'!IU108 -> 0 | L57: ='Tagged Lengths'!IU46 -> 0 | M57: 0
J58: ='Tagged Lengths'!C47+5 -> 135 | K58: ='Tagged Lengths'!IU109 -> 0 | L58: ='Tagged Lengths'!IU47 -> 0 | M58: 0
J59: ='Tagged Lengths'!C48+5 -> 145 | K59: ='Tagged Lengths'!IU110 -> 0 | L59: ='Tagged Lengths'!IU48 -> 0 | M59: 0
J60: ='Tagged Lengths'!C49+5 -> 155 | K60: ='Tagged Lengths'!IU111 -> 0 | L60: ='Tagged Lengths'!IU49 -> 0 | M60: 0
J61: ='Tagged Lengths'!C50+5 -> 165 | K61: ='Tagged Lengths'!IU112 -> 0 | L61: ='Tagged Lengths'!IU50 -> 0 | M61: 0
J62: ='Tagged Lengths'!C51+5 -> 175 | K62: ='Tagged Lengths'!IU113 -> 0 | L62: ='Tagged Lengths'!IU51 -> 0 | M62: 0
J63: ='Tagged Lengths'!C52+5 -> 185 | K63: ='Tagged Lengths'!IU114 -> 0 | L63: ='Tagged Lengths'!IU52 -> 0 | M63: 0
J64: ='Tagged Lengths'!C53+5 -> 195 | K64: ='Tagged Lengths'!IU115 -> 0 | L64: ='Tagged Lengths'!IU53 -> 0 | M64: 0
J65: ='Tagged Lengths'!C54+5 -> 205 | K65: ='Tagged Lengths'!IU116 -> 0 | L65: ='Tagged Lengths'!IU54 -> 0 | M65: 0
J66: ='Tagged Lengths'!C55+5 -> 215 | K66: ='Tagged Lengths'!IU117 -> 0 | L66: ='Tagged Lengths'!IU55 -> 0 | M66: 0
J67: ='Tagged Lengths'!C56+5 -> 225 | K67: ='Tagged Lengths'!IU118 -> 0 | L67: ='Tagged Lengths'!IU56 -> 0 | M67: 0
J68: ='Tagged Lengths'!C57+5 -> 235 | K68: ='Tagged Lengths'!IU119 -> 0 | L68: ='Tagged Lengths'!IU57 -> 0 | M68: 0
J69: ='Tagged Lengths'!C58+5 -> 245 | K69: ='Tagged Lengths'!IU120 -> 0 | L69: ='Tagged Lengths'!IU58 -> 0 | M69: 0
J70: ='Tagged Lengths'!C59+5 -> 255 | K70: ='Tagged Lengths'!IU121 -> 0 | L70: ='Tagged Lengths'!IU59 -> 0 | M70: 0
J71: Total | K71: =SUM(K46:K70) -> 0 | L71: =SUM(L46:L70) -> 0 | M71: =SUM(M46:M70) -> 0
J72: Tag overlap statistic (%) | M72: =IF(L71>0,IF(D48>=30,100*(1-M71/2),"n/a"),"n/a") -> n/a

Sheet Raw Set and Haul Details
B1: Set and Haul Details
B3: Bait used during cruise | F3: Bait Code Reference List
B4: Bait type 1 | C4: Bait Type 2 | D4: Bait Type 3
B6: Setting Details | Y6: Hauling Details
B7: Set/ Haul Number | C7: Date & Time Set Start (dd/mm/yyyy hh:mm) | D7: Date & Time Set Finish (dd/mm/yyyy hh:mm) | E7: Set Start | J7: Set End | O7: Fishing Type | P7: % Bait Type 1 | Q7: % Bait Type 2 | R7: % Bait Type 3 | S7: Mainline length (m) | T7: Number hooks set | U7: Bottom to line distance (m) | V7: Trotline only | Y7: Date & Time Haul Start (dd/mm/yyyy hh:mm) | Z7: Date & Time Haul Finish (dd/mm/yyyy hh:mm) | AA7: Haul Start | AE7: Haul End | AI7: Haul interruption duration (hrs decimal) | AJ7: Number hooks lost attached to line | AK7: Number hooks lost other | AL7: Length of line lost | AM7: Comment
E8: Latitude degrees (-DD) | F8: Latitude minutes (MM.mm) | G8: Longitude degrees (DDD) | H8: Longitude minutes (MM.mm) | I8: Fishing Depth (m) | J8: Latitude degrees (-DD) | K8: Latitude minutes (MM.mm) | L8: Longitude degrees (DDD) | M8: Longitude minutes (MM.mm) | N8: Fishing Depth (m) | V8: Cetacean exclusion device used | W8: Number of droppers | AA8: Latitude degrees (-DD) | AB8: Latitude minutes (MM.mm) | AC8: Longitude degrees (-DD) | AD8: Longitude minutes (MM.mm) | AE8: Latitude degrees (-DD) | AF8: Latitude minutes (MM.mm) | AG8: Longitude degrees (-DD) | AH8: Longitude minutes (MM.mm)
B501: Insert additional rows (if needed for data) by selecting this row, right-click and choose Insert. Do not enter values in this row

Sheet Raw Haul Catch
B1: Haul Catch
B4: Species Code Reference List
B7: Haul Number | C7: Species Code | D7: Retained | G7: Discarded | I7: Released Alive | K7: Number lost/dropped off at surface | L7: Incidental Catch | N7: Comment
D8: Green Weight (kg) | E8: Number Without Tags | F8: Number With Tags | G8: Green Weight (kg) | H8: Number | I8: Number With Tags | J8: Number Without Tags | L8: Number Alive | M8: Number Dead or Injured
... 1 more rows

Sheet Raw Biological Sampling
B1: Biological Sampling
C3: Catch Species Code Reference List
H5: For Skates and Rays only | N5: Macrourus spp. only
B6: Haul Number | C6: Basket/ Magazine/ Trot Number or Range | D6: Fish Serial Number | E6: Observer ID | F6: Species Code | G6: Total Length (cm) | H6: Wingspan (cm) | I6: Pelvic length (cm) | J6: Maturity Stage | K6: Skate Injury Condition (88.1 and SSRU A-B Region Only) | L6: Skate Injury Condition (88.1 and SSRU A-B Region Only) | M6: Skate Injury Condition (88.1 and SSRU A-B Region Only) | N6: Snout-Anus Length (cm) | O6: Standard Length (cm) | P6: Weight (kg) | Q6: Sex | R6: Fish Maturity Stage | S6: Gonad Weight (g) | T6: Otolith(s) collected | U6: Otolith Serial Number(s) | V6: Comment
V517: Unviable
V660: Unviable

Sheet Raw Tagging
B1: Toothfish and Skate Tagging Details
B3: Tags used during cruise
C4: Tag ID 1 | D4: Tag ID 2 | E4: Tag ID 3
B5: Tag Type
B6: Tag Colour | I6: Catch Species Code Reference List
B7: Tag Wording
B8: Comment
I9: Duplicate Tag numbers are highlighted in red
E10: Tag Release Position | I10: First Tag | K10: Second Tag | M10: Third Tag | Q10: Skates and rays only
B11: Haul Number | C11: Species Code | D11: Observer ID | E11: Latitude degrees (-DD) | F11: Latitude minutes (MM.mm) | G11: Longitude degrees (DDD) | H11: Longitude minutes (MM.mm) | I11: Tag ID | J11: Tag Number | K11: Tag ID | L11: Tag Number | M11: Tag ID | N11: Tag Number | O11: Person Tagging | P11: Total Length (cm) | Q11: Pelvic Length (cm) | R11: Wingspan (cm) | S11: Sex | T11: Skate Injury Condition (88.1 and SSRU A-B Region Only) | U11: Skate Injury Condition (88.1 and SSRU A-B Region Only) | V11: Skate Injury Condition (88.1 and SSRU A-B Region Only) | W11: Released Fate | X11: Comments
A2003: AA | B2003: Insert additional rows (if needed for data) by selecting this row, right-click and choose Insert. Do not enter values in this row

Sheet ASD
B3: Start Setting position
B8: Set/ Haul Number | C8: Start Lat | D8: Start Lon | E8: ASD
B9: =IF('Raw Set and Haul Details'!$B9="","",'Raw Set and Haul Details'!$B9) ->  | C9: =IF(B9="","",IF('Raw Set and Haul Details'!$E9<0,-1*(ABS('Raw Set and Haul Details'!$E9)+('Raw Set and Haul Details'!$F9/60)),ABS('Raw Set and Haul Details'!$E9)+('Raw Set and Haul Details'!$F9/60))) ->  | D9: =IF(B9="","",IF('Raw Set and Haul Details'!$G9<0,-1*(ABS('Raw Set and Haul Details'!$G9)+('Raw Set and Haul Details'!$H9/60)),'Raw Set and Haul Details'!$G9+('Raw Set and Haul Details'!$H9/60))) ->  | E9: =IFERROR(IF(AND(ABS(C9)>=45,ABS(C9)<=50,D9>=30,D9<=44),"587",IF(AND(ABS(C9)>=45,ABS(C9)<=50,D9>=44,D9<=60),"586",IF(AND(ABS(C9)>=50,ABS(C9)<=62,D9>=30,D9<=43),"5844a",IF(AND(ABS(C9)>=50,ABS(C9)<=62,D9>=43,D9<=60),"5844b",IF(AND(ABS(C9)<=50,(D9)<=30,D9>=(-50)),"47",IF(AND(ABS(C9)<=45,D9>=30,D9<=80),"51",IF(AND(ABS(C9)>=62,D9>=30,D9<=80),"5842",IF(AND(ABS(C9)>=50,D9<=30,D9>=(-20)),"486",IF(AND(ABS(C9)>=50,ABS(C9)<=64,D9<=(-20),D9>=(-30)),"484",IF(AND(ABS(C9)>=50,ABS(C9)<=57,D9<=(-30),D9>=(-50)),"483",IF(AND(ABS(C9)>57,ABS(C9)<=64,D9<(-30),D9>=(-50)),"482",IF(AND(ABS(C9)>64,D9<=(-20),D9>(-60)),"485",IF(AND(ABS(C9)>=60,D9<=(-50),D9>=(-70)),"481",IF(AND(ABS(C9)<60,D9<=(-50),D9>=(-70)),"41",IF(AND(SUBSTITUTE('Raw Set and Haul Details'!D$41,".","")="5851",C$3="FRA"),"5851",IF(AND(SUBSTITUTE('Raw Set and Haul Details'!D$41,".","")="5852",C$3="AUS"),"5852",IF(AND(ABS(C9)>=56,ABS(C9)<=62,D9>60,D9<=73.17),"5843a",IF(AND(ABS(C9)>=55,ABS(C9)<=64,D9>=73.17,D9<=86),"5843b",IF(AND(ABS(C9)>=55,D9>80,D9<=150),"5841",IF(AND(ABS(C9)<55,D9>80,D9<=150),"57",IF(AND(ABS(C9)>=60,ABS(C9)<=65,D9>=150,D9<180),"881",IF(AND(ABS(C9)>65,D9>=150,D9<180),"881",IF(AND(ABS(C9)>=60,D9>=(-180),D9<=(-170),ABS(C9)<=65),"881",IF(AND(ABS(C9)>65,D9>=(-180),D9<=(-170)),"881",IF(AND(ABS(C9)>=60,D9>(-170),D9<(-105)),"882",IF(AND(ABS(C9)>=60,D9>(-105),D9<(-70)),"883",IF(AND(ABS(C9)<60,D9>(-180),D9<(-110)),"81",IF(AND(ABS(C9)<60,D9<180,D9>=150),"81",IF(AND(ABS(C9)<60,D9>=(-110),D9<=(-50)),"87",IF(AND(ABS(C9)<=(53+(14/60)),ABS(C9)>=45,D9>60,D9<=70),"5851",IF(AND(ABS(C9)<(49+(24/60)),ABS(C9)>=45,D9>=70,D9<80),"5851",IF(AND(ABS(C9)>=(53+(14/60)),ABS(C9)<56,D9>=60,D9<=80),"5852","")))))))))))))))))))))))))))))))),"") -> 
B10: =IF('Raw Set and Haul Details'!$B10="","",'Raw Set and Haul Details'!$B10) ->  | C10: =IF(B10="","",IF('Raw Set and Haul Details'!$E10<0,-1*(ABS('Raw Set and Haul Details'!$E10)+('Raw Set and Haul Details'!$F10/60)),ABS('Raw Set and Haul Details'!$E10)+('Raw Set and Haul Details'!$F10/60))) ->  | D10: =IF(B10="","",IF('Raw Set and Haul Details'!$G10<0,-1*(ABS('Raw Set and Haul Details'!$G10)+('Raw Set and Haul Details'!$H10/60)),'Raw Set and Haul Details'!$G10+('Raw Set and Haul Details'!$H10/60))) ->  | E10: =IFERROR(IF(AND(ABS(C10)>=45,ABS(C10)<=50,D10>=30,D10<=44),"587",IF(AND(ABS(C10)>=45,ABS(C10)<=50,D10>=44,D10<=60),"586",IF(AND(ABS(C10)>=50,ABS(C10)<=62,D10>=30,D10<=43),"5844a",IF(AND(ABS(C10)>=50,ABS(C10)<=62,D10>=43,D10<=60),"5844b",IF(AND(ABS(C10)<=50,(D10)<=30,D10>=(-50)),"47",IF(AND(ABS(C10)<=45,D10>=30,D10<=80),"51",IF(AND(ABS(C10)>=62,D10>=30,D10<=80),"5842",IF(AND(ABS(C10)>=50,D10<=30,D10>=(-20)),"486",IF(AND(ABS(C10)>=50,ABS(C10)<=64,D10<=(-20),D10>=(-30)),"484",IF(AND(ABS(C10)>=50,ABS(C10)<=57,D10<=(-30),D10>=(-50)),"483",IF(AND(ABS(C10)>57,ABS(C10)<=64,D10<(-30),D10>=(-50)),"482",IF(AND(ABS(C10)>64,D10<=(-20),D10>(-60)),"485",IF(AND(ABS(C10)>=60,D10<=(-50),D10>=(-70)),"481",IF(AND(ABS(C10)<60,D10<=(-50),D10>=(-70)),"41",IF(AND(SUBSTITUTE('Raw Set and Haul Details'!D$41,".","")="5851",C$3="FRA"),"5851",IF(AND(SUBSTITUTE('Raw Set and Haul Details'!D$41,".","")="5852",C$3="AUS"),"5852",IF(AND(ABS(C10)>=56,ABS(C10)<=62,D10>60,D10<=73.17),"5843a",IF(AND(ABS(C10)>=55,ABS(C10)<=64,D10>=73.17,D10<=86),"5843b",IF(AND(ABS(C10)>=55,D10>80,D10<=150),"5841",IF(AND(ABS(C10)<55,D10>80,D10<=150),"57",IF(AND(ABS(C10)>=60,ABS(C10)<=65,D10>=150,D10<180),"881",IF(AND(ABS(C10)>65,D10>=150,D10<180),"881",IF(AND(ABS(C10)>=60,D10>=(-180),D10<=(-170),ABS(C10)<=65),"881",IF(AND(ABS(C10)>65,D10>=(-180),D10<=(-170)),"881",IF(AND(ABS(C10)>=60,D10>(-170),D10<(-105)),"882",IF(AND(ABS(C10)>=60,D10>(-105),D10<(-70)),"883",IF(AND(ABS(C10)<60,D10>(-180),D10<(-110)),"81",IF(AND(ABS(C10)<60,D10<180,D10>=150),"81",IF(AND(ABS(C10)<60,D10>=(-110),D10<=(-50)),"87",IF(AND(ABS(C10)<=(53+(14/60)),ABS(C10)>=45,D10>60,D10<=70),"5851",IF(AND(ABS(C10)<(49+(24/60)),ABS(C10)>=45,D10>=70,D10<80),"5851",IF(AND(ABS(C10)>=(53+(14/60)),ABS(C10)<56,D10>=60,D10<=80),"5852","")))))))))))))))))))))))))))))))),"") -> 
B11: =IF('Raw Set and Haul Details'!$B11="","",'Raw Set and Haul Details'!$B11) ->  | C11: =IF(B11="","",IF('Raw Set and Haul Details'!$E11<0,-1*(ABS('Raw Set and Haul Details'!$E11)+('Raw Set and Haul Details'!$F11/60)),ABS('Raw Set and Haul Details'!$E11)+('Raw Set and Haul Details'!$F11/60))) ->  | D11: =IF(B11="","",IF('Raw Set and Haul Details'!$G11<0,-1*(ABS('Raw Set and Haul Details'!$G11)+('Raw Set and Haul Details'!$H11/60)),'Raw Set and Haul Details'!$G11+('Raw Set and Haul Details'!$H11/60))) ->  | E11: =IFERROR(IF(AND(ABS(C11)>=45,ABS(C11)<=50,D11>=30,D11<=44),"587",IF(AND(ABS(C11)>=45,ABS(C11)<=50,D11>=44,D11<=60),"586",IF(AND(ABS(C11)>=50,ABS(C11)<=62,D11>=30,D11<=43),"5844a",IF(AND(ABS(C11)>=50,ABS(C11)<=62,D11>=43,D11<=60),"5844b",IF(AND(ABS(C11)<=50,(D11)<=30,D11>=(-50)),"47",IF(AND(ABS(C11)<=45,D11>=30,D11<=80),"51",IF(AND(ABS(C11)>=62,D11>=30,D11<=80),"5842",IF(AND(ABS(C11)>=50,D11<=30,D11>=(-20)),"486",IF(AND(ABS(C11)>=50,ABS(C11)<=64,D11<=(-20),D11>=(-30)),"484",IF(AND(ABS(C11)>=50,ABS(C11)<=57,D11<=(-30),D11>=(-50)),"483",IF(AND(ABS(C11)>57,ABS(C11)<=64,D11<(-30),D11>=(-50)),"482",IF(AND(ABS(C11)>64,D11<=(-20),D11>(-60)),"485",IF(AND(ABS(C11)>=60,D11<=(-50),D11>=(-70)),"481",IF(AND(ABS(C11)<60,D11<=(-50),D11>=(-70)),"41",IF(AND(SUBSTITUTE('Raw Set and Haul Details'!D$41,".","")="5851",C$3="FRA"),"5851",IF(AND(SUBSTITUTE('Raw Set and Haul Details'!D$41,".","")="5852",C$3="AUS"),"5852",IF(AND(ABS(C11)>=56,ABS(C11)<=62,D11>60,D11<=73.17),"5843a",IF(AND(ABS(C11)>=55,ABS(C11)<=64,D11>=73.17,D11<=86),"5843b",IF(AND(ABS(C11)>=55,D11>80,D11<=150),"5841",IF(AND(ABS(C11)<55,D11>80,D11<=150),"57",IF(AND(ABS(C11)>=60,ABS(C11)<=65,D11>=150,D11<180),"881",IF(AND(ABS(C11)>65,D11>=150,D11<180),"881",IF(AND(ABS(C11)>=60,D11>=(-180),D11<=(-170),ABS(C11)<=65),"881",IF(AND(ABS(C11)>65,D11>=(-180),D11<=(-170)),"881",IF(AND(ABS(C11)>=60,D11>(-170),D11<(-105)),"882",IF(AND(ABS(C11)>=60,D11>(-105),D11<(-70)),"883",IF(AND(ABS(C11)<60,D11>(-180),D11<(-110)),"81",IF(AND(ABS(C11)<60,D11<180,D11>=150),"81",IF(AND(ABS(C11)<60,D11>=(-110),D11<=(-50)),"87",IF(AND(ABS(C11)<=(53+(14/60)),ABS(C11)>=45,D11>60,D11<=70),"5851",IF(AND(ABS(C11)<(49+(24/60)),ABS(C11)>=45,D11>=70,D11<80),"5851",IF(AND(ABS(C11)>=(53+(14/60)),ABS(C11)<56,D11>=60,D11<=80),"5852","")))))))))))))))))))))))))))))))),"") ->  | F11: =IFERROR(IF(AND(ABS(#REF!)>=45,ABS(#REF!)<=50,#REF!>=30,#REF!<=44),"587",IF(AND(ABS(#REF!)>=45,ABS(#REF!)<=50,#REF!>=44,#REF!<=60),"586",IF(AND(ABS(#REF!)>=50,ABS(#REF!)<=62,#REF!>=30,#REF!<=43),"5844a",IF(AND(ABS(#REF!)>=50,ABS(#REF!)<=62,#REF!>=43,#REF!<=60),"5844b",IF(AND(ABS(#REF!)<=50,(#REF!)<=30,#REF!>=(-50)),"47",IF(AND(ABS(#REF!)<=45,#REF!>=30,#REF!<=80),"51",IF(AND(ABS(#REF!)>=62,#REF!>=30,#REF!<=80),"5842",IF(AND(ABS(#REF!)>=50,#REF!<=30,#REF!>=(-20)),"486",IF(AND(ABS(#REF!)>=50,ABS(#REF!)<=64,#REF!<=(-20),#REF!>=(-30)),"484",IF(AND(ABS(#REF!)>=50,ABS(#REF!)<=57,#REF!<=(-30),#REF!>=(-50)),"483",IF(AND(ABS(#REF!)>57,ABS(#REF!)<=64,#REF!<(-30),#REF!>=(-50)),"482",IF(AND(ABS(#REF!)>64,#REF!<=(-20),#REF!>(-60)),"485",IF(AND(ABS(#REF!)>=60,#REF!<=(-50),#REF!>=(-70)),"481",IF(AND(ABS(#REF!)<60,#REF!<=(-50),#REF!>=(-70)),"41",IF(AND(SUBSTITUTE('Raw Set and Haul Details'!D$41,".","")="5851",#REF!="FRA"),"5851",IF(AND(SUBSTITUTE('Raw Set and Haul Details'!D$41,".","")="5852",#REF!="AUS"),"5852",IF(AND(ABS(#REF!)>=56,ABS(#REF!)<=62,#REF!>60,#REF!<=73.17),"5843a",IF(AND(ABS(#REF!)>=55,ABS(#REF!)<=64,#REF!>=73.17,#REF!<=86),"5843b",IF(AND(ABS(#REF!)>=55,#REF!>80,#REF!<=150),"5841",IF(AND(ABS(#REF!)<55,#REF!>80,#REF!<=150),"57",IF(AND(ABS(#REF!)>=60,ABS(#REF!)<=65,#REF!>=150,#REF!<180),"881",IF(AND(ABS(#REF!)>65,#REF!>=150,#REF!<180),"881",IF(AND(ABS(#REF!)>=60,#REF!>=(-180),#REF!<=(-170),ABS(#REF!)<=65),"881",IF(AND(ABS(#REF!)>65,#REF!>=(-180),#REF!<=(-170)),"881",IF(AND(ABS(#REF!)>=60,#REF!>(-170),#REF!<(-105)),"882",IF(AND(ABS(#REF!)>=60,#REF!>(-105),#REF!<(-70)),"883",IF(AND(ABS(#REF!)<60,#REF!>(-180),#REF!<(-110)),"81",IF(AND(ABS(#REF!)<60,#REF!<180,#REF!>=150),"81",IF(AND(ABS(#REF!)<60,#REF!>=(-110),#REF!<=(-50)),"87",IF(AND(ABS(#REF!)<=(53+(14/60)),ABS(#REF!)>=45,#REF!>60,#REF!<=70),"5851",IF(AND(ABS(#REF!)<(49+(24/60)),ABS(#REF!)>=45,#REF!>=70,#REF!<80),"5851",IF(AND(ABS(#REF!)>=(53+(14/60)),ABS(#REF!)<56,#REF!>=60,#REF!<=80),"5852","")))))))))))))))))))))))))))))))),"") -> 
B12: =IF('Raw Set and Haul Details'!$B12="","",'Raw Set and Haul Details'!$B12) ->  | C12: =IF(B12="","",IF('Raw Set and Haul Details'!$E12<0,-1*(ABS('Raw Set and Haul Details'!$E12)+('Raw Set and Haul Details'!$F12/60)),ABS('Raw Set and Haul Details'!$E12)+('Raw Set and Haul Details'!$F12/60))) ->  | D12: =IF(B12="","",IF('Raw Set and Haul Details'!$G12<0,-1*(ABS('Raw Set and Haul Details'!$G12)+('Raw Set and Haul Details'!$H12/60)),'Raw Set and Haul Details'!$G12+('Raw Set and Haul Details'!$H12/60))) ->  | E12: =IFERROR(IF(AND(ABS(C12)>=45,ABS(C12)<=50,D12>=30,D12<=44),"587",IF(AND(ABS(C12)>=45,ABS(C12)<=50,D12>=44,D12<=60),"586",IF(AND(ABS(C12)>=50,ABS(C12)<=62,D12>=30,D12<=43),"5844a",IF(AND(ABS(C12)>=50,ABS(C12)<=62,D12>=43,D12<=60),"5844b",IF(AND(ABS(C12)<=50,(D12)<=30,D12>=(-50)),"47",IF(AND(ABS(C12)<=45,D12>=30,D12<=80),"51",IF(AND(ABS(C12)>=62,D12>=30,D12<=80),"5842",IF(AND(ABS(C12)>=50,D12<=30,D12>=(-20)),"486",IF(AND(ABS(C12)>=50,ABS(C12)<=64,D12<=(-20),D12>=(-30)),"484",IF(AND(ABS(C12)>=50,ABS(C12)<=57,D12<=(-30),D12>=(-50)),"483",IF(AND(ABS(C12)>57,ABS(C12)<=64,D12<(-30),D12>=(-50)),"482",IF(AND(ABS(C12)>64,D12<=(-20),D12>(-60)),"485",IF(AND(ABS(C12)>=60,D12<=(-50),D12>=(-70)),"481",IF(AND(ABS(C12)<60,D12<=(-50),D12>=(-70)),"41",IF(AND(SUBSTITUTE('Raw Set and Haul Details'!D$41,".","")="5851",C$3="FRA"),"5851",IF(AND(SUBSTITUTE('Raw Set and Haul Details'!D$41,".","")="5852",C$3="AUS"),"5852",IF(AND(ABS(C12)>=56,ABS(C12)<=62,D12>60,D12<=73.17),"5843a",IF(AND(ABS(C12)>=55,ABS(C12)<=64,D12>=73.17,D12<=86),"5843b",IF(AND(ABS(C12)>=55,D12>80,D12<=150),"5841",IF(AND(ABS(C12)<55,D12>80,D12<=150),"57",IF(AND(ABS(C12)>=60,ABS(C12)<=65,D12>=150,D12<180),"881",IF(AND(ABS(C12)>65,D12>=150,D12<180),"881",IF(AND(ABS(C12)>=60,D12>=(-180),D12<=(-170),ABS(C12)<=65),"881",IF(AND(ABS(C12)>65,D12>=(-180),D12<=(-170)),"881",IF(AND(ABS(C12)>=60,D12>(-170),D12<(-105)),"882",IF(AND(ABS(C12)>=60,D12>(-105),D12<(-70)),"883",IF(AND(ABS(C12)<60,D12>(-180),D12<(-110)),"81",IF(AND(ABS(C12)<60,D12<180,D12>=150),"81",IF(AND(ABS(C12)<60,D12>=(-110),D12<=(-50)),"87",IF(AND(ABS(C12)<=(53+(14/60)),ABS(C12)>=45,D12>60,D12<=70),"5851",IF(AND(ABS(C12)<(49+(24/60)),ABS(C12)>=45,D12>=70,D12<80),"5851",IF(AND(ABS(C12)>=(53+(14/60)),ABS(C12)<56,D12>=60,D12<=80),"5852","")))))))))))))))))))))))))))))))),"") ->  | F12: =IFERROR(IF(AND(ABS(#REF!)>=45,ABS(#REF!)<=50,#REF!>=30,#REF!<=44),"587",IF(AND(ABS(#REF!)>=45,ABS(#REF!)<=50,#REF!>=44,#REF!<=60),"586",IF(AND(ABS(#REF!)>=50,ABS(#REF!)<=62,#REF!>=30,#REF!<=43),"5844a",IF(AND(ABS(#REF!)>=50,ABS(#REF!)<=62,#REF!>=43,#REF!<=60),"5844b",IF(AND(ABS(#REF!)<=50,(#REF!)<=30,#REF!>=(-50)),"47",IF(AND(ABS(#REF!)<=45,#REF!>=30,#REF!<=80),"51",IF(AND(ABS(#REF!)>=62,#REF!>=30,#REF!<=80),"5842",IF(AND(ABS(#REF!)>=50,#REF!<=30,#REF!>=(-20)),"486",IF(AND(ABS(#REF!)>=50,ABS(#REF!)<=64,#REF!<=(-20),#REF!>=(-30)),"484",IF(AND(ABS(#REF!)>=50,ABS(#REF!)<=57,#REF!<=(-30),#REF!>=(-50)),"483",IF(AND(ABS(#REF!)>57,ABS(#REF!)<=64,#REF!<(-30),#REF!>=(-50)),"482",IF(AND(ABS(#REF!)>64,#REF!<=(-20),#REF!>(-60)),"485",IF(AND(ABS(#REF!)>=60,#REF!<=(-50),#REF!>=(-70)),"481",IF(AND(ABS(#REF!)<60,#REF!<=(-50),#REF!>=(-70)),"41",IF(AND(SUBSTITUTE('Raw Set and Haul Details'!D$41,".","")="5851",#REF!="FRA"),"5851",IF(AND(SUBSTITUTE('Raw Set and Haul Details'!D$41,".","")="5852",#REF!="AUS"),"5852",IF(AND(ABS(#REF!)>=56,ABS(#REF!)<=62,#REF!>60,#REF!<=73.17),"5843a",IF(AND(ABS(#REF!)>=55,ABS(#REF!)<=64,#REF!>=73.17,#REF!<=86),"5843b",IF(AND(ABS(#REF!)>=55,#REF!>80,#REF!<=150),"5841",IF(AND(ABS(#REF!)<55,#REF!>80,#REF!<=150),"57",IF(AND(ABS(#REF!)>=60,ABS(#REF!)<=65,#REF!>=150,#REF!<180),"881",IF(AND(ABS(#REF!)>65,#REF!>=150,#REF!<180),"881",IF(AND(ABS(#REF!)>=60,#REF!>=(-180),#REF!<=(-170),ABS(#REF!)<=65),"881",IF(AND(ABS(#REF!)>65,#REF!>=(-180),#REF!<=(-170)),"881",IF(AND(ABS(#REF!)>=60,#REF!>(-170),#REF!<(-105)),"882",IF(AND(ABS(#REF!)>=60,#REF!>(-105),#REF!<(-70)),"883",IF(AND(ABS(#REF!)<60,#REF!>(-180),#REF!<(-110)),"81",IF(AND(ABS(#REF!)<60,#REF!<180,#REF!>=150),"81",IF(AND(ABS(#REF!)<60,#REF!>=(-110),#REF!<=(-50)),"87",IF(AND(ABS(#REF!)<=(53+(14/60)),ABS(#REF!)>=45,#REF!>60,#REF!<=70),"5851",IF(AND(ABS(#REF!)<(49+(24/60)),ABS(#REF!)>=45,#REF!>=70,#REF!<80),"5851",IF(AND(ABS(#REF!)>=(53+(14/60)),ABS(#REF!)<56,#REF!>=60,#REF!<=80),"5852","")))))))))))))))))))))))))))))))),"") -> 
B13: =IF('Raw Set and Haul Details'!$B13="","",'Raw Set and Haul Details'!$B13) ->  | C13: =IF(B13="","",IF('Raw Set and Haul Details'!$E13<0,-1*(ABS('Raw Set and Haul Details'!$E13)+('Raw Set and Haul Details'!$F13/60)),ABS('Raw Set and Haul Details'!$E13)+('Raw Set and Haul Details'!$F13/60))) ->  | D13: =IF(B13="","",IF('Raw Set and Haul Details'!$G13<0,-1*(ABS('Raw Set and Haul Details'!$G13)+('Raw Set and Haul Details'!$H13/60)),'Raw Set and Haul Details'!$G13+('Raw Set and Haul Details'!$H13/60))) ->  | E13: =IFERROR(IF(AND(ABS(C13)>=45,ABS(C13)<=50,D13>=30,D13<=44),"587",IF(AND(ABS(C13)>=45,ABS(C13)<=50,D13>=44,D13<=60),"586",IF(AND(ABS(C13)>=50,ABS(C13)<=62,D13>=30,D13<=43),"5844a",IF(AND(ABS(C13)>=50,ABS(C13)<=62,D13>=43,D13<=60),"5844b",IF(AND(ABS(C13)<=50,(D13)<=30,D13>=(-50)),"47",IF(AND(ABS(C13)<=45,D13>=30,D13<=80),"51",IF(AND(ABS(C13)>=62,D13>=30,D13<=80),"5842",IF(AND(ABS(C13)>=50,D13<=30,D13>=(-20)),"486",IF(AND(ABS(C13)>=50,ABS(C13)<=64,D13<=(-20),D13>=(-30)),"484",IF(AND(ABS(C13)>=50,ABS(C13)<=57,D13<=(-30),D13>=(-50)),"483",IF(AND(ABS(C13)>57,ABS(C13)<=64,D13<(-30),D13>=(-50)),"482",IF(AND(ABS(C13)>64,D13<=(-20),D13>(-60)),"485",IF(AND(ABS(C13)>=60,D13<=(-50),D13>=(-70)),"481",IF(AND(ABS(C13)<60,D13<=(-50),D13>=(-70)),"41",IF(AND(SUBSTITUTE('Raw Set and Haul Details'!D$41,".","")="5851",C$3="FRA"),"5851",IF(AND(SUBSTITUTE('Raw Set and Haul Details'!D$41,".","")="5852",C$3="AUS"),"5852",IF(AND(ABS(C13)>=56,ABS(C13)<=62,D13>60,D13<=73.17),"5843a",IF(AND(ABS(C13)>=55,ABS(C13)<=64,D13>=73.17,D13<=86),"5843b",IF(AND(ABS(C13)>=55,D13>80,D13<=150),"5841",IF(AND(ABS(C13)<55,D13>80,D13<=150),"57",IF(AND(ABS(C13)>=60,ABS(C13)<=65,D13>=150,D13<180),"881",IF(AND(ABS(C13)>65,D13>=150,D13<180),"881",IF(AND(ABS(C13)>=60,D13>=(-180),D13<=(-170),ABS(C13)<=65),"881",IF(AND(ABS(C13)>65,D13>=(-180),D13<=(-170)),"881",IF(AND(ABS(C13)>=60,D13>(-170),D13<(-105)),"882",IF(AND(ABS(C13)>=60,D13>(-105),D13<(-70)),"883",IF(AND(ABS(C13)<60,D13>(-180),D13<(-110)),"81",IF(AND(ABS(C13)<60,D13<180,D13>=150),"81",IF(AND(ABS(C13)<60,D13>=(-110),D13<=(-50)),"87",IF(AND(ABS(C13)<=(53+(14/60)),ABS(C13)>=45,D13>60,D13<=70),"5851",IF(AND(ABS(C13)<(49+(24/60)),ABS(C13)>=45,D13>=70,D13<80),"5851",IF(AND(ABS(C13)>=(53+(14/60)),ABS(C13)<56,D13>=60,D13<=80),"5852","")))))))))))))))))))))))))))))))),"") ->  | F13: =IFERROR(IF(AND(ABS(#REF!)>=45,ABS(#REF!)<=50,#REF!>=30,#REF!<=44),"587",IF(AND(ABS(#REF!)>=45,ABS(#REF!)<=50,#REF!>=44,#REF!<=60),"586",IF(AND(ABS(#REF!)>=50,ABS(#REF!)<=62,#REF!>=30,#REF!<=43),"5844a",IF(AND(ABS(#REF!)>=50,ABS(#REF!)<=62,#REF!>=43,#REF!<=60),"5844b",IF(AND(ABS(#REF!)<=50,(#REF!)<=30,#REF!>=(-50)),"47",IF(AND(ABS(#REF!)<=45,#REF!>=30,#REF!<=80),"51",IF(AND(ABS(#REF!)>=62,#REF!>=30,#REF!<=80),"5842",IF(AND(ABS(#REF!)>=50,#REF!<=30,#REF!>=(-20)),"486",IF(AND(ABS(#REF!)>=50,ABS(#REF!)<=64,#REF!<=(-20),#REF!>=(-30)),"484",IF(AND(ABS(#REF!)>=50,ABS(#REF!)<=57,#REF!<=(-30),#REF!>=(-50)),"483",IF(AND(ABS(#REF!)>57,ABS(#REF!)<=64,#REF!<(-30),#REF!>=(-50)),"482",IF(AND(ABS(#REF!)>64,#REF!<=(-20),#REF!>(-60)),"485",IF(AND(ABS(#REF!)>=60,#REF!<=(-50),#REF!>=(-70)),"481",IF(AND(ABS(#REF!)<60,#REF!<=(-50),#REF!>=(-70)),"41",IF(AND(SUBSTITUTE('Raw Set and Haul Details'!D$41,".","")="5851",#REF!="FRA"),"5851",IF(AND(SUBSTITUTE('Raw Set and Haul Details'!D$41,".","")="5852",#REF!="AUS"),"5852",IF(AND(ABS(#REF!)>=56,ABS(#REF!)<=62,#REF!>60,#REF!<=73.17),"5843a",IF(AND(ABS(#REF!)>=55,ABS(#REF!)<=64,#REF!>=73.17,#REF!<=86),"5843b",IF(AND(ABS(#REF!)>=55,#REF!>80,#REF!<=150),"5841",IF(AND(ABS(#REF!)<55,#REF!>80,#REF!<=150),"57",IF(AND(ABS(#REF!)>=60,ABS(#REF!)<=65,#REF!>=150,#REF!<180),"881",IF(AND(ABS(#REF!)>65,#REF!>=150,#REF!<180),"881",IF(AND(ABS(#REF!)>=60,#REF!>=(-180),#REF!<=(-170),ABS(#REF!)<=65),"881",IF(AND(ABS(#REF!)>65,#REF!>=(-180),#REF!<=(-170)),"881",IF(AND(ABS(#REF!)>=60,#REF!>(-170),#REF!<(-105)),"882",IF(AND(ABS(#REF!)>=60,#REF!>(-105),#REF!<(-70)),"883",IF(AND(ABS(#REF!)<60,#REF!>(-180),#REF!<(-110)),"81",IF(AND(ABS(#REF!)<60,#REF!<180,#REF!>=150),"81",IF(AND(ABS(#REF!)<60,#REF!>=(-110),#REF!<=(-50)),"87",IF(AND(ABS(#REF!)<=(53+(14/60)),ABS(#REF!)>=45,#REF!>60,#REF!<=70),"5851",IF(AND(ABS(#REF!)<(49+(24/60)),ABS(#REF!)>=45,#REF!>=70,#REF!<80),"5851",IF(AND(ABS(#REF!)>=(53+(14/60)),ABS(#REF!)<56,#REF!>=60,#REF!<=80),"5852","")))))))))))))))))))))))))))))))),"") -> 
B14: =IF('Raw Set and Haul Details'!$B14="","",'Raw Set and Haul Details'!$B14) ->  | C14: =IF(B14="","",IF('Raw Set and Haul Details'!$E14<0,-1*(ABS('Raw Set and Haul Details'!$E14)+('Raw Set and Haul Details'!$F14/60)),ABS('Raw Set and Haul Details'!$E14)+('Raw Set and Haul Details'!$F14/60))) ->  | D14: =IF(B14="","",IF('Raw Set and Haul Details'!$G14<0,-1*(ABS('Raw Set and Haul Details'!$G14)+('Raw Set and Haul Details'!$H14/60)),'Raw Set and Haul Details'!$G14+('Raw Set and Haul Details'!$H14/60))) ->  | E14: =IFERROR(IF(AND(ABS(C14)>=45,ABS(C14)<=50,D14>=30,D14<=44),"587",IF(AND(ABS(C14)>=45,ABS(C14)<=50,D14>=44,D14<=60),"586",IF(AND(ABS(C14)>=50,ABS(C14)<=62,D14>=30,D14<=43),"5844a",IF(AND(ABS(C14)>=50,ABS(C14)<=62,D14>=43,D14<=60),"5844b",IF(AND(ABS(C14)<=50,(D14)<=30,D14>=(-50)),"47",IF(AND(ABS(C14)<=45,D14>=30,D14<=80),"51",IF(AND(ABS(C14)>=62,D14>=30,D14<=80),"5842",IF(AND(ABS(C14)>=50,D14<=30,D14>=(-20)),"486",IF(AND(ABS(C14)>=50,ABS(C14)<=64,D14<=(-20),D14>=(-30)),"484",IF(AND(ABS(C14)>=50,ABS(C14)<=57,D14<=(-30),D14>=(-50)),"483",IF(AND(ABS(C14)>57,ABS(C14)<=64,D14<(-30),D14>=(-50)),"482",IF(AND(ABS(C14)>64,D14<=(-20),D14>(-60)),"485",IF(AND(ABS(C14)>=60,D14<=(-50),D14>=(-70)),"481",IF(AND(ABS(C14)<60,D14<=(-50),D14>=(-70)),"41",IF(AND(SUBSTITUTE('Raw Set and Haul Details'!D$41,".","")="5851",C$3="FRA"),"5851",IF(AND(SUBSTITUTE('Raw Set and Haul Details'!D$41,".","")="5852",C$3="AUS"),"5852",IF(AND(ABS(C14)>=56,ABS(C14)<=62,D14>60,D14<=73.17),"5843a",IF(AND(ABS(C14)>=55,ABS(C14)<=64,D14>=73.17,D14<=86),"5843b",IF(AND(ABS(C14)>=55,D14>80,D14<=150),"5841",IF(AND(ABS(C14)<55,D14>80,D14<=150),"57",IF(AND(ABS(C14)>=60,ABS(C14)<=65,D14>=150,D14<180),"881",IF(AND(ABS(C14)>65,D14>=150,D14<180),"881",IF(AND(ABS(C14)>=60,D14>=(-180),D14<=(-170),ABS(C14)<=65),"881",IF(AND(ABS(C14)>65,D14>=(-180),D14<=(-170)),"881",IF(AND(ABS(C14)>=60,D14>(-170),D14<(-105)),"882",IF(AND(ABS(C14)>=60,D14>(-105),D14<(-70)),"883",IF(AND(ABS(C14)<60,D14>(-180),D14<(-110)),"81",IF(AND(ABS(C14)<60,D14<180,D14>=150),"81",IF(AND(ABS(C14)<60,D14>=(-110),D14<=(-50)),"87",IF(AND(ABS(C14)<=(53+(14/60)),ABS(C14)>=45,D14>60,D14<=70),"5851",IF(AND(ABS(C14)<(49+(24/60)),ABS(C14)>=45,D14>=70,D14<80),"5851",IF(AND(ABS(C14)>=(53+(14/60)),ABS(C14)<56,D14>=60,D14<=80),"5852","")))))))))))))))))))))))))))))))),"") ->  | F14: =IFERROR(IF(AND(ABS(#REF!)>=45,ABS(#REF!)<=50,#REF!>=30,#REF!<=44),"587",IF(AND(ABS(#REF!)>=45,ABS(#REF!)<=50,#REF!>=44,#REF!<=60),"586",IF(AND(ABS(#REF!)>=50,ABS(#REF!)<=62,#REF!>=30,#REF!<=43),"5844a",IF(AND(ABS(#REF!)>=50,ABS(#REF!)<=62,#REF!>=43,#REF!<=60),"5844b",IF(AND(ABS(#REF!)<=50,(#REF!)<=30,#REF!>=(-50)),"47",IF(AND(ABS(#REF!)<=45,#REF!>=30,#REF!<=80),"51",IF(AND(ABS(#REF!)>=62,#REF!>=30,#REF!<=80),"5842",IF(AND(ABS(#REF!)>=50,#REF!<=30,#REF!>=(-20)),"486",IF(AND(ABS(#REF!)>=50,ABS(#REF!)<=64,#REF!<=(-20),#REF!>=(-30)),"484",IF(AND(ABS(#REF!)>=50,ABS(#REF!)<=57,#REF!<=(-30),#REF!>=(-50)),"483",IF(AND(ABS(#REF!)>57,ABS(#REF!)<=64,#REF!<(-30),#REF!>=(-50)),"482",IF(AND(ABS(#REF!)>64,#REF!<=(-20),#REF!>(-60)),"485",IF(AND(ABS(#REF!)>=60,#REF!<=(-50),#REF!>=(-70)),"481",IF(AND(ABS(#REF!)<60,#REF!<=(-50),#REF!>=(-70)),"41",IF(AND(SUBSTITUTE('Raw Set and Haul Details'!D$41,".","")="5851",#REF!="FRA"),"5851",IF(AND(SUBSTITUTE('Raw Set and Haul Details'!D$41,".","")="5852",#REF!="AUS"),"5852",IF(AND(ABS(#REF!)>=56,ABS(#REF!)<=62,#REF!>60,#REF!<=73.17),"5843a",IF(AND(ABS(#REF!)>=55,ABS(#REF!)<=64,#REF!>=73.17,#REF!<=86),"5843b",IF(AND(ABS(#REF!)>=55,#REF!>80,#REF!<=150),"5841",IF(AND(ABS(#REF!)<55,#REF!>80,#REF!<=150),"57",IF(AND(ABS(#REF!)>=60,ABS(#REF!)<=65,#REF!>=150,#REF!<180),"881",IF(AND(ABS(#REF!)>65,#REF!>=150,#REF!<180),"881",IF(AND(ABS(#REF!)>=60,#REF!>=(-180),#REF!<=(-170),ABS(#REF!)<=65),"881",IF(AND(ABS(#REF!)>65,#REF!>=(-180),#REF!<=(-170)),"881",IF(AND(ABS(#REF!)>=60,#REF!>(-170),#REF!<(-105)),"882",IF(AND(ABS(#REF!)>=60,#REF!>(-105),#REF!<(-70)),"883",IF(AND(ABS(#REF!)<60,#REF!>(-180),#REF!<(-110)),"81",IF(AND(ABS(#REF!)<60,#REF!<180,#REF!>=150),"81",IF(AND(ABS(#REF!)<60,#REF!>=(-110),#REF!<=(-50)),"87",IF(AND(ABS(#REF!)<=(53+(14/60)),ABS(#REF!)>=45,#REF!>60,#REF!<=70),"5851",IF(AND(ABS(#REF!)<(49+(24/60)),ABS(#REF!)>=45,#REF!>=70,#REF!<80),"5851",IF(AND(ABS(#REF!)>=(53+(14/60)),ABS(#REF!)<56,#REF!>=60,#REF!<=80),"5852","")))))))))))))))))))))))))))))))),"") -> 
B15: =IF('Raw Set and Haul Details'!$B15="","",'Raw Set and Haul Details'!$B15) ->  | C15: =IF(B15="","",IF('Raw Set and Haul Details'!$E15<0,-1*(ABS('Raw Set and Haul Details'!$E15)+('Raw Set and Haul Details'!$F15/60)),ABS('Raw Set and Haul Details'!$E15)+('Raw Set and Haul Details'!$F15/60))) ->  | D15: =IF(B15="","",IF('Raw Set and Haul Details'!$G15<0,-1*(ABS('Raw Set and Haul Details'!$G15)+('Raw Set and Haul Details'!$H15/60)),'Raw Set and Haul Details'!$G15+('Raw Set and Haul Details'!$H15/60))) ->  | E15: =IFERROR(IF(AND(ABS(C15)>=45,ABS(C15)<=50,D15>=30,D15<=44),"587",IF(AND(ABS(C15)>=45,ABS(C15)<=50,D15>=44,D15<=60),"586",IF(AND(ABS(C15)>=50,ABS(C15)<=62,D15>=30,D15<=43),"5844a",IF(AND(ABS(C15)>=50,ABS(C15)<=62,D15>=43,D15<=60),"5844b",IF(AND(ABS(C15)<=50,(D15)<=30,D15>=(-50)),"47",IF(AND(ABS(C15)<=45,D15>=30,D15<=80),"51",IF(AND(ABS(C15)>=62,D15>=30,D15<=80),"5842",IF(AND(ABS(C15)>=50,D15<=30,D15>=(-20)),"486",IF(AND(ABS(C15)>=50,ABS(C15)<=64,D15<=(-20),D15>=(-30)),"484",IF(AND(ABS(C15)>=50,ABS(C15)<=57,D15<=(-30),D15>=(-50)),"483",IF(AND(ABS(C15)>57,ABS(C15)<=64,D15<(-30),D15>=(-50)),"482",IF(AND(ABS(C15)>64,D15<=(-20),D15>(-60)),"485",IF(AND(ABS(C15)>=60,D15<=(-50),D15>=(-70)),"481",IF(AND(ABS(C15)<60,D15<=(-50),D15>=(-70)),"41",IF(AND(SUBSTITUTE('Raw Set and Haul Details'!D$41,".","")="5851",C$3="FRA"),"5851",IF(AND(SUBSTITUTE('Raw Set and Haul Details'!D$41,".","")="5852",C$3="AUS"),"5852",IF(AND(ABS(C15)>=56,ABS(C15)<=62,D15>60,D15<=73.17),"5843a",IF(AND(ABS(C15)>=55,ABS(C15)<=64,D15>=73.17,D15<=86),"5843b",IF(AND(ABS(C15)>=55,D15>80,D15<=150),"5841",IF(AND(ABS(C15)<55,D15>80,D15<=150),"57",IF(AND(ABS(C15)>=60,ABS(C15)<=65,D15>=150,D15<180),"881",IF(AND(ABS(C15)>65,D15>=150,D15<180),"881",IF(AND(ABS(C15)>=60,D15>=(-180),D15<=(-170),ABS(C15)<=65),"881",IF(AND(ABS(C15)>65,D15>=(-180),D15<=(-170)),"881",IF(AND(ABS(C15)>=60,D15>(-170),D15<(-105)),"882",IF(AND(ABS(C15)>=60,D15>(-105),D15<(-70)),"883",IF(AND(ABS(C15)<60,D15>(-180),D15<(-110)),"81",IF(AND(ABS(C15)<60,D15<180,D15>=150),"81",IF(AND(ABS(C15)<60,D15>=(-110),D15<=(-50)),"87",IF(AND(ABS(C15)<=(53+(14/60)),ABS(C15)>=45,D15>60,D15<=70),"5851",IF(AND(ABS(C15)<(49+(24/60)),ABS(C15)>=45,D15>=70,D15<80),"5851",IF(AND(ABS(C15)>=(53+(14/60)),ABS(C15)<56,D15>=60,D15<=80),"5852","")))))))))))))))))))))))))))))))),"") ->  | F15: =IFERROR(IF(AND(ABS(#REF!)>=45,ABS(#REF!)<=50,#REF!>=30,#REF!<=44),"587",IF(AND(ABS(#REF!)>=45,ABS(#REF!)<=50,#REF!>=44,#REF!<=60),"586",IF(AND(ABS(#REF!)>=50,ABS(#REF!)<=62,#REF!>=30,#REF!<=43),"5844a",IF(AND(ABS(#REF!)>=50,ABS(#REF!)<=62,#REF!>=43,#REF!<=60),"5844b",IF(AND(ABS(#REF!)<=50,(#REF!)<=30,#REF!>=(-50)),"47",IF(AND(ABS(#REF!)<=45,#REF!>=30,#REF!<=80),"51",IF(AND(ABS(#REF!)>=62,#REF!>=30,#REF!<=80),"5842",IF(AND(ABS(#REF!)>=50,#REF!<=30,#REF!>=(-20)),"486",IF(AND(ABS(#REF!)>=50,ABS(#REF!)<=64,#REF!<=(-20),#REF!>=(-30)),"484",IF(AND(ABS(#REF!)>=50,ABS(#REF!)<=57,#REF!<=(-30),#REF!>=(-50)),"483",IF(AND(ABS(#REF!)>57,ABS(#REF!)<=64,#REF!<(-30),#REF!>=(-50)),"482",IF(AND(ABS(#REF!)>64,#REF!<=(-20),#REF!>(-60)),"485",IF(AND(ABS(#REF!)>=60,#REF!<=(-50),#REF!>=(-70)),"481",IF(AND(ABS(#REF!)<60,#REF!<=(-50),#REF!>=(-70)),"41",IF(AND(SUBSTITUTE('Raw Set and Haul Details'!D$41,".","")="5851",#REF!="FRA"),"5851",IF(AND(SUBSTITUTE('Raw Set and Haul Details'!D$41,".","")="5852",#REF!="AUS"),"5852",IF(AND(ABS(#REF!)>=56,ABS(#REF!)<=62,#REF!>60,#REF!<=73.17),"5843a",IF(AND(ABS(#REF!)>=55,ABS(#REF!)<=64,#REF!>=73.17,#REF!<=86),"5843b",IF(AND(ABS(#REF!)>=55,#REF!>80,#REF!<=150),"5841",IF(AND(ABS(#REF!)<55,#REF!>80,#REF!<=150),"57",IF(AND(ABS(#REF!)>=60,ABS(#REF!)<=65,#REF!>=150,#REF!<180),"881",IF(AND(ABS(#REF!)>65,#REF!>=150,#REF!<180),"881",IF(AND(ABS(#REF!)>=60,#REF!>=(-180),#REF!<=(-170),ABS(#REF!)<=65),"881",IF(AND(ABS(#REF!)>65,#REF!>=(-180),#REF!<=(-170)),"881",IF(AND(ABS(#REF!)>=60,#REF!>(-170),#REF!<(-105)),"882",IF(AND(ABS(#REF!)>=60,#REF!>(-105),#REF!<(-70)),"883",IF(AND(ABS(#REF!)<60,#REF!>(-180),#REF!<(-110)),"81",IF(AND(ABS(#REF!)<60,#REF!<180,#REF!>=150),"81",IF(AND(ABS(#REF!)<60,#REF!>=(-110),#REF!<=(-50)),"87",IF(AND(ABS(#REF!)<=(53+(14/60)),ABS(#REF!)>=45,#REF!>60,#REF!<=70),"5851",IF(AND(ABS(#REF!)<(49+(24/60)),ABS(#REF!)>=45,#REF!>=70,#REF!<80),"5851",IF(AND(ABS(#REF!)>=(53+(14/60)),ABS(#REF!)<56,#REF!>=60,#REF!<=80),"5852","")))))))))))))))))))))))))))))))),"") -> 
B16: =IF('Raw Set and Haul Details'!$B16="","",'Raw Set and Haul Details'!$B16) ->  | C16: =IF(B16="","",IF('Raw Set and Haul Details'!$E16<0,-1*(ABS('Raw Set and Haul Details'!$E16)+('Raw Set and Haul Details'!$F16/60)),ABS('Raw Set and Haul Details'!$E16)+('Raw Set and Haul Details'!$F16/60))) ->  | D16: =IF(B16="","",IF('Raw Set and Haul Details'!$G16<0,-1*(ABS('Raw Set and Haul Details'!$G16)+('Raw Set and Haul Details'!$H16/60)),'Raw Set and Haul Details'!$G16+('Raw Set and Haul Details'!$H16/60))) ->  | E16: =IFERROR(IF(AND(ABS(C16)>=45,ABS(C16)<=50,D16>=30,D16<=44),"587",IF(AND(ABS(C16)>=45,ABS(C16)<=50,D16>=44,D16<=60),"586",IF(AND(ABS(C16)>=50,ABS(C16)<=62,D16>=30,D16<=43),"5844a",IF(AND(ABS(C16)>=50,ABS(C16)<=62,D16>=43,D16<=60),"5844b",IF(AND(ABS(C16)<=50,(D16)<=30,D16>=(-50)),"47",IF(AND(ABS(C16)<=45,D16>=30,D16<=80),"51",IF(AND(ABS(C16)>=62,D16>=30,D16<=80),"5842",IF(AND(ABS(C16)>=50,D16<=30,D16>=(-20)),"486",IF(AND(ABS(C16)>=50,ABS(C16)<=64,D16<=(-20),D16>=(-30)),"484",IF(AND(ABS(C16)>=50,ABS(C16)<=57,D16<=(-30),D16>=(-50)),"483",IF(AND(ABS(C16)>57,ABS(C16)<=64,D16<(-30),D16>=(-50)),"482",IF(AND(ABS(C16)>64,D16<=(-20),D16>(-60)),"485",IF(AND(ABS(C16)>=60,D16<=(-50),D16>=(-70)),"481",IF(AND(ABS(C16)<60,D16<=(-50),D16>=(-70)),"41",IF(AND(SUBSTITUTE('Raw Set and Haul Details'!D$41,".","")="5851",C$3="FRA"),"5851",IF(AND(SUBSTITUTE('Raw Set and Haul Details'!D$41,".","")="5852",C$3="AUS"),"5852",IF(AND(ABS(C16)>=56,ABS(C16)<=62,D16>60,D16<=73.17),"5843a",IF(AND(ABS(C16)>=55,ABS(C16)<=64,D16>=73.17,D16<=86),"5843b",IF(AND(ABS(C16)>=55,D16>80,D16<=150),"5841",IF(AND(ABS(C16)<55,D16>80,D16<=150),"57",IF(AND(ABS(C16)>=60,ABS(C16)<=65,D16>=150,D16<180),"881",IF(AND(ABS(C16)>65,D16>=150,D16<180),"881",IF(AND(ABS(C16)>=60,D16>=(-180),D16<=(-170),ABS(C16)<=65),"881",IF(AND(ABS(C16)>65,D16>=(-180),D16<=(-170)),"881",IF(AND(ABS(C16)>=60,D16>(-170),D16<(-105)),"882",IF(AND(ABS(C16)>=60,D16>(-105),D16<(-70)),"883",IF(AND(ABS(C16)<60,D16>(-180),D16<(-110)),"81",IF(AND(ABS(C16)<60,D16<180,D16>=150),"81",IF(AND(ABS(C16)<60,D16>=(-110),D16<=(-50)),"87",IF(AND(ABS(C16)<=(53+(14/60)),ABS(C16)>=45,D16>60,D16<=70),"5851",IF(AND(ABS(C16)<(49+(24/60)),ABS(C16)>=45,D16>=70,D16<80),"5851",IF(AND(ABS(C16)>=(53+(14/60)),ABS(C16)<56,D16>=60,D16<=80),"5852","")))))))))))))))))))))))))))))))),"") ->  | F16: =IFERROR(IF(AND(ABS(#REF!)>=45,ABS(#REF!)<=50,#REF!>=30,#REF!<=44),"587",IF(AND(ABS(#REF!)>=45,ABS(#REF!)<=50,#REF!>=44,#REF!<=60),"586",IF(AND(ABS(#REF!)>=50,ABS(#REF!)<=62,#REF!>=30,#REF!<=43),"5844a",IF(AND(ABS(#REF!)>=50,ABS(#REF!)<=62,#REF!>=43,#REF!<=60),"5844b",IF(AND(ABS(#REF!)<=50,(#REF!)<=30,#REF!>=(-50)),"47",IF(AND(ABS(#REF!)<=45,#REF!>=30,#REF!<=80),"51",IF(AND(ABS(#REF!)>=62,#REF!>=30,#REF!<=80),"5842",IF(AND(ABS(#REF!)>=50,#REF!<=30,#REF!>=(-20)),"486",IF(AND(ABS(#REF!)>=50,ABS(#REF!)<=64,#REF!<=(-20),#REF!>=(-30)),"484",IF(AND(ABS(#REF!)>=50,ABS(#REF!)<=57,#REF!<=(-30),#REF!>=(-50)),"483",IF(AND(ABS(#REF!)>57,ABS(#REF!)<=64,#REF!<(-30),#REF!>=(-50)),"482",IF(AND(ABS(#REF!)>64,#REF!<=(-20),#REF!>(-60)),"485",IF(AND(ABS(#REF!)>=60,#REF!<=(-50),#REF!>=(-70)),"481",IF(AND(ABS(#REF!)<60,#REF!<=(-50),#REF!>=(-70)),"41",IF(AND(SUBSTITUTE('Raw Set and Haul Details'!D$41,".","")="5851",#REF!="FRA"),"5851",IF(AND(SUBSTITUTE('Raw Set and Haul Details'!D$41,".","")="5852",#REF!="AUS"),"5852",IF(AND(ABS(#REF!)>=56,ABS(#REF!)<=62,#REF!>60,#REF!<=73.17),"5843a",IF(AND(ABS(#REF!)>=55,ABS(#REF!)<=64,#REF!>=73.17,#REF!<=86),"5843b",IF(AND(ABS(#REF!)>=55,#REF!>80,#REF!<=150),"5841",IF(AND(ABS(#REF!)<55,#REF!>80,#REF!<=150),"57",IF(AND(ABS(#REF!)>=60,ABS(#REF!)<=65,#REF!>=150,#REF!<180),"881",IF(AND(ABS(#REF!)>65,#REF!>=150,#REF!<180),"881",IF(AND(ABS(#REF!)>=60,#REF!>=(-180),#REF!<=(-170),ABS(#REF!)<=65),"881",IF(AND(ABS(#REF!)>65,#REF!>=(-180),#REF!<=(-170)),"881",IF(AND(ABS(#REF!)>=60,#REF!>(-170),#REF!<(-105)),"882",IF(AND(ABS(#REF!)>=60,#REF!>(-105),#REF!<(-70)),"883",IF(AND(ABS(#REF!)<60,#REF!>(-180),#REF!<(-110)),"81",IF(AND(ABS(#REF!)<60,#REF!<180,#REF!>=150),"81",IF(AND(ABS(#REF!)<60,#REF!>=(-110),#REF!<=(-50)),"87",IF(AND(ABS(#REF!)<=(53+(14/60)),ABS(#REF!)>=45,#REF!>60,#REF!<=70),"5851",IF(AND(ABS(#REF!)<(49+(24/60)),ABS(#REF!)>=45,#REF!>=70,#REF!<80),"5851",IF(AND(ABS(#REF!)>=(53+(14/60)),ABS(#REF!)<56,#REF!>=60,#REF!<=80),"5852","")))))))))))))))))))))))))))))))),"") -> 
B17: =IF('Raw Set and Haul Details'!$B17="","",'Raw Set and Haul Details'!$B17) ->  | C17: =IF(B17="","",IF('Raw Set and Haul Details'!$E17<0,-1*(ABS('Raw Set and Haul Details'!$E17)+('Raw Set and Haul Details'!$F17/60)),ABS('Raw Set and Haul Details'!$E17)+('Raw Set and Haul Details'!$F17/60))) ->  | D17: =IF(B17="","",IF('Raw Set and Haul Details'!$G17<0,-1*(ABS('Raw Set and Haul Details'!$G17)+('Raw Set and Haul Details'!$H17/60)),'Raw Set and Haul Details'!$G17+('Raw Set and Haul Details'!$H17/60))) ->  | E17: =IFERROR(IF(AND(ABS(C17)>=45,ABS(C17)<=50,D17>=30,D17<=44),"587",IF(AND(ABS(C17)>=45,ABS(C17)<=50,D17>=44,D17<=60),"586",IF(AND(ABS(C17)>=50,ABS(C17)<=62,D17>=30,D17<=43),"5844a",IF(AND(ABS(C17)>=50,ABS(C17)<=62,D17>=43,D17<=60),"5844b",IF(AND(ABS(C17)<=50,(D17)<=30,D17>=(-50)),"47",IF(AND(ABS(C17)<=45,D17>=30,D17<=80),"51",IF(AND(ABS(C17)>=62,D17>=30,D17<=80),"5842",IF(AND(ABS(C17)>=50,D17<=30,D17>=(-20)),"486",IF(AND(ABS(C17)>=50,ABS(C17)<=64,D17<=(-20),D17>=(-30)),"484",IF(AND(ABS(C17)>=50,ABS(C17)<=57,D17<=(-30),D17>=(-50)),"483",IF(AND(ABS(C17)>57,ABS(C17)<=64,D17<(-30),D17>=(-50)),"482",IF(AND(ABS(C17)>64,D17<=(-20),D17>(-60)),"485",IF(AND(ABS(C17)>=60,D17<=(-50),D17>=(-70)),"481",IF(AND(ABS(C17)<60,D17<=(-50),D17>=(-70)),"41",IF(AND(SUBSTITUTE('Raw Set and Haul Details'!D$41,".","")="5851",C$3="FRA"),"5851",IF(AND(SUBSTITUTE('Raw Set and Haul Details'!D$41,".","")="5852",C$3="AUS"),"5852",IF(AND(ABS(C17)>=56,ABS(C17)<=62,D17>60,D17<=73.17),"5843a",IF(AND(ABS(C17)>=55,ABS(C17)<=64,D17>=73.17,D17<=86),"5843b",IF(AND(ABS(C17)>=55,D17>80,D17<=150),"5841",IF(AND(ABS(C17)<55,D17>80,D17<=150),"57",IF(AND(ABS(C17)>=60,ABS(C17)<=65,D17>=150,D17<180),"881",IF(AND(ABS(C17)>65,D17>=150,D17<180),"881",IF(AND(ABS(C17)>=60,D17>=(-180),D17<=(-170),ABS(C17)<=65),"881",IF(AND(ABS(C17)>65,D17>=(-180),D17<=(-170)),"881",IF(AND(ABS(C17)>=60,D17>(-170),D17<(-105)),"882",IF(AND(ABS(C17)>=60,D17>(-105),D17<(-70)),"883",IF(AND(ABS(C17)<60,D17>(-180),D17<(-110)),"81",IF(AND(ABS(C17)<60,D17<180,D17>=150),"81",IF(AND(ABS(C17)<60,D17>=(-110),D17<=(-50)),"87",IF(AND(ABS(C17)<=(53+(14/60)),ABS(C17)>=45,D17>60,D17<=70),"5851",IF(AND(ABS(C17)<(49+(24/60)),ABS(C17)>=45,D17>=70,D17<80),"5851",IF(AND(ABS(C17)>=(53+(14/60)),ABS(C17)<56,D17>=60,D17<=80),"5852","")))))))))))))))))))))))))))))))),"") ->  | F17: =IFERROR(IF(AND(ABS(#REF!)>=45,ABS(#REF!)<=50,#REF!>=30,#REF!<=44),"587",IF(AND(ABS(#REF!)>=45,ABS(#REF!)<=50,#REF!>=44,#REF!<=60),"586",IF(AND(ABS(#REF!)>=50,ABS(#REF!)<=62,#REF!>=30,#REF!<=43),"5844a",IF(AND(ABS(#REF!)>=50,ABS(#REF!)<=62,#REF!>=43,#REF!<=60),"5844b",IF(AND(ABS(#REF!)<=50,(#REF!)<=30,#REF!>=(-50)),"47",IF(AND(ABS(#REF!)<=45,#REF!>=30,#REF!<=80),"51",IF(AND(ABS(#REF!)>=62,#REF!>=30,#REF!<=80),"5842",IF(AND(ABS(#REF!)>=50,#REF!<=30,#REF!>=(-20)),"486",IF(AND(ABS(#REF!)>=50,ABS(#REF!)<=64,#REF!<=(-20),#REF!>=(-30)),"484",IF(AND(ABS(#REF!)>=50,ABS(#REF!)<=57,#REF!<=(-30),#REF!>=(-50)),"483",IF(AND(ABS(#REF!)>57,ABS(#REF!)<=64,#REF!<(-30),#REF!>=(-50)),"482",IF(AND(ABS(#REF!)>64,#REF!<=(-20),#REF!>(-60)),"485",IF(AND(ABS(#REF!)>=60,#REF!<=(-50),#REF!>=(-70)),"481",IF(AND(ABS(#REF!)<60,#REF!<=(-50),#REF!>=(-70)),"41",IF(AND(SUBSTITUTE('Raw Set and Haul Details'!D$41,".","")="5851",#REF!="FRA"),"5851",IF(AND(SUBSTITUTE('Raw Set and Haul Details'!D$41,".","")="5852",#REF!="AUS"),"5852",IF(AND(ABS(#REF!)>=56,ABS(#REF!)<=62,#REF!>60,#REF!<=73.17),"5843a",IF(AND(ABS(#REF!)>=55,ABS(#REF!)<=64,#REF!>=73.17,#REF!<=86),"5843b",IF(AND(ABS(#REF!)>=55,#REF!>80,#REF!<=150),"5841",IF(AND(ABS(#REF!)<55,#REF!>80,#REF!<=150),"57",IF(AND(ABS(#REF!)>=60,ABS(#REF!)<=65,#REF!>=150,#REF!<180),"881",IF(AND(ABS(#REF!)>65,#REF!>=150,#REF!<180),"881",IF(AND(ABS(#REF!)>=60,#REF!>=(-180),#REF!<=(-170),ABS(#REF!)<=65),"881",IF(AND(ABS(#REF!)>65,#REF!>=(-180),#REF!<=(-170)),"881",IF(AND(ABS(#REF!)>=60,#REF!>(-170),#REF!<(-105)),"882",IF(AND(ABS(#REF!)>=60,#REF!>(-105),#REF!<(-70)),"883",IF(AND(ABS(#REF!)<60,#REF!>(-180),#REF!<(-110)),"81",IF(AND(ABS(#REF!)<60,#REF!<180,#REF!>=150),"81",IF(AND(ABS(#REF!)<60,#REF!>=(-110),#REF!<=(-50)),"87",IF(AND(ABS(#REF!)<=(53+(14/60)),ABS(#REF!)>=45,#REF!>60,#REF!<=70),"5851",IF(AND(ABS(#REF!)<(49+(24/60)),ABS(#REF!)>=45,#REF!>=70,#REF!<80),"5851",IF(AND(ABS(#REF!)>=(53+(14/60)),ABS(#REF!)<56,#REF!>=60,#REF!<=80),"5852","")))))))))))))))))))))))))))))))),"") -> 
B18: =IF('Raw Set and Haul Details'!$B18="","",'Raw Set and Haul Details'!$B18) ->  | C18: =IF(B18="","",IF('Raw Set and Haul Details'!$E18<0,-1*(ABS('Raw Set and Haul Details'!$E18)+('Raw Set and Haul Details'!$F18/60)),ABS('Raw Set and Haul Details'!$E18)+('Raw Set and Haul Details'!$F18/60))) ->  | D18: =IF(B18="","",IF('Raw Set and Haul Details'!$G18<0,-1*(ABS('Raw Set and Haul Details'!$G18)+('Raw Set and Haul Details'!$H18/60)),'Raw Set and Haul Details'!$G18+('Raw Set and Haul Details'!$H18/60))) ->  | E18: =IFERROR(IF(AND(ABS(C18)>=45,ABS(C18)<=50,D18>=30,D18<=44),"587",IF(AND(ABS(C18)>=45,ABS(C18)<=50,D18>=44,D18<=60),"586",IF(AND(ABS(C18)>=50,ABS(C18)<=62,D18>=30,D18<=43),"5844a",IF(AND(ABS(C18)>=50,ABS(C18)<=62,D18>=43,D18<=60),"5844b",IF(AND(ABS(C18)<=50,(D18)<=30,D18>=(-50)),"47",IF(AND(ABS(C18)<=45,D18>=30,D18<=80),"51",IF(AND(ABS(C18)>=62,D18>=30,D18<=80),"5842",IF(AND(ABS(C18)>=50,D18<=30,D18>=(-20)),"486",IF(AND(ABS(C18)>=50,ABS(C18)<=64,D18<=(-20),D18>=(-30)),"484",IF(AND(ABS(C18)>=50,ABS(C18)<=57,D18<=(-30),D18>=(-50)),"483",IF(AND(ABS(C18)>57,ABS(C18)<=64,D18<(-30),D18>=(-50)),"482",IF(AND(ABS(C18)>64,D18<=(-20),D18>(-60)),"485",IF(AND(ABS(C18)>=60,D18<=(-50),D18>=(-70)),"481",IF(AND(ABS(C18)<60,D18<=(-50),D18>=(-70)),"41",IF(AND(SUBSTITUTE('Raw Set and Haul Details'!D$41,".","")="5851",C$3="FRA"),"5851",IF(AND(SUBSTITUTE('Raw Set and Haul Details'!D$41,".","")="5852",C$3="AUS"),"5852",IF(AND(ABS(C18)>=56,ABS(C18)<=62,D18>60,D18<=73.17),"5843a",IF(AND(ABS(C18)>=55,ABS(C18)<=64,D18>=73.17,D18<=86),"5843b",IF(AND(ABS(C18)>=55,D18>80,D18<=150),"5841",IF(AND(ABS(C18)<55,D18>80,D18<=150),"57",IF(AND(ABS(C18)>=60,ABS(C18)<=65,D18>=150,D18<180),"881",IF(AND(ABS(C18)>65,D18>=150,D18<180),"881",IF(AND(ABS(C18)>=60,D18>=(-180),D18<=(-170),ABS(C18)<=65),"881",IF(AND(ABS(C18)>65,D18>=(-180),D18<=(-170)),"881",IF(AND(ABS(C18)>=60,D18>(-170),D18<(-105)),"882",IF(AND(ABS(C18)>=60,D18>(-105),D18<(-70)),"883",IF(AND(ABS(C18)<60,D18>(-180),D18<(-110)),"81",IF(AND(ABS(C18)<60,D18<180,D18>=150),"81",IF(AND(ABS(C18)<60,D18>=(-110),D18<=(-50)),"87",IF(AND(ABS(C18)<=(53+(14/60)),ABS(C18)>=45,D18>60,D18<=70),"5851",IF(AND(ABS(C18)<(49+(24/60)),ABS(C18)>=45,D18>=70,D18<80),"5851",IF(AND(ABS(C18)>=(53+(14/60)),ABS(C18)<56,D18>=60,D18<=80),"5852","")))))))))))))))))))))))))))))))),"") ->  | F18: =IFERROR(IF(AND(ABS(#REF!)>=45,ABS(#REF!)<=50,#REF!>=30,#REF!<=44),"587",IF(AND(ABS(#REF!)>=45,ABS(#REF!)<=50,#REF!>=44,#REF!<=60),"586",IF(AND(ABS(#REF!)>=50,ABS(#REF!)<=62,#REF!>=30,#REF!<=43),"5844a",IF(AND(ABS(#REF!)>=50,ABS(#REF!)<=62,#REF!>=43,#REF!<=60),"5844b",IF(AND(ABS(#REF!)<=50,(#REF!)<=30,#REF!>=(-50)),"47",IF(AND(ABS(#REF!)<=45,#REF!>=30,#REF!<=80),"51",IF(AND(ABS(#REF!)>=62,#REF!>=30,#REF!<=80),"5842",IF(AND(ABS(#REF!)>=50,#REF!<=30,#REF!>=(-20)),"486",IF(AND(ABS(#REF!)>=50,ABS(#REF!)<=64,#REF!<=(-20),#REF!>=(-30)),"484",IF(AND(ABS(#REF!)>=50,ABS(#REF!)<=57,#REF!<=(-30),#REF!>=(-50)),"483",IF(AND(ABS(#REF!)>57,ABS(#REF!)<=64,#REF!<(-30),#REF!>=(-50)),"482",IF(AND(ABS(#REF!)>64,#REF!<=(-20),#REF!>(-60)),"485",IF(AND(ABS(#REF!)>=60,#REF!<=(-50),#REF!>=(-70)),"481",IF(AND(ABS(#REF!)<60,#REF!<=(-50),#REF!>=(-70)),"41",IF(AND(SUBSTITUTE('Raw Set and Haul Details'!D$41,".","")="5851",#REF!="FRA"),"5851",IF(AND(SUBSTITUTE('Raw Set and Haul Details'!D$41,".","")="5852",#REF!="AUS"),"5852",IF(AND(ABS(#REF!)>=56,ABS(#REF!)<=62,#REF!>60,#REF!<=73.17),"5843a",IF(AND(ABS(#REF!)>=55,ABS(#REF!)<=64,#REF!>=73.17,#REF!<=86),"5843b",IF(AND(ABS(#REF!)>=55,#REF!>80,#REF!<=150),"5841",IF(AND(ABS(#REF!)<55,#REF!>80,#REF!<=150),"57",IF(AND(ABS(#REF!)>=60,ABS(#REF!)<=65,#REF!>=150,#REF!<180),"881",IF(AND(ABS(#REF!)>65,#REF!>=150,#REF!<180),"881",IF(AND(ABS(#REF!)>=60,#REF!>=(-180),#REF!<=(-170),ABS(#REF!)<=65),"881",IF(AND(ABS(#REF!)>65,#REF!>=(-180),#REF!<=(-170)),"881",IF(AND(ABS(#REF!)>=60,#REF!>(-170),#REF!<(-105)),"882",IF(AND(ABS(#REF!)>=60,#REF!>(-105),#REF!<(-70)),"883",IF(AND(ABS(#REF!)<60,#REF!>(-180),#REF!<(-110)),"81",IF(AND(ABS(#REF!)<60,#REF!<180,#REF!>=150),"81",IF(AND(ABS(#REF!)<60,#REF!>=(-110),#REF!<=(-50)),"87",IF(AND(ABS(#REF!)<=(53+(14/60)),ABS(#REF!)>=45,#REF!>60,#REF!<=70),"5851",IF(AND(ABS(#REF!)<(49+(24/60)),ABS(#REF!)>=45,#REF!>=70,#REF!<80),"5851",IF(AND(ABS(#REF!)>=(53+(14/60)),ABS(#REF!)<56,#REF!>=60,#REF!<=80),"5852","")))))))))))))))))))))))))))))))),"") -> 
B19: =IF('Raw Set and Haul Details'!$B19="","",'Raw Set and Haul Details'!$B19) ->  | C19: =IF(B19="","",IF('Raw Set and Haul Details'!$E19<0,-1*(ABS('Raw Set and Haul Details'!$E19)+('Raw Set and Haul Details'!$F19/60)),ABS('Raw Set and Haul Details'!$E19)+('Raw Set and Haul Details'!$F19/60))) ->  | D19: =IF(B19="","",IF('Raw Set and Haul Details'!$G19<0,-1*(ABS('Raw Set and Haul Details'!$G19)+('Raw Set and Haul Details'!$H19/60)),'Raw Set and Haul Details'!$G19+('Raw Set and Haul Details'!$H19/60))) ->  | E19: =IFERROR(IF(AND(ABS(C19)>=45,ABS(C19)<=50,D19>=30,D19<=44),"587",IF(AND(ABS(C19)>=45,ABS(C19)<=50,D19>=44,D19<=60),"586",IF(AND(ABS(C19)>=50,ABS(C19)<=62,D19>=30,D19<=43),"5844a",IF(AND(ABS(C19)>=50,ABS(C19)<=62,D19>=43,D19<=60),"5844b",IF(AND(ABS(C19)<=50,(D19)<=30,D19>=(-50)),"47",IF(AND(ABS(C19)<=45,D19>=30,D19<=80),"51",IF(AND(ABS(C19)>=62,D19>=30,D19<=80),"5842",IF(AND(ABS(C19)>=50,D19<=30,D19>=(-20)),"486",IF(AND(ABS(C19)>=50,ABS(C19)<=64,D19<=(-20),D19>=(-30)),"484",IF(AND(ABS(C19)>=50,ABS(C19)<=57,D19<=(-30),D19>=(-50)),"483",IF(AND(ABS(C19)>57,ABS(C19)<=64,D19<(-30),D19>=(-50)),"482",IF(AND(ABS(C19)>64,D19<=(-20),D19>(-60)),"485",IF(AND(ABS(C19)>=60,D19<=(-50),D19>=(-70)),"481",IF(AND(ABS(C19)<60,D19<=(-50),D19>=(-70)),"41",IF(AND(SUBSTITUTE('Raw Set and Haul Details'!D$41,".","")="5851",C$3="FRA"),"5851",IF(AND(SUBSTITUTE('Raw Set and Haul Details'!D$41,".","")="5852",C$3="AUS"),"5852",IF(AND(ABS(C19)>=56,ABS(C19)<=62,D19>60,D19<=73.17),"5843a",IF(AND(ABS(C19)>=55,ABS(C19)<=64,D19>=73.17,D19<=86),"5843b",IF(AND(ABS(C19)>=55,D19>80,D19<=150),"5841",IF(AND(ABS(C19)<55,D19>80,D19<=150),"57",IF(AND(ABS(C19)>=60,ABS(C19)<=65,D19>=150,D19<180),"881",IF(AND(ABS(C19)>65,D19>=150,D19<180),"881",IF(AND(ABS(C19)>=60,D19>=(-180),D19<=(-170),ABS(C19)<=65),"881",IF(AND(ABS(C19)>65,D19>=(-180),D19<=(-170)),"881",IF(AND(ABS(C19)>=60,D19>(-170),D19<(-105)),"882",IF(AND(ABS(C19)>=60,D19>(-105),D19<(-70)),"883",IF(AND(ABS(C19)<60,D19>(-180),D19<(-110)),"81",IF(AND(ABS(C19)<60,D19<180,D19>=150),"81",IF(AND(ABS(C19)<60,D19>=(-110),D19<=(-50)),"87",IF(AND(ABS(C19)<=(53+(14/60)),ABS(C19)>=45,D19>60,D19<=70),"5851",IF(AND(ABS(C19)<(49+(24/60)),ABS(C19)>=45,D19>=70,D19<80),"5851",IF(AND(ABS(C19)>=(53+(14/60)),ABS(C19)<56,D19>=60,D19<=80),"5852","")))))))))))))))))))))))))))))))),"") ->  | F19: =IFERROR(IF(AND(ABS(#REF!)>=45,ABS(#REF!)<=50,#REF!>=30,#REF!<=44),"587",IF(AND(ABS(#REF!)>=45,ABS(#REF!)<=50,#REF!>=44,#REF!<=60),"586",IF(AND(ABS(#REF!)>=50,ABS(#REF!)<=62,#REF!>=30,#REF!<=43),"5844a",IF(AND(ABS(#REF!)>=50,ABS(#REF!)<=62,#REF!>=43,#REF!<=60),"5844b",IF(AND(ABS(#REF!)<=50,(#REF!)<=30,#REF!>=(-50)),"47",IF(AND(ABS(#REF!)<=45,#REF!>=30,#REF!<=80),"51",IF(AND(ABS(#REF!)>=62,#REF!>=30,#REF!<=80),"5842",IF(AND(ABS(#REF!)>=50,#REF!<=30,#REF!>=(-20)),"486",IF(AND(ABS(#REF!)>=50,ABS(#REF!)<=64,#REF!<=(-20),#REF!>=(-30)),"484",IF(AND(ABS(#REF!)>=50,ABS(#REF!)<=57,#REF!<=(-30),#REF!>=(-50)),"483",IF(AND(ABS(#REF!)>57,ABS(#REF!)<=64,#REF!<(-30),#REF!>=(-50)),"482",IF(AND(ABS(#REF!)>64,#REF!<=(-20),#REF!>(-60)),"485",IF(AND(ABS(#REF!)>=60,#REF!<=(-50),#REF!>=(-70)),"481",IF(AND(ABS(#REF!)<60,#REF!<=(-50),#REF!>=(-70)),"41",IF(AND(SUBSTITUTE('Raw Set and Haul Details'!D$41,".","")="5851",#REF!="FRA"),"5851",IF(AND(SUBSTITUTE('Raw Set and Haul Details'!D$41,".","")="5852",#REF!="AUS"),"5852",IF(AND(ABS(#REF!)>=56,ABS(#REF!)<=62,#REF!>60,#REF!<=73.17),"5843a",IF(AND(ABS(#REF!)>=55,ABS(#REF!)<=64,#REF!>=73.17,#REF!<=86),"5843b",IF(AND(ABS(#REF!)>=55,#REF!>80,#REF!<=150),"5841",IF(AND(ABS(#REF!)<55,#REF!>80,#REF!<=150),"57",IF(AND(ABS(#REF!)>=60,ABS(#REF!)<=65,#REF!>=150,#REF!<180),"881",IF(AND(ABS(#REF!)>65,#REF!>=150,#REF!<180),"881",IF(AND(ABS(#REF!)>=60,#REF!>=(-180),#REF!<=(-170),ABS(#REF!)<=65),"881",IF(AND(ABS(#REF!)>65,#REF!>=(-180),#REF!<=(-170)),"881",IF(AND(ABS(#REF!)>=60,#REF!>(-170),#REF!<(-105)),"882",IF(AND(ABS(#REF!)>=60,#REF!>(-105),#REF!<(-70)),"883",IF(AND(ABS(#REF!)<60,#REF!>(-180),#REF!<(-110)),"81",IF(AND(ABS(#REF!)<60,#REF!<180,#REF!>=150),"81",IF(AND(ABS(#REF!)<60,#REF!>=(-110),#REF!<=(-50)),"87",IF(AND(ABS(#REF!)<=(53+(14/60)),ABS(#REF!)>=45,#REF!>60,#REF!<=70),"5851",IF(AND(ABS(#REF!)<(49+(24/60)),ABS(#REF!)>=45,#REF!>=70,#REF!<80),"5851",IF(AND(ABS(#REF!)>=(53+(14/60)),ABS(#REF!)<56,#REF!>=60,#REF!<=80),"5852","")))))))))))))))))))))))))))))))),"") -> 
B20: =IF('Raw Set and Haul Details'!$B20="","",'Raw Set and Haul Details'!$B20) ->  | C20: =IF(B20="","",IF('Raw Set and Haul Details'!$E20<0,-1*(ABS('Raw Set and Haul Details'!$E20)+('Raw Set and Haul Details'!$F20/60)),ABS('Raw Set and Haul Details'!$E20)+('Raw Set and Haul Details'!$F20/60))) ->  | D20: =IF(B20="","",IF('Raw Set and Haul Details'!$G20<0,-1*(ABS('Raw Set and Haul Details'!$G20)+('Raw Set and Haul Details'!$H20/60)),'Raw Set and Haul Details'!$G20+('Raw Set and Haul Details'!$H20/60))) ->  | E20: =IFERROR(IF(AND(ABS(C20)>=45,ABS(C20)<=50,D20>=30,D20<=44),"587",IF(AND(ABS(C20)>=45,ABS(C20)<=50,D20>=44,D20<=60),"586",IF(AND(ABS(C20)>=50,ABS(C20)<=62,D20>=30,D20<=43),"5844a",IF(AND(ABS(C20)>=50,ABS(C20)<=62,D20>=43,D20<=60),"5844b",IF(AND(ABS(C20)<=50,(D20)<=30,D20>=(-50)),"47",IF(AND(ABS(C20)<=45,D20>=30,D20<=80),"51",IF(AND(ABS(C20)>=62,D20>=30,D20<=80),"5842",IF(AND(ABS(C20)>=50,D20<=30,D20>=(-20)),"486",IF(AND(ABS(C20)>=50,ABS(C20)<=64,D20<=(-20),D20>=(-30)),"484",IF(AND(ABS(C20)>=50,ABS(C20)<=57,D20<=(-30),D20>=(-50)),"483",IF(AND(ABS(C20)>57,ABS(C20)<=64,D20<(-30),D20>=(-50)),"482",IF(AND(ABS(C20)>64,D20<=(-20),D20>(-60)),"485",IF(AND(ABS(C20)>=60,D20<=(-50),D20>=(-70)),"481",IF(AND(ABS(C20)<60,D20<=(-50),D20>=(-70)),"41",IF(AND(SUBSTITUTE('Raw Set and Haul Details'!D$41,".","")="5851",C$3="FRA"),"5851",IF(AND(SUBSTITUTE('Raw Set and Haul Details'!D$41,".","")="5852",C$3="AUS"),"5852",IF(AND(ABS(C20)>=56,ABS(C20)<=62,D20>60,D20<=73.17),"5843a",IF(AND(ABS(C20)>=55,ABS(C20)<=64,D20>=73.17,D20<=86),"5843b",IF(AND(ABS(C20)>=55,D20>80,D20<=150),"5841",IF(AND(ABS(C20)<55,D20>80,D20<=150),"57",IF(AND(ABS(C20)>=60,ABS(C20)<=65,D20>=150,D20<180),"881",IF(AND(ABS(C20)>65,D20>=150,D20<180),"881",IF(AND(ABS(C20)>=60,D20>=(-180),D20<=(-170),ABS(C20)<=65),"881",IF(AND(ABS(C20)>65,D20>=(-180),D20<=(-170)),"881",IF(AND(ABS(C20)>=60,D20>(-170),D20<(-105)),"882",IF(AND(ABS(C20)>=60,D20>(-105),D20<(-70)),"883",IF(AND(ABS(C20)<60,D20>(-180),D20<(-110)),"81",IF(AND(ABS(C20)<60,D20<180,D20>=150),"81",IF(AND(ABS(C20)<60,D20>=(-110),D20<=(-50)),"87",IF(AND(ABS(C20)<=(53+(14/60)),ABS(C20)>=45,D20>60,D20<=70),"5851",IF(AND(ABS(C20)<(49+(24/60)),ABS(C20)>=45,D20>=70,D20<80),"5851",IF(AND(ABS(C20)>=(53+(14/60)),ABS(C20)<56,D20>=60,D20<=80),"5852","")))))))))))))))))))))))))))))))),"") ->  | F20: =IFERROR(IF(AND(ABS(#REF!)>=45,ABS(#REF!)<=50,#REF!>=30,#REF!<=44),"587",IF(AND(ABS(#REF!)>=45,ABS(#REF!)<=50,#REF!>=44,#REF!<=60),"586",IF(AND(ABS(#REF!)>=50,ABS(#REF!)<=62,#REF!>=30,#REF!<=43),"5844a",IF(AND(ABS(#REF!)>=50,ABS(#REF!)<=62,#REF!>=43,#REF!<=60),"5844b",IF(AND(ABS(#REF!)<=50,(#REF!)<=30,#REF!>=(-50)),"47",IF(AND(ABS(#REF!)<=45,#REF!>=30,#REF!<=80),"51",IF(AND(ABS(#REF!)>=62,#REF!>=30,#REF!<=80),"5842",IF(AND(ABS(#REF!)>=50,#REF!<=30,#REF!>=(-20)),"486",IF(AND(ABS(#REF!)>=50,ABS(#REF!)<=64,#REF!<=(-20),#REF!>=(-30)),"484",IF(AND(ABS(#REF!)>=50,ABS(#REF!)<=57,#REF!<=(-30),#REF!>=(-50)),"483",IF(AND(ABS(#REF!)>57,ABS(#REF!)<=64,#REF!<(-30),#REF!>=(-50)),"482",IF(AND(ABS(#REF!)>64,#REF!<=(-20),#REF!>(-60)),"485",IF(AND(ABS(#REF!)>=60,#REF!<=(-50),#REF!>=(-70)),"481",IF(AND(ABS(#REF!)<60,#REF!<=(-50),#REF!>=(-70)),"41",IF(AND(SUBSTITUTE('Raw Set and Haul Details'!D$41,".","")="5851",#REF!="FRA"),"5851",IF(AND(SUBSTITUTE('Raw Set and Haul Details'!D$41,".","")="5852",#REF!="AUS"),"5852",IF(AND(ABS(#REF!)>=56,ABS(#REF!)<=62,#REF!>60,#REF!<=73.17),"5843a",IF(AND(ABS(#REF!)>=55,ABS(#REF!)<=64,#REF!>=73.17,#REF!<=86),"5843b",IF(AND(ABS(#REF!)>=55,#REF!>80,#REF!<=150),"5841",IF(AND(ABS(#REF!)<55,#REF!>80,#REF!<=150),"57",IF(AND(ABS(#REF!)>=60,ABS(#REF!)<=65,#REF!>=150,#REF!<180),"881",IF(AND(ABS(#REF!)>65,#REF!>=150,#REF!<180),"881",IF(AND(ABS(#REF!)>=60,#REF!>=(-180),#REF!<=(-170),ABS(#REF!)<=65),"881",IF(AND(ABS(#REF!)>65,#REF!>=(-180),#REF!<=(-170)),"881",IF(AND(ABS(#REF!)>=60,#REF!>(-170),#REF!<(-105)),"882",IF(AND(ABS(#REF!)>=60,#REF!>(-105),#REF!<(-70)),"883",IF(AND(ABS(#REF!)<60,#REF!>(-180),#REF!<(-110)),"81",IF(AND(ABS(#REF!)<60,#REF!<180,#REF!>=150),"81",IF(AND(ABS(#REF!)<60,#REF!>=(-110),#REF!<=(-50)),"87",IF(AND(ABS(#REF!)<=(53+(14/60)),ABS(#REF!)>=45,#REF!>60,#REF!<=70),"5851",IF(AND(ABS(#REF!)<(49+(24/60)),ABS(#REF!)>=45,#REF!>=70,#REF!<80),"5851",IF(AND(ABS(#REF!)>=(53+(14/60)),ABS(#REF!)<56,#REF!>=60,#REF!<=80),"5852","")))))))))))))))))))))))))))))))),"") -> 
B21: =IF('Raw Set and Haul Details'!$B21="","",'Raw Set and Haul Details'!$B21) ->  | C21: =IF(B21="","",IF('Raw Set and Haul Details'!$E21<0,-1*(ABS('Raw Set and Haul Details'!$E21)+('Raw Set and Haul Details'!$F21/60)),ABS('Raw Set and Haul Details'!$E21)+('Raw Set and Haul Details'!$F21/60))) ->  | D21: =IF(B21="","",IF('Raw Set and Haul Details'!$G21<0,-1*(ABS('Raw Set and Haul Details'!$G21)+('Raw Set and Haul Details'!$H21/60)),'Raw Set and Haul Details'!$G21+('Raw Set and Haul Details'!$H21/60))) ->  | E21: =IFERROR(IF(AND(ABS(C21)>=45,ABS(C21)<=50,D21>=30,D21<=44),"587",IF(AND(ABS(C21)>=45,ABS(C21)<=50,D21>=44,D21<=60),"586",IF(AND(ABS(C21)>=50,ABS(C21)<=62,D21>=30,D21<=43),"5844a",IF(AND(ABS(C21)>=50,ABS(C21)<=62,D21>=43,D21<=60),"5844b",IF(AND(ABS(C21)<=50,(D21)<=30,D21>=(-50)),"47",IF(AND(ABS(C21)<=45,D21>=30,D21<=80),"51",IF(AND(ABS(C21)>=62,D21>=30,D21<=80),"5842",IF(AND(ABS(C21)>=50,D21<=30,D21>=(-20)),"486",IF(AND(ABS(C21)>=50,ABS(C21)<=64,D21<=(-20),D21>=(-30)),"484",IF(AND(ABS(C21)>=50,ABS(C21)<=57,D21<=(-30),D21>=(-50)),"483",IF(AND(ABS(C21)>57,ABS(C21)<=64,D21<(-30),D21>=(-50)),"482",IF(AND(ABS(C21)>64,D21<=(-20),D21>(-60)),"485",IF(AND(ABS(C21)>=60,D21<=(-50),D21>=(-70)),"481",IF(AND(ABS(C21)<60,D21<=(-50),D21>=(-70)),"41",IF(AND(SUBSTITUTE('Raw Set and Haul Details'!D$41,".","")="5851",C$3="FRA"),"5851",IF(AND(SUBSTITUTE('Raw Set and Haul Details'!D$41,".","")="5852",C$3="AUS"),"5852",IF(AND(ABS(C21)>=56,ABS(C21)<=62,D21>60,D21<=73.17),"5843a",IF(AND(ABS(C21)>=55,ABS(C21)<=64,D21>=73.17,D21<=86),"5843b",IF(AND(ABS(C21)>=55,D21>80,D21<=150),"5841",IF(AND(ABS(C21)<55,D21>80,D21<=150),"57",IF(AND(ABS(C21)>=60,ABS(C21)<=65,D21>=150,D21<180),"881",IF(AND(ABS(C21)>65,D21>=150,D21<180),"881",IF(AND(ABS(C21)>=60,D21>=(-180),D21<=(-170),ABS(C21)<=65),"881",IF(AND(ABS(C21)>65,D21>=(-180),D21<=(-170)),"881",IF(AND(ABS(C21)>=60,D21>(-170),D21<(-105)),"882",IF(AND(ABS(C21)>=60,D21>(-105),D21<(-70)),"883",IF(AND(ABS(C21)<60,D21>(-180),D21<(-110)),"81",IF(AND(ABS(C21)<60,D21<180,D21>=150),"81",IF(AND(ABS(C21)<60,D21>=(-110),D21<=(-50)),"87",IF(AND(ABS(C21)<=(53+(14/60)),ABS(C21)>=45,D21>60,D21<=70),"5851",IF(AND(ABS(C21)<(49+(24/60)),ABS(C21)>=45,D21>=70,D21<80),"5851",IF(AND(ABS(C21)>=(53+(14/60)),ABS(C21)<56,D21>=60,D21<=80),"5852","")))))))))))))))))))))))))))))))),"") -> 
B22: =IF('Raw Set and Haul Details'!$B22="","",'Raw Set and Haul Details'!$B22) ->  | C22: =IF(B22="","",IF('Raw Set and Haul Details'!$E22<0,-1*(ABS('Raw Set and Haul Details'!$E22)+('Raw Set and Haul Details'!$F22/60)),ABS('Raw Set and Haul Details'!$E22)+('Raw Set and Haul Details'!$F22/60))) ->  | D22: =IF(B22="","",IF('Raw Set and Haul Details'!$G22<0,-1*(ABS('Raw Set and Haul Details'!$G22)+('Raw Set and Haul Details'!$H22/60)),'Raw Set and Haul Details'!$G22+('Raw Set and Haul Details'!$H22/60))) ->  | E22: =IFERROR(IF(AND(ABS(C22)>=45,ABS(C22)<=50,D22>=30,D22<=44),"587",IF(AND(ABS(C22)>=45,ABS(C22)<=50,D22>=44,D22<=60),"586",IF(AND(ABS(C22)>=50,ABS(C22)<=62,D22>=30,D22<=43),"5844a",IF(AND(ABS(C22)>=50,ABS(C22)<=62,D22>=43,D22<=60),"5844b",IF(AND(ABS(C22)<=50,(D22)<=30,D22>=(-50)),"47",IF(AND(ABS(C22)<=45,D22>=30,D22<=80),"51",IF(AND(ABS(C22)>=62,D22>=30,D22<=80),"5842",IF(AND(ABS(C22)>=50,D22<=30,D22>=(-20)),"486",IF(AND(ABS(C22)>=50,ABS(C22)<=64,D22<=(-20),D22>=(-30)),"484",IF(AND(ABS(C22)>=50,ABS(C22)<=57,D22<=(-30),D22>=(-50)),"483",IF(AND(ABS(C22)>57,ABS(C22)<=64,D22<(-30),D22>=(-50)),"482",IF(AND(ABS(C22)>64,D22<=(-20),D22>(-60)),"485",IF(AND(ABS(C22)>=60,D22<=(-50),D22>=(-70)),"481",IF(AND(ABS(C22)<60,D22<=(-50),D22>=(-70)),"41",IF(AND(SUBSTITUTE('Raw Set and Haul Details'!D$41,".","")="5851",C$3="FRA"),"5851",IF(AND(SUBSTITUTE('Raw Set and Haul Details'!D$41,".","")="5852",C$3="AUS"),"5852",IF(AND(ABS(C22)>=56,ABS(C22)<=62,D22>60,D22<=73.17),"5843a",IF(AND(ABS(C22)>=55,ABS(C22)<=64,D22>=73.17,D22<=86),"5843b",IF(AND(ABS(C22)>=55,D22>80,D22<=150),"5841",IF(AND(ABS(C22)<55,D22>80,D22<=150),"57",IF(AND(ABS(C22)>=60,ABS(C22)<=65,D22>=150,D22<180),"881",IF(AND(ABS(C22)>65,D22>=150,D22<180),"881",IF(AND(ABS(C22)>=60,D22>=(-180),D22<=(-170),ABS(C22)<=65),"881",IF(AND(ABS(C22)>65,D22>=(-180),D22<=(-170)),"881",IF(AND(ABS(C22)>=60,D22>(-170),D22<(-105)),"882",IF(AND(ABS(C22)>=60,D22>(-105),D22<(-70)),"883",IF(AND(ABS(C22)<60,D22>(-180),D22<(-110)),"81",IF(AND(ABS(C22)<60,D22<180,D22>=150),"81",IF(AND(ABS(C22)<60,D22>=(-110),D22<=(-50)),"87",IF(AND(ABS(C22)<=(53+(14/60)),ABS(C22)>=45,D22>60,D22<=70),"5851",IF(AND(ABS(C22)<(49+(24/60)),ABS(C22)>=45,D22>=70,D22<80),"5851",IF(AND(ABS(C22)>=(53+(14/60)),ABS(C22)<56,D22>=60,D22<=80),"5852","")))))))))))))))))))))))))))))))),"") -> 
B23: =IF('Raw Set and Haul Details'!$B23="","",'Raw Set and Haul Details'!$B23) ->  | C23: =IF(B23="","",IF('Raw Set and Haul Details'!$E23<0,-1*(ABS('Raw Set and Haul Details'!$E23)+('Raw Set and Haul Details'!$F23/60)),ABS('Raw Set and Haul Details'!$E23)+('Raw Set and Haul Details'!$F23/60))) ->  | D23: =IF(B23="","",IF('Raw Set and Haul Details'!$G23<0,-1*(ABS('Raw Set and Haul Details'!$G23)+('Raw Set and Haul Details'!$H23/60)),'Raw Set and Haul Details'!$G23+('Raw Set and Haul Details'!$H23/60))) ->  | E23: =IFERROR(IF(AND(ABS(C23)>=45,ABS(C23)<=50,D23>=30,D23<=44),"587",IF(AND(ABS(C23)>=45,ABS(C23)<=50,D23>=44,D23<=60),"586",IF(AND(ABS(C23)>=50,ABS(C23)<=62,D23>=30,D23<=43),"5844a",IF(AND(ABS(C23)>=50,ABS(C23)<=62,D23>=43,D23<=60),"5844b",IF(AND(ABS(C23)<=50,(D23)<=30,D23>=(-50)),"47",IF(AND(ABS(C23)<=45,D23>=30,D23<=80),"51",IF(AND(ABS(C23)>=62,D23>=30,D23<=80),"5842",IF(AND(ABS(C23)>=50,D23<=30,D23>=(-20)),"486",IF(AND(ABS(C23)>=50,ABS(C23)<=64,D23<=(-20),D23>=(-30)),"484",IF(AND(ABS(C23)>=50,ABS(C23)<=57,D23<=(-30),D23>=(-50)),"483",IF(AND(ABS(C23)>57,ABS(C23)<=64,D23<(-30),D23>=(-50)),"482",IF(AND(ABS(C23)>64,D23<=(-20),D23>(-60)),"485",IF(AND(ABS(C23)>=60,D23<=(-50),D23>=(-70)),"481",IF(AND(ABS(C23)<60,D23<=(-50),D23>=(-70)),"41",IF(AND(SUBSTITUTE('Raw Set and Haul Details'!D$41,".","")="5851",C$3="FRA"),"5851",IF(AND(SUBSTITUTE('Raw Set and Haul Details'!D$41,".","")="5852",C$3="AUS"),"5852",IF(AND(ABS(C23)>=56,ABS(C23)<=62,D23>60,D23<=73.17),"5843a",IF(AND(ABS(C23)>=55,ABS(C23)<=64,D23>=73.17,D23<=86),"5843b",IF(AND(ABS(C23)>=55,D23>80,D23<=150),"5841",IF(AND(ABS(C23)<55,D23>80,D23<=150),"57",IF(AND(ABS(C23)>=60,ABS(C23)<=65,D23>=150,D23<180),"881",IF(AND(ABS(C23)>65,D23>=150,D23<180),"881",IF(AND(ABS(C23)>=60,D23>=(-180),D23<=(-170),ABS(C23)<=65),"881",IF(AND(ABS(C23)>65,D23>=(-180),D23<=(-170)),"881",IF(AND(ABS(C23)>=60,D23>(-170),D23<(-105)),"882",IF(AND(ABS(C23)>=60,D23>(-105),D23<(-70)),"883",IF(AND(ABS(C23)<60,D23>(-180),D23<(-110)),"81",IF(AND(ABS(C23)<60,D23<180,D23>=150),"81",IF(AND(ABS(C23)<60,D23>=(-110),D23<=(-50)),"87",IF(AND(ABS(C23)<=(53+(14/60)),ABS(C23)>=45,D23>60,D23<=70),"5851",IF(AND(ABS(C23)<(49+(24/60)),ABS(C23)>=45,D23>=70,D23<80),"5851",IF(AND(ABS(C23)>=(53+(14/60)),ABS(C23)<56,D23>=60,D23<=80),"5852","")))))))))))))))))))))))))))))))),"") -> 
B24: =IF('Raw Set and Haul Details'!$B24="","",'Raw Set and Haul Details'!$B24) ->  | C24: =IF(B24="","",IF('Raw Set and Haul Details'!$E24<0,-1*(ABS('Raw Set and Haul Details'!$E24)+('Raw Set and Haul Details'!$F24/60)),ABS('Raw Set and Haul Details'!$E24)+('Raw Set and Haul Details'!$F24/60))) ->  | D24: =IF(B24="","",IF('Raw Set and Haul Details'!$G24<0,-1*(ABS('Raw Set and Haul Details'!$G24)+('Raw Set and Haul Details'!$H24/60)),'Raw Set and Haul Details'!$G24+('Raw Set and Haul Details'!$H24/60))) ->  | E24: =IFERROR(IF(AND(ABS(C24)>=45,ABS(C24)<=50,D24>=30,D24<=44),"587",IF(AND(ABS(C24)>=45,ABS(C24)<=50,D24>=44,D24<=60),"586",IF(AND(ABS(C24)>=50,ABS(C24)<=62,D24>=30,D24<=43),"5844a",IF(AND(ABS(C24)>=50,ABS(C24)<=62,D24>=43,D24<=60),"5844b",IF(AND(ABS(C24)<=50,(D24)<=30,D24>=(-50)),"47",IF(AND(ABS(C24)<=45,D24>=30,D24<=80),"51",IF(AND(ABS(C24)>=62,D24>=30,D24<=80),"5842",IF(AND(ABS(C24)>=50,D24<=30,D24>=(-20)),"486",IF(AND(ABS(C24)>=50,ABS(C24)<=64,D24<=(-20),D24>=(-30)),"484",IF(AND(ABS(C24)>=50,ABS(C24)<=57,D24<=(-30),D24>=(-50)),"483",IF(AND(ABS(C24)>57,ABS(C24)<=64,D24<(-30),D24>=(-50)),"482",IF(AND(ABS(C24)>64,D24<=(-20),D24>(-60)),"485",IF(AND(ABS(C24)>=60,D24<=(-50),D24>=(-70)),"481",IF(AND(ABS(C24)<60,D24<=(-50),D24>=(-70)),"41",IF(AND(SUBSTITUTE('Raw Set and Haul Details'!D$41,".","")="5851",C$3="FRA"),"5851",IF(AND(SUBSTITUTE('Raw Set and Haul Details'!D$41,".","")="5852",C$3="AUS"),"5852",IF(AND(ABS(C24)>=56,ABS(C24)<=62,D24>60,D24<=73.17),"5843a",IF(AND(ABS(C24)>=55,ABS(C24)<=64,D24>=73.17,D24<=86),"5843b",IF(AND(ABS(C24)>=55,D24>80,D24<=150),"5841",IF(AND(ABS(C24)<55,D24>80,D24<=150),"57",IF(AND(ABS(C24)>=60,ABS(C24)<=65,D24>=150,D24<180),"881",IF(AND(ABS(C24)>65,D24>=150,D24<180),"881",IF(AND(ABS(C24)>=60,D24>=(-180),D24<=(-170),ABS(C24)<=65),"881",IF(AND(ABS(C24)>65,D24>=(-180),D24<=(-170)),"881",IF(AND(ABS(C24)>=60,D24>(-170),D24<(-105)),"882",IF(AND(ABS(C24)>=60,D24>(-105),D24<(-70)),"883",IF(AND(ABS(C24)<60,D24>(-180),D24<(-110)),"81",IF(AND(ABS(C24)<60,D24<180,D24>=150),"81",IF(AND(ABS(C24)<60,D24>=(-110),D24<=(-50)),"87",IF(AND(ABS(C24)<=(53+(14/60)),ABS(C24)>=45,D24>60,D24<=70),"5851",IF(AND(ABS(C24)<(49+(24/60)),ABS(C24)>=45,D24>=70,D24<80),"5851",IF(AND(ABS(C24)>=(53+(14/60)),ABS(C24)<56,D24>=60,D24<=80),"5852","")))))))))))))))))))))))))))))))),"") -> 
B25: =IF('Raw Set and Haul Details'!$B25="","",'Raw Set and Haul Details'!$B25) ->  | C25: =IF(B25="","",IF('Raw Set and Haul Details'!$E25<0,-1*(ABS('Raw Set and Haul Details'!$E25)+('Raw Set and Haul Details'!$F25/60)),ABS('Raw Set and Haul Details'!$E25)+('Raw Set and Haul Details'!$F25/60))) ->  | D25: =IF(B25="","",IF('Raw Set and Haul Details'!$G25<0,-1*(ABS('Raw Set and Haul Details'!$G25)+('Raw Set and Haul Details'!$H25/60)),'Raw Set and Haul Details'!$G25+('Raw Set and Haul Details'!$H25/60))) ->  | E25: =IFERROR(IF(AND(ABS(C25)>=45,ABS(C25)<=50,D25>=30,D25<=44),"587",IF(AND(ABS(C25)>=45,ABS(C25)<=50,D25>=44,D25<=60),"586",IF(AND(ABS(C25)>=50,ABS(C25)<=62,D25>=30,D25<=43),"5844a",IF(AND(ABS(C25)>=50,ABS(C25)<=62,D25>=43,D25<=60),"5844b",IF(AND(ABS(C25)<=50,(D25)<=30,D25>=(-50)),"47",IF(AND(ABS(C25)<=45,D25>=30,D25<=80),"51",IF(AND(ABS(C25)>=62,D25>=30,D25<=80),"5842",IF(AND(ABS(C25)>=50,D25<=30,D25>=(-20)),"486",IF(AND(ABS(C25)>=50,ABS(C25)<=64,D25<=(-20),D25>=(-30)),"484",IF(AND(ABS(C25)>=50,ABS(C25)<=57,D25<=(-30),D25>=(-50)),"483",IF(AND(ABS(C25)>57,ABS(C25)<=64,D25<(-30),D25>=(-50)),"482",IF(AND(ABS(C25)>64,D25<=(-20),D25>(-60)),"485",IF(AND(ABS(C25)>=60,D25<=(-50),D25>=(-70)),"481",IF(AND(ABS(C25)<60,D25<=(-50),D25>=(-70)),"41",IF(AND(SUBSTITUTE('Raw Set and Haul Details'!D$41,".","")="5851",C$3="FRA"),"5851",IF(AND(SUBSTITUTE('Raw Set and Haul Details'!D$41,".","")="5852",C$3="AUS"),"5852",IF(AND(ABS(C25)>=56,ABS(C25)<=62,D25>60,D25<=73.17),"5843a",IF(AND(ABS(C25)>=55,ABS(C25)<=64,D25>=73.17,D25<=86),"5843b",IF(AND(ABS(C25)>=55,D25>80,D25<=150),"5841",IF(AND(ABS(C25)<55,D25>80,D25<=150),"57",IF(AND(ABS(C25)>=60,ABS(C25)<=65,D25>=150,D25<180),"881",IF(AND(ABS(C25)>65,D25>=150,D25<180),"881",IF(AND(ABS(C25)>=60,D25>=(-180),D25<=(-170),ABS(C25)<=65),"881",IF(AND(ABS(C25)>65,D25>=(-180),D25<=(-170)),"881",IF(AND(ABS(C25)>=60,D25>(-170),D25<(-105)),"882",IF(AND(ABS(C25)>=60,D25>(-105),D25<(-70)),"883",IF(AND(ABS(C25)<60,D25>(-180),D25<(-110)),"81",IF(AND(ABS(C25)<60,D25<180,D25>=150),"81",IF(AND(ABS(C25)<60,D25>=(-110),D25<=(-50)),"87",IF(AND(ABS(C25)<=(53+(14/60)),ABS(C25)>=45,D25>60,D25<=70),"5851",IF(AND(ABS(C25)<(49+(24/60)),ABS(C25)>=45,D25>=70,D25<80),"5851",IF(AND(ABS(C25)>=(53+(14/60)),ABS(C25)<56,D25>=60,D25<=80),"5852","")))))))))))))))))))))))))))))))),"") -> 
B26: =IF('Raw Set and Haul Details'!$B26="","",'Raw Set and Haul Details'!$B26) ->  | C26: =IF(B26="","",IF('Raw Set and Haul Details'!$E26<0,-1*(ABS('Raw Set and Haul Details'!$E26)+('Raw Set and Haul Details'!$F26/60)),ABS('Raw Set and Haul Details'!$E26)+('Raw Set and Haul Details'!$F26/60))) ->  | D26: =IF(B26="","",IF('Raw Set and Haul Details'!$G26<0,-1*(ABS('Raw Set and Haul Details'!$G26)+('Raw Set and Haul Details'!$H26/60)),'Raw Set and Haul Details'!$G26+('Raw Set and Haul Details'!$H26/60))) ->  | E26: =IFERROR(IF(AND(ABS(C26)>=45,ABS(C26)<=50,D26>=30,D26<=44),"587",IF(AND(ABS(C26)>=45,ABS(C26)<=50,D26>=44,D26<=60),"586",IF(AND(ABS(C26)>=50,ABS(C26)<=62,D26>=30,D26<=43),"5844a",IF(AND(ABS(C26)>=50,ABS(C26)<=62,D26>=43,D26<=60),"5844b",IF(AND(ABS(C26)<=50,(D26)<=30,D26>=(-50)),"47",IF(AND(ABS(C26)<=45,D26>=30,D26<=80),"51",IF(AND(ABS(C26)>=62,D26>=30,D26<=80),"5842",IF(AND(ABS(C26)>=50,D26<=30,D26>=(-20)),"486",IF(AND(ABS(C26)>=50,ABS(C26)<=64,D26<=(-20),D26>=(-30)),"484",IF(AND(ABS(C26)>=50,ABS(C26)<=57,D26<=(-30),D26>=(-50)),"483",IF(AND(ABS(C26)>57,ABS(C26)<=64,D26<(-30),D26>=(-50)),"482",IF(AND(ABS(C26)>64,D26<=(-20),D26>(-60)),"485",IF(AND(ABS(C26)>=60,D26<=(-50),D26>=(-70)),"481",IF(AND(ABS(C26)<60,D26<=(-50),D26>=(-70)),"41",IF(AND(SUBSTITUTE('Raw Set and Haul Details'!D$41,".","")="5851",C$3="FRA"),"5851",IF(AND(SUBSTITUTE('Raw Set and Haul Details'!D$41,".","")="5852",C$3="AUS"),"5852",IF(AND(ABS(C26)>=56,ABS(C26)<=62,D26>60,D26<=73.17),"5843a",IF(AND(ABS(C26)>=55,ABS(C26)<=64,D26>=73.17,D26<=86),"5843b",IF(AND(ABS(C26)>=55,D26>80,D26<=150),"5841",IF(AND(ABS(C26)<55,D26>80,D26<=150),"57",IF(AND(ABS(C26)>=60,ABS(C26)<=65,D26>=150,D26<180),"881",IF(AND(ABS(C26)>65,D26>=150,D26<180),"881",IF(AND(ABS(C26)>=60,D26>=(-180),D26<=(-170),ABS(C26)<=65),"881",IF(AND(ABS(C26)>65,D26>=(-180),D26<=(-170)),"881",IF(AND(ABS(C26)>=60,D26>(-170),D26<(-105)),"882",IF(AND(ABS(C26)>=60,D26>(-105),D26<(-70)),"883",IF(AND(ABS(C26)<60,D26>(-180),D26<(-110)),"81",IF(AND(ABS(C26)<60,D26<180,D26>=150),"81",IF(AND(ABS(C26)<60,D26>=(-110),D26<=(-50)),"87",IF(AND(ABS(C26)<=(53+(14/60)),ABS(C26)>=45,D26>60,D26<=70),"5851",IF(AND(ABS(C26)<(49+(24/60)),ABS(C26)>=45,D26>=70,D26<80),"5851",IF(AND(ABS(C26)>=(53+(14/60)),ABS(C26)<56,D26>=60,D26<=80),"5852","")))))))))))))))))))))))))))))))),"") -> 
B27: =IF('Raw Set and Haul Details'!$B27="","",'Raw Set and Haul Details'!$B27) ->  | C27: =IF(B27="","",IF('Raw Set and Haul Details'!$E27<0,-1*(ABS('Raw Set and Haul Details'!$E27)+('Raw Set and Haul Details'!$F27/60)),ABS('Raw Set and Haul Details'!$E27)+('Raw Set and Haul Details'!$F27/60))) ->  | D27: =IF(B27="","",IF('Raw Set and Haul Details'!$G27<0,-1*(ABS('Raw Set and Haul Details'!$G27)+('Raw Set and Haul Details'!$H27/60)),'Raw Set and Haul Details'!$G27+('Raw Set and Haul Details'!$H27/60))) ->  | E27: =IFERROR(IF(AND(ABS(C27)>=45,ABS(C27)<=50,D27>=30,D27<=44),"587",IF(AND(ABS(C27)>=45,ABS(C27)<=50,D27>=44,D27<=60),"586",IF(AND(ABS(C27)>=50,ABS(C27)<=62,D27>=30,D27<=43),"5844a",IF(AND(ABS(C27)>=50,ABS(C27)<=62,D27>=43,D27<=60),"5844b",IF(AND(ABS(C27)<=50,(D27)<=30,D27>=(-50)),"47",IF(AND(ABS(C27)<=45,D27>=30,D27<=80),"51",IF(AND(ABS(C27)>=62,D27>=30,D27<=80),"5842",IF(AND(ABS(C27)>=50,D27<=30,D27>=(-20)),"486",IF(AND(ABS(C27)>=50,ABS(C27)<=64,D27<=(-20),D27>=(-30)),"484",IF(AND(ABS(C27)>=50,ABS(C27)<=57,D27<=(-30),D27>=(-50)),"483",IF(AND(ABS(C27)>57,ABS(C27)<=64,D27<(-30),D27>=(-50)),"482",IF(AND(ABS(C27)>64,D27<=(-20),D27>(-60)),"485",IF(AND(ABS(C27)>=60,D27<=(-50),D27>=(-70)),"481",IF(AND(ABS(C27)<60,D27<=(-50),D27>=(-70)),"41",IF(AND(SUBSTITUTE('Raw Set and Haul Details'!D$41,".","")="5851",C$3="FRA"),"5851",IF(AND(SUBSTITUTE('Raw Set and Haul Details'!D$41,".","")="5852",C$3="AUS"),"5852",IF(AND(ABS(C27)>=56,ABS(C27)<=62,D27>60,D27<=73.17),"5843a",IF(AND(ABS(C27)>=55,ABS(C27)<=64,D27>=73.17,D27<=86),"5843b",IF(AND(ABS(C27)>=55,D27>80,D27<=150),"5841",IF(AND(ABS(C27)<55,D27>80,D27<=150),"57",IF(AND(ABS(C27)>=60,ABS(C27)<=65,D27>=150,D27<180),"881",IF(AND(ABS(C27)>65,D27>=150,D27<180),"881",IF(AND(ABS(C27)>=60,D27>=(-180),D27<=(-170),ABS(C27)<=65),"881",IF(AND(ABS(C27)>65,D27>=(-180),D27<=(-170)),"881",IF(AND(ABS(C27)>=60,D27>(-170),D27<(-105)),"882",IF(AND(ABS(C27)>=60,D27>(-105),D27<(-70)),"883",IF(AND(ABS(C27)<60,D27>(-180),D27<(-110)),"81",IF(AND(ABS(C27)<60,D27<180,D27>=150),"81",IF(AND(ABS(C27)<60,D27>=(-110),D27<=(-50)),"87",IF(AND(ABS(C27)<=(53+(14/60)),ABS(C27)>=45,D27>60,D27<=70),"5851",IF(AND(ABS(C27)<(49+(24/60)),ABS(C27)>=45,D27>=70,D27<80),"5851",IF(AND(ABS(C27)>=(53+(14/60)),ABS(C27)<56,D27>=60,D27<=80),"5852","")))))))))))))))))))))))))))))))),"") -> 
B28: =IF('Raw Set and Haul Details'!$B28="","",'Raw Set and Haul Details'!$B28) ->  | C28: =IF(B28="","",IF('Raw Set and Haul Details'!$E28<0,-1*(ABS('Raw Set and Haul Details'!$E28)+('Raw Set and Haul Details'!$F28/60)),ABS('Raw Set and Haul Details'!$E28)+('Raw Set and Haul Details'!$F28/60))) ->  | D28: =IF(B28="","",IF('Raw Set and Haul Details'!$G28<0,-1*(ABS('Raw Set and Haul Details'!$G28)+('Raw Set and Haul Details'!$H28/60)),'Raw Set and Haul Details'!$G28+('Raw Set and Haul Details'!$H28/60))) ->  | E28: =IFERROR(IF(AND(ABS(C28)>=45,ABS(C28)<=50,D28>=30,D28<=44),"587",IF(AND(ABS(C28)>=45,ABS(C28)<=50,D28>=44,D28<=60),"586",IF(AND(ABS(C28)>=50,ABS(C28)<=62,D28>=30,D28<=43),"5844a",IF(AND(ABS(C28)>=50,ABS(C28)<=62,D28>=43,D28<=60),"5844b",IF(AND(ABS(C28)<=50,(D28)<=30,D28>=(-50)),"47",IF(AND(ABS(C28)<=45,D28>=30,D28<=80),"51",IF(AND(ABS(C28)>=62,D28>=30,D28<=80),"5842",IF(AND(ABS(C28)>=50,D28<=30,D28>=(-20)),"486",IF(AND(ABS(C28)>=50,ABS(C28)<=64,D28<=(-20),D28>=(-30)),"484",IF(AND(ABS(C28)>=50,ABS(C28)<=57,D28<=(-30),D28>=(-50)),"483",IF(AND(ABS(C28)>57,ABS(C28)<=64,D28<(-30),D28>=(-50)),"482",IF(AND(ABS(C28)>64,D28<=(-20),D28>(-60)),"485",IF(AND(ABS(C28)>=60,D28<=(-50),D28>=(-70)),"481",IF(AND(ABS(C28)<60,D28<=(-50),D28>=(-70)),"41",IF(AND(SUBSTITUTE('Raw Set and Haul Details'!D$41,".","")="5851",C$3="FRA"),"5851",IF(AND(SUBSTITUTE('Raw Set and Haul Details'!D$41,".","")="5852",C$3="AUS"),"5852",IF(AND(ABS(C28)>=56,ABS(C28)<=62,D28>60,D28<=73.17),"5843a",IF(AND(ABS(C28)>=55,ABS(C28)<=64,D28>=73.17,D28<=86),"5843b",IF(AND(ABS(C28)>=55,D28>80,D28<=150),"5841",IF(AND(ABS(C28)<55,D28>80,D28<=150),"57",IF(AND(ABS(C28)>=60,ABS(C28)<=65,D28>=150,D28<180),"881",IF(AND(ABS(C28)>65,D28>=150,D28<180),"881",IF(AND(ABS(C28)>=60,D28>=(-180),D28<=(-170),ABS(C28)<=65),"881",IF(AND(ABS(C28)>65,D28>=(-180),D28<=(-170)),"881",IF(AND(ABS(C28)>=60,D28>(-170),D28<(-105)),"882",IF(AND(ABS(C28)>=60,D28>(-105),D28<(-70)),"883",IF(AND(ABS(C28)<60,D28>(-180),D28<(-110)),"81",IF(AND(ABS(C28)<60,D28<180,D28>=150),"81",IF(AND(ABS(C28)<60,D28>=(-110),D28<=(-50)),"87",IF(AND(ABS(C28)<=(53+(14/60)),ABS(C28)>=45,D28>60,D28<=70),"5851",IF(AND(ABS(C28)<(49+(24/60)),ABS(C28)>=45,D28>=70,D28<80),"5851",IF(AND(ABS(C28)>=(53+(14/60)),ABS(C28)<56,D28>=60,D28<=80),"5852","")))))))))))))))))))))))))))))))),"") -> 
B29: =IF('Raw Set and Haul Details'!$B29="","",'Raw Set and Haul Details'!$B29) ->  | C29: =IF(B29="","",IF('Raw Set and Haul Details'!$E29<0,-1*(ABS('Raw Set and Haul Details'!$E29)+('Raw Set and Haul Details'!$F29/60)),ABS('Raw Set and Haul Details'!$E29)+('Raw Set and Haul Details'!$F29/60))) ->  | D29: =IF(B29="","",IF('Raw Set and Haul Details'!$G29<0,-1*(ABS('Raw Set and Haul Details'!$G29)+('Raw Set and Haul Details'!$H29/60)),'Raw Set and Haul Details'!$G29+('Raw Set and Haul Details'!$H29/60))) ->  | E29: =IFERROR(IF(AND(ABS(C29)>=45,ABS(C29)<=50,D29>=30,D29<=44),"587",IF(AND(ABS(C29)>=45,ABS(C29)<=50,D29>=44,D29<=60),"586",IF(AND(ABS(C29)>=50,ABS(C29)<=62,D29>=30,D29<=43),"5844a",IF(AND(ABS(C29)>=50,ABS(C29)<=62,D29>=43,D29<=60),"5844b",IF(AND(ABS(C29)<=50,(D29)<=30,D29>=(-50)),"47",IF(AND(ABS(C29)<=45,D29>=30,D29<=80),"51",IF(AND(ABS(C29)>=62,D29>=30,D29<=80),"5842",IF(AND(ABS(C29)>=50,D29<=30,D29>=(-20)),"486",IF(AND(ABS(C29)>=50,ABS(C29)<=64,D29<=(-20),D29>=(-30)),"484",IF(AND(ABS(C29)>=50,ABS(C29)<=57,D29<=(-30),D29>=(-50)),"483",IF(AND(ABS(C29)>57,ABS(C29)<=64,D29<(-30),D29>=(-50)),"482",IF(AND(ABS(C29)>64,D29<=(-20),D29>(-60)),"485",IF(AND(ABS(C29)>=60,D29<=(-50),D29>=(-70)),"481",IF(AND(ABS(C29)<60,D29<=(-50),D29>=(-70)),"41",IF(AND(SUBSTITUTE('Raw Set and Haul Details'!D$41,".","")="5851",C$3="FRA"),"5851",IF(AND(SUBSTITUTE('Raw Set and Haul Details'!D$41,".","")="5852",C$3="AUS"),"5852",IF(AND(ABS(C29)>=56,ABS(C29)<=62,D29>60,D29<=73.17),"5843a",IF(AND(ABS(C29)>=55,ABS(C29)<=64,D29>=73.17,D29<=86),"5843b",IF(AND(ABS(C29)>=55,D29>80,D29<=150),"5841",IF(AND(ABS(C29)<55,D29>80,D29<=150),"57",IF(AND(ABS(C29)>=60,ABS(C29)<=65,D29>=150,D29<180),"881",IF(AND(ABS(C29)>65,D29>=150,D29<180),"881",IF(AND(ABS(C29)>=60,D29>=(-180),D29<=(-170),ABS(C29)<=65),"881",IF(AND(ABS(C29)>65,D29>=(-180),D29<=(-170)),"881",IF(AND(ABS(C29)>=60,D29>(-170),D29<(-105)),"882",IF(AND(ABS(C29)>=60,D29>(-105),D29<(-70)),"883",IF(AND(ABS(C29)<60,D29>(-180),D29<(-110)),"81",IF(AND(ABS(C29)<60,D29<180,D29>=150),"81",IF(AND(ABS(C29)<60,D29>=(-110),D29<=(-50)),"87",IF(AND(ABS(C29)<=(53+(14/60)),ABS(C29)>=45,D29>60,D29<=70),"5851",IF(AND(ABS(C29)<(49+(24/60)),ABS(C29)>=45,D29>=70,D29<80),"5851",IF(AND(ABS(C29)>=(53+(14/60)),ABS(C29)<56,D29>=60,D29<=80),"5852","")))))))))))))))))))))))))))))))),"") -> 
B30: =IF('Raw Set and Haul Details'!$B30="","",'Raw Set and Haul Details'!$B30) ->  | C30: =IF(B30="","",IF('Raw Set and Haul Details'!$E30<0,-1*(ABS('Raw Set and Haul Details'!$E30)+('Raw Set and Haul Details'!$F30/60)),ABS('Raw Set and Haul Details'!$E30)+('Raw Set and Haul Details'!$F30/60))) ->  | D30: =IF(B30="","",IF('Raw Set and Haul Details'!$G30<0,-1*(ABS('Raw Set and Haul Details'!$G30)+('Raw Set and Haul Details'!$H30/60)),'Raw Set and Haul Details'!$G30+('Raw Set and Haul Details'!$H30/60))) ->  | E30: =IFERROR(IF(AND(ABS(C30)>=45,ABS(C30)<=50,D30>=30,D30<=44),"587",IF(AND(ABS(C30)>=45,ABS(C30)<=50,D30>=44,D30<=60),"586",IF(AND(ABS(C30)>=50,ABS(C30)<=62,D30>=30,D30<=43),"5844a",IF(AND(ABS(C30)>=50,ABS(C30)<=62,D30>=43,D30<=60),"5844b",IF(AND(ABS(C30)<=50,(D30)<=30,D30>=(-50)),"47",IF(AND(ABS(C30)<=45,D30>=30,D30<=80),"51",IF(AND(ABS(C30)>=62,D30>=30,D30<=80),"5842",IF(AND(ABS(C30)>=50,D30<=30,D30>=(-20)),"486",IF(AND(ABS(C30)>=50,ABS(C30)<=64,D30<=(-20),D30>=(-30)),"484",IF(AND(ABS(C30)>=50,ABS(C30)<=57,D30<=(-30),D30>=(-50)),"483",IF(AND(ABS(C30)>57,ABS(C30)<=64,D30<(-30),D30>=(-50)),"482",IF(AND(ABS(C30)>64,D30<=(-20),D30>(-60)),"485",IF(AND(ABS(C30)>=60,D30<=(-50),D30>=(-70)),"481",IF(AND(ABS(C30)<60,D30<=(-50),D30>=(-70)),"41",IF(AND(SUBSTITUTE('Raw Set and Haul Details'!D$41,".","")="5851",C$3="FRA"),"5851",IF(AND(SUBSTITUTE('Raw Set and Haul Details'!D$41,".","")="5852",C$3="AUS"),"5852",IF(AND(ABS(C30)>=56,ABS(C30)<=62,D30>60,D30<=73.17),"5843a",IF(AND(ABS(C30)>=55,ABS(C30)<=64,D30>=73.17,D30<=86),"5843b",IF(AND(ABS(C30)>=55,D30>80,D30<=150),"5841",IF(AND(ABS(C30)<55,D30>80,D30<=150),"57",IF(AND(ABS(C30)>=60,ABS(C30)<=65,D30>=150,D30<180),"881",IF(AND(ABS(C30)>65,D30>=150,D30<180),"881",IF(AND(ABS(C30)>=60,D30>=(-180),D30<=(-170),ABS(C30)<=65),"881",IF(AND(ABS(C30)>65,D30>=(-180),D30<=(-170)),"881",IF(AND(ABS(C30)>=60,D30>(-170),D30<(-105)),"882",IF(AND(ABS(C30)>=60,D30>(-105),D30<(-70)),"883",IF(AND(ABS(C30)<60,D30>(-180),D30<(-110)),"81",IF(AND(ABS(C30)<60,D30<180,D30>=150),"81",IF(AND(ABS(C30)<60,D30>=(-110),D30<=(-50)),"87",IF(AND(ABS(C30)<=(53+(14/60)),ABS(C30)>=45,D30>60,D30<=70),"5851",IF(AND(ABS(C30)<(49+(24/60)),ABS(C30)>=45,D30>=70,D30<80),"5851",IF(AND(ABS(C30)>=(53+(14/60)),ABS(C30)<56,D30>=60,D30<=80),"5852","")))))))))))))))))))))))))))))))),"") -> 
B31: =IF('Raw Set and Haul Details'!$B31="","",'Raw Set and Haul Details'!$B31) ->  | C31: =IF(B31="","",IF('Raw Set and Haul Details'!$E31<0,-1*(ABS('Raw Set and Haul Details'!$E31)+('Raw Set and Haul Details'!$F31/60)),ABS('Raw Set and Haul Details'!$E31)+('Raw Set and Haul Details'!$F31/60))) ->  | D31: =IF(B31="","",IF('Raw Set and Haul Details'!$G31<0,-1*(ABS('Raw Set and Haul Details'!$G31)+('Raw Set and Haul Details'!$H31/60)),'Raw Set and Haul Details'!$G31+('Raw Set and Haul Details'!$H31/60))) ->  | E31: =IFERROR(IF(AND(ABS(C31)>=45,ABS(C31)<=50,D31>=30,D31<=44),"587",IF(AND(ABS(C31)>=45,ABS(C31)<=50,D31>=44,D31<=60),"586",IF(AND(ABS(C31)>=50,ABS(C31)<=62,D31>=30,D31<=43),"5844a",IF(AND(ABS(C31)>=50,ABS(C31)<=62,D31>=43,D31<=60),"5844b",IF(AND(ABS(C31)<=50,(D31)<=30,D31>=(-50)),"47",IF(AND(ABS(C31)<=45,D31>=30,D31<=80),"51",IF(AND(ABS(C31)>=62,D31>=30,D31<=80),"5842",IF(AND(ABS(C31)>=50,D31<=30,D31>=(-20)),"486",IF(AND(ABS(C31)>=50,ABS(C31)<=64,D31<=(-20),D31>=(-30)),"484",IF(AND(ABS(C31)>=50,ABS(C31)<=57,D31<=(-30),D31>=(-50)),"483",IF(AND(ABS(C31)>57,ABS(C31)<=64,D31<(-30),D31>=(-50)),"482",IF(AND(ABS(C31)>64,D31<=(-20),D31>(-60)),"485",IF(AND(ABS(C31)>=60,D31<=(-50),D31>=(-70)),"481",IF(AND(ABS(C31)<60,D31<=(-50),D31>=(-70)),"41",IF(AND(SUBSTITUTE('Raw Set and Haul Details'!D$41,".","")="5851",C$3="FRA"),"5851",IF(AND(SUBSTITUTE('Raw Set and Haul Details'!D$41,".","")="5852",C$3="AUS"),"5852",IF(AND(ABS(C31)>=56,ABS(C31)<=62,D31>60,D31<=73.17),"5843a",IF(AND(ABS(C31)>=55,ABS(C31)<=64,D31>=73.17,D31<=86),"5843b",IF(AND(ABS(C31)>=55,D31>80,D31<=150),"5841",IF(AND(ABS(C31)<55,D31>80,D31<=150),"57",IF(AND(ABS(C31)>=60,ABS(C31)<=65,D31>=150,D31<180),"881",IF(AND(ABS(C31)>65,D31>=150,D31<180),"881",IF(AND(ABS(C31)>=60,D31>=(-180),D31<=(-170),ABS(C31)<=65),"881",IF(AND(ABS(C31)>65,D31>=(-180),D31<=(-170)),"881",IF(AND(ABS(C31)>=60,D31>(-170),D31<(-105)),"882",IF(AND(ABS(C31)>=60,D31>(-105),D31<(-70)),"883",IF(AND(ABS(C31)<60,D31>(-180),D31<(-110)),"81",IF(AND(ABS(C31)<60,D31<180,D31>=150),"81",IF(AND(ABS(C31)<60,D31>=(-110),D31<=(-50)),"87",IF(AND(ABS(C31)<=(53+(14/60)),ABS(C31)>=45,D31>60,D31<=70),"5851",IF(AND(ABS(C31)<(49+(24/60)),ABS(C31)>=45,D31>=70,D31<80),"5851",IF(AND(ABS(C31)>=(53+(14/60)),ABS(C31)<56,D31>=60,D31<=80),"5852","")))))))))))))))))))))))))))))))),"") -> 
B32: =IF('Raw Set and Haul Details'!$B32="","",'Raw Set and Haul Details'!$B32) ->  | C32: =IF(B32="","",IF('Raw Set and Haul Details'!$E32<0,-1*(ABS('Raw Set and Haul Details'!$E32)+('Raw Set and Haul Details'!$F32/60)),ABS('Raw Set and Haul Details'!$E32)+('Raw Set and Haul Details'!$F32/60))) ->  | D32: =IF(B32="","",IF('Raw Set and Haul Details'!$G32<0,-1*(ABS('Raw Set and Haul Details'!$G32)+('Raw Set and Haul Details'!$H32/60)),'Raw Set and Haul Details'!$G32+('Raw Set and Haul Details'!$H32/60))) ->  | E32: =IFERROR(IF(AND(ABS(C32)>=45,ABS(C32)<=50,D32>=30,D32<=44),"587",IF(AND(ABS(C32)>=45,ABS(C32)<=50,D32>=44,D32<=60),"586",IF(AND(ABS(C32)>=50,ABS(C32)<=62,D32>=30,D32<=43),"5844a",IF(AND(ABS(C32)>=50,ABS(C32)<=62,D32>=43,D32<=60),"5844b",IF(AND(ABS(C32)<=50,(D32)<=30,D32>=(-50)),"47",IF(AND(ABS(C32)<=45,D32>=30,D32<=80),"51",IF(AND(ABS(C32)>=62,D32>=30,D32<=80),"5842",IF(AND(ABS(C32)>=50,D32<=30,D32>=(-20)),"486",IF(AND(ABS(C32)>=50,ABS(C32)<=64,D32<=(-20),D32>=(-30)),"484",IF(AND(ABS(C32)>=50,ABS(C32)<=57,D32<=(-30),D32>=(-50)),"483",IF(AND(ABS(C32)>57,ABS(C32)<=64,D32<(-30),D32>=(-50)),"482",IF(AND(ABS(C32)>64,D32<=(-20),D32>(-60)),"485",IF(AND(ABS(C32)>=60,D32<=(-50),D32>=(-70)),"481",IF(AND(ABS(C32)<60,D32<=(-50),D32>=(-70)),"41",IF(AND(SUBSTITUTE('Raw Set and Haul Details'!D$41,".","")="5851",C$3="FRA"),"5851",IF(AND(SUBSTITUTE('Raw Set and Haul Details'!D$41,".","")="5852",C$3="AUS"),"5852",IF(AND(ABS(C32)>=56,ABS(C32)<=62,D32>60,D32<=73.17),"5843a",IF(AND(ABS(C32)>=55,ABS(C32)<=64,D32>=73.17,D32<=86),"5843b",IF(AND(ABS(C32)>=55,D32>80,D32<=150),"5841",IF(AND(ABS(C32)<55,D32>80,D32<=150),"57",IF(AND(ABS(C32)>=60,ABS(C32)<=65,D32>=150,D32<180),"881",IF(AND(ABS(C32)>65,D32>=150,D32<180),"881",IF(AND(ABS(C32)>=60,D32>=(-180),D32<=(-170),ABS(C32)<=65),"881",IF(AND(ABS(C32)>65,D32>=(-180),D32<=(-170)),"881",IF(AND(ABS(C32)>=60,D32>(-170),D32<(-105)),"882",IF(AND(ABS(C32)>=60,D32>(-105),D32<(-70)),"883",IF(AND(ABS(C32)<60,D32>(-180),D32<(-110)),"81",IF(AND(ABS(C32)<60,D32<180,D32>=150),"81",IF(AND(ABS(C32)<60,D32>=(-110),D32<=(-50)),"87",IF(AND(ABS(C32)<=(53+(14/60)),ABS(C32)>=45,D32>60,D32<=70),"5851",IF(AND(ABS(C32)<(49+(24/60)),ABS(C32)>=45,D32>=70,D32<80),"5851",IF(AND(ABS(C32)>=(53+(14/60)),ABS(C32)<56,D32>=60,D32<=80),"5852","")))))))))))))))))))))))))))))))),"") -> 
B33: =IF('Raw Set and Haul Details'!$B33="","",'Raw Set and Haul Details'!$B33) ->  | C33: =IF(B33="","",IF('Raw Set and Haul Details'!$E33<0,-1*(ABS('Raw Set and Haul Details'!$E33)+('Raw Set and Haul Details'!$F33/60)),ABS('Raw Set and Haul Details'!$E33)+('Raw Set and Haul Details'!$F33/60))) ->  | D33: =IF(B33="","",IF('Raw Set and Haul Details'!$G33<0,-1*(ABS('Raw Set and Haul Details'!$G33)+('Raw Set and Haul Details'!$H33/60)),'Raw Set and Haul Details'!$G33+('Raw Set and Haul Details'!$H33/60))) ->  | E33: =IFERROR(IF(AND(ABS(C33)>=45,ABS(C33)<=50,D33>=30,D33<=44),"587",IF(AND(ABS(C33)>=45,ABS(C33)<=50,D33>=44,D33<=60),"586",IF(AND(ABS(C33)>=50,ABS(C33)<=62,D33>=30,D33<=43),"5844a",IF(AND(ABS(C33)>=50,ABS(C33)<=62,D33>=43,D33<=60),"5844b",IF(AND(ABS(C33)<=50,(D33)<=30,D33>=(-50)),"47",IF(AND(ABS(C33)<=45,D33>=30,D33<=80),"51",IF(AND(ABS(C33)>=62,D33>=30,D33<=80),"5842",IF(AND(ABS(C33)>=50,D33<=30,D33>=(-20)),"486",IF(AND(ABS(C33)>=50,ABS(C33)<=64,D33<=(-20),D33>=(-30)),"484",IF(AND(ABS(C33)>=50,ABS(C33)<=57,D33<=(-30),D33>=(-50)),"483",IF(AND(ABS(C33)>57,ABS(C33)<=64,D33<(-30),D33>=(-50)),"482",IF(AND(ABS(C33)>64,D33<=(-20),D33>(-60)),"485",IF(AND(ABS(C33)>=60,D33<=(-50),D33>=(-70)),"481",IF(AND(ABS(C33)<60,D33<=(-50),D33>=(-70)),"41",IF(AND(SUBSTITUTE('Raw Set and Haul Details'!D$41,".","")="5851",C$3="FRA"),"5851",IF(AND(SUBSTITUTE('Raw Set and Haul Details'!D$41,".","")="5852",C$3="AUS"),"5852",IF(AND(ABS(C33)>=56,ABS(C33)<=62,D33>60,D33<=73.17),"5843a",IF(AND(ABS(C33)>=55,ABS(C33)<=64,D33>=73.17,D33<=86),"5843b",IF(AND(ABS(C33)>=55,D33>80,D33<=150),"5841",IF(AND(ABS(C33)<55,D33>80,D33<=150),"57",IF(AND(ABS(C33)>=60,ABS(C33)<=65,D33>=150,D33<180),"881",IF(AND(ABS(C33)>65,D33>=150,D33<180),"881",IF(AND(ABS(C33)>=60,D33>=(-180),D33<=(-170),ABS(C33)<=65),"881",IF(AND(ABS(C33)>65,D33>=(-180),D33<=(-170)),"881",IF(AND(ABS(C33)>=60,D33>(-170),D33<(-105)),"882",IF(AND(ABS(C33)>=60,D33>(-105),D33<(-70)),"883",IF(AND(ABS(C33)<60,D33>(-180),D33<(-110)),"81",IF(AND(ABS(C33)<60,D33<180,D33>=150),"81",IF(AND(ABS(C33)<60,D33>=(-110),D33<=(-50)),"87",IF(AND(ABS(C33)<=(53+(14/60)),ABS(C33)>=45,D33>60,D33<=70),"5851",IF(AND(ABS(C33)<(49+(24/60)),ABS(C33)>=45,D33>=70,D33<80),"5851",IF(AND(ABS(C33)>=(53+(14/60)),ABS(C33)<56,D33>=60,D33<=80),"5852","")))))))))))))))))))))))))))))))),"") -> 
B34: =IF('Raw Set and Haul Details'!$B34="","",'Raw Set and Haul Details'!$B34) ->  | C34: =IF(B34="","",IF('Raw Set and Haul Details'!$E34<0,-1*(ABS('Raw Set and Haul Details'!$E34)+('Raw Set and Haul Details'!$F34/60)),ABS('Raw Set and Haul Details'!$E34)+('Raw Set and Haul Details'!$F34/60))) ->  | D34: =IF(B34="","",IF('Raw Set and Haul Details'!$G34<0,-1*(ABS('Raw Set and Haul Details'!$G34)+('Raw Set and Haul Details'!$H34/60)),'Raw Set and Haul Details'!$G34+('Raw Set and Haul Details'!$H34/60))) ->  | E34: =IFERROR(IF(AND(ABS(C34)>=45,ABS(C34)<=50,D34>=30,D34<=44),"587",IF(AND(ABS(C34)>=45,ABS(C34)<=50,D34>=44,D34<=60),"586",IF(AND(ABS(C34)>=50,ABS(C34)<=62,D34>=30,D34<=43),"5844a",IF(AND(ABS(C34)>=50,ABS(C34)<=62,D34>=43,D34<=60),"5844b",IF(AND(ABS(C34)<=50,(D34)<=30,D34>=(-50)),"47",IF(AND(ABS(C34)<=45,D34>=30,D34<=80),"51",IF(AND(ABS(C34)>=62,D34>=30,D34<=80),"5842",IF(AND(ABS(C34)>=50,D34<=30,D34>=(-20)),"486",IF(AND(ABS(C34)>=50,ABS(C34)<=64,D34<=(-20),D34>=(-30)),"484",IF(AND(ABS(C34)>=50,ABS(C34)<=57,D34<=(-30),D34>=(-50)),"483",IF(AND(ABS(C34)>57,ABS(C34)<=64,D34<(-30),D34>=(-50)),"482",IF(AND(ABS(C34)>64,D34<=(-20),D34>(-60)),"485",IF(AND(ABS(C34)>=60,D34<=(-50),D34>=(-70)),"481",IF(AND(ABS(C34)<60,D34<=(-50),D34>=(-70)),"41",IF(AND(SUBSTITUTE('Raw Set and Haul Details'!D$41,".","")="5851",C$3="FRA"),"5851",IF(AND(SUBSTITUTE('Raw Set and Haul Details'!D$41,".","")="5852",C$3="AUS"),"5852",IF(AND(ABS(C34)>=56,ABS(C34)<=62,D34>60,D34<=73.17),"5843a",IF(AND(ABS(C34)>=55,ABS(C34)<=64,D34>=73.17,D34<=86),"5843b",IF(AND(ABS(C34)>=55,D34>80,D34<=150),"5841",IF(AND(ABS(C34)<55,D34>80,D34<=150),"57",IF(AND(ABS(C34)>=60,ABS(C34)<=65,D34>=150,D34<180),"881",IF(AND(ABS(C34)>65,D34>=150,D34<180),"881",IF(AND(ABS(C34)>=60,D34>=(-180),D34<=(-170),ABS(C34)<=65),"881",IF(AND(ABS(C34)>65,D34>=(-180),D34<=(-170)),"881",IF(AND(ABS(C34)>=60,D34>(-170),D34<(-105)),"882",IF(AND(ABS(C34)>=60,D34>(-105),D34<(-70)),"883",IF(AND(ABS(C34)<60,D34>(-180),D34<(-110)),"81",IF(AND(ABS(C34)<60,D34<180,D34>=150),"81",IF(AND(ABS(C34)<60,D34>=(-110),D34<=(-50)),"87",IF(AND(ABS(C34)<=(53+(14/60)),ABS(C34)>=45,D34>60,D34<=70),"5851",IF(AND(ABS(C34)<(49+(24/60)),ABS(C34)>=45,D34>=70,D34<80),"5851",IF(AND(ABS(C34)>=(53+(14/60)),ABS(C34)<56,D34>=60,D34<=80),"5852","")))))))))))))))))))))))))))))))),"") -> 
B35: =IF('Raw Set and Haul Details'!$B35="","",'Raw Set and Haul Details'!$B35) ->  | C35: =IF(B35="","",IF('Raw Set and Haul Details'!$E35<0,-1*(ABS('Raw Set and Haul Details'!$E35)+('Raw Set and Haul Details'!$F35/60)),ABS('Raw Set and Haul Details'!$E35)+('Raw Set and Haul Details'!$F35/60))) ->  | D35: =IF(B35="","",IF('Raw Set and Haul Details'!$G35<0,-1*(ABS('Raw Set and Haul Details'!$G35)+('Raw Set and Haul Details'!$H35/60)),'Raw Set and Haul Details'!$G35+('Raw Set and Haul Details'!$H35/60))) ->  | E35: =IFERROR(IF(AND(ABS(C35)>=45,ABS(C35)<=50,D35>=30,D35<=44),"587",IF(AND(ABS(C35)>=45,ABS(C35)<=50,D35>=44,D35<=60),"586",IF(AND(ABS(C35)>=50,ABS(C35)<=62,D35>=30,D35<=43),"5844a",IF(AND(ABS(C35)>=50,ABS(C35)<=62,D35>=43,D35<=60),"5844b",IF(AND(ABS(C35)<=50,(D35)<=30,D35>=(-50)),"47",IF(AND(ABS(C35)<=45,D35>=30,D35<=80),"51",IF(AND(ABS(C35)>=62,D35>=30,D35<=80),"5842",IF(AND(ABS(C35)>=50,D35<=30,D35>=(-20)),"486",IF(AND(ABS(C35)>=50,ABS(C35)<=64,D35<=(-20),D35>=(-30)),"484",IF(AND(ABS(C35)>=50,ABS(C35)<=57,D35<=(-30),D35>=(-50)),"483",IF(AND(ABS(C35)>57,ABS(C35)<=64,D35<(-30),D35>=(-50)),"482",IF(AND(ABS(C35)>64,D35<=(-20),D35>(-60)),"485",IF(AND(ABS(C35)>=60,D35<=(-50),D35>=(-70)),"481",IF(AND(ABS(C35)<60,D35<=(-50),D35>=(-70)),"41",IF(AND(SUBSTITUTE('Raw Set and Haul Details'!D$41,".","")="5851",C$3="FRA"),"5851",IF(AND(SUBSTITUTE('Raw Set and Haul Details'!D$41,".","")="5852",C$3="AUS"),"5852",IF(AND(ABS(C35)>=56,ABS(C35)<=62,D35>60,D35<=73.17),"5843a",IF(AND(ABS(C35)>=55,ABS(C35)<=64,D35>=73.17,D35<=86),"5843b",IF(AND(ABS(C35)>=55,D35>80,D35<=150),"5841",IF(AND(ABS(C35)<55,D35>80,D35<=150),"57",IF(AND(ABS(C35)>=60,ABS(C35)<=65,D35>=150,D35<180),"881",IF(AND(ABS(C35)>65,D35>=150,D35<180),"881",IF(AND(ABS(C35)>=60,D35>=(-180),D35<=(-170),ABS(C35)<=65),"881",IF(AND(ABS(C35)>65,D35>=(-180),D35<=(-170)),"881",IF(AND(ABS(C35)>=60,D35>(-170),D35<(-105)),"882",IF(AND(ABS(C35)>=60,D35>(-105),D35<(-70)),"883",IF(AND(ABS(C35)<60,D35>(-180),D35<(-110)),"81",IF(AND(ABS(C35)<60,D35<180,D35>=150),"81",IF(AND(ABS(C35)<60,D35>=(-110),D35<=(-50)),"87",IF(AND(ABS(C35)<=(53+(14/60)),ABS(C35)>=45,D35>60,D35<=70),"5851",IF(AND(ABS(C35)<(49+(24/60)),ABS(C35)>=45,D35>=70,D35<80),"5851",IF(AND(ABS(C35)>=(53+(14/60)),ABS(C35)<56,D35>=60,D35<=80),"5852","")))))))))))))))))))))))))))))))),"") -> 
B36: =IF('Raw Set and Haul Details'!$B36="","",'Raw Set and Haul Details'!$B36) ->  | C36: =IF(B36="","",IF('Raw Set and Haul Details'!$E36<0,-1*(ABS('Raw Set and Haul Details'!$E36)+('Raw Set and Haul Details'!$F36/60)),ABS('Raw Set and Haul Details'!$E36)+('Raw Set and Haul Details'!$F36/60))) ->  | D36: =IF(B36="","",IF('Raw Set and Haul Details'!$G36<0,-1*(ABS('Raw Set and Haul Details'!$G36)+('Raw Set and Haul Details'!$H36/60)),'Raw Set and Haul Details'!$G36+('Raw Set and Haul Details'!$H36/60))) ->  | E36: =IFERROR(IF(AND(ABS(C36)>=45,ABS(C36)<=50,D36>=30,D36<=44),"587",IF(AND(ABS(C36)>=45,ABS(C36)<=50,D36>=44,D36<=60),"586",IF(AND(ABS(C36)>=50,ABS(C36)<=62,D36>=30,D36<=43),"5844a",IF(AND(ABS(C36)>=50,ABS(C36)<=62,D36>=43,D36<=60),"5844b",IF(AND(ABS(C36)<=50,(D36)<=30,D36>=(-50)),"47",IF(AND(ABS(C36)<=45,D36>=30,D36<=80),"51",IF(AND(ABS(C36)>=62,D36>=30,D36<=80),"5842",IF(AND(ABS(C36)>=50,D36<=30,D36>=(-20)),"486",IF(AND(ABS(C36)>=50,ABS(C36)<=64,D36<=(-20),D36>=(-30)),"484",IF(AND(ABS(C36)>=50,ABS(C36)<=57,D36<=(-30),D36>=(-50)),"483",IF(AND(ABS(C36)>57,ABS(C36)<=64,D36<(-30),D36>=(-50)),"482",IF(AND(ABS(C36)>64,D36<=(-20),D36>(-60)),"485",IF(AND(ABS(C36)>=60,D36<=(-50),D36>=(-70)),"481",IF(AND(ABS(C36)<60,D36<=(-50),D36>=(-70)),"41",IF(AND(SUBSTITUTE('Raw Set and Haul Details'!D$41,".","")="5851",C$3="FRA"),"5851",IF(AND(SUBSTITUTE('Raw Set and Haul Details'!D$41,".","")="5852",C$3="AUS"),"5852",IF(AND(ABS(C36)>=56,ABS(C36)<=62,D36>60,D36<=73.17),"5843a",IF(AND(ABS(C36)>=55,ABS(C36)<=64,D36>=73.17,D36<=86),"5843b",IF(AND(ABS(C36)>=55,D36>80,D36<=150),"5841",IF(AND(ABS(C36)<55,D36>80,D36<=150),"57",IF(AND(ABS(C36)>=60,ABS(C36)<=65,D36>=150,D36<180),"881",IF(AND(ABS(C36)>65,D36>=150,D36<180),"881",IF(AND(ABS(C36)>=60,D36>=(-180),D36<=(-170),ABS(C36)<=65),"881",IF(AND(ABS(C36)>65,D36>=(-180),D36<=(-170)),"881",IF(AND(ABS(C36)>=60,D36>(-170),D36<(-105)),"882",IF(AND(ABS(C36)>=60,D36>(-105),D36<(-70)),"883",IF(AND(ABS(C36)<60,D36>(-180),D36<(-110)),"81",IF(AND(ABS(C36)<60,D36<180,D36>=150),"81",IF(AND(ABS(C36)<60,D36>=(-110),D36<=(-50)),"87",IF(AND(ABS(C36)<=(53+(14/60)),ABS(C36)>=45,D36>60,D36<=70),"5851",IF(AND(ABS(C36)<(49+(24/60)),ABS(C36)>=45,D36>=70,D36<80),"5851",IF(AND(ABS(C36)>=(53+(14/60)),ABS(C36)<56,D36>=60,D36<=80),"5852","")))))))))))))))))))))))))))))))),"") -> 
B37: =IF('Raw Set and Haul Details'!$B37="","",'Raw Set and Haul Details'!$B37) ->  | C37: =IF(B37="","",IF('Raw Set and Haul Details'!$E37<0,-1*(ABS('Raw Set and Haul Details'!$E37)+('Raw Set and Haul Details'!$F37/60)),ABS('Raw Set and Haul Details'!$E37)+('Raw Set and Haul Details'!$F37/60))) ->  | D37: =IF(B37="","",IF('Raw Set and Haul Details'!$G37<0,-1*(ABS('Raw Set and Haul Details'!$G37)+('Raw Set and Haul Details'!$H37/60)),'Raw Set and Haul Details'!$G37+('Raw Set and Haul Details'!$H37/60))) ->  | E37: =IFERROR(IF(AND(ABS(C37)>=45,ABS(C37)<=50,D37>=30,D37<=44),"587",IF(AND(ABS(C37)>=45,ABS(C37)<=50,D37>=44,D37<=60),"586",IF(AND(ABS(C37)>=50,ABS(C37)<=62,D37>=30,D37<=43),"5844a",IF(AND(ABS(C37)>=50,ABS(C37)<=62,D37>=43,D37<=60),"5844b",IF(AND(ABS(C37)<=50,(D37)<=30,D37>=(-50)),"47",IF(AND(ABS(C37)<=45,D37>=30,D37<=80),"51",IF(AND(ABS(C37)>=62,D37>=30,D37<=80),"5842",IF(AND(ABS(C37)>=50,D37<=30,D37>=(-20)),"486",IF(AND(ABS(C37)>=50,ABS(C37)<=64,D37<=(-20),D37>=(-30)),"484",IF(AND(ABS(C37)>=50,ABS(C37)<=57,D37<=(-30),D37>=(-50)),"483",IF(AND(ABS(C37)>57,ABS(C37)<=64,D37<(-30),D37>=(-50)),"482",IF(AND(ABS(C37)>64,D37<=(-20),D37>(-60)),"485",IF(AND(ABS(C37)>=60,D37<=(-50),D37>=(-70)),"481",IF(AND(ABS(C37)<60,D37<=(-50),D37>=(-70)),"41",IF(AND(SUBSTITUTE('Raw Set and Haul Details'!D$41,".","")="5851",C$3="FRA"),"5851",IF(AND(SUBSTITUTE('Raw Set and Haul Details'!D$41,".","")="5852",C$3="AUS"),"5852",IF(AND(ABS(C37)>=56,ABS(C37)<=62,D37>60,D37<=73.17),"5843a",IF(AND(ABS(C37)>=55,ABS(C37)<=64,D37>=73.17,D37<=86),"5843b",IF(AND(ABS(C37)>=55,D37>80,D37<=150),"5841",IF(AND(ABS(C37)<55,D37>80,D37<=150),"57",IF(AND(ABS(C37)>=60,ABS(C37)<=65,D37>=150,D37<180),"881",IF(AND(ABS(C37)>65,D37>=150,D37<180),"881",IF(AND(ABS(C37)>=60,D37>=(-180),D37<=(-170),ABS(C37)<=65),"881",IF(AND(ABS(C37)>65,D37>=(-180),D37<=(-170)),"881",IF(AND(ABS(C37)>=60,D37>(-170),D37<(-105)),"882",IF(AND(ABS(C37)>=60,D37>(-105),D37<(-70)),"883",IF(AND(ABS(C37)<60,D37>(-180),D37<(-110)),"81",IF(AND(ABS(C37)<60,D37<180,D37>=150),"81",IF(AND(ABS(C37)<60,D37>=(-110),D37<=(-50)),"87",IF(AND(ABS(C37)<=(53+(14/60)),ABS(C37)>=45,D37>60,D37<=70),"5851",IF(AND(ABS(C37)<(49+(24/60)),ABS(C37)>=45,D37>=70,D37<80),"5851",IF(AND(ABS(C37)>=(53+(14/60)),ABS(C37)<56,D37>=60,D37<=80),"5852","")))))))))))))))))))))))))))))))),"") -> 
B38: =IF('Raw Set and Haul Details'!$B38="","",'Raw Set and Haul Details'!$B38) ->  | C38: =IF(B38="","",IF('Raw Set and Haul Details'!$E38<0,-1*(ABS('Raw Set and Haul Details'!$E38)+('Raw Set and Haul Details'!$F38/60)),ABS('Raw Set and Haul Details'!$E38)+('Raw Set and Haul Details'!$F38/60))) ->  | D38: =IF(B38="","",IF('Raw Set and Haul Details'!$G38<0,-1*(ABS('Raw Set and Haul Details'!$G38)+('Raw Set and Haul Details'!$H38/60)),'Raw Set and Haul Details'!$G38+('Raw Set and Haul Details'!$H38/60))) ->  | E38: =IFERROR(IF(AND(ABS(C38)>=45,ABS(C38)<=50,D38>=30,D38<=44),"587",IF(AND(ABS(C38)>=45,ABS(C38)<=50,D38>=44,D38<=60),"586",IF(AND(ABS(C38)>=50,ABS(C38)<=62,D38>=30,D38<=43),"5844a",IF(AND(ABS(C38)>=50,ABS(C38)<=62,D38>=43,D38<=60),"5844b",IF(AND(ABS(C38)<=50,(D38)<=30,D38>=(-50)),"47",IF(AND(ABS(C38)<=45,D38>=30,D38<=80),"51",IF(AND(ABS(C38)>=62,D38>=30,D38<=80),"5842",IF(AND(ABS(C38)>=50,D38<=30,D38>=(-20)),"486",IF(AND(ABS(C38)>=50,ABS(C38)<=64,D38<=(-20),D38>=(-30)),"484",IF(AND(ABS(C38)>=50,ABS(C38)<=57,D38<=(-30),D38>=(-50)),"483",IF(AND(ABS(C38)>57,ABS(C38)<=64,D38<(-30),D38>=(-50)),"482",IF(AND(ABS(C38)>64,D38<=(-20),D38>(-60)),"485",IF(AND(ABS(C38)>=60,D38<=(-50),D38>=(-70)),"481",IF(AND(ABS(C38)<60,D38<=(-50),D38>=(-70)),"41",IF(AND(SUBSTITUTE('Raw Set and Haul Details'!D$41,".","")="5851",C$3="FRA"),"5851",IF(AND(SUBSTITUTE('Raw Set and Haul Details'!D$41,".","")="5852",C$3="AUS"),"5852",IF(AND(ABS(C38)>=56,ABS(C38)<=62,D38>60,D38<=73.17),"5843a",IF(AND(ABS(C38)>=55,ABS(C38)<=64,D38>=73.17,D38<=86),"5843b",IF(AND(ABS(C38)>=55,D38>80,D38<=150),"5841",IF(AND(ABS(C38)<55,D38>80,D38<=150),"57",IF(AND(ABS(C38)>=60,ABS(C38)<=65,D38>=150,D38<180),"881",IF(AND(ABS(C38)>65,D38>=150,D38<180),"881",IF(AND(ABS(C38)>=60,D38>=(-180),D38<=(-170),ABS(C38)<=65),"881",IF(AND(ABS(C38)>65,D38>=(-180),D38<=(-170)),"881",IF(AND(ABS(C38)>=60,D38>(-170),D38<(-105)),"882",IF(AND(ABS(C38)>=60,D38>(-105),D38<(-70)),"883",IF(AND(ABS(C38)<60,D38>(-180),D38<(-110)),"81",IF(AND(ABS(C38)<60,D38<180,D38>=150),"81",IF(AND(ABS(C38)<60,D38>=(-110),D38<=(-50)),"87",IF(AND(ABS(C38)<=(53+(14/60)),ABS(C38)>=45,D38>60,D38<=70),"5851",IF(AND(ABS(C38)<(49+(24/60)),ABS(C38)>=45,D38>=70,D38<80),"5851",IF(AND(ABS(C38)>=(53+(14/60)),ABS(C38)<56,D38>=60,D38<=80),"5852","")))))))))))))))))))))))))))))))),"") -> 
B39: =IF('Raw Set and Haul Details'!$B39="","",'Raw Set and Haul Details'!$B39) ->  | C39: =IF(B39="","",IF('Raw Set and Haul Details'!$E39<0,-1*(ABS('Raw Set and Haul Details'!$E39)+('Raw Set and Haul Details'!$F39/60)),ABS('Raw Set and Haul Details'!$E39)+('Raw Set and Haul Details'!$F39/60))) ->  | D39: =IF(B39="","",IF('Raw Set and Haul Details'!$G39<0,-1*(ABS('Raw Set and Haul Details'!$G39)+('Raw Set and Haul Details'!$H39/60)),'Raw Set and Haul Details'!$G39+('Raw Set and Haul Details'!$H39/60))) ->  | E39: =IFERROR(IF(AND(ABS(C39)>=45,ABS(C39)<=50,D39>=30,D39<=44),"587",IF(AND(ABS(C39)>=45,ABS(C39)<=50,D39>=44,D39<=60),"586",IF(AND(ABS(C39)>=50,ABS(C39)<=62,D39>=30,D39<=43),"5844a",IF(AND(ABS(C39)>=50,ABS(C39)<=62,D39>=43,D39<=60),"5844b",IF(AND(ABS(C39)<=50,(D39)<=30,D39>=(-50)),"47",IF(AND(ABS(C39)<=45,D39>=30,D39<=80),"51",IF(AND(ABS(C39)>=62,D39>=30,D39<=80),"5842",IF(AND(ABS(C39)>=50,D39<=30,D39>=(-20)),"486",IF(AND(ABS(C39)>=50,ABS(C39)<=64,D39<=(-20),D39>=(-30)),"484",IF(AND(ABS(C39)>=50,ABS(C39)<=57,D39<=(-30),D39>=(-50)),"483",IF(AND(ABS(C39)>57,ABS(C39)<=64,D39<(-30),D39>=(-50)),"482",IF(AND(ABS(C39)>64,D39<=(-20),D39>(-60)),"485",IF(AND(ABS(C39)>=60,D39<=(-50),D39>=(-70)),"481",IF(AND(ABS(C39)<60,D39<=(-50),D39>=(-70)),"41",IF(AND(SUBSTITUTE('Raw Set and Haul Details'!D$41,".","")="5851",C$3="FRA"),"5851",IF(AND(SUBSTITUTE('Raw Set and Haul Details'!D$41,".","")="5852",C$3="AUS"),"5852",IF(AND(ABS(C39)>=56,ABS(C39)<=62,D39>60,D39<=73.17),"5843a",IF(AND(ABS(C39)>=55,ABS(C39)<=64,D39>=73.17,D39<=86),"5843b",IF(AND(ABS(C39)>=55,D39>80,D39<=150),"5841",IF(AND(ABS(C39)<55,D39>80,D39<=150),"57",IF(AND(ABS(C39)>=60,ABS(C39)<=65,D39>=150,D39<180),"881",IF(AND(ABS(C39)>65,D39>=150,D39<180),"881",IF(AND(ABS(C39)>=60,D39>=(-180),D39<=(-170),ABS(C39)<=65),"881",IF(AND(ABS(C39)>65,D39>=(-180),D39<=(-170)),"881",IF(AND(ABS(C39)>=60,D39>(-170),D39<(-105)),"882",IF(AND(ABS(C39)>=60,D39>(-105),D39<(-70)),"883",IF(AND(ABS(C39)<60,D39>(-180),D39<(-110)),"81",IF(AND(ABS(C39)<60,D39<180,D39>=150),"81",IF(AND(ABS(C39)<60,D39>=(-110),D39<=(-50)),"87",IF(AND(ABS(C39)<=(53+(14/60)),ABS(C39)>=45,D39>60,D39<=70),"5851",IF(AND(ABS(C39)<(49+(24/60)),ABS(C39)>=45,D39>=70,D39<80),"5851",IF(AND(ABS(C39)>=(53+(14/60)),ABS(C39)<56,D39>=60,D39<=80),"5852","")))))))))))))))))))))))))))))))),"") -> 
B40: =IF('Raw Set and Haul Details'!$B40="","",'Raw Set and Haul Details'!$B40) ->  | C40: =IF(B40="","",IF('Raw Set and Haul Details'!$E40<0,-1*(ABS('Raw Set and Haul Details'!$E40)+('Raw Set and Haul Details'!$F40/60)),ABS('Raw Set and Haul Details'!$E40)+('Raw Set and Haul Details'!$F40/60))) ->  | D40: =IF(B40="","",IF('Raw Set and Haul Details'!$G40<0,-1*(ABS('Raw Set and Haul Details'!$G40)+('Raw Set and Haul Details'!$H40/60)),'Raw Set and Haul Details'!$G40+('Raw Set and Haul Details'!$H40/60))) ->  | E40: =IFERROR(IF(AND(ABS(C40)>=45,ABS(C40)<=50,D40>=30,D40<=44),"587",IF(AND(ABS(C40)>=45,ABS(C40)<=50,D40>=44,D40<=60),"586",IF(AND(ABS(C40)>=50,ABS(C40)<=62,D40>=30,D40<=43),"5844a",IF(AND(ABS(C40)>=50,ABS(C40)<=62,D40>=43,D40<=60),"5844b",IF(AND(ABS(C40)<=50,(D40)<=30,D40>=(-50)),"47",IF(AND(ABS(C40)<=45,D40>=30,D40<=80),"51",IF(AND(ABS(C40)>=62,D40>=30,D40<=80),"5842",IF(AND(ABS(C40)>=50,D40<=30,D40>=(-20)),"486",IF(AND(ABS(C40)>=50,ABS(C40)<=64,D40<=(-20),D40>=(-30)),"484",IF(AND(ABS(C40)>=50,ABS(C40)<=57,D40<=(-30),D40>=(-50)),"483",IF(AND(ABS(C40)>57,ABS(C40)<=64,D40<(-30),D40>=(-50)),"482",IF(AND(ABS(C40)>64,D40<=(-20),D40>(-60)),"485",IF(AND(ABS(C40)>=60,D40<=(-50),D40>=(-70)),"481",IF(AND(ABS(C40)<60,D40<=(-50),D40>=(-70)),"41",IF(AND(SUBSTITUTE('Raw Set and Haul Details'!D$41,".","")="5851",C$3="FRA"),"5851",IF(AND(SUBSTITUTE('Raw Set and Haul Details'!D$41,".","")="5852",C$3="AUS"),"5852",IF(AND(ABS(C40)>=56,ABS(C40)<=62,D40>60,D40<=73.17),"5843a",IF(AND(ABS(C40)>=55,ABS(C40)<=64,D40>=73.17,D40<=86),"5843b",IF(AND(ABS(C40)>=55,D40>80,D40<=150),"5841",IF(AND(ABS(C40)<55,D40>80,D40<=150),"57",IF(AND(ABS(C40)>=60,ABS(C40)<=65,D40>=150,D40<180),"881",IF(AND(ABS(C40)>65,D40>=150,D40<180),"881",IF(AND(ABS(C40)>=60,D40>=(-180),D40<=(-170),ABS(C40)<=65),"881",IF(AND(ABS(C40)>65,D40>=(-180),D40<=(-170)),"881",IF(AND(ABS(C40)>=60,D40>(-170),D40<(-105)),"882",IF(AND(ABS(C40)>=60,D40>(-105),D40<(-70)),"883",IF(AND(ABS(C40)<60,D40>(-180),D40<(-110)),"81",IF(AND(ABS(C40)<60,D40<180,D40>=150),"81",IF(AND(ABS(C40)<60,D40>=(-110),D40<=(-50)),"87",IF(AND(ABS(C40)<=(53+(14/60)),ABS(C40)>=45,D40>60,D40<=70),"5851",IF(AND(ABS(C40)<(49+(24/60)),ABS(C40)>=45,D40>=70,D40<80),"5851",IF(AND(ABS(C40)>=(53+(14/60)),ABS(C40)<56,D40>=60,D40<=80),"5852","")))))))))))))))))))))))))))))))),"") -> 
B41: =IF('Raw Set and Haul Details'!$B41="","",'Raw Set and Haul Details'!$B41) ->  | C41: =IF(B41="","",IF('Raw Set and Haul Details'!$E41<0,-1*(ABS('Raw Set and Haul Details'!$E41)+('Raw Set and Haul Details'!$F41/60)),ABS('Raw Set and Haul Details'!$E41)+('Raw Set and Haul Details'!$F41/60))) ->  | D41: =IF(B41="","",IF('Raw Set and Haul Details'!$G41<0,-1*(ABS('Raw Set and Haul Details'!$G41)+('Raw Set and Haul Details'!$H41/60)),'Raw Set and Haul Details'!$G41+('Raw Set and Haul Details'!$H41/60))) ->  | E41: =IFERROR(IF(AND(ABS(C41)>=45,ABS(C41)<=50,D41>=30,D41<=44),"587",IF(AND(ABS(C41)>=45,ABS(C41)<=50,D41>=44,D41<=60),"586",IF(AND(ABS(C41)>=50,ABS(C41)<=62,D41>=30,D41<=43),"5844a",IF(AND(ABS(C41)>=50,ABS(C41)<=62,D41>=43,D41<=60),"5844b",IF(AND(ABS(C41)<=50,(D41)<=30,D41>=(-50)),"47",IF(AND(ABS(C41)<=45,D41>=30,D41<=80),"51",IF(AND(ABS(C41)>=62,D41>=30,D41<=80),"5842",IF(AND(ABS(C41)>=50,D41<=30,D41>=(-20)),"486",IF(AND(ABS(C41)>=50,ABS(C41)<=64,D41<=(-20),D41>=(-30)),"484",IF(AND(ABS(C41)>=50,ABS(C41)<=57,D41<=(-30),D41>=(-50)),"483",IF(AND(ABS(C41)>57,ABS(C41)<=64,D41<(-30),D41>=(-50)),"482",IF(AND(ABS(C41)>64,D41<=(-20),D41>(-60)),"485",IF(AND(ABS(C41)>=60,D41<=(-50),D41>=(-70)),"481",IF(AND(ABS(C41)<60,D41<=(-50),D41>=(-70)),"41",IF(AND(SUBSTITUTE('Raw Set and Haul Details'!D$41,".","")="5851",C$3="FRA"),"5851",IF(AND(SUBSTITUTE('Raw Set and Haul Details'!D$41,".","")="5852",C$3="AUS"),"5852",IF(AND(ABS(C41)>=56,ABS(C41)<=62,D41>60,D41<=73.17),"5843a",IF(AND(ABS(C41)>=55,ABS(C41)<=64,D41>=73.17,D41<=86),"5843b",IF(AND(ABS(C41)>=55,D41>80,D41<=150),"5841",IF(AND(ABS(C41)<55,D41>80,D41<=150),"57",IF(AND(ABS(C41)>=60,ABS(C41)<=65,D41>=150,D41<180),"881",IF(AND(ABS(C41)>65,D41>=150,D41<180),"881",IF(AND(ABS(C41)>=60,D41>=(-180),D41<=(-170),ABS(C41)<=65),"881",IF(AND(ABS(C41)>65,D41>=(-180),D41<=(-170)),"881",IF(AND(ABS(C41)>=60,D41>(-170),D41<(-105)),"882",IF(AND(ABS(C41)>=60,D41>(-105),D41<(-70)),"883",IF(AND(ABS(C41)<60,D41>(-180),D41<(-110)),"81",IF(AND(ABS(C41)<60,D41<180,D41>=150),"81",IF(AND(ABS(C41)<60,D41>=(-110),D41<=(-50)),"87",IF(AND(ABS(C41)<=(53+(14/60)),ABS(C41)>=45,D41>60,D41<=70),"5851",IF(AND(ABS(C41)<(49+(24/60)),ABS(C41)>=45,D41>=70,D41<80),"5851",IF(AND(ABS(C41)>=(53+(14/60)),ABS(C41)<56,D41>=60,D41<=80),"5852","")))))))))))))))))))))))))))))))),"") -> 
B42: =IF('Raw Set and Haul Details'!$B42="","",'Raw Set and Haul Details'!$B42) ->  | C42: =IF(B42="","",IF('Raw Set and Haul Details'!$E42<0,-1*(ABS('Raw Set and Haul Details'!$E42)+('Raw Set and Haul Details'!$F42/60)),ABS('Raw Set and Haul Details'!$E42)+('Raw Set and Haul Details'!$F42/60))) ->  | D42: =IF(B42="","",IF('Raw Set and Haul Details'!$G42<0,-1*(ABS('Raw Set and Haul Details'!$G42)+('Raw Set and Haul Details'!$H42/60)),'Raw Set and Haul Details'!$G42+('Raw Set and Haul Details'!$H42/60))) ->  | E42: =IFERROR(IF(AND(ABS(C42)>=45,ABS(C42)<=50,D42>=30,D42<=44),"587",IF(AND(ABS(C42)>=45,ABS(C42)<=50,D42>=44,D42<=60),"586",IF(AND(ABS(C42)>=50,ABS(C42)<=62,D42>=30,D42<=43),"5844a",IF(AND(ABS(C42)>=50,ABS(C42)<=62,D42>=43,D42<=60),"5844b",IF(AND(ABS(C42)<=50,(D42)<=30,D42>=(-50)),"47",IF(AND(ABS(C42)<=45,D42>=30,D42<=80),"51",IF(AND(ABS(C42)>=62,D42>=30,D42<=80),"5842",IF(AND(ABS(C42)>=50,D42<=30,D42>=(-20)),"486",IF(AND(ABS(C42)>=50,ABS(C42)<=64,D42<=(-20),D42>=(-30)),"484",IF(AND(ABS(C42)>=50,ABS(C42)<=57,D42<=(-30),D42>=(-50)),"483",IF(AND(ABS(C42)>57,ABS(C42)<=64,D42<(-30),D42>=(-50)),"482",IF(AND(ABS(C42)>64,D42<=(-20),D42>(-60)),"485",IF(AND(ABS(C42)>=60,D42<=(-50),D42>=(-70)),"481",IF(AND(ABS(C42)<60,D42<=(-50),D42>=(-70)),"41",IF(AND(SUBSTITUTE('Raw Set and Haul Details'!D$41,".","")="5851",C$3="FRA"),"5851",IF(AND(SUBSTITUTE('Raw Set and Haul Details'!D$41,".","")="5852",C$3="AUS"),"5852",IF(AND(ABS(C42)>=56,ABS(C42)<=62,D42>60,D42<=73.17),"5843a",IF(AND(ABS(C42)>=55,ABS(C42)<=64,D42>=73.17,D42<=86),"5843b",IF(AND(ABS(C42)>=55,D42>80,D42<=150),"5841",IF(AND(ABS(C42)<55,D42>80,D42<=150),"57",IF(AND(ABS(C42)>=60,ABS(C42)<=65,D42>=150,D42<180),"881",IF(AND(ABS(C42)>65,D42>=150,D42<180),"881",IF(AND(ABS(C42)>=60,D42>=(-180),D42<=(-170),ABS(C42)<=65),"881",IF(AND(ABS(C42)>65,D42>=(-180),D42<=(-170)),"881",IF(AND(ABS(C42)>=60,D42>(-170),D42<(-105)),"882",IF(AND(ABS(C42)>=60,D42>(-105),D42<(-70)),"883",IF(AND(ABS(C42)<60,D42>(-180),D42<(-110)),"81",IF(AND(ABS(C42)<60,D42<180,D42>=150),"81",IF(AND(ABS(C42)<60,D42>=(-110),D42<=(-50)),"87",IF(AND(ABS(C42)<=(53+(14/60)),ABS(C42)>=45,D42>60,D42<=70),"5851",IF(AND(ABS(C42)<(49+(24/60)),ABS(C42)>=45,D42>=70,D42<80),"5851",IF(AND(ABS(C42)>=(53+(14/60)),ABS(C42)<56,D42>=60,D42<=80),"5852","")))))))))))))))))))))))))))))))),"") -> 
B43: =IF('Raw Set and Haul Details'!$B43="","",'Raw Set and Haul Details'!$B43) ->  | C43: =IF(B43="","",IF('Raw Set and Haul Details'!$E43<0,-1*(ABS('Raw Set and Haul Details'!$E43)+('Raw Set and Haul Details'!$F43/60)),ABS('Raw Set and Haul Details'!$E43)+('Raw Set and Haul Details'!$F43/60))) ->  | D43: =IF(B43="","",IF('Raw Set and Haul Details'!$G43<0,-1*(ABS('Raw Set and Haul Details'!$G43)+('Raw Set and Haul Details'!$H43/60)),'Raw Set and Haul Details'!$G43+('Raw Set and Haul Details'!$H43/60))) ->  | E43: =IFERROR(IF(AND(ABS(C43)>=45,ABS(C43)<=50,D43>=30,D43<=44),"587",IF(AND(ABS(C43)>=45,ABS(C43)<=50,D43>=44,D43<=60),"586",IF(AND(ABS(C43)>=50,ABS(C43)<=62,D43>=30,D43<=43),"5844a",IF(AND(ABS(C43)>=50,ABS(C43)<=62,D43>=43,D43<=60),"5844b",IF(AND(ABS(C43)<=50,(D43)<=30,D43>=(-50)),"47",IF(AND(ABS(C43)<=45,D43>=30,D43<=80),"51",IF(AND(ABS(C43)>=62,D43>=30,D43<=80),"5842",IF(AND(ABS(C43)>=50,D43<=30,D43>=(-20)),"486",IF(AND(ABS(C43)>=50,ABS(C43)<=64,D43<=(-20),D43>=(-30)),"484",IF(AND(ABS(C43)>=50,ABS(C43)<=57,D43<=(-30),D43>=(-50)),"483",IF(AND(ABS(C43)>57,ABS(C43)<=64,D43<(-30),D43>=(-50)),"482",IF(AND(ABS(C43)>64,D43<=(-20),D43>(-60)),"485",IF(AND(ABS(C43)>=60,D43<=(-50),D43>=(-70)),"481",IF(AND(ABS(C43)<60,D43<=(-50),D43>=(-70)),"41",IF(AND(SUBSTITUTE('Raw Set and Haul Details'!D$41,".","")="5851",C$3="FRA"),"5851",IF(AND(SUBSTITUTE('Raw Set and Haul Details'!D$41,".","")="5852",C$3="AUS"),"5852",IF(AND(ABS(C43)>=56,ABS(C43)<=62,D43>60,D43<=73.17),"5843a",IF(AND(ABS(C43)>=55,ABS(C43)<=64,D43>=73.17,D43<=86),"5843b",IF(AND(ABS(C43)>=55,D43>80,D43<=150),"5841",IF(AND(ABS(C43)<55,D43>80,D43<=150),"57",IF(AND(ABS(C43)>=60,ABS(C43)<=65,D43>=150,D43<180),"881",IF(AND(ABS(C43)>65,D43>=150,D43<180),"881",IF(AND(ABS(C43)>=60,D43>=(-180),D43<=(-170),ABS(C43)<=65),"881",IF(AND(ABS(C43)>65,D43>=(-180),D43<=(-170)),"881",IF(AND(ABS(C43)>=60,D43>(-170),D43<(-105)),"882",IF(AND(ABS(C43)>=60,D43>(-105),D43<(-70)),"883",IF(AND(ABS(C43)<60,D43>(-180),D43<(-110)),"81",IF(AND(ABS(C43)<60,D43<180,D43>=150),"81",IF(AND(ABS(C43)<60,D43>=(-110),D43<=(-50)),"87",IF(AND(ABS(C43)<=(53+(14/60)),ABS(C43)>=45,D43>60,D43<=70),"5851",IF(AND(ABS(C43)<(49+(24/60)),ABS(C43)>=45,D43>=70,D43<80),"5851",IF(AND(ABS(C43)>=(53+(14/60)),ABS(C43)<56,D43>=60,D43<=80),"5852","")))))))))))))))))))))))))))))))),"") -> 
B44: =IF('Raw Set and Haul Details'!$B44="","",'Raw Set and Haul Details'!$B44) ->  | C44: =IF(B44="","",IF('Raw Set and Haul Details'!$E44<0,-1*(ABS('Raw Set and Haul Details'!$E44)+('Raw Set and Haul Details'!$F44/60)),ABS('Raw Set and Haul Details'!$E44)+('Raw Set and Haul Details'!$F44/60))) ->  | D44: =IF(B44="","",IF('Raw Set and Haul Details'!$G44<0,-1*(ABS('Raw Set and Haul Details'!$G44)+('Raw Set and Haul Details'!$H44/60)),'Raw Set and Haul Details'!$G44+('Raw Set and Haul Details'!$H44/60))) ->  | E44: =IFERROR(IF(AND(ABS(C44)>=45,ABS(C44)<=50,D44>=30,D44<=44),"587",IF(AND(ABS(C44)>=45,ABS(C44)<=50,D44>=44,D44<=60),"586",IF(AND(ABS(C44)>=50,ABS(C44)<=62,D44>=30,D44<=43),"5844a",IF(AND(ABS(C44)>=50,ABS(C44)<=62,D44>=43,D44<=60),"5844b",IF(AND(ABS(C44)<=50,(D44)<=30,D44>=(-50)),"47",IF(AND(ABS(C44)<=45,D44>=30,D44<=80),"51",IF(AND(ABS(C44)>=62,D44>=30,D44<=80),"5842",IF(AND(ABS(C44)>=50,D44<=30,D44>=(-20)),"486",IF(AND(ABS(C44)>=50,ABS(C44)<=64,D44<=(-20),D44>=(-30)),"484",IF(AND(ABS(C44)>=50,ABS(C44)<=57,D44<=(-30),D44>=(-50)),"483",IF(AND(ABS(C44)>57,ABS(C44)<=64,D44<(-30),D44>=(-50)),"482",IF(AND(ABS(C44)>64,D44<=(-20),D44>(-60)),"485",IF(AND(ABS(C44)>=60,D44<=(-50),D44>=(-70)),"481",IF(AND(ABS(C44)<60,D44<=(-50),D44>=(-70)),"41",IF(AND(SUBSTITUTE('Raw Set and Haul Details'!D$41,".","")="5851",C$3="FRA"),"5851",IF(AND(SUBSTITUTE('Raw Set and Haul Details'!D$41,".","")="5852",C$3="AUS"),"5852",IF(AND(ABS(C44)>=56,ABS(C44)<=62,D44>60,D44<=73.17),"5843a",IF(AND(ABS(C44)>=55,ABS(C44)<=64,D44>=73.17,D44<=86),"5843b",IF(AND(ABS(C44)>=55,D44>80,D44<=150),"5841",IF(AND(ABS(C44)<55,D44>80,D44<=150),"57",IF(AND(ABS(C44)>=60,ABS(C44)<=65,D44>=150,D44<180),"881",IF(AND(ABS(C44)>65,D44>=150,D44<180),"881",IF(AND(ABS(C44)>=60,D44>=(-180),D44<=(-170),ABS(C44)<=65),"881",IF(AND(ABS(C44)>65,D44>=(-180),D44<=(-170)),"881",IF(AND(ABS(C44)>=60,D44>(-170),D44<(-105)),"882",IF(AND(ABS(C44)>=60,D44>(-105),D44<(-70)),"883",IF(AND(ABS(C44)<60,D44>(-180),D44<(-110)),"81",IF(AND(ABS(C44)<60,D44<180,D44>=150),"81",IF(AND(ABS(C44)<60,D44>=(-110),D44<=(-50)),"87",IF(AND(ABS(C44)<=(53+(14/60)),ABS(C44)>=45,D44>60,D44<=70),"5851",IF(AND(ABS(C44)<(49+(24/60)),ABS(C44)>=45,D44>=70,D44<80),"5851",IF(AND(ABS(C44)>=(53+(14/60)),ABS(C44)<56,D44>=60,D44<=80),"5852","")))))))))))))))))))))))))))))))),"") -> 
B45: =IF('Raw Set and Haul Details'!$B45="","",'Raw Set and Haul Details'!$B45) ->  | C45: =IF(B45="","",IF('Raw Set and Haul Details'!$E45<0,-1*(ABS('Raw Set and Haul Details'!$E45)+('Raw Set and Haul Details'!$F45/60)),ABS('Raw Set and Haul Details'!$E45)+('Raw Set and Haul Details'!$F45/60))) ->  | D45: =IF(B45="","",IF('Raw Set and Haul Details'!$G45<0,-1*(ABS('Raw Set and Haul Details'!$G45)+('Raw Set and Haul Details'!$H45/60)),'Raw Set and Haul Details'!$G45+('Raw Set and Haul Details'!$H45/60))) ->  | E45: =IFERROR(IF(AND(ABS(C45)>=45,ABS(C45)<=50,D45>=30,D45<=44),"587",IF(AND(ABS(C45)>=45,ABS(C45)<=50,D45>=44,D45<=60),"586",IF(AND(ABS(C45)>=50,ABS(C45)<=62,D45>=30,D45<=43),"5844a",IF(AND(ABS(C45)>=50,ABS(C45)<=62,D45>=43,D45<=60),"5844b",IF(AND(ABS(C45)<=50,(D45)<=30,D45>=(-50)),"47",IF(AND(ABS(C45)<=45,D45>=30,D45<=80),"51",IF(AND(ABS(C45)>=62,D45>=30,D45<=80),"5842",IF(AND(ABS(C45)>=50,D45<=30,D45>=(-20)),"486",IF(AND(ABS(C45)>=50,ABS(C45)<=64,D45<=(-20),D45>=(-30)),"484",IF(AND(ABS(C45)>=50,ABS(C45)<=57,D45<=(-30),D45>=(-50)),"483",IF(AND(ABS(C45)>57,ABS(C45)<=64,D45<(-30),D45>=(-50)),"482",IF(AND(ABS(C45)>64,D45<=(-20),D45>(-60)),"485",IF(AND(ABS(C45)>=60,D45<=(-50),D45>=(-70)),"481",IF(AND(ABS(C45)<60,D45<=(-50),D45>=(-70)),"41",IF(AND(SUBSTITUTE('Raw Set and Haul Details'!D$41,".","")="5851",C$3="FRA"),"5851",IF(AND(SUBSTITUTE('Raw Set and Haul Details'!D$41,".","")="5852",C$3="AUS"),"5852",IF(AND(ABS(C45)>=56,ABS(C45)<=62,D45>60,D45<=73.17),"5843a",IF(AND(ABS(C45)>=55,ABS(C45)<=64,D45>=73.17,D45<=86),"5843b",IF(AND(ABS(C45)>=55,D45>80,D45<=150),"5841",IF(AND(ABS(C45)<55,D45>80,D45<=150),"57",IF(AND(ABS(C45)>=60,ABS(C45)<=65,D45>=150,D45<180),"881",IF(AND(ABS(C45)>65,D45>=150,D45<180),"881",IF(AND(ABS(C45)>=60,D45>=(-180),D45<=(-170),ABS(C45)<=65),"881",IF(AND(ABS(C45)>65,D45>=(-180),D45<=(-170)),"881",IF(AND(ABS(C45)>=60,D45>(-170),D45<(-105)),"882",IF(AND(ABS(C45)>=60,D45>(-105),D45<(-70)),"883",IF(AND(ABS(C45)<60,D45>(-180),D45<(-110)),"81",IF(AND(ABS(C45)<60,D45<180,D45>=150),"81",IF(AND(ABS(C45)<60,D45>=(-110),D45<=(-50)),"87",IF(AND(ABS(C45)<=(53+(14/60)),ABS(C45)>=45,D45>60,D45<=70),"5851",IF(AND(ABS(C45)<(49+(24/60)),ABS(C45)>=45,D45>=70,D45<80),"5851",IF(AND(ABS(C45)>=(53+(14/60)),ABS(C45)<56,D45>=60,D45<=80),"5852","")))))))))))))))))))))))))))))))),"") -> 
B46: =IF('Raw Set and Haul Details'!$B46="","",'Raw Set and Haul Details'!$B46) ->  | C46: =IF(B46="","",IF('Raw Set and Haul Details'!$E46<0,-1*(ABS('Raw Set and Haul Details'!$E46)+('Raw Set and Haul Details'!$F46/60)),ABS('Raw Set and Haul Details'!$E46)+('Raw Set and Haul Details'!$F46/60))) ->  | D46: =IF(B46="","",IF('Raw Set and Haul Details'!$G46<0,-1*(ABS('Raw Set and Haul Details'!$G46)+('Raw Set and Haul Details'!$H46/60)),'Raw Set and Haul Details'!$G46+('Raw Set and Haul Details'!$H46/60))) ->  | E46: =IFERROR(IF(AND(ABS(C46)>=45,ABS(C46)<=50,D46>=30,D46<=44),"587",IF(AND(ABS(C46)>=45,ABS(C46)<=50,D46>=44,D46<=60),"586",IF(AND(ABS(C46)>=50,ABS(C46)<=62,D46>=30,D46<=43),"5844a",IF(AND(ABS(C46)>=50,ABS(C46)<=62,D46>=43,D46<=60),"5844b",IF(AND(ABS(C46)<=50,(D46)<=30,D46>=(-50)),"47",IF(AND(ABS(C46)<=45,D46>=30,D46<=80),"51",IF(AND(ABS(C46)>=62,D46>=30,D46<=80),"5842",IF(AND(ABS(C46)>=50,D46<=30,D46>=(-20)),"486",IF(AND(ABS(C46)>=50,ABS(C46)<=64,D46<=(-20),D46>=(-30)),"484",IF(AND(ABS(C46)>=50,ABS(C46)<=57,D46<=(-30),D46>=(-50)),"483",IF(AND(ABS(C46)>57,ABS(C46)<=64,D46<(-30),D46>=(-50)),"482",IF(AND(ABS(C46)>64,D46<=(-20),D46>(-60)),"485",IF(AND(ABS(C46)>=60,D46<=(-50),D46>=(-70)),"481",IF(AND(ABS(C46)<60,D46<=(-50),D46>=(-70)),"41",IF(AND(SUBSTITUTE('Raw Set and Haul Details'!D$41,".","")="5851",C$3="FRA"),"5851",IF(AND(SUBSTITUTE('Raw Set and Haul Details'!D$41,".","")="5852",C$3="AUS"),"5852",IF(AND(ABS(C46)>=56,ABS(C46)<=62,D46>60,D46<=73.17),"5843a",IF(AND(ABS(C46)>=55,ABS(C46)<=64,D46>=73.17,D46<=86),"5843b",IF(AND(ABS(C46)>=55,D46>80,D46<=150),"5841",IF(AND(ABS(C46)<55,D46>80,D46<=150),"57",IF(AND(ABS(C46)>=60,ABS(C46)<=65,D46>=150,D46<180),"881",IF(AND(ABS(C46)>65,D46>=150,D46<180),"881",IF(AND(ABS(C46)>=60,D46>=(-180),D46<=(-170),ABS(C46)<=65),"881",IF(AND(ABS(C46)>65,D46>=(-180),D46<=(-170)),"881",IF(AND(ABS(C46)>=60,D46>(-170),D46<(-105)),"882",IF(AND(ABS(C46)>=60,D46>(-105),D46<(-70)),"883",IF(AND(ABS(C46)<60,D46>(-180),D46<(-110)),"81",IF(AND(ABS(C46)<60,D46<180,D46>=150),"81",IF(AND(ABS(C46)<60,D46>=(-110),D46<=(-50)),"87",IF(AND(ABS(C46)<=(53+(14/60)),ABS(C46)>=45,D46>60,D46<=70),"5851",IF(AND(ABS(C46)<(49+(24/60)),ABS(C46)>=45,D46>=70,D46<80),"5851",IF(AND(ABS(C46)>=(53+(14/60)),ABS(C46)<56,D46>=60,D46<=80),"5852","")))))))))))))))))))))))))))))))),"") -> 
B47: =IF('Raw Set and Haul Details'!$B47="","",'Raw Set and Haul Details'!$B47) ->  | C47: =IF(B47="","",IF('Raw Set and Haul Details'!$E47<0,-1*(ABS('Raw Set and Haul Details'!$E47)+('Raw Set and Haul Details'!$F47/60)),ABS('Raw Set and Haul Details'!$E47)+('Raw Set and Haul Details'!$F47/60))) ->  | D47: =IF(B47="","",IF('Raw Set and Haul Details'!$G47<0,-1*(ABS('Raw Set and Haul Details'!$G47)+('Raw Set and Haul Details'!$H47/60)),'Raw Set and Haul Details'!$G47+('Raw Set and Haul Details'!$H47/60))) ->  | E47: =IFERROR(IF(AND(ABS(C47)>=45,ABS(C47)<=50,D47>=30,D47<=44),"587",IF(AND(ABS(C47)>=45,ABS(C47)<=50,D47>=44,D47<=60),"586",IF(AND(ABS(C47)>=50,ABS(C47)<=62,D47>=30,D47<=43),"5844a",IF(AND(ABS(C47)>=50,ABS(C47)<=62,D47>=43,D47<=60),"5844b",IF(AND(ABS(C47)<=50,(D47)<=30,D47>=(-50)),"47",IF(AND(ABS(C47)<=45,D47>=30,D47<=80),"51",IF(AND(ABS(C47)>=62,D47>=30,D47<=80),"5842",IF(AND(ABS(C47)>=50,D47<=30,D47>=(-20)),"486",IF(AND(ABS(C47)>=50,ABS(C47)<=64,D47<=(-20),D47>=(-30)),"484",IF(AND(ABS(C47)>=50,ABS(C47)<=57,D47<=(-30),D47>=(-50)),"483",IF(AND(ABS(C47)>57,ABS(C47)<=64,D47<(-30),D47>=(-50)),"482",IF(AND(ABS(C47)>64,D47<=(-20),D47>(-60)),"485",IF(AND(ABS(C47)>=60,D47<=(-50),D47>=(-70)),"481",IF(AND(ABS(C47)<60,D47<=(-50),D47>=(-70)),"41",IF(AND(SUBSTITUTE('Raw Set and Haul Details'!D$41,".","")="5851",C$3="FRA"),"5851",IF(AND(SUBSTITUTE('Raw Set and Haul Details'!D$41,".","")="5852",C$3="AUS"),"5852",IF(AND(ABS(C47)>=56,ABS(C47)<=62,D47>60,D47<=73.17),"5843a",IF(AND(ABS(C47)>=55,ABS(C47)<=64,D47>=73.17,D47<=86),"5843b",IF(AND(ABS(C47)>=55,D47>80,D47<=150),"5841",IF(AND(ABS(C47)<55,D47>80,D47<=150),"57",IF(AND(ABS(C47)>=60,ABS(C47)<=65,D47>=150,D47<180),"881",IF(AND(ABS(C47)>65,D47>=150,D47<180),"881",IF(AND(ABS(C47)>=60,D47>=(-180),D47<=(-170),ABS(C47)<=65),"881",IF(AND(ABS(C47)>65,D47>=(-180),D47<=(-170)),"881",IF(AND(ABS(C47)>=60,D47>(-170),D47<(-105)),"882",IF(AND(ABS(C47)>=60,D47>(-105),D47<(-70)),"883",IF(AND(ABS(C47)<60,D47>(-180),D47<(-110)),"81",IF(AND(ABS(C47)<60,D47<180,D47>=150),"81",IF(AND(ABS(C47)<60,D47>=(-110),D47<=(-50)),"87",IF(AND(ABS(C47)<=(53+(14/60)),ABS(C47)>=45,D47>60,D47<=70),"5851",IF(AND(ABS(C47)<(49+(24/60)),ABS(C47)>=45,D47>=70,D47<80),"5851",IF(AND(ABS(C47)>=(53+(14/60)),ABS(C47)<56,D47>=60,D47<=80),"5852","")))))))))))))))))))))))))))))))),"") -> 
B48: =IF('Raw Set and Haul Details'!$B48="","",'Raw Set and Haul Details'!$B48) ->  | C48: =IF(B48="","",IF('Raw Set and Haul Details'!$E48<0,-1*(ABS('Raw Set and Haul Details'!$E48)+('Raw Set and Haul Details'!$F48/60)),ABS('Raw Set and Haul Details'!$E48)+('Raw Set and Haul Details'!$F48/60))) ->  | D48: =IF(B48="","",IF('Raw Set and Haul Details'!$G48<0,-1*(ABS('Raw Set and Haul Details'!$G48)+('Raw Set and Haul Details'!$H48/60)),'Raw Set and Haul Details'!$G48+('Raw Set and Haul Details'!$H48/60))) ->  | E48: =IFERROR(IF(AND(ABS(C48)>=45,ABS(C48)<=50,D48>=30,D48<=44),"587",IF(AND(ABS(C48)>=45,ABS(C48)<=50,D48>=44,D48<=60),"586",IF(AND(ABS(C48)>=50,ABS(C48)<=62,D48>=30,D48<=43),"5844a",IF(AND(ABS(C48)>=50,ABS(C48)<=62,D48>=43,D48<=60),"5844b",IF(AND(ABS(C48)<=50,(D48)<=30,D48>=(-50)),"47",IF(AND(ABS(C48)<=45,D48>=30,D48<=80),"51",IF(AND(ABS(C48)>=62,D48>=30,D48<=80),"5842",IF(AND(ABS(C48)>=50,D48<=30,D48>=(-20)),"486",IF(AND(ABS(C48)>=50,ABS(C48)<=64,D48<=(-20),D48>=(-30)),"484",IF(AND(ABS(C48)>=50,ABS(C48)<=57,D48<=(-30),D48>=(-50)),"483",IF(AND(ABS(C48)>57,ABS(C48)<=64,D48<(-30),D48>=(-50)),"482",IF(AND(ABS(C48)>64,D48<=(-20),D48>(-60)),"485",IF(AND(ABS(C48)>=60,D48<=(-50),D48>=(-70)),"481",IF(AND(ABS(C48)<60,D48<=(-50),D48>=(-70)),"41",IF(AND(SUBSTITUTE('Raw Set and Haul Details'!D$41,".","")="5851",C$3="FRA"),"5851",IF(AND(SUBSTITUTE('Raw Set and Haul Details'!D$41,".","")="5852",C$3="AUS"),"5852",IF(AND(ABS(C48)>=56,ABS(C48)<=62,D48>60,D48<=73.17),"5843a",IF(AND(ABS(C48)>=55,ABS(C48)<=64,D48>=73.17,D48<=86),"5843b",IF(AND(ABS(C48)>=55,D48>80,D48<=150),"5841",IF(AND(ABS(C48)<55,D48>80,D48<=150),"57",IF(AND(ABS(C48)>=60,ABS(C48)<=65,D48>=150,D48<180),"881",IF(AND(ABS(C48)>65,D48>=150,D48<180),"881",IF(AND(ABS(C48)>=60,D48>=(-180),D48<=(-170),ABS(C48)<=65),"881",IF(AND(ABS(C48)>65,D48>=(-180),D48<=(-170)),"881",IF(AND(ABS(C48)>=60,D48>(-170),D48<(-105)),"882",IF(AND(ABS(C48)>=60,D48>(-105),D48<(-70)),"883",IF(AND(ABS(C48)<60,D48>(-180),D48<(-110)),"81",IF(AND(ABS(C48)<60,D48<180,D48>=150),"81",IF(AND(ABS(C48)<60,D48>=(-110),D48<=(-50)),"87",IF(AND(ABS(C48)<=(53+(14/60)),ABS(C48)>=45,D48>60,D48<=70),"5851",IF(AND(ABS(C48)<(49+(24/60)),ABS(C48)>=45,D48>=70,D48<80),"5851",IF(AND(ABS(C48)>=(53+(14/60)),ABS(C48)<56,D48>=60,D48<=80),"5852","")))))))))))))))))))))))))))))))),"") -> 
B49: =IF('Raw Set and Haul Details'!$B49="","",'Raw Set and Haul Details'!$B49) ->  | C49: =IF(B49="","",IF('Raw Set and Haul Details'!$E49<0,-1*(ABS('Raw Set and Haul Details'!$E49)+('Raw Set and Haul Details'!$F49/60)),ABS('Raw Set and Haul Details'!$E49)+('Raw Set and Haul Details'!$F49/60))) ->  | D49: =IF(B49="","",IF('Raw Set and Haul Details'!$G49<0,-1*(ABS('Raw Set and Haul Details'!$G49)+('Raw Set and Haul Details'!$H49/60)),'Raw Set and Haul Details'!$G49+('Raw Set and Haul Details'!$H49/60))) ->  | E49: =IFERROR(IF(AND(ABS(C49)>=45,ABS(C49)<=50,D49>=30,D49<=44),"587",IF(AND(ABS(C49)>=45,ABS(C49)<=50,D49>=44,D49<=60),"586",IF(AND(ABS(C49)>=50,ABS(C49)<=62,D49>=30,D49<=43),"5844a",IF(AND(ABS(C49)>=50,ABS(C49)<=62,D49>=43,D49<=60),"5844b",IF(AND(ABS(C49)<=50,(D49)<=30,D49>=(-50)),"47",IF(AND(ABS(C49)<=45,D49>=30,D49<=80),"51",IF(AND(ABS(C49)>=62,D49>=30,D49<=80),"5842",IF(AND(ABS(C49)>=50,D49<=30,D49>=(-20)),"486",IF(AND(ABS(C49)>=50,ABS(C49)<=64,D49<=(-20),D49>=(-30)),"484",IF(AND(ABS(C49)>=50,ABS(C49)<=57,D49<=(-30),D49>=(-50)),"483",IF(AND(ABS(C49)>57,ABS(C49)<=64,D49<(-30),D49>=(-50)),"482",IF(AND(ABS(C49)>64,D49<=(-20),D49>(-60)),"485",IF(AND(ABS(C49)>=60,D49<=(-50),D49>=(-70)),"481",IF(AND(ABS(C49)<60,D49<=(-50),D49>=(-70)),"41",IF(AND(SUBSTITUTE('Raw Set and Haul Details'!D$41,".","")="5851",C$3="FRA"),"5851",IF(AND(SUBSTITUTE('Raw Set and Haul Details'!D$41,".","")="5852",C$3="AUS"),"5852",IF(AND(ABS(C49)>=56,ABS(C49)<=62,D49>60,D49<=73.17),"5843a",IF(AND(ABS(C49)>=55,ABS(C49)<=64,D49>=73.17,D49<=86),"5843b",IF(AND(ABS(C49)>=55,D49>80,D49<=150),"5841",IF(AND(ABS(C49)<55,D49>80,D49<=150),"57",IF(AND(ABS(C49)>=60,ABS(C49)<=65,D49>=150,D49<180),"881",IF(AND(ABS(C49)>65,D49>=150,D49<180),"881",IF(AND(ABS(C49)>=60,D49>=(-180),D49<=(-170),ABS(C49)<=65),"881",IF(AND(ABS(C49)>65,D49>=(-180),D49<=(-170)),"881",IF(AND(ABS(C49)>=60,D49>(-170),D49<(-105)),"882",IF(AND(ABS(C49)>=60,D49>(-105),D49<(-70)),"883",IF(AND(ABS(C49)<60,D49>(-180),D49<(-110)),"81",IF(AND(ABS(C49)<60,D49<180,D49>=150),"81",IF(AND(ABS(C49)<60,D49>=(-110),D49<=(-50)),"87",IF(AND(ABS(C49)<=(53+(14/60)),ABS(C49)>=45,D49>60,D49<=70),"5851",IF(AND(ABS(C49)<(49+(24/60)),ABS(C49)>=45,D49>=70,D49<80),"5851",IF(AND(ABS(C49)>=(53+(14/60)),ABS(C49)<56,D49>=60,D49<=80),"5852","")))))))))))))))))))))))))))))))),"") -> 
B50: =IF('Raw Set and Haul Details'!$B50="","",'Raw Set and Haul Details'!$B50) ->  | C50: =IF(B50="","",IF('Raw Set and Haul Details'!$E50<0,-1*(ABS('Raw Set and Haul Details'!$E50)+('Raw Set and Haul Details'!$F50/60)),ABS('Raw Set and Haul Details'!$E50)+('Raw Set and Haul Details'!$F50/60))) ->  | D50: =IF(B50="","",IF('Raw Set and Haul Details'!$G50<0,-1*(ABS('Raw Set and Haul Details'!$G50)+('Raw Set and Haul Details'!$H50/60)),'Raw Set and Haul Details'!$G50+('Raw Set and Haul Details'!$H50/60))) ->  | E50: =IFERROR(IF(AND(ABS(C50)>=45,ABS(C50)<=50,D50>=30,D50<=44),"587",IF(AND(ABS(C50)>=45,ABS(C50)<=50,D50>=44,D50<=60),"586",IF(AND(ABS(C50)>=50,ABS(C50)<=62,D50>=30,D50<=43),"5844a",IF(AND(ABS(C50)>=50,ABS(C50)<=62,D50>=43,D50<=60),"5844b",IF(AND(ABS(C50)<=50,(D50)<=30,D50>=(-50)),"47",IF(AND(ABS(C50)<=45,D50>=30,D50<=80),"51",IF(AND(ABS(C50)>=62,D50>=30,D50<=80),"5842",IF(AND(ABS(C50)>=50,D50<=30,D50>=(-20)),"486",IF(AND(ABS(C50)>=50,ABS(C50)<=64,D50<=(-20),D50>=(-30)),"484",IF(AND(ABS(C50)>=50,ABS(C50)<=57,D50<=(-30),D50>=(-50)),"483",IF(AND(ABS(C50)>57,ABS(C50)<=64,D50<(-30),D50>=(-50)),"482",IF(AND(ABS(C50)>64,D50<=(-20),D50>(-60)),"485",IF(AND(ABS(C50)>=60,D50<=(-50),D50>=(-70)),"481",IF(AND(ABS(C50)<60,D50<=(-50),D50>=(-70)),"41",IF(AND(SUBSTITUTE('Raw Set and Haul Details'!D$41,".","")="5851",C$3="FRA"),"5851",IF(AND(SUBSTITUTE('Raw Set and Haul Details'!D$41,".","")="5852",C$3="AUS"),"5852",IF(AND(ABS(C50)>=56,ABS(C50)<=62,D50>60,D50<=73.17),"5843a",IF(AND(ABS(C50)>=55,ABS(C50)<=64,D50>=73.17,D50<=86),"5843b",IF(AND(ABS(C50)>=55,D50>80,D50<=150),"5841",IF(AND(ABS(C50)<55,D50>80,D50<=150),"57",IF(AND(ABS(C50)>=60,ABS(C50)<=65,D50>=150,D50<180),"881",IF(AND(ABS(C50)>65,D50>=150,D50<180),"881",IF(AND(ABS(C50)>=60,D50>=(-180),D50<=(-170),ABS(C50)<=65),"881",IF(AND(ABS(C50)>65,D50>=(-180),D50<=(-170)),"881",IF(AND(ABS(C50)>=60,D50>(-170),D50<(-105)),"882",IF(AND(ABS(C50)>=60,D50>(-105),D50<(-70)),"883",IF(AND(ABS(C50)<60,D50>(-180),D50<(-110)),"81",IF(AND(ABS(C50)<60,D50<180,D50>=150),"81",IF(AND(ABS(C50)<60,D50>=(-110),D50<=(-50)),"87",IF(AND(ABS(C50)<=(53+(14/60)),ABS(C50)>=45,D50>60,D50<=70),"5851",IF(AND(ABS(C50)<(49+(24/60)),ABS(C50)>=45,D50>=70,D50<80),"5851",IF(AND(ABS(C50)>=(53+(14/60)),ABS(C50)<56,D50>=60,D50<=80),"5852","")))))))))))))))))))))))))))))))),"") -> 
B51: =IF('Raw Set and Haul Details'!$B51="","",'Raw Set and Haul Details'!$B51) ->  | C51: =IF(B51="","",IF('Raw Set and Haul Details'!$E51<0,-1*(ABS('Raw Set and Haul Details'!$E51)+('Raw Set and Haul Details'!$F51/60)),ABS('Raw Set and Haul Details'!$E51)+('Raw Set and Haul Details'!$F51/60))) ->  | D51: =IF(B51="","",IF('Raw Set and Haul Details'!$G51<0,-1*(ABS('Raw Set and Haul Details'!$G51)+('Raw Set and Haul Details'!$H51/60)),'Raw Set and Haul Details'!$G51+('Raw Set and Haul Details'!$H51/60))) ->  | E51: =IFERROR(IF(AND(ABS(C51)>=45,ABS(C51)<=50,D51>=30,D51<=44),"587",IF(AND(ABS(C51)>=45,ABS(C51)<=50,D51>=44,D51<=60),"586",IF(AND(ABS(C51)>=50,ABS(C51)<=62,D51>=30,D51<=43),"5844a",IF(AND(ABS(C51)>=50,ABS(C51)<=62,D51>=43,D51<=60),"5844b",IF(AND(ABS(C51)<=50,(D51)<=30,D51>=(-50)),"47",IF(AND(ABS(C51)<=45,D51>=30,D51<=80),"51",IF(AND(ABS(C51)>=62,D51>=30,D51<=80),"5842",IF(AND(ABS(C51)>=50,D51<=30,D51>=(-20)),"486",IF(AND(ABS(C51)>=50,ABS(C51)<=64,D51<=(-20),D51>=(-30)),"484",IF(AND(ABS(C51)>=50,ABS(C51)<=57,D51<=(-30),D51>=(-50)),"483",IF(AND(ABS(C51)>57,ABS(C51)<=64,D51<(-30),D51>=(-50)),"482",IF(AND(ABS(C51)>64,D51<=(-20),D51>(-60)),"485",IF(AND(ABS(C51)>=60,D51<=(-50),D51>=(-70)),"481",IF(AND(ABS(C51)<60,D51<=(-50),D51>=(-70)),"41",IF(AND(SUBSTITUTE('Raw Set and Haul Details'!D$41,".","")="5851",C$3="FRA"),"5851",IF(AND(SUBSTITUTE('Raw Set and Haul Details'!D$41,".","")="5852",C$3="AUS"),"5852",IF(AND(ABS(C51)>=56,ABS(C51)<=62,D51>60,D51<=73.17),"5843a",IF(AND(ABS(C51)>=55,ABS(C51)<=64,D51>=73.17,D51<=86),"5843b",IF(AND(ABS(C51)>=55,D51>80,D51<=150),"5841",IF(AND(ABS(C51)<55,D51>80,D51<=150),"57",IF(AND(ABS(C51)>=60,ABS(C51)<=65,D51>=150,D51<180),"881",IF(AND(ABS(C51)>65,D51>=150,D51<180),"881",IF(AND(ABS(C51)>=60,D51>=(-180),D51<=(-170),ABS(C51)<=65),"881",IF(AND(ABS(C51)>65,D51>=(-180),D51<=(-170)),"881",IF(AND(ABS(C51)>=60,D51>(-170),D51<(-105)),"882",IF(AND(ABS(C51)>=60,D51>(-105),D51<(-70)),"883",IF(AND(ABS(C51)<60,D51>(-180),D51<(-110)),"81",IF(AND(ABS(C51)<60,D51<180,D51>=150),"81",IF(AND(ABS(C51)<60,D51>=(-110),D51<=(-50)),"87",IF(AND(ABS(C51)<=(53+(14/60)),ABS(C51)>=45,D51>60,D51<=70),"5851",IF(AND(ABS(C51)<(49+(24/60)),ABS(C51)>=45,D51>=70,D51<80),"5851",IF(AND(ABS(C51)>=(53+(14/60)),ABS(C51)<56,D51>=60,D51<=80),"5852","")))))))))))))))))))))))))))))))),"") -> 
B52: =IF('Raw Set and Haul Details'!$B52="","",'Raw Set and Haul Details'!$B52) ->  | C52: =IF(B52="","",IF('Raw Set and Haul Details'!$E52<0,-1*(ABS('Raw Set and Haul Details'!$E52)+('Raw Set and Haul Details'!$F52/60)),ABS('Raw Set and Haul Details'!$E52)+('Raw Set and Haul Details'!$F52/60))) ->  | D52: =IF(B52="","",IF('Raw Set and Haul Details'!$G52<0,-1*(ABS('Raw Set and Haul Details'!$G52)+('Raw Set and Haul Details'!$H52/60)),'Raw Set and Haul Details'!$G52+('Raw Set and Haul Details'!$H52/60))) ->  | E52: =IFERROR(IF(AND(ABS(C52)>=45,ABS(C52)<=50,D52>=30,D52<=44),"587",IF(AND(ABS(C52)>=45,ABS(C52)<=50,D52>=44,D52<=60),"586",IF(AND(ABS(C52)>=50,ABS(C52)<=62,D52>=30,D52<=43),"5844a",IF(AND(ABS(C52)>=50,ABS(C52)<=62,D52>=43,D52<=60),"5844b",IF(AND(ABS(C52)<=50,(D52)<=30,D52>=(-50)),"47",IF(AND(ABS(C52)<=45,D52>=30,D52<=80),"51",IF(AND(ABS(C52)>=62,D52>=30,D52<=80),"5842",IF(AND(ABS(C52)>=50,D52<=30,D52>=(-20)),"486",IF(AND(ABS(C52)>=50,ABS(C52)<=64,D52<=(-20),D52>=(-30)),"484",IF(AND(ABS(C52)>=50,ABS(C52)<=57,D52<=(-30),D52>=(-50)),"483",IF(AND(ABS(C52)>57,ABS(C52)<=64,D52<(-30),D52>=(-50)),"482",IF(AND(ABS(C52)>64,D52<=(-20),D52>(-60)),"485",IF(AND(ABS(C52)>=60,D52<=(-50),D52>=(-70)),"481",IF(AND(ABS(C52)<60,D52<=(-50),D52>=(-70)),"41",IF(AND(SUBSTITUTE('Raw Set and Haul Details'!D$41,".","")="5851",C$3="FRA"),"5851",IF(AND(SUBSTITUTE('Raw Set and Haul Details'!D$41,".","")="5852",C$3="AUS"),"5852",IF(AND(ABS(C52)>=56,ABS(C52)<=62,D52>60,D52<=73.17),"5843a",IF(AND(ABS(C52)>=55,ABS(C52)<=64,D52>=73.17,D52<=86),"5843b",IF(AND(ABS(C52)>=55,D52>80,D52<=150),"5841",IF(AND(ABS(C52)<55,D52>80,D52<=150),"57",IF(AND(ABS(C52)>=60,ABS(C52)<=65,D52>=150,D52<180),"881",IF(AND(ABS(C52)>65,D52>=150,D52<180),"881",IF(AND(ABS(C52)>=60,D52>=(-180),D52<=(-170),ABS(C52)<=65),"881",IF(AND(ABS(C52)>65,D52>=(-180),D52<=(-170)),"881",IF(AND(ABS(C52)>=60,D52>(-170),D52<(-105)),"882",IF(AND(ABS(C52)>=60,D52>(-105),D52<(-70)),"883",IF(AND(ABS(C52)<60,D52>(-180),D52<(-110)),"81",IF(AND(ABS(C52)<60,D52<180,D52>=150),"81",IF(AND(ABS(C52)<60,D52>=(-110),D52<=(-50)),"87",IF(AND(ABS(C52)<=(53+(14/60)),ABS(C52)>=45,D52>60,D52<=70),"5851",IF(AND(ABS(C52)<(49+(24/60)),ABS(C52)>=45,D52>=70,D52<80),"5851",IF(AND(ABS(C52)>=(53+(14/60)),ABS(C52)<56,D52>=60,D52<=80),"5852","")))))))))))))))))))))))))))))))),"") -> 
B53: =IF('Raw Set and Haul Details'!$B53="","",'Raw Set and Haul Details'!$B53) ->  | C53: =IF(B53="","",IF('Raw Set and Haul Details'!$E53<0,-1*(ABS('Raw Set and Haul Details'!$E53)+('Raw Set and Haul Details'!$F53/60)),ABS('Raw Set and Haul Details'!$E53)+('Raw Set and Haul Details'!$F53/60))) ->  | D53: =IF(B53="","",IF('Raw Set and Haul Details'!$G53<0,-1*(ABS('Raw Set and Haul Details'!$G53)+('Raw Set and Haul Details'!$H53/60)),'Raw Set and Haul Details'!$G53+('Raw Set and Haul Details'!$H53/60))) ->  | E53: =IFERROR(IF(AND(ABS(C53)>=45,ABS(C53)<=50,D53>=30,D53<=44),"587",IF(AND(ABS(C53)>=45,ABS(C53)<=50,D53>=44,D53<=60),"586",IF(AND(ABS(C53)>=50,ABS(C53)<=62,D53>=30,D53<=43),"5844a",IF(AND(ABS(C53)>=50,ABS(C53)<=62,D53>=43,D53<=60),"5844b",IF(AND(ABS(C53)<=50,(D53)<=30,D53>=(-50)),"47",IF(AND(ABS(C53)<=45,D53>=30,D53<=80),"51",IF(AND(ABS(C53)>=62,D53>=30,D53<=80),"5842",IF(AND(ABS(C53)>=50,D53<=30,D53>=(-20)),"486",IF(AND(ABS(C53)>=50,ABS(C53)<=64,D53<=(-20),D53>=(-30)),"484",IF(AND(ABS(C53)>=50,ABS(C53)<=57,D53<=(-30),D53>=(-50)),"483",IF(AND(ABS(C53)>57,ABS(C53)<=64,D53<(-30),D53>=(-50)),"482",IF(AND(ABS(C53)>64,D53<=(-20),D53>(-60)),"485",IF(AND(ABS(C53)>=60,D53<=(-50),D53>=(-70)),"481",IF(AND(ABS(C53)<60,D53<=(-50),D53>=(-70)),"41",IF(AND(SUBSTITUTE('Raw Set and Haul Details'!D$41,".","")="5851",C$3="FRA"),"5851",IF(AND(SUBSTITUTE('Raw Set and Haul Details'!D$41,".","")="5852",C$3="AUS"),"5852",IF(AND(ABS(C53)>=56,ABS(C53)<=62,D53>60,D53<=73.17),"5843a",IF(AND(ABS(C53)>=55,ABS(C53)<=64,D53>=73.17,D53<=86),"5843b",IF(AND(ABS(C53)>=55,D53>80,D53<=150),"5841",IF(AND(ABS(C53)<55,D53>80,D53<=150),"57",IF(AND(ABS(C53)>=60,ABS(C53)<=65,D53>=150,D53<180),"881",IF(AND(ABS(C53)>65,D53>=150,D53<180),"881",IF(AND(ABS(C53)>=60,D53>=(-180),D53<=(-170),ABS(C53)<=65),"881",IF(AND(ABS(C53)>65,D53>=(-180),D53<=(-170)),"881",IF(AND(ABS(C53)>=60,D53>(-170),D53<(-105)),"882",IF(AND(ABS(C53)>=60,D53>(-105),D53<(-70)),"883",IF(AND(ABS(C53)<60,D53>(-180),D53<(-110)),"81",IF(AND(ABS(C53)<60,D53<180,D53>=150),"81",IF(AND(ABS(C53)<60,D53>=(-110),D53<=(-50)),"87",IF(AND(ABS(C53)<=(53+(14/60)),ABS(C53)>=45,D53>60,D53<=70),"5851",IF(AND(ABS(C53)<(49+(24/60)),ABS(C53)>=45,D53>=70,D53<80),"5851",IF(AND(ABS(C53)>=(53+(14/60)),ABS(C53)<56,D53>=60,D53<=80),"5852","")))))))))))))))))))))))))))))))),"") -> 
B54: =IF('Raw Set and Haul Details'!$B54="","",'Raw Set and Haul Details'!$B54) ->  | C54: =IF(B54="","",IF('Raw Set and Haul Details'!$E54<0,-1*(ABS('Raw Set and Haul Details'!$E54)+('Raw Set and Haul Details'!$F54/60)),ABS('Raw Set and Haul Details'!$E54)+('Raw Set and Haul Details'!$F54/60))) ->  | D54: =IF(B54="","",IF('Raw Set and Haul Details'!$G54<0,-1*(ABS('Raw Set and Haul Details'!$G54)+('Raw Set and Haul Details'!$H54/60)),'Raw Set and Haul Details'!$G54+('Raw Set and Haul Details'!$H54/60))) ->  | E54: =IFERROR(IF(AND(ABS(C54)>=45,ABS(C54)<=50,D54>=30,D54<=44),"587",IF(AND(ABS(C54)>=45,ABS(C54)<=50,D54>=44,D54<=60),"586",IF(AND(ABS(C54)>=50,ABS(C54)<=62,D54>=30,D54<=43),"5844a",IF(AND(ABS(C54)>=50,ABS(C54)<=62,D54>=43,D54<=60),"5844b",IF(AND(ABS(C54)<=50,(D54)<=30,D54>=(-50)),"47",IF(AND(ABS(C54)<=45,D54>=30,D54<=80),"51",IF(AND(ABS(C54)>=62,D54>=30,D54<=80),"5842",IF(AND(ABS(C54)>=50,D54<=30,D54>=(-20)),"486",IF(AND(ABS(C54)>=50,ABS(C54)<=64,D54<=(-20),D54>=(-30)),"484",IF(AND(ABS(C54)>=50,ABS(C54)<=57,D54<=(-30),D54>=(-50)),"483",IF(AND(ABS(C54)>57,ABS(C54)<=64,D54<(-30),D54>=(-50)),"482",IF(AND(ABS(C54)>64,D54<=(-20),D54>(-60)),"485",IF(AND(ABS(C54)>=60,D54<=(-50),D54>=(-70)),"481",IF(AND(ABS(C54)<60,D54<=(-50),D54>=(-70)),"41",IF(AND(SUBSTITUTE('Raw Set and Haul Details'!D$41,".","")="5851",C$3="FRA"),"5851",IF(AND(SUBSTITUTE('Raw Set and Haul Details'!D$41,".","")="5852",C$3="AUS"),"5852",IF(AND(ABS(C54)>=56,ABS(C54)<=62,D54>60,D54<=73.17),"5843a",IF(AND(ABS(C54)>=55,ABS(C54)<=64,D54>=73.17,D54<=86),"5843b",IF(AND(ABS(C54)>=55,D54>80,D54<=150),"5841",IF(AND(ABS(C54)<55,D54>80,D54<=150),"57",IF(AND(ABS(C54)>=60,ABS(C54)<=65,D54>=150,D54<180),"881",IF(AND(ABS(C54)>65,D54>=150,D54<180),"881",IF(AND(ABS(C54)>=60,D54>=(-180),D54<=(-170),ABS(C54)<=65),"881",IF(AND(ABS(C54)>65,D54>=(-180),D54<=(-170)),"881",IF(AND(ABS(C54)>=60,D54>(-170),D54<(-105)),"882",IF(AND(ABS(C54)>=60,D54>(-105),D54<(-70)),"883",IF(AND(ABS(C54)<60,D54>(-180),D54<(-110)),"81",IF(AND(ABS(C54)<60,D54<180,D54>=150),"81",IF(AND(ABS(C54)<60,D54>=(-110),D54<=(-50)),"87",IF(AND(ABS(C54)<=(53+(14/60)),ABS(C54)>=45,D54>60,D54<=70),"5851",IF(AND(ABS(C54)<(49+(24/60)),ABS(C54)>=45,D54>=70,D54<80),"5851",IF(AND(ABS(C54)>=(53+(14/60)),ABS(C54)<56,D54>=60,D54<=80),"5852","")))))))))))))))))))))))))))))))),"") -> 
B55: =IF('Raw Set and Haul Details'!$B55="","",'Raw Set and Haul Details'!$B55) ->  | C55: =IF(B55="","",IF('Raw Set and Haul Details'!$E55<0,-1*(ABS('Raw Set and Haul Details'!$E55)+('Raw Set and Haul Details'!$F55/60)),ABS('Raw Set and Haul Details'!$E55)+('Raw Set and Haul Details'!$F55/60))) ->  | D55: =IF(B55="","",IF('Raw Set and Haul Details'!$G55<0,-1*(ABS('Raw Set and Haul Details'!$G55)+('Raw Set and Haul Details'!$H55/60)),'Raw Set and Haul Details'!$G55+('Raw Set and Haul Details'!$H55/60))) ->  | E55: =IFERROR(IF(AND(ABS(C55)>=45,ABS(C55)<=50,D55>=30,D55<=44),"587",IF(AND(ABS(C55)>=45,ABS(C55)<=50,D55>=44,D55<=60),"586",IF(AND(ABS(C55)>=50,ABS(C55)<=62,D55>=30,D55<=43),"5844a",IF(AND(ABS(C55)>=50,ABS(C55)<=62,D55>=43,D55<=60),"5844b",IF(AND(ABS(C55)<=50,(D55)<=30,D55>=(-50)),"47",IF(AND(ABS(C55)<=45,D55>=30,D55<=80),"51",IF(AND(ABS(C55)>=62,D55>=30,D55<=80),"5842",IF(AND(ABS(C55)>=50,D55<=30,D55>=(-20)),"486",IF(AND(ABS(C55)>=50,ABS(C55)<=64,D55<=(-20),D55>=(-30)),"484",IF(AND(ABS(C55)>=50,ABS(C55)<=57,D55<=(-30),D55>=(-50)),"483",IF(AND(ABS(C55)>57,ABS(C55)<=64,D55<(-30),D55>=(-50)),"482",IF(AND(ABS(C55)>64,D55<=(-20),D55>(-60)),"485",IF(AND(ABS(C55)>=60,D55<=(-50),D55>=(-70)),"481",IF(AND(ABS(C55)<60,D55<=(-50),D55>=(-70)),"41",IF(AND(SUBSTITUTE('Raw Set and Haul Details'!D$41,".","")="5851",C$3="FRA"),"5851",IF(AND(SUBSTITUTE('Raw Set and Haul Details'!D$41,".","")="5852",C$3="AUS"),"5852",IF(AND(ABS(C55)>=56,ABS(C55)<=62,D55>60,D55<=73.17),"5843a",IF(AND(ABS(C55)>=55,ABS(C55)<=64,D55>=73.17,D55<=86),"5843b",IF(AND(ABS(C55)>=55,D55>80,D55<=150),"5841",IF(AND(ABS(C55)<55,D55>80,D55<=150),"57",IF(AND(ABS(C55)>=60,ABS(C55)<=65,D55>=150,D55<180),"881",IF(AND(ABS(C55)>65,D55>=150,D55<180),"881",IF(AND(ABS(C55)>=60,D55>=(-180),D55<=(-170),ABS(C55)<=65),"881",IF(AND(ABS(C55)>65,D55>=(-180),D55<=(-170)),"881",IF(AND(ABS(C55)>=60,D55>(-170),D55<(-105)),"882",IF(AND(ABS(C55)>=60,D55>(-105),D55<(-70)),"883",IF(AND(ABS(C55)<60,D55>(-180),D55<(-110)),"81",IF(AND(ABS(C55)<60,D55<180,D55>=150),"81",IF(AND(ABS(C55)<60,D55>=(-110),D55<=(-50)),"87",IF(AND(ABS(C55)<=(53+(14/60)),ABS(C55)>=45,D55>60,D55<=70),"5851",IF(AND(ABS(C55)<(49+(24/60)),ABS(C55)>=45,D55>=70,D55<80),"5851",IF(AND(ABS(C55)>=(53+(14/60)),ABS(C55)<56,D55>=60,D55<=80),"5852","")))))))))))))))))))))))))))))))),"") -> 
B56: =IF('Raw Set and Haul Details'!$B56="","",'Raw Set and Haul Details'!$B56) ->  | C56: =IF(B56="","",IF('Raw Set and Haul Details'!$E56<0,-1*(ABS('Raw Set and Haul Details'!$E56)+('Raw Set and Haul Details'!$F56/60)),ABS('Raw Set and Haul Details'!$E56)+('Raw Set and Haul Details'!$F56/60))) ->  | D56: =IF(B56="","",IF('Raw Set and Haul Details'!$G56<0,-1*(ABS('Raw Set and Haul Details'!$G56)+('Raw Set and Haul Details'!$H56/60)),'Raw Set and Haul Details'!$G56+('Raw Set and Haul Details'!$H56/60))) ->  | E56: =IFERROR(IF(AND(ABS(C56)>=45,ABS(C56)<=50,D56>=30,D56<=44),"587",IF(AND(ABS(C56)>=45,ABS(C56)<=50,D56>=44,D56<=60),"586",IF(AND(ABS(C56)>=50,ABS(C56)<=62,D56>=30,D56<=43),"5844a",IF(AND(ABS(C56)>=50,ABS(C56)<=62,D56>=43,D56<=60),"5844b",IF(AND(ABS(C56)<=50,(D56)<=30,D56>=(-50)),"47",IF(AND(ABS(C56)<=45,D56>=30,D56<=80),"51",IF(AND(ABS(C56)>=62,D56>=30,D56<=80),"5842",IF(AND(ABS(C56)>=50,D56<=30,D56>=(-20)),"486",IF(AND(ABS(C56)>=50,ABS(C56)<=64,D56<=(-20),D56>=(-30)),"484",IF(AND(ABS(C56)>=50,ABS(C56)<=57,D56<=(-30),D56>=(-50)),"483",IF(AND(ABS(C56)>57,ABS(C56)<=64,D56<(-30),D56>=(-50)),"482",IF(AND(ABS(C56)>64,D56<=(-20),D56>(-60)),"485",IF(AND(ABS(C56)>=60,D56<=(-50),D56>=(-70)),"481",IF(AND(ABS(C56)<60,D56<=(-50),D56>=(-70)),"41",IF(AND(SUBSTITUTE('Raw Set and Haul Details'!D$41,".","")="5851",C$3="FRA"),"5851",IF(AND(SUBSTITUTE('Raw Set and Haul Details'!D$41,".","")="5852",C$3="AUS"),"5852",IF(AND(ABS(C56)>=56,ABS(C56)<=62,D56>60,D56<=73.17),"5843a",IF(AND(ABS(C56)>=55,ABS(C56)<=64,D56>=73.17,D56<=86),"5843b",IF(AND(ABS(C56)>=55,D56>80,D56<=150),"5841",IF(AND(ABS(C56)<55,D56>80,D56<=150),"57",IF(AND(ABS(C56)>=60,ABS(C56)<=65,D56>=150,D56<180),"881",IF(AND(ABS(C56)>65,D56>=150,D56<180),"881",IF(AND(ABS(C56)>=60,D56>=(-180),D56<=(-170),ABS(C56)<=65),"881",IF(AND(ABS(C56)>65,D56>=(-180),D56<=(-170)),"881",IF(AND(ABS(C56)>=60,D56>(-170),D56<(-105)),"882",IF(AND(ABS(C56)>=60,D56>(-105),D56<(-70)),"883",IF(AND(ABS(C56)<60,D56>(-180),D56<(-110)),"81",IF(AND(ABS(C56)<60,D56<180,D56>=150),"81",IF(AND(ABS(C56)<60,D56>=(-110),D56<=(-50)),"87",IF(AND(ABS(C56)<=(53+(14/60)),ABS(C56)>=45,D56>60,D56<=70),"5851",IF(AND(ABS(C56)<(49+(24/60)),ABS(C56)>=45,D56>=70,D56<80),"5851",IF(AND(ABS(C56)>=(53+(14/60)),ABS(C56)<56,D56>=60,D56<=80),"5852","")))))))))))))))))))))))))))))))),"") -> 
B57: =IF('Raw Set and Haul Details'!$B57="","",'Raw Set and Haul Details'!$B57) ->  | C57: =IF(B57="","",IF('Raw Set and Haul Details'!$E57<0,-1*(ABS('Raw Set and Haul Details'!$E57)+('Raw Set and Haul Details'!$F57/60)),ABS('Raw Set and Haul Details'!$E57)+('Raw Set and Haul Details'!$F57/60))) ->  | D57: =IF(B57="","",IF('Raw Set and Haul Details'!$G57<0,-1*(ABS('Raw Set and Haul Details'!$G57)+('Raw Set and Haul Details'!$H57/60)),'Raw Set and Haul Details'!$G57+('Raw Set and Haul Details'!$H57/60))) ->  | E57: =IFERROR(IF(AND(ABS(C57)>=45,ABS(C57)<=50,D57>=30,D57<=44),"587",IF(AND(ABS(C57)>=45,ABS(C57)<=50,D57>=44,D57<=60),"586",IF(AND(ABS(C57)>=50,ABS(C57)<=62,D57>=30,D57<=43),"5844a",IF(AND(ABS(C57)>=50,ABS(C57)<=62,D57>=43,D57<=60),"5844b",IF(AND(ABS(C57)<=50,(D57)<=30,D57>=(-50)),"47",IF(AND(ABS(C57)<=45,D57>=30,D57<=80),"51",IF(AND(ABS(C57)>=62,D57>=30,D57<=80),"5842",IF(AND(ABS(C57)>=50,D57<=30,D57>=(-20)),"486",IF(AND(ABS(C57)>=50,ABS(C57)<=64,D57<=(-20),D57>=(-30)),"484",IF(AND(ABS(C57)>=50,ABS(C57)<=57,D57<=(-30),D57>=(-50)),"483",IF(AND(ABS(C57)>57,ABS(C57)<=64,D57<(-30),D57>=(-50)),"482",IF(AND(ABS(C57)>64,D57<=(-20),D57>(-60)),"485",IF(AND(ABS(C57)>=60,D57<=(-50),D57>=(-70)),"481",IF(AND(ABS(C57)<60,D57<=(-50),D57>=(-70)),"41",IF(AND(SUBSTITUTE('Raw Set and Haul Details'!D$41,".","")="5851",C$3="FRA"),"5851",IF(AND(SUBSTITUTE('Raw Set and Haul Details'!D$41,".","")="5852",C$3="AUS"),"5852",IF(AND(ABS(C57)>=56,ABS(C57)<=62,D57>60,D57<=73.17),"5843a",IF(AND(ABS(C57)>=55,ABS(C57)<=64,D57>=73.17,D57<=86),"5843b",IF(AND(ABS(C57)>=55,D57>80,D57<=150),"5841",IF(AND(ABS(C57)<55,D57>80,D57<=150),"57",IF(AND(ABS(C57)>=60,ABS(C57)<=65,D57>=150,D57<180),"881",IF(AND(ABS(C57)>65,D57>=150,D57<180),"881",IF(AND(ABS(C57)>=60,D57>=(-180),D57<=(-170),ABS(C57)<=65),"881",IF(AND(ABS(C57)>65,D57>=(-180),D57<=(-170)),"881",IF(AND(ABS(C57)>=60,D57>(-170),D57<(-105)),"882",IF(AND(ABS(C57)>=60,D57>(-105),D57<(-70)),"883",IF(AND(ABS(C57)<60,D57>(-180),D57<(-110)),"81",IF(AND(ABS(C57)<60,D57<180,D57>=150),"81",IF(AND(ABS(C57)<60,D57>=(-110),D57<=(-50)),"87",IF(AND(ABS(C57)<=(53+(14/60)),ABS(C57)>=45,D57>60,D57<=70),"5851",IF(AND(ABS(C57)<(49+(24/60)),ABS(C57)>=45,D57>=70,D57<80),"5851",IF(AND(ABS(C57)>=(53+(14/60)),ABS(C57)<56,D57>=60,D57<=80),"5852","")))))))))))))))))))))))))))))))),"") -> 
B58: =IF('Raw Set and Haul Details'!$B58="","",'Raw Set and Haul Details'!$B58) ->  | C58: =IF(B58="","",IF('Raw Set and Haul Details'!$E58<0,-1*(ABS('Raw Set and Haul Details'!$E58)+('Raw Set and Haul Details'!$F58/60)),ABS('Raw Set and Haul Details'!$E58)+('Raw Set and Haul Details'!$F58/60))) ->  | D58: =IF(B58="","",IF('Raw Set and Haul Details'!$G58<0,-1*(ABS('Raw Set and Haul Details'!$G58)+('Raw Set and Haul Details'!$H58/60)),'Raw Set and Haul Details'!$G58+('Raw Set and Haul Details'!$H58/60))) ->  | E58: =IFERROR(IF(AND(ABS(C58)>=45,ABS(C58)<=50,D58>=30,D58<=44),"587",IF(AND(ABS(C58)>=45,ABS(C58)<=50,D58>=44,D58<=60),"586",IF(AND(ABS(C58)>=50,ABS(C58)<=62,D58>=30,D58<=43),"5844a",IF(AND(ABS(C58)>=50,ABS(C58)<=62,D58>=43,D58<=60),"5844b",IF(AND(ABS(C58)<=50,(D58)<=30,D58>=(-50)),"47",IF(AND(ABS(C58)<=45,D58>=30,D58<=80),"51",IF(AND(ABS(C58)>=62,D58>=30,D58<=80),"5842",IF(AND(ABS(C58)>=50,D58<=30,D58>=(-20)),"486",IF(AND(ABS(C58)>=50,ABS(C58)<=64,D58<=(-20),D58>=(-30)),"484",IF(AND(ABS(C58)>=50,ABS(C58)<=57,D58<=(-30),D58>=(-50)),"483",IF(AND(ABS(C58)>57,ABS(C58)<=64,D58<(-30),D58>=(-50)),"482",IF(AND(ABS(C58)>64,D58<=(-20),D58>(-60)),"485",IF(AND(ABS(C58)>=60,D58<=(-50),D58>=(-70)),"481",IF(AND(ABS(C58)<60,D58<=(-50),D58>=(-70)),"41",IF(AND(SUBSTITUTE('Raw Set and Haul Details'!D$41,".","")="5851",C$3="FRA"),"5851",IF(AND(SUBSTITUTE('Raw Set and Haul Details'!D$41,".","")="5852",C$3="AUS"),"5852",IF(AND(ABS(C58)>=56,ABS(C58)<=62,D58>60,D58<=73.17),"5843a",IF(AND(ABS(C58)>=55,ABS(C58)<=64,D58>=73.17,D58<=86),"5843b",IF(AND(ABS(C58)>=55,D58>80,D58<=150),"5841",IF(AND(ABS(C58)<55,D58>80,D58<=150),"57",IF(AND(ABS(C58)>=60,ABS(C58)<=65,D58>=150,D58<180),"881",IF(AND(ABS(C58)>65,D58>=150,D58<180),"881",IF(AND(ABS(C58)>=60,D58>=(-180),D58<=(-170),ABS(C58)<=65),"881",IF(AND(ABS(C58)>65,D58>=(-180),D58<=(-170)),"881",IF(AND(ABS(C58)>=60,D58>(-170),D58<(-105)),"882",IF(AND(ABS(C58)>=60,D58>(-105),D58<(-70)),"883",IF(AND(ABS(C58)<60,D58>(-180),D58<(-110)),"81",IF(AND(ABS(C58)<60,D58<180,D58>=150),"81",IF(AND(ABS(C58)<60,D58>=(-110),D58<=(-50)),"87",IF(AND(ABS(C58)<=(53+(14/60)),ABS(C58)>=45,D58>60,D58<=70),"5851",IF(AND(ABS(C58)<(49+(24/60)),ABS(C58)>=45,D58>=70,D58<80),"5851",IF(AND(ABS(C58)>=(53+(14/60)),ABS(C58)<56,D58>=60,D58<=80),"5852","")))))))))))))))))))))))))))))))),"") -> 
B59: =IF('Raw Set and Haul Details'!$B59="","",'Raw Set and Haul Details'!$B59) ->  | C59: =IF(B59="","",IF('Raw Set and Haul Details'!$E59<0,-1*(ABS('Raw Set and Haul Details'!$E59)+('Raw Set and Haul Details'!$F59/60)),ABS('Raw Set and Haul Details'!$E59)+('Raw Set and Haul Details'!$F59/60))) ->  | D59: =IF(B59="","",IF('Raw Set and Haul Details'!$G59<0,-1*(ABS('Raw Set and Haul Details'!$G59)+('Raw Set and Haul Details'!$H59/60)),'Raw Set and Haul Details'!$G59+('Raw Set and Haul Details'!$H59/60))) ->  | E59: =IFERROR(IF(AND(ABS(C59)>=45,ABS(C59)<=50,D59>=30,D59<=44),"587",IF(AND(ABS(C59)>=45,ABS(C59)<=50,D59>=44,D59<=60),"586",IF(AND(ABS(C59)>=50,ABS(C59)<=62,D59>=30,D59<=43),"5844a",IF(AND(ABS(C59)>=50,ABS(C59)<=62,D59>=43,D59<=60),"5844b",IF(AND(ABS(C59)<=50,(D59)<=30,D59>=(-50)),"47",IF(AND(ABS(C59)<=45,D59>=30,D59<=80),"51",IF(AND(ABS(C59)>=62,D59>=30,D59<=80),"5842",IF(AND(ABS(C59)>=50,D59<=30,D59>=(-20)),"486",IF(AND(ABS(C59)>=50,ABS(C59)<=64,D59<=(-20),D59>=(-30)),"484",IF(AND(ABS(C59)>=50,ABS(C59)<=57,D59<=(-30),D59>=(-50)),"483",IF(AND(ABS(C59)>57,ABS(C59)<=64,D59<(-30),D59>=(-50)),"482",IF(AND(ABS(C59)>64,D59<=(-20),D59>(-60)),"485",IF(AND(ABS(C59)>=60,D59<=(-50),D59>=(-70)),"481",IF(AND(ABS(C59)<60,D59<=(-50),D59>=(-70)),"41",IF(AND(SUBSTITUTE('Raw Set and Haul Details'!D$41,".","")="5851",C$3="FRA"),"5851",IF(AND(SUBSTITUTE('Raw Set and Haul Details'!D$41,".","")="5852",C$3="AUS"),"5852",IF(AND(ABS(C59)>=56,ABS(C59)<=62,D59>60,D59<=73.17),"5843a",IF(AND(ABS(C59)>=55,ABS(C59)<=64,D59>=73.17,D59<=86),"5843b",IF(AND(ABS(C59)>=55,D59>80,D59<=150),"5841",IF(AND(ABS(C59)<55,D59>80,D59<=150),"57",IF(AND(ABS(C59)>=60,ABS(C59)<=65,D59>=150,D59<180),"881",IF(AND(ABS(C59)>65,D59>=150,D59<180),"881",IF(AND(ABS(C59)>=60,D59>=(-180),D59<=(-170),ABS(C59)<=65),"881",IF(AND(ABS(C59)>65,D59>=(-180),D59<=(-170)),"881",IF(AND(ABS(C59)>=60,D59>(-170),D59<(-105)),"882",IF(AND(ABS(C59)>=60,D59>(-105),D59<(-70)),"883",IF(AND(ABS(C59)<60,D59>(-180),D59<(-110)),"81",IF(AND(ABS(C59)<60,D59<180,D59>=150),"81",IF(AND(ABS(C59)<60,D59>=(-110),D59<=(-50)),"87",IF(AND(ABS(C59)<=(53+(14/60)),ABS(C59)>=45,D59>60,D59<=70),"5851",IF(AND(ABS(C59)<(49+(24/60)),ABS(C59)>=45,D59>=70,D59<80),"5851",IF(AND(ABS(C59)>=(53+(14/60)),ABS(C59)<56,D59>=60,D59<=80),"5852","")))))))))))))))))))))))))))))))),"") -> 
B60: =IF('Raw Set and Haul Details'!$B60="","",'Raw Set and Haul Details'!$B60) ->  | C60: =IF(B60="","",IF('Raw Set and Haul Details'!$E60<0,-1*(ABS('Raw Set and Haul Details'!$E60)+('Raw Set and Haul Details'!$F60/60)),ABS('Raw Set and Haul Details'!$E60)+('Raw Set and Haul Details'!$F60/60))) ->  | D60: =IF(B60="","",IF('Raw Set and Haul Details'!$G60<0,-1*(ABS('Raw Set and Haul Details'!$G60)+('Raw Set and Haul Details'!$H60/60)),'Raw Set and Haul Details'!$G60+('Raw Set and Haul Details'!$H60/60))) ->  | E60: =IFERROR(IF(AND(ABS(C60)>=45,ABS(C60)<=50,D60>=30,D60<=44),"587",IF(AND(ABS(C60)>=45,ABS(C60)<=50,D60>=44,D60<=60),"586",IF(AND(ABS(C60)>=50,ABS(C60)<=62,D60>=30,D60<=43),"5844a",IF(AND(ABS(C60)>=50,ABS(C60)<=62,D60>=43,D60<=60),"5844b",IF(AND(ABS(C60)<=50,(D60)<=30,D60>=(-50)),"47",IF(AND(ABS(C60)<=45,D60>=30,D60<=80),"51",IF(AND(ABS(C60)>=62,D60>=30,D60<=80),"5842",IF(AND(ABS(C60)>=50,D60<=30,D60>=(-20)),"486",IF(AND(ABS(C60)>=50,ABS(C60)<=64,D60<=(-20),D60>=(-30)),"484",IF(AND(ABS(C60)>=50,ABS(C60)<=57,D60<=(-30),D60>=(-50)),"483",IF(AND(ABS(C60)>57,ABS(C60)<=64,D60<(-30),D60>=(-50)),"482",IF(AND(ABS(C60)>64,D60<=(-20),D60>(-60)),"485",IF(AND(ABS(C60)>=60,D60<=(-50),D60>=(-70)),"481",IF(AND(ABS(C60)<60,D60<=(-50),D60>=(-70)),"41",IF(AND(SUBSTITUTE('Raw Set and Haul Details'!D$41,".","")="5851",C$3="FRA"),"5851",IF(AND(SUBSTITUTE('Raw Set and Haul Details'!D$41,".","")="5852",C$3="AUS"),"5852",IF(AND(ABS(C60)>=56,ABS(C60)<=62,D60>60,D60<=73.17),"5843a",IF(AND(ABS(C60)>=55,ABS(C60)<=64,D60>=73.17,D60<=86),"5843b",IF(AND(ABS(C60)>=55,D60>80,D60<=150),"5841",IF(AND(ABS(C60)<55,D60>80,D60<=150),"57",IF(AND(ABS(C60)>=60,ABS(C60)<=65,D60>=150,D60<180),"881",IF(AND(ABS(C60)>65,D60>=150,D60<180),"881",IF(AND(ABS(C60)>=60,D60>=(-180),D60<=(-170),ABS(C60)<=65),"881",IF(AND(ABS(C60)>65,D60>=(-180),D60<=(-170)),"881",IF(AND(ABS(C60)>=60,D60>(-170),D60<(-105)),"882",IF(AND(ABS(C60)>=60,D60>(-105),D60<(-70)),"883",IF(AND(ABS(C60)<60,D60>(-180),D60<(-110)),"81",IF(AND(ABS(C60)<60,D60<180,D60>=150),"81",IF(AND(ABS(C60)<60,D60>=(-110),D60<=(-50)),"87",IF(AND(ABS(C60)<=(53+(14/60)),ABS(C60)>=45,D60>60,D60<=70),"5851",IF(AND(ABS(C60)<(49+(24/60)),ABS(C60)>=45,D60>=70,D60<80),"5851",IF(AND(ABS(C60)>=(53+(14/60)),ABS(C60)<56,D60>=60,D60<=80),"5852","")))))))))))))))))))))))))))))))),"") -> 
B61: =IF('Raw Set and Haul Details'!$B61="","",'Raw Set and Haul Details'!$B61) ->  | C61: =IF(B61="","",IF('Raw Set and Haul Details'!$E61<0,-1*(ABS('Raw Set and Haul Details'!$E61)+('Raw Set and Haul Details'!$F61/60)),ABS('Raw Set and Haul Details'!$E61)+('Raw Set and Haul Details'!$F61/60))) ->  | D61: =IF(B61="","",IF('Raw Set and Haul Details'!$G61<0,-1*(ABS('Raw Set and Haul Details'!$G61)+('Raw Set and Haul Details'!$H61/60)),'Raw Set and Haul Details'!$G61+('Raw Set and Haul Details'!$H61/60))) ->  | E61: =IFERROR(IF(AND(ABS(C61)>=45,ABS(C61)<=50,D61>=30,D61<=44),"587",IF(AND(ABS(C61)>=45,ABS(C61)<=50,D61>=44,D61<=60),"586",IF(AND(ABS(C61)>=50,ABS(C61)<=62,D61>=30,D61<=43),"5844a",IF(AND(ABS(C61)>=50,ABS(C61)<=62,D61>=43,D61<=60),"5844b",IF(AND(ABS(C61)<=50,(D61)<=30,D61>=(-50)),"47",IF(AND(ABS(C61)<=45,D61>=30,D61<=80),"51",IF(AND(ABS(C61)>=62,D61>=30,D61<=80),"5842",IF(AND(ABS(C61)>=50,D61<=30,D61>=(-20)),"486",IF(AND(ABS(C61)>=50,ABS(C61)<=64,D61<=(-20),D61>=(-30)),"484",IF(AND(ABS(C61)>=50,ABS(C61)<=57,D61<=(-30),D61>=(-50)),"483",IF(AND(ABS(C61)>57,ABS(C61)<=64,D61<(-30),D61>=(-50)),"482",IF(AND(ABS(C61)>64,D61<=(-20),D61>(-60)),"485",IF(AND(ABS(C61)>=60,D61<=(-50),D61>=(-70)),"481",IF(AND(ABS(C61)<60,D61<=(-50),D61>=(-70)),"41",IF(AND(SUBSTITUTE('Raw Set and Haul Details'!D$41,".","")="5851",C$3="FRA"),"5851",IF(AND(SUBSTITUTE('Raw Set and Haul Details'!D$41,".","")="5852",C$3="AUS"),"5852",IF(AND(ABS(C61)>=56,ABS(C61)<=62,D61>60,D61<=73.17),"5843a",IF(AND(ABS(C61)>=55,ABS(C61)<=64,D61>=73.17,D61<=86),"5843b",IF(AND(ABS(C61)>=55,D61>80,D61<=150),"5841",IF(AND(ABS(C61)<55,D61>80,D61<=150),"57",IF(AND(ABS(C61)>=60,ABS(C61)<=65,D61>=150,D61<180),"881",IF(AND(ABS(C61)>65,D61>=150,D61<180),"881",IF(AND(ABS(C61)>=60,D61>=(-180),D61<=(-170),ABS(C61)<=65),"881",IF(AND(ABS(C61)>65,D61>=(-180),D61<=(-170)),"881",IF(AND(ABS(C61)>=60,D61>(-170),D61<(-105)),"882",IF(AND(ABS(C61)>=60,D61>(-105),D61<(-70)),"883",IF(AND(ABS(C61)<60,D61>(-180),D61<(-110)),"81",IF(AND(ABS(C61)<60,D61<180,D61>=150),"81",IF(AND(ABS(C61)<60,D61>=(-110),D61<=(-50)),"87",IF(AND(ABS(C61)<=(53+(14/60)),ABS(C61)>=45,D61>60,D61<=70),"5851",IF(AND(ABS(C61)<(49+(24/60)),ABS(C61)>=45,D61>=70,D61<80),"5851",IF(AND(ABS(C61)>=(53+(14/60)),ABS(C61)<56,D61>=60,D61<=80),"5852","")))))))))))))))))))))))))))))))),"") -> 
B62: =IF('Raw Set and Haul Details'!$B62="","",'Raw Set and Haul Details'!$B62) ->  | C62: =IF(B62="","",IF('Raw Set and Haul Details'!$E62<0,-1*(ABS('Raw Set and Haul Details'!$E62)+('Raw Set and Haul Details'!$F62/60)),ABS('Raw Set and Haul Details'!$E62)+('Raw Set and Haul Details'!$F62/60))) ->  | D62: =IF(B62="","",IF('Raw Set and Haul Details'!$G62<0,-1*(ABS('Raw Set and Haul Details'!$G62)+('Raw Set and Haul Details'!$H62/60)),'Raw Set and Haul Details'!$G62+('Raw Set and Haul Details'!$H62/60))) ->  | E62: =IFERROR(IF(AND(ABS(C62)>=45,ABS(C62)<=50,D62>=30,D62<=44),"587",IF(AND(ABS(C62)>=45,ABS(C62)<=50,D62>=44,D62<=60),"586",IF(AND(ABS(C62)>=50,ABS(C62)<=62,D62>=30,D62<=43),"5844a",IF(AND(ABS(C62)>=50,ABS(C62)<=62,D62>=43,D62<=60),"5844b",IF(AND(ABS(C62)<=50,(D62)<=30,D62>=(-50)),"47",IF(AND(ABS(C62)<=45,D62>=30,D62<=80),"51",IF(AND(ABS(C62)>=62,D62>=30,D62<=80),"5842",IF(AND(ABS(C62)>=50,D62<=30,D62>=(-20)),"486",IF(AND(ABS(C62)>=50,ABS(C62)<=64,D62<=(-20),D62>=(-30)),"484",IF(AND(ABS(C62)>=50,ABS(C62)<=57,D62<=(-30),D62>=(-50)),"483",IF(AND(ABS(C62)>57,ABS(C62)<=64,D62<(-30),D62>=(-50)),"482",IF(AND(ABS(C62)>64,D62<=(-20),D62>(-60)),"485",IF(AND(ABS(C62)>=60,D62<=(-50),D62>=(-70)),"481",IF(AND(ABS(C62)<60,D62<=(-50),D62>=(-70)),"41",IF(AND(SUBSTITUTE('Raw Set and Haul Details'!D$41,".","")="5851",C$3="FRA"),"5851",IF(AND(SUBSTITUTE('Raw Set and Haul Details'!D$41,".","")="5852",C$3="AUS"),"5852",IF(AND(ABS(C62)>=56,ABS(C62)<=62,D62>60,D62<=73.17),"5843a",IF(AND(ABS(C62)>=55,ABS(C62)<=64,D62>=73.17,D62<=86),"5843b",IF(AND(ABS(C62)>=55,D62>80,D62<=150),"5841",IF(AND(ABS(C62)<55,D62>80,D62<=150),"57",IF(AND(ABS(C62)>=60,ABS(C62)<=65,D62>=150,D62<180),"881",IF(AND(ABS(C62)>65,D62>=150,D62<180),"881",IF(AND(ABS(C62)>=60,D62>=(-180),D62<=(-170),ABS(C62)<=65),"881",IF(AND(ABS(C62)>65,D62>=(-180),D62<=(-170)),"881",IF(AND(ABS(C62)>=60,D62>(-170),D62<(-105)),"882",IF(AND(ABS(C62)>=60,D62>(-105),D62<(-70)),"883",IF(AND(ABS(C62)<60,D62>(-180),D62<(-110)),"81",IF(AND(ABS(C62)<60,D62<180,D62>=150),"81",IF(AND(ABS(C62)<60,D62>=(-110),D62<=(-50)),"87",IF(AND(ABS(C62)<=(53+(14/60)),ABS(C62)>=45,D62>60,D62<=70),"5851",IF(AND(ABS(C62)<(49+(24/60)),ABS(C62)>=45,D62>=70,D62<80),"5851",IF(AND(ABS(C62)>=(53+(14/60)),ABS(C62)<56,D62>=60,D62<=80),"5852","")))))))))))))))))))))))))))))))),"") -> 
B63: =IF('Raw Set and Haul Details'!$B63="","",'Raw Set and Haul Details'!$B63) ->  | C63: =IF(B63="","",IF('Raw Set and Haul Details'!$E63<0,-1*(ABS('Raw Set and Haul Details'!$E63)+('Raw Set and Haul Details'!$F63/60)),ABS('Raw Set and Haul Details'!$E63)+('Raw Set and Haul Details'!$F63/60))) ->  | D63: =IF(B63="","",IF('Raw Set and Haul Details'!$G63<0,-1*(ABS('Raw Set and Haul Details'!$G63)+('Raw Set and Haul Details'!$H63/60)),'Raw Set and Haul Details'!$G63+('Raw Set and Haul Details'!$H63/60))) ->  | E63: =IFERROR(IF(AND(ABS(C63)>=45,ABS(C63)<=50,D63>=30,D63<=44),"587",IF(AND(ABS(C63)>=45,ABS(C63)<=50,D63>=44,D63<=60),"586",IF(AND(ABS(C63)>=50,ABS(C63)<=62,D63>=30,D63<=43),"5844a",IF(AND(ABS(C63)>=50,ABS(C63)<=62,D63>=43,D63<=60),"5844b",IF(AND(ABS(C63)<=50,(D63)<=30,D63>=(-50)),"47",IF(AND(ABS(C63)<=45,D63>=30,D63<=80),"51",IF(AND(ABS(C63)>=62,D63>=30,D63<=80),"5842",IF(AND(ABS(C63)>=50,D63<=30,D63>=(-20)),"486",IF(AND(ABS(C63)>=50,ABS(C63)<=64,D63<=(-20),D63>=(-30)),"484",IF(AND(ABS(C63)>=50,ABS(C63)<=57,D63<=(-30),D63>=(-50)),"483",IF(AND(ABS(C63)>57,ABS(C63)<=64,D63<(-30),D63>=(-50)),"482",IF(AND(ABS(C63)>64,D63<=(-20),D63>(-60)),"485",IF(AND(ABS(C63)>=60,D63<=(-50),D63>=(-70)),"481",IF(AND(ABS(C63)<60,D63<=(-50),D63>=(-70)),"41",IF(AND(SUBSTITUTE('Raw Set and Haul Details'!D$41,".","")="5851",C$3="FRA"),"5851",IF(AND(SUBSTITUTE('Raw Set and Haul Details'!D$41,".","")="5852",C$3="AUS"),"5852",IF(AND(ABS(C63)>=56,ABS(C63)<=62,D63>60,D63<=73.17),"5843a",IF(AND(ABS(C63)>=55,ABS(C63)<=64,D63>=73.17,D63<=86),"5843b",IF(AND(ABS(C63)>=55,D63>80,D63<=150),"5841",IF(AND(ABS(C63)<55,D63>80,D63<=150),"57",IF(AND(ABS(C63)>=60,ABS(C63)<=65,D63>=150,D63<180),"881",IF(AND(ABS(C63)>65,D63>=150,D63<180),"881",IF(AND(ABS(C63)>=60,D63>=(-180),D63<=(-170),ABS(C63)<=65),"881",IF(AND(ABS(C63)>65,D63>=(-180),D63<=(-170)),"881",IF(AND(ABS(C63)>=60,D63>(-170),D63<(-105)),"882",IF(AND(ABS(C63)>=60,D63>(-105),D63<(-70)),"883",IF(AND(ABS(C63)<60,D63>(-180),D63<(-110)),"81",IF(AND(ABS(C63)<60,D63<180,D63>=150),"81",IF(AND(ABS(C63)<60,D63>=(-110),D63<=(-50)),"87",IF(AND(ABS(C63)<=(53+(14/60)),ABS(C63)>=45,D63>60,D63<=70),"5851",IF(AND(ABS(C63)<(49+(24/60)),ABS(C63)>=45,D63>=70,D63<80),"5851",IF(AND(ABS(C63)>=(53+(14/60)),ABS(C63)<56,D63>=60,D63<=80),"5852","")))))))))))))))))))))))))))))))),"") -> 
B64: =IF('Raw Set and Haul Details'!$B64="","",'Raw Set and Haul Details'!$B64) ->  | C64: =IF(B64="","",IF('Raw Set and Haul Details'!$E64<0,-1*(ABS('Raw Set and Haul Details'!$E64)+('Raw Set and Haul Details'!$F64/60)),ABS('Raw Set and Haul Details'!$E64)+('Raw Set and Haul Details'!$F64/60))) ->  | D64: =IF(B64="","",IF('Raw Set and Haul Details'!$G64<0,-1*(ABS('Raw Set and Haul Details'!$G64)+('Raw Set and Haul Details'!$H64/60)),'Raw Set and Haul Details'!$G64+('Raw Set and Haul Details'!$H64/60))) ->  | E64: =IFERROR(IF(AND(ABS(C64)>=45,ABS(C64)<=50,D64>=30,D64<=44),"587",IF(AND(ABS(C64)>=45,ABS(C64)<=50,D64>=44,D64<=60),"586",IF(AND(ABS(C64)>=50,ABS(C64)<=62,D64>=30,D64<=43),"5844a",IF(AND(ABS(C64)>=50,ABS(C64)<=62,D64>=43,D64<=60),"5844b",IF(AND(ABS(C64)<=50,(D64)<=30,D64>=(-50)),"47",IF(AND(ABS(C64)<=45,D64>=30,D64<=80),"51",IF(AND(ABS(C64)>=62,D64>=30,D64<=80),"5842",IF(AND(ABS(C64)>=50,D64<=30,D64>=(-20)),"486",IF(AND(ABS(C64)>=50,ABS(C64)<=64,D64<=(-20),D64>=(-30)),"484",IF(AND(ABS(C64)>=50,ABS(C64)<=57,D64<=(-30),D64>=(-50)),"483",IF(AND(ABS(C64)>57,ABS(C64)<=64,D64<(-30),D64>=(-50)),"482",IF(AND(ABS(C64)>64,D64<=(-20),D64>(-60)),"485",IF(AND(ABS(C64)>=60,D64<=(-50),D64>=(-70)),"481",IF(AND(ABS(C64)<60,D64<=(-50),D64>=(-70)),"41",IF(AND(SUBSTITUTE('Raw Set and Haul Details'!D$41,".","")="5851",C$3="FRA"),"5851",IF(AND(SUBSTITUTE('Raw Set and Haul Details'!D$41,".","")="5852",C$3="AUS"),"5852",IF(AND(ABS(C64)>=56,ABS(C64)<=62,D64>60,D64<=73.17),"5843a",IF(AND(ABS(C64)>=55,ABS(C64)<=64,D64>=73.17,D64<=86),"5843b",IF(AND(ABS(C64)>=55,D64>80,D64<=150),"5841",IF(AND(ABS(C64)<55,D64>80,D64<=150),"57",IF(AND(ABS(C64)>=60,ABS(C64)<=65,D64>=150,D64<180),"881",IF(AND(ABS(C64)>65,D64>=150,D64<180),"881",IF(AND(ABS(C64)>=60,D64>=(-180),D64<=(-170),ABS(C64)<=65),"881",IF(AND(ABS(C64)>65,D64>=(-180),D64<=(-170)),"881",IF(AND(ABS(C64)>=60,D64>(-170),D64<(-105)),"882",IF(AND(ABS(C64)>=60,D64>(-105),D64<(-70)),"883",IF(AND(ABS(C64)<60,D64>(-180),D64<(-110)),"81",IF(AND(ABS(C64)<60,D64<180,D64>=150),"81",IF(AND(ABS(C64)<60,D64>=(-110),D64<=(-50)),"87",IF(AND(ABS(C64)<=(53+(14/60)),ABS(C64)>=45,D64>60,D64<=70),"5851",IF(AND(ABS(C64)<(49+(24/60)),ABS(C64)>=45,D64>=70,D64<80),"5851",IF(AND(ABS(C64)>=(53+(14/60)),ABS(C64)<56,D64>=60,D64<=80),"5852","")))))))))))))))))))))))))))))))),"") -> 
B65: =IF('Raw Set and Haul Details'!$B65="","",'Raw Set and Haul Details'!$B65) ->  | C65: =IF(B65="","",IF('Raw Set and Haul Details'!$E65<0,-1*(ABS('Raw Set and Haul Details'!$E65)+('Raw Set and Haul Details'!$F65/60)),ABS('Raw Set and Haul Details'!$E65)+('Raw Set and Haul Details'!$F65/60))) ->  | D65: =IF(B65="","",IF('Raw Set and Haul Details'!$G65<0,-1*(ABS('Raw Set and Haul Details'!$G65)+('Raw Set and Haul Details'!$H65/60)),'Raw Set and Haul Details'!$G65+('Raw Set and Haul Details'!$H65/60))) ->  | E65: =IFERROR(IF(AND(ABS(C65)>=45,ABS(C65)<=50,D65>=30,D65<=44),"587",IF(AND(ABS(C65)>=45,ABS(C65)<=50,D65>=44,D65<=60),"586",IF(AND(ABS(C65)>=50,ABS(C65)<=62,D65>=30,D65<=43),"5844a",IF(AND(ABS(C65)>=50,ABS(C65)<=62,D65>=43,D65<=60),"5844b",IF(AND(ABS(C65)<=50,(D65)<=30,D65>=(-50)),"47",IF(AND(ABS(C65)<=45,D65>=30,D65<=80),"51",IF(AND(ABS(C65)>=62,D65>=30,D65<=80),"5842",IF(AND(ABS(C65)>=50,D65<=30,D65>=(-20)),"486",IF(AND(ABS(C65)>=50,ABS(C65)<=64,D65<=(-20),D65>=(-30)),"484",IF(AND(ABS(C65)>=50,ABS(C65)<=57,D65<=(-30),D65>=(-50)),"483",IF(AND(ABS(C65)>57,ABS(C65)<=64,D65<(-30),D65>=(-50)),"482",IF(AND(ABS(C65)>64,D65<=(-20),D65>(-60)),"485",IF(AND(ABS(C65)>=60,D65<=(-50),D65>=(-70)),"481",IF(AND(ABS(C65)<60,D65<=(-50),D65>=(-70)),"41",IF(AND(SUBSTITUTE('Raw Set and Haul Details'!D$41,".","")="5851",C$3="FRA"),"5851",IF(AND(SUBSTITUTE('Raw Set and Haul Details'!D$41,".","")="5852",C$3="AUS"),"5852",IF(AND(ABS(C65)>=56,ABS(C65)<=62,D65>60,D65<=73.17),"5843a",IF(AND(ABS(C65)>=55,ABS(C65)<=64,D65>=73.17,D65<=86),"5843b",IF(AND(ABS(C65)>=55,D65>80,D65<=150),"5841",IF(AND(ABS(C65)<55,D65>80,D65<=150),"57",IF(AND(ABS(C65)>=60,ABS(C65)<=65,D65>=150,D65<180),"881",IF(AND(ABS(C65)>65,D65>=150,D65<180),"881",IF(AND(ABS(C65)>=60,D65>=(-180),D65<=(-170),ABS(C65)<=65),"881",IF(AND(ABS(C65)>65,D65>=(-180),D65<=(-170)),"881",IF(AND(ABS(C65)>=60,D65>(-170),D65<(-105)),"882",IF(AND(ABS(C65)>=60,D65>(-105),D65<(-70)),"883",IF(AND(ABS(C65)<60,D65>(-180),D65<(-110)),"81",IF(AND(ABS(C65)<60,D65<180,D65>=150),"81",IF(AND(ABS(C65)<60,D65>=(-110),D65<=(-50)),"87",IF(AND(ABS(C65)<=(53+(14/60)),ABS(C65)>=45,D65>60,D65<=70),"5851",IF(AND(ABS(C65)<(49+(24/60)),ABS(C65)>=45,D65>=70,D65<80),"5851",IF(AND(ABS(C65)>=(53+(14/60)),ABS(C65)<56,D65>=60,D65<=80),"5852","")))))))))))))))))))))))))))))))),"") -> 
B66: =IF('Raw Set and Haul Details'!$B66="","",'Raw Set and Haul Details'!$B66) ->  | C66: =IF(B66="","",IF('Raw Set and Haul Details'!$E66<0,-1*(ABS('Raw Set and Haul Details'!$E66)+('Raw Set and Haul Details'!$F66/60)),ABS('Raw Set and Haul Details'!$E66)+('Raw Set and Haul Details'!$F66/60))) ->  | D66: =IF(B66="","",IF('Raw Set and Haul Details'!$G66<0,-1*(ABS('Raw Set and Haul Details'!$G66)+('Raw Set and Haul Details'!$H66/60)),'Raw Set and Haul Details'!$G66+('Raw Set and Haul Details'!$H66/60))) ->  | E66: =IFERROR(IF(AND(ABS(C66)>=45,ABS(C66)<=50,D66>=30,D66<=44),"587",IF(AND(ABS(C66)>=45,ABS(C66)<=50,D66>=44,D66<=60),"586",IF(AND(ABS(C66)>=50,ABS(C66)<=62,D66>=30,D66<=43),"5844a",IF(AND(ABS(C66)>=50,ABS(C66)<=62,D66>=43,D66<=60),"5844b",IF(AND(ABS(C66)<=50,(D66)<=30,D66>=(-50)),"47",IF(AND(ABS(C66)<=45,D66>=30,D66<=80),"51",IF(AND(ABS(C66)>=62,D66>=30,D66<=80),"5842",IF(AND(ABS(C66)>=50,D66<=30,D66>=(-20)),"486",IF(AND(ABS(C66)>=50,ABS(C66)<=64,D66<=(-20),D66>=(-30)),"484",IF(AND(ABS(C66)>=50,ABS(C66)<=57,D66<=(-30),D66>=(-50)),"483",IF(AND(ABS(C66)>57,ABS(C66)<=64,D66<(-30),D66>=(-50)),"482",IF(AND(ABS(C66)>64,D66<=(-20),D66>(-60)),"485",IF(AND(ABS(C66)>=60,D66<=(-50),D66>=(-70)),"481",IF(AND(ABS(C66)<60,D66<=(-50),D66>=(-70)),"41",IF(AND(SUBSTITUTE('Raw Set and Haul Details'!D$41,".","")="5851",C$3="FRA"),"5851",IF(AND(SUBSTITUTE('Raw Set and Haul Details'!D$41,".","")="5852",C$3="AUS"),"5852",IF(AND(ABS(C66)>=56,ABS(C66)<=62,D66>60,D66<=73.17),"5843a",IF(AND(ABS(C66)>=55,ABS(C66)<=64,D66>=73.17,D66<=86),"5843b",IF(AND(ABS(C66)>=55,D66>80,D66<=150),"5841",IF(AND(ABS(C66)<55,D66>80,D66<=150),"57",IF(AND(ABS(C66)>=60,ABS(C66)<=65,D66>=150,D66<180),"881",IF(AND(ABS(C66)>65,D66>=150,D66<180),"881",IF(AND(ABS(C66)>=60,D66>=(-180),D66<=(-170),ABS(C66)<=65),"881",IF(AND(ABS(C66)>65,D66>=(-180),D66<=(-170)),"881",IF(AND(ABS(C66)>=60,D66>(-170),D66<(-105)),"882",IF(AND(ABS(C66)>=60,D66>(-105),D66<(-70)),"883",IF(AND(ABS(C66)<60,D66>(-180),D66<(-110)),"81",IF(AND(ABS(C66)<60,D66<180,D66>=150),"81",IF(AND(ABS(C66)<60,D66>=(-110),D66<=(-50)),"87",IF(AND(ABS(C66)<=(53+(14/60)),ABS(C66)>=45,D66>60,D66<=70),"5851",IF(AND(ABS(C66)<(49+(24/60)),ABS(C66)>=45,D66>=70,D66<80),"5851",IF(AND(ABS(C66)>=(53+(14/60)),ABS(C66)<56,D66>=60,D66<=80),"5852","")))))))))))))))))))))))))))))))),"") -> 
B67: =IF('Raw Set and Haul Details'!$B67="","",'Raw Set and Haul Details'!$B67) ->  | C67: =IF(B67="","",IF('Raw Set and Haul Details'!$E67<0,-1*(ABS('Raw Set and Haul Details'!$E67)+('Raw Set and Haul Details'!$F67/60)),ABS('Raw Set and Haul Details'!$E67)+('Raw Set and Haul Details'!$F67/60))) ->  | D67: =IF(B67="","",IF('Raw Set and Haul Details'!$G67<0,-1*(ABS('Raw Set and Haul Details'!$G67)+('Raw Set and Haul Details'!$H67/60)),'Raw Set and Haul Details'!$G67+('Raw Set and Haul Details'!$H67/60))) ->  | E67: =IFERROR(IF(AND(ABS(C67)>=45,ABS(C67)<=50,D67>=30,D67<=44),"587",IF(AND(ABS(C67)>=45,ABS(C67)<=50,D67>=44,D67<=60),"586",IF(AND(ABS(C67)>=50,ABS(C67)<=62,D67>=30,D67<=43),"5844a",IF(AND(ABS(C67)>=50,ABS(C67)<=62,D67>=43,D67<=60),"5844b",IF(AND(ABS(C67)<=50,(D67)<=30,D67>=(-50)),"47",IF(AND(ABS(C67)<=45,D67>=30,D67<=80),"51",IF(AND(ABS(C67)>=62,D67>=30,D67<=80),"5842",IF(AND(ABS(C67)>=50,D67<=30,D67>=(-20)),"486",IF(AND(ABS(C67)>=50,ABS(C67)<=64,D67<=(-20),D67>=(-30)),"484",IF(AND(ABS(C67)>=50,ABS(C67)<=57,D67<=(-30),D67>=(-50)),"483",IF(AND(ABS(C67)>57,ABS(C67)<=64,D67<(-30),D67>=(-50)),"482",IF(AND(ABS(C67)>64,D67<=(-20),D67>(-60)),"485",IF(AND(ABS(C67)>=60,D67<=(-50),D67>=(-70)),"481",IF(AND(ABS(C67)<60,D67<=(-50),D67>=(-70)),"41",IF(AND(SUBSTITUTE('Raw Set and Haul Details'!D$41,".","")="5851",C$3="FRA"),"5851",IF(AND(SUBSTITUTE('Raw Set and Haul Details'!D$41,".","")="5852",C$3="AUS"),"5852",IF(AND(ABS(C67)>=56,ABS(C67)<=62,D67>60,D67<=73.17),"5843a",IF(AND(ABS(C67)>=55,ABS(C67)<=64,D67>=73.17,D67<=86),"5843b",IF(AND(ABS(C67)>=55,D67>80,D67<=150),"5841",IF(AND(ABS(C67)<55,D67>80,D67<=150),"57",IF(AND(ABS(C67)>=60,ABS(C67)<=65,D67>=150,D67<180),"881",IF(AND(ABS(C67)>65,D67>=150,D67<180),"881",IF(AND(ABS(C67)>=60,D67>=(-180),D67<=(-170),ABS(C67)<=65),"881",IF(AND(ABS(C67)>65,D67>=(-180),D67<=(-170)),"881",IF(AND(ABS(C67)>=60,D67>(-170),D67<(-105)),"882",IF(AND(ABS(C67)>=60,D67>(-105),D67<(-70)),"883",IF(AND(ABS(C67)<60,D67>(-180),D67<(-110)),"81",IF(AND(ABS(C67)<60,D67<180,D67>=150),"81",IF(AND(ABS(C67)<60,D67>=(-110),D67<=(-50)),"87",IF(AND(ABS(C67)<=(53+(14/60)),ABS(C67)>=45,D67>60,D67<=70),"5851",IF(AND(ABS(C67)<(49+(24/60)),ABS(C67)>=45,D67>=70,D67<80),"5851",IF(AND(ABS(C67)>=(53+(14/60)),ABS(C67)<56,D67>=60,D67<=80),"5852","")))))))))))))))))))))))))))))))),"") -> 
B68: =IF('Raw Set and Haul Details'!$B68="","",'Raw Set and Haul Details'!$B68) ->  | C68: =IF(B68="","",IF('Raw Set and Haul Details'!$E68<0,-1*(ABS('Raw Set and Haul Details'!$E68)+('Raw Set and Haul Details'!$F68/60)),ABS('Raw Set and Haul Details'!$E68)+('Raw Set and Haul Details'!$F68/60))) ->  | D68: =IF(B68="","",IF('Raw Set and Haul Details'!$G68<0,-1*(ABS('Raw Set and Haul Details'!$G68)+('Raw Set and Haul Details'!$H68/60)),'Raw Set and Haul Details'!$G68+('Raw Set and Haul Details'!$H68/60))) ->  | E68: =IFERROR(IF(AND(ABS(C68)>=45,ABS(C68)<=50,D68>=30,D68<=44),"587",IF(AND(ABS(C68)>=45,ABS(C68)<=50,D68>=44,D68<=60),"586",IF(AND(ABS(C68)>=50,ABS(C68)<=62,D68>=30,D68<=43),"5844a",IF(AND(ABS(C68)>=50,ABS(C68)<=62,D68>=43,D68<=60),"5844b",IF(AND(ABS(C68)<=50,(D68)<=30,D68>=(-50)),"47",IF(AND(ABS(C68)<=45,D68>=30,D68<=80),"51",IF(AND(ABS(C68)>=62,D68>=30,D68<=80),"5842",IF(AND(ABS(C68)>=50,D68<=30,D68>=(-20)),"486",IF(AND(ABS(C68)>=50,ABS(C68)<=64,D68<=(-20),D68>=(-30)),"484",IF(AND(ABS(C68)>=50,ABS(C68)<=57,D68<=(-30),D68>=(-50)),"483",IF(AND(ABS(C68)>57,ABS(C68)<=64,D68<(-30),D68>=(-50)),"482",IF(AND(ABS(C68)>64,D68<=(-20),D68>(-60)),"485",IF(AND(ABS(C68)>=60,D68<=(-50),D68>=(-70)),"481",IF(AND(ABS(C68)<60,D68<=(-50),D68>=(-70)),"41",IF(AND(SUBSTITUTE('Raw Set and Haul Details'!D$41,".","")="5851",C$3="FRA"),"5851",IF(AND(SUBSTITUTE('Raw Set and Haul Details'!D$41,".","")="5852",C$3="AUS"),"5852",IF(AND(ABS(C68)>=56,ABS(C68)<=62,D68>60,D68<=73.17),"5843a",IF(AND(ABS(C68)>=55,ABS(C68)<=64,D68>=73.17,D68<=86),"5843b",IF(AND(ABS(C68)>=55,D68>80,D68<=150),"5841",IF(AND(ABS(C68)<55,D68>80,D68<=150),"57",IF(AND(ABS(C68)>=60,ABS(C68)<=65,D68>=150,D68<180),"881",IF(AND(ABS(C68)>65,D68>=150,D68<180),"881",IF(AND(ABS(C68)>=60,D68>=(-180),D68<=(-170),ABS(C68)<=65),"881",IF(AND(ABS(C68)>65,D68>=(-180),D68<=(-170)),"881",IF(AND(ABS(C68)>=60,D68>(-170),D68<(-105)),"882",IF(AND(ABS(C68)>=60,D68>(-105),D68<(-70)),"883",IF(AND(ABS(C68)<60,D68>(-180),D68<(-110)),"81",IF(AND(ABS(C68)<60,D68<180,D68>=150),"81",IF(AND(ABS(C68)<60,D68>=(-110),D68<=(-50)),"87",IF(AND(ABS(C68)<=(53+(14/60)),ABS(C68)>=45,D68>60,D68<=70),"5851",IF(AND(ABS(C68)<(49+(24/60)),ABS(C68)>=45,D68>=70,D68<80),"5851",IF(AND(ABS(C68)>=(53+(14/60)),ABS(C68)<56,D68>=60,D68<=80),"5852","")))))))))))))))))))))))))))))))),"") -> 
B69: =IF('Raw Set and Haul Details'!$B69="","",'Raw Set and Haul Details'!$B69) ->  | C69: =IF(B69="","",IF('Raw Set and Haul Details'!$E69<0,-1*(ABS('Raw Set and Haul Details'!$E69)+('Raw Set and Haul Details'!$F69/60)),ABS('Raw Set and Haul Details'!$E69)+('Raw Set and Haul Details'!$F69/60))) ->  | D69: =IF(B69="","",IF('Raw Set and Haul Details'!$G69<0,-1*(ABS('Raw Set and Haul Details'!$G69)+('Raw Set and Haul Details'!$H69/60)),'Raw Set and Haul Details'!$G69+('Raw Set and Haul Details'!$H69/60))) ->  | E69: =IFERROR(IF(AND(ABS(C69)>=45,ABS(C69)<=50,D69>=30,D69<=44),"587",IF(AND(ABS(C69)>=45,ABS(C69)<=50,D69>=44,D69<=60),"586",IF(AND(ABS(C69)>=50,ABS(C69)<=62,D69>=30,D69<=43),"5844a",IF(AND(ABS(C69)>=50,ABS(C69)<=62,D69>=43,D69<=60),"5844b",IF(AND(ABS(C69)<=50,(D69)<=30,D69>=(-50)),"47",IF(AND(ABS(C69)<=45,D69>=30,D69<=80),"51",IF(AND(ABS(C69)>=62,D69>=30,D69<=80),"5842",IF(AND(ABS(C69)>=50,D69<=30,D69>=(-20)),"486",IF(AND(ABS(C69)>=50,ABS(C69)<=64,D69<=(-20),D69>=(-30)),"484",IF(AND(ABS(C69)>=50,ABS(C69)<=57,D69<=(-30),D69>=(-50)),"483",IF(AND(ABS(C69)>57,ABS(C69)<=64,D69<(-30),D69>=(-50)),"482",IF(AND(ABS(C69)>64,D69<=(-20),D69>(-60)),"485",IF(AND(ABS(C69)>=60,D69<=(-50),D69>=(-70)),"481",IF(AND(ABS(C69)<60,D69<=(-50),D69>=(-70)),"41",IF(AND(SUBSTITUTE('Raw Set and Haul Details'!D$41,".","")="5851",C$3="FRA"),"5851",IF(AND(SUBSTITUTE('Raw Set and Haul Details'!D$41,".","")="5852",C$3="AUS"),"5852",IF(AND(ABS(C69)>=56,ABS(C69)<=62,D69>60,D69<=73.17),"5843a",IF(AND(ABS(C69)>=55,ABS(C69)<=64,D69>=73.17,D69<=86),"5843b",IF(AND(ABS(C69)>=55,D69>80,D69<=150),"5841",IF(AND(ABS(C69)<55,D69>80,D69<=150),"57",IF(AND(ABS(C69)>=60,ABS(C69)<=65,D69>=150,D69<180),"881",IF(AND(ABS(C69)>65,D69>=150,D69<180),"881",IF(AND(ABS(C69)>=60,D69>=(-180),D69<=(-170),ABS(C69)<=65),"881",IF(AND(ABS(C69)>65,D69>=(-180),D69<=(-170)),"881",IF(AND(ABS(C69)>=60,D69>(-170),D69<(-105)),"882",IF(AND(ABS(C69)>=60,D69>(-105),D69<(-70)),"883",IF(AND(ABS(C69)<60,D69>(-180),D69<(-110)),"81",IF(AND(ABS(C69)<60,D69<180,D69>=150),"81",IF(AND(ABS(C69)<60,D69>=(-110),D69<=(-50)),"87",IF(AND(ABS(C69)<=(53+(14/60)),ABS(C69)>=45,D69>60,D69<=70),"5851",IF(AND(ABS(C69)<(49+(24/60)),ABS(C69)>=45,D69>=70,D69<80),"5851",IF(AND(ABS(C69)>=(53+(14/60)),ABS(C69)<56,D69>=60,D69<=80),"5852","")))))))))))))))))))))))))))))))),"") -> 
B70: =IF('Raw Set and Haul Details'!$B70="","",'Raw Set and Haul Details'!$B70) ->  | C70: =IF(B70="","",IF('Raw Set and Haul Details'!$E70<0,-1*(ABS('Raw Set and Haul Details'!$E70)+('Raw Set and Haul Details'!$F70/60)),ABS('Raw Set and Haul Details'!$E70)+('Raw Set and Haul Details'!$F70/60))) ->  | D70: =IF(B70="","",IF('Raw Set and Haul Details'!$G70<0,-1*(ABS('Raw Set and Haul Details'!$G70)+('Raw Set and Haul Details'!$H70/60)),'Raw Set and Haul Details'!$G70+('Raw Set and Haul Details'!$H70/60))) ->  | E70: =IFERROR(IF(AND(ABS(C70)>=45,ABS(C70)<=50,D70>=30,D70<=44),"587",IF(AND(ABS(C70)>=45,ABS(C70)<=50,D70>=44,D70<=60),"586",IF(AND(ABS(C70)>=50,ABS(C70)<=62,D70>=30,D70<=43),"5844a",IF(AND(ABS(C70)>=50,ABS(C70)<=62,D70>=43,D70<=60),"5844b",IF(AND(ABS(C70)<=50,(D70)<=30,D70>=(-50)),"47",IF(AND(ABS(C70)<=45,D70>=30,D70<=80),"51",IF(AND(ABS(C70)>=62,D70>=30,D70<=80),"5842",IF(AND(ABS(C70)>=50,D70<=30,D70>=(-20)),"486",IF(AND(ABS(C70)>=50,ABS(C70)<=64,D70<=(-20),D70>=(-30)),"484",IF(AND(ABS(C70)>=50,ABS(C70)<=57,D70<=(-30),D70>=(-50)),"483",IF(AND(ABS(C70)>57,ABS(C70)<=64,D70<(-30),D70>=(-50)),"482",IF(AND(ABS(C70)>64,D70<=(-20),D70>(-60)),"485",IF(AND(ABS(C70)>=60,D70<=(-50),D70>=(-70)),"481",IF(AND(ABS(C70)<60,D70<=(-50),D70>=(-70)),"41",IF(AND(SUBSTITUTE('Raw Set and Haul Details'!D$41,".","")="5851",C$3="FRA"),"5851",IF(AND(SUBSTITUTE('Raw Set and Haul Details'!D$41,".","")="5852",C$3="AUS"),"5852",IF(AND(ABS(C70)>=56,ABS(C70)<=62,D70>60,D70<=73.17),"5843a",IF(AND(ABS(C70)>=55,ABS(C70)<=64,D70>=73.17,D70<=86),"5843b",IF(AND(ABS(C70)>=55,D70>80,D70<=150),"5841",IF(AND(ABS(C70)<55,D70>80,D70<=150),"57",IF(AND(ABS(C70)>=60,ABS(C70)<=65,D70>=150,D70<180),"881",IF(AND(ABS(C70)>65,D70>=150,D70<180),"881",IF(AND(ABS(C70)>=60,D70>=(-180),D70<=(-170),ABS(C70)<=65),"881",IF(AND(ABS(C70)>65,D70>=(-180),D70<=(-170)),"881",IF(AND(ABS(C70)>=60,D70>(-170),D70<(-105)),"882",IF(AND(ABS(C70)>=60,D70>(-105),D70<(-70)),"883",IF(AND(ABS(C70)<60,D70>(-180),D70<(-110)),"81",IF(AND(ABS(C70)<60,D70<180,D70>=150),"81",IF(AND(ABS(C70)<60,D70>=(-110),D70<=(-50)),"87",IF(AND(ABS(C70)<=(53+(14/60)),ABS(C70)>=45,D70>60,D70<=70),"5851",IF(AND(ABS(C70)<(49+(24/60)),ABS(C70)>=45,D70>=70,D70<80),"5851",IF(AND(ABS(C70)>=(53+(14/60)),ABS(C70)<56,D70>=60,D70<=80),"5852","")))))))))))))))))))))))))))))))),"") -> 
B71: =IF('Raw Set and Haul Details'!$B71="","",'Raw Set and Haul Details'!$B71) ->  | C71: =IF(B71="","",IF('Raw Set and Haul Details'!$E71<0,-1*(ABS('Raw Set and Haul Details'!$E71)+('Raw Set and Haul Details'!$F71/60)),ABS('Raw Set and Haul Details'!$E71)+('Raw Set and Haul Details'!$F71/60))) ->  | D71: =IF(B71="","",IF('Raw Set and Haul Details'!$G71<0,-1*(ABS('Raw Set and Haul Details'!$G71)+('Raw Set and Haul Details'!$H71/60)),'Raw Set and Haul Details'!$G71+('Raw Set and Haul Details'!$H71/60))) ->  | E71: =IFERROR(IF(AND(ABS(C71)>=45,ABS(C71)<=50,D71>=30,D71<=44),"587",IF(AND(ABS(C71)>=45,ABS(C71)<=50,D71>=44,D71<=60),"586",IF(AND(ABS(C71)>=50,ABS(C71)<=62,D71>=30,D71<=43),"5844a",IF(AND(ABS(C71)>=50,ABS(C71)<=62,D71>=43,D71<=60),"5844b",IF(AND(ABS(C71)<=50,(D71)<=30,D71>=(-50)),"47",IF(AND(ABS(C71)<=45,D71>=30,D71<=80),"51",IF(AND(ABS(C71)>=62,D71>=30,D71<=80),"5842",IF(AND(ABS(C71)>=50,D71<=30,D71>=(-20)),"486",IF(AND(ABS(C71)>=50,ABS(C71)<=64,D71<=(-20),D71>=(-30)),"484",IF(AND(ABS(C71)>=50,ABS(C71)<=57,D71<=(-30),D71>=(-50)),"483",IF(AND(ABS(C71)>57,ABS(C71)<=64,D71<(-30),D71>=(-50)),"482",IF(AND(ABS(C71)>64,D71<=(-20),D71>(-60)),"485",IF(AND(ABS(C71)>=60,D71<=(-50),D71>=(-70)),"481",IF(AND(ABS(C71)<60,D71<=(-50),D71>=(-70)),"41",IF(AND(SUBSTITUTE('Raw Set and Haul Details'!D$41,".","")="5851",C$3="FRA"),"5851",IF(AND(SUBSTITUTE('Raw Set and Haul Details'!D$41,".","")="5852",C$3="AUS"),"5852",IF(AND(ABS(C71)>=56,ABS(C71)<=62,D71>60,D71<=73.17),"5843a",IF(AND(ABS(C71)>=55,ABS(C71)<=64,D71>=73.17,D71<=86),"5843b",IF(AND(ABS(C71)>=55,D71>80,D71<=150),"5841",IF(AND(ABS(C71)<55,D71>80,D71<=150),"57",IF(AND(ABS(C71)>=60,ABS(C71)<=65,D71>=150,D71<180),"881",IF(AND(ABS(C71)>65,D71>=150,D71<180),"881",IF(AND(ABS(C71)>=60,D71>=(-180),D71<=(-170),ABS(C71)<=65),"881",IF(AND(ABS(C71)>65,D71>=(-180),D71<=(-170)),"881",IF(AND(ABS(C71)>=60,D71>(-170),D71<(-105)),"882",IF(AND(ABS(C71)>=60,D71>(-105),D71<(-70)),"883",IF(AND(ABS(C71)<60,D71>(-180),D71<(-110)),"81",IF(AND(ABS(C71)<60,D71<180,D71>=150),"81",IF(AND(ABS(C71)<60,D71>=(-110),D71<=(-50)),"87",IF(AND(ABS(C71)<=(53+(14/60)),ABS(C71)>=45,D71>60,D71<=70),"5851",IF(AND(ABS(C71)<(49+(24/60)),ABS(C71)>=45,D71>=70,D71<80),"5851",IF(AND(ABS(C71)>=(53+(14/60)),ABS(C71)<56,D71>=60,D71<=80),"5852","")))))))))))))))))))))))))))))))),"") -> 
B72: =IF('Raw Set and Haul Details'!$B72="","",'Raw Set and Haul Details'!$B72) ->  | C72: =IF(B72="","",IF('Raw Set and Haul Details'!$E72<0,-1*(ABS('Raw Set and Haul Details'!$E72)+('Raw Set and Haul Details'!$F72/60)),ABS('Raw Set and Haul Details'!$E72)+('Raw Set and Haul Details'!$F72/60))) ->  | D72: =IF(B72="","",IF('Raw Set and Haul Details'!$G72<0,-1*(ABS('Raw Set and Haul Details'!$G72)+('Raw Set and Haul Details'!$H72/60)),'Raw Set and Haul Details'!$G72+('Raw Set and Haul Details'!$H72/60))) ->  | E72: =IFERROR(IF(AND(ABS(C72)>=45,ABS(C72)<=50,D72>=30,D72<=44),"587",IF(AND(ABS(C72)>=45,ABS(C72)<=50,D72>=44,D72<=60),"586",IF(AND(ABS(C72)>=50,ABS(C72)<=62,D72>=30,D72<=43),"5844a",IF(AND(ABS(C72)>=50,ABS(C72)<=62,D72>=43,D72<=60),"5844b",IF(AND(ABS(C72)<=50,(D72)<=30,D72>=(-50)),"47",IF(AND(ABS(C72)<=45,D72>=30,D72<=80),"51",IF(AND(ABS(C72)>=62,D72>=30,D72<=80),"5842",IF(AND(ABS(C72)>=50,D72<=30,D72>=(-20)),"486",IF(AND(ABS(C72)>=50,ABS(C72)<=64,D72<=(-20),D72>=(-30)),"484",IF(AND(ABS(C72)>=50,ABS(C72)<=57,D72<=(-30),D72>=(-50)),"483",IF(AND(ABS(C72)>57,ABS(C72)<=64,D72<(-30),D72>=(-50)),"482",IF(AND(ABS(C72)>64,D72<=(-20),D72>(-60)),"485",IF(AND(ABS(C72)>=60,D72<=(-50),D72>=(-70)),"481",IF(AND(ABS(C72)<60,D72<=(-50),D72>=(-70)),"41",IF(AND(SUBSTITUTE('Raw Set and Haul Details'!D$41,".","")="5851",C$3="FRA"),"5851",IF(AND(SUBSTITUTE('Raw Set and Haul Details'!D$41,".","")="5852",C$3="AUS"),"5852",IF(AND(ABS(C72)>=56,ABS(C72)<=62,D72>60,D72<=73.17),"5843a",IF(AND(ABS(C72)>=55,ABS(C72)<=64,D72>=73.17,D72<=86),"5843b",IF(AND(ABS(C72)>=55,D72>80,D72<=150),"5841",IF(AND(ABS(C72)<55,D72>80,D72<=150),"57",IF(AND(ABS(C72)>=60,ABS(C72)<=65,D72>=150,D72<180),"881",IF(AND(ABS(C72)>65,D72>=150,D72<180),"881",IF(AND(ABS(C72)>=60,D72>=(-180),D72<=(-170),ABS(C72)<=65),"881",IF(AND(ABS(C72)>65,D72>=(-180),D72<=(-170)),"881",IF(AND(ABS(C72)>=60,D72>(-170),D72<(-105)),"882",IF(AND(ABS(C72)>=60,D72>(-105),D72<(-70)),"883",IF(AND(ABS(C72)<60,D72>(-180),D72<(-110)),"81",IF(AND(ABS(C72)<60,D72<180,D72>=150),"81",IF(AND(ABS(C72)<60,D72>=(-110),D72<=(-50)),"87",IF(AND(ABS(C72)<=(53+(14/60)),ABS(C72)>=45,D72>60,D72<=70),"5851",IF(AND(ABS(C72)<(49+(24/60)),ABS(C72)>=45,D72>=70,D72<80),"5851",IF(AND(ABS(C72)>=(53+(14/60)),ABS(C72)<56,D72>=60,D72<=80),"5852","")))))))))))))))))))))))))))))))),"") -> 
B73: =IF('Raw Set and Haul Details'!$B73="","",'Raw Set and Haul Details'!$B73) ->  | C73: =IF(B73="","",IF('Raw Set and Haul Details'!$E73<0,-1*(ABS('Raw Set and Haul Details'!$E73)+('Raw Set and Haul Details'!$F73/60)),ABS('Raw Set and Haul Details'!$E73)+('Raw Set and Haul Details'!$F73/60))) ->  | D73: =IF(B73="","",IF('Raw Set and Haul Details'!$G73<0,-1*(ABS('Raw Set and Haul Details'!$G73)+('Raw Set and Haul Details'!$H73/60)),'Raw Set and Haul Details'!$G73+('Raw Set and Haul Details'!$H73/60))) ->  | E73: =IFERROR(IF(AND(ABS(C73)>=45,ABS(C73)<=50,D73>=30,D73<=44),"587",IF(AND(ABS(C73)>=45,ABS(C73)<=50,D73>=44,D73<=60),"586",IF(AND(ABS(C73)>=50,ABS(C73)<=62,D73>=30,D73<=43),"5844a",IF(AND(ABS(C73)>=50,ABS(C73)<=62,D73>=43,D73<=60),"5844b",IF(AND(ABS(C73)<=50,(D73)<=30,D73>=(-50)),"47",IF(AND(ABS(C73)<=45,D73>=30,D73<=80),"51",IF(AND(ABS(C73)>=62,D73>=30,D73<=80),"5842",IF(AND(ABS(C73)>=50,D73<=30,D73>=(-20)),"486",IF(AND(ABS(C73)>=50,ABS(C73)<=64,D73<=(-20),D73>=(-30)),"484",IF(AND(ABS(C73)>=50,ABS(C73)<=57,D73<=(-30),D73>=(-50)),"483",IF(AND(ABS(C73)>57,ABS(C73)<=64,D73<(-30),D73>=(-50)),"482",IF(AND(ABS(C73)>64,D73<=(-20),D73>(-60)),"485",IF(AND(ABS(C73)>=60,D73<=(-50),D73>=(-70)),"481",IF(AND(ABS(C73)<60,D73<=(-50),D73>=(-70)),"41",IF(AND(SUBSTITUTE('Raw Set and Haul Details'!D$41,".","")="5851",C$3="FRA"),"5851",IF(AND(SUBSTITUTE('Raw Set and Haul Details'!D$41,".","")="5852",C$3="AUS"),"5852",IF(AND(ABS(C73)>=56,ABS(C73)<=62,D73>60,D73<=73.17),"5843a",IF(AND(ABS(C73)>=55,ABS(C73)<=64,D73>=73.17,D73<=86),"5843b",IF(AND(ABS(C73)>=55,D73>80,D73<=150),"5841",IF(AND(ABS(C73)<55,D73>80,D73<=150),"57",IF(AND(ABS(C73)>=60,ABS(C73)<=65,D73>=150,D73<180),"881",IF(AND(ABS(C73)>65,D73>=150,D73<180),"881",IF(AND(ABS(C73)>=60,D73>=(-180),D73<=(-170),ABS(C73)<=65),"881",IF(AND(ABS(C73)>65,D73>=(-180),D73<=(-170)),"881",IF(AND(ABS(C73)>=60,D73>(-170),D73<(-105)),"882",IF(AND(ABS(C73)>=60,D73>(-105),D73<(-70)),"883",IF(AND(ABS(C73)<60,D73>(-180),D73<(-110)),"81",IF(AND(ABS(C73)<60,D73<180,D73>=150),"81",IF(AND(ABS(C73)<60,D73>=(-110),D73<=(-50)),"87",IF(AND(ABS(C73)<=(53+(14/60)),ABS(C73)>=45,D73>60,D73<=70),"5851",IF(AND(ABS(C73)<(49+(24/60)),ABS(C73)>=45,D73>=70,D73<80),"5851",IF(AND(ABS(C73)>=(53+(14/60)),ABS(C73)<56,D73>=60,D73<=80),"5852","")))))))))))))))))))))))))))))))),"") -> 
B74: =IF('Raw Set and Haul Details'!$B74="","",'Raw Set and Haul Details'!$B74) ->  | C74: =IF(B74="","",IF('Raw Set and Haul Details'!$E74<0,-1*(ABS('Raw Set and Haul Details'!$E74)+('Raw Set and Haul Details'!$F74/60)),ABS('Raw Set and Haul Details'!$E74)+('Raw Set and Haul Details'!$F74/60))) ->  | D74: =IF(B74="","",IF('Raw Set and Haul Details'!$G74<0,-1*(ABS('Raw Set and Haul Details'!$G74)+('Raw Set and Haul Details'!$H74/60)),'Raw Set and Haul Details'!$G74+('Raw Set and Haul Details'!$H74/60))) ->  | E74: =IFERROR(IF(AND(ABS(C74)>=45,ABS(C74)<=50,D74>=30,D74<=44),"587",IF(AND(ABS(C74)>=45,ABS(C74)<=50,D74>=44,D74<=60),"586",IF(AND(ABS(C74)>=50,ABS(C74)<=62,D74>=30,D74<=43),"5844a",IF(AND(ABS(C74)>=50,ABS(C74)<=62,D74>=43,D74<=60),"5844b",IF(AND(ABS(C74)<=50,(D74)<=30,D74>=(-50)),"47",IF(AND(ABS(C74)<=45,D74>=30,D74<=80),"51",IF(AND(ABS(C74)>=62,D74>=30,D74<=80),"5842",IF(AND(ABS(C74)>=50,D74<=30,D74>=(-20)),"486",IF(AND(ABS(C74)>=50,ABS(C74)<=64,D74<=(-20),D74>=(-30)),"484",IF(AND(ABS(C74)>=50,ABS(C74)<=57,D74<=(-30),D74>=(-50)),"483",IF(AND(ABS(C74)>57,ABS(C74)<=64,D74<(-30),D74>=(-50)),"482",IF(AND(ABS(C74)>64,D74<=(-20),D74>(-60)),"485",IF(AND(ABS(C74)>=60,D74<=(-50),D74>=(-70)),"481",IF(AND(ABS(C74)<60,D74<=(-50),D74>=(-70)),"41",IF(AND(SUBSTITUTE('Raw Set and Haul Details'!D$41,".","")="5851",C$3="FRA"),"5851",IF(AND(SUBSTITUTE('Raw Set and Haul Details'!D$41,".","")="5852",C$3="AUS"),"5852",IF(AND(ABS(C74)>=56,ABS(C74)<=62,D74>60,D74<=73.17),"5843a",IF(AND(ABS(C74)>=55,ABS(C74)<=64,D74>=73.17,D74<=86),"5843b",IF(AND(ABS(C74)>=55,D74>80,D74<=150),"5841",IF(AND(ABS(C74)<55,D74>80,D74<=150),"57",IF(AND(ABS(C74)>=60,ABS(C74)<=65,D74>=150,D74<180),"881",IF(AND(ABS(C74)>65,D74>=150,D74<180),"881",IF(AND(ABS(C74)>=60,D74>=(-180),D74<=(-170),ABS(C74)<=65),"881",IF(AND(ABS(C74)>65,D74>=(-180),D74<=(-170)),"881",IF(AND(ABS(C74)>=60,D74>(-170),D74<(-105)),"882",IF(AND(ABS(C74)>=60,D74>(-105),D74<(-70)),"883",IF(AND(ABS(C74)<60,D74>(-180),D74<(-110)),"81",IF(AND(ABS(C74)<60,D74<180,D74>=150),"81",IF(AND(ABS(C74)<60,D74>=(-110),D74<=(-50)),"87",IF(AND(ABS(C74)<=(53+(14/60)),ABS(C74)>=45,D74>60,D74<=70),"5851",IF(AND(ABS(C74)<(49+(24/60)),ABS(C74)>=45,D74>=70,D74<80),"5851",IF(AND(ABS(C74)>=(53+(14/60)),ABS(C74)<56,D74>=60,D74<=80),"5852","")))))))))))))))))))))))))))))))),"") -> 
B75: =IF('Raw Set and Haul Details'!$B75="","",'Raw Set and Haul Details'!$B75) ->  | C75: =IF(B75="","",IF('Raw Set and Haul Details'!$E75<0,-1*(ABS('Raw Set and Haul Details'!$E75)+('Raw Set and Haul Details'!$F75/60)),ABS('Raw Set and Haul Details'!$E75)+('Raw Set and Haul Details'!$F75/60))) ->  | D75: =IF(B75="","",IF('Raw Set and Haul Details'!$G75<0,-1*(ABS('Raw Set and Haul Details'!$G75)+('Raw Set and Haul Details'!$H75/60)),'Raw Set and Haul Details'!$G75+('Raw Set and Haul Details'!$H75/60))) ->  | E75: =IFERROR(IF(AND(ABS(C75)>=45,ABS(C75)<=50,D75>=30,D75<=44),"587",IF(AND(ABS(C75)>=45,ABS(C75)<=50,D75>=44,D75<=60),"586",IF(AND(ABS(C75)>=50,ABS(C75)<=62,D75>=30,D75<=43),"5844a",IF(AND(ABS(C75)>=50,ABS(C75)<=62,D75>=43,D75<=60),"5844b",IF(AND(ABS(C75)<=50,(D75)<=30,D75>=(-50)),"47",IF(AND(ABS(C75)<=45,D75>=30,D75<=80),"51",IF(AND(ABS(C75)>=62,D75>=30,D75<=80),"5842",IF(AND(ABS(C75)>=50,D75<=30,D75>=(-20)),"486",IF(AND(ABS(C75)>=50,ABS(C75)<=64,D75<=(-20),D75>=(-30)),"484",IF(AND(ABS(C75)>=50,ABS(C75)<=57,D75<=(-30),D75>=(-50)),"483",IF(AND(ABS(C75)>57,ABS(C75)<=64,D75<(-30),D75>=(-50)),"482",IF(AND(ABS(C75)>64,D75<=(-20),D75>(-60)),"485",IF(AND(ABS(C75)>=60,D75<=(-50),D75>=(-70)),"481",IF(AND(ABS(C75)<60,D75<=(-50),D75>=(-70)),"41",IF(AND(SUBSTITUTE('Raw Set and Haul Details'!D$41,".","")="5851",C$3="FRA"),"5851",IF(AND(SUBSTITUTE('Raw Set and Haul Details'!D$41,".","")="5852",C$3="AUS"),"5852",IF(AND(ABS(C75)>=56,ABS(C75)<=62,D75>60,D75<=73.17),"5843a",IF(AND(ABS(C75)>=55,ABS(C75)<=64,D75>=73.17,D75<=86),"5843b",IF(AND(ABS(C75)>=55,D75>80,D75<=150),"5841",IF(AND(ABS(C75)<55,D75>80,D75<=150),"57",IF(AND(ABS(C75)>=60,ABS(C75)<=65,D75>=150,D75<180),"881",IF(AND(ABS(C75)>65,D75>=150,D75<180),"881",IF(AND(ABS(C75)>=60,D75>=(-180),D75<=(-170),ABS(C75)<=65),"881",IF(AND(ABS(C75)>65,D75>=(-180),D75<=(-170)),"881",IF(AND(ABS(C75)>=60,D75>(-170),D75<(-105)),"882",IF(AND(ABS(C75)>=60,D75>(-105),D75<(-70)),"883",IF(AND(ABS(C75)<60,D75>(-180),D75<(-110)),"81",IF(AND(ABS(C75)<60,D75<180,D75>=150),"81",IF(AND(ABS(C75)<60,D75>=(-110),D75<=(-50)),"87",IF(AND(ABS(C75)<=(53+(14/60)),ABS(C75)>=45,D75>60,D75<=70),"5851",IF(AND(ABS(C75)<(49+(24/60)),ABS(C75)>=45,D75>=70,D75<80),"5851",IF(AND(ABS(C75)>=(53+(14/60)),ABS(C75)<56,D75>=60,D75<=80),"5852","")))))))))))))))))))))))))))))))),"") -> 
B76: =IF('Raw Set and Haul Details'!$B76="","",'Raw Set and Haul Details'!$B76) ->  | C76: =IF(B76="","",IF('Raw Set and Haul Details'!$E76<0,-1*(ABS('Raw Set and Haul Details'!$E76)+('Raw Set and Haul Details'!$F76/60)),ABS('Raw Set and Haul Details'!$E76)+('Raw Set and Haul Details'!$F76/60))) ->  | D76: =IF(B76="","",IF('Raw Set and Haul Details'!$G76<0,-1*(ABS('Raw Set and Haul Details'!$G76)+('Raw Set and Haul Details'!$H76/60)),'Raw Set and Haul Details'!$G76+('Raw Set and Haul Details'!$H76/60))) ->  | E76: =IFERROR(IF(AND(ABS(C76)>=45,ABS(C76)<=50,D76>=30,D76<=44),"587",IF(AND(ABS(C76)>=45,ABS(C76)<=50,D76>=44,D76<=60),"586",IF(AND(ABS(C76)>=50,ABS(C76)<=62,D76>=30,D76<=43),"5844a",IF(AND(ABS(C76)>=50,ABS(C76)<=62,D76>=43,D76<=60),"5844b",IF(AND(ABS(C76)<=50,(D76)<=30,D76>=(-50)),"47",IF(AND(ABS(C76)<=45,D76>=30,D76<=80),"51",IF(AND(ABS(C76)>=62,D76>=30,D76<=80),"5842",IF(AND(ABS(C76)>=50,D76<=30,D76>=(-20)),"486",IF(AND(ABS(C76)>=50,ABS(C76)<=64,D76<=(-20),D76>=(-30)),"484",IF(AND(ABS(C76)>=50,ABS(C76)<=57,D76<=(-30),D76>=(-50)),"483",IF(AND(ABS(C76)>57,ABS(C76)<=64,D76<(-30),D76>=(-50)),"482",IF(AND(ABS(C76)>64,D76<=(-20),D76>(-60)),"485",IF(AND(ABS(C76)>=60,D76<=(-50),D76>=(-70)),"481",IF(AND(ABS(C76)<60,D76<=(-50),D76>=(-70)),"41",IF(AND(SUBSTITUTE('Raw Set and Haul Details'!D$41,".","")="5851",C$3="FRA"),"5851",IF(AND(SUBSTITUTE('Raw Set and Haul Details'!D$41,".","")="5852",C$3="AUS"),"5852",IF(AND(ABS(C76)>=56,ABS(C76)<=62,D76>60,D76<=73.17),"5843a",IF(AND(ABS(C76)>=55,ABS(C76)<=64,D76>=73.17,D76<=86),"5843b",IF(AND(ABS(C76)>=55,D76>80,D76<=150),"5841",IF(AND(ABS(C76)<55,D76>80,D76<=150),"57",IF(AND(ABS(C76)>=60,ABS(C76)<=65,D76>=150,D76<180),"881",IF(AND(ABS(C76)>65,D76>=150,D76<180),"881",IF(AND(ABS(C76)>=60,D76>=(-180),D76<=(-170),ABS(C76)<=65),"881",IF(AND(ABS(C76)>65,D76>=(-180),D76<=(-170)),"881",IF(AND(ABS(C76)>=60,D76>(-170),D76<(-105)),"882",IF(AND(ABS(C76)>=60,D76>(-105),D76<(-70)),"883",IF(AND(ABS(C76)<60,D76>(-180),D76<(-110)),"81",IF(AND(ABS(C76)<60,D76<180,D76>=150),"81",IF(AND(ABS(C76)<60,D76>=(-110),D76<=(-50)),"87",IF(AND(ABS(C76)<=(53+(14/60)),ABS(C76)>=45,D76>60,D76<=70),"5851",IF(AND(ABS(C76)<(49+(24/60)),ABS(C76)>=45,D76>=70,D76<80),"5851",IF(AND(ABS(C76)>=(53+(14/60)),ABS(C76)<56,D76>=60,D76<=80),"5852","")))))))))))))))))))))))))))))))),"") -> 
B77: =IF('Raw Set and Haul Details'!$B77="","",'Raw Set and Haul Details'!$B77) ->  | C77: =IF(B77="","",IF('Raw Set and Haul Details'!$E77<0,-1*(ABS('Raw Set and Haul Details'!$E77)+('Raw Set and Haul Details'!$F77/60)),ABS('Raw Set and Haul Details'!$E77)+('Raw Set and Haul Details'!$F77/60))) ->  | D77: =IF(B77="","",IF('Raw Set and Haul Details'!$G77<0,-1*(ABS('Raw Set and Haul Details'!$G77)+('Raw Set and Haul Details'!$H77/60)),'Raw Set and Haul Details'!$G77+('Raw Set and Haul Details'!$H77/60))) ->  | E77: =IFERROR(IF(AND(ABS(C77)>=45,ABS(C77)<=50,D77>=30,D77<=44),"587",IF(AND(ABS(C77)>=45,ABS(C77)<=50,D77>=44,D77<=60),"586",IF(AND(ABS(C77)>=50,ABS(C77)<=62,D77>=30,D77<=43),"5844a",IF(AND(ABS(C77)>=50,ABS(C77)<=62,D77>=43,D77<=60),"5844b",IF(AND(ABS(C77)<=50,(D77)<=30,D77>=(-50)),"47",IF(AND(ABS(C77)<=45,D77>=30,D77<=80),"51",IF(AND(ABS(C77)>=62,D77>=30,D77<=80),"5842",IF(AND(ABS(C77)>=50,D77<=30,D77>=(-20)),"486",IF(AND(ABS(C77)>=50,ABS(C77)<=64,D77<=(-20),D77>=(-30)),"484",IF(AND(ABS(C77)>=50,ABS(C77)<=57,D77<=(-30),D77>=(-50)),"483",IF(AND(ABS(C77)>57,ABS(C77)<=64,D77<(-30),D77>=(-50)),"482",IF(AND(ABS(C77)>64,D77<=(-20),D77>(-60)),"485",IF(AND(ABS(C77)>=60,D77<=(-50),D77>=(-70)),"481",IF(AND(ABS(C77)<60,D77<=(-50),D77>=(-70)),"41",IF(AND(SUBSTITUTE('Raw Set and Haul Details'!D$41,".","")="5851",C$3="FRA"),"5851",IF(AND(SUBSTITUTE('Raw Set and Haul Details'!D$41,".","")="5852",C$3="AUS"),"5852",IF(AND(ABS(C77)>=56,ABS(C77)<=62,D77>60,D77<=73.17),"5843a",IF(AND(ABS(C77)>=55,ABS(C77)<=64,D77>=73.17,D77<=86),"5843b",IF(AND(ABS(C77)>=55,D77>80,D77<=150),"5841",IF(AND(ABS(C77)<55,D77>80,D77<=150),"57",IF(AND(ABS(C77)>=60,ABS(C77)<=65,D77>=150,D77<180),"881",IF(AND(ABS(C77)>65,D77>=150,D77<180),"881",IF(AND(ABS(C77)>=60,D77>=(-180),D77<=(-170),ABS(C77)<=65),"881",IF(AND(ABS(C77)>65,D77>=(-180),D77<=(-170)),"881",IF(AND(ABS(C77)>=60,D77>(-170),D77<(-105)),"882",IF(AND(ABS(C77)>=60,D77>(-105),D77<(-70)),"883",IF(AND(ABS(C77)<60,D77>(-180),D77<(-110)),"81",IF(AND(ABS(C77)<60,D77<180,D77>=150),"81",IF(AND(ABS(C77)<60,D77>=(-110),D77<=(-50)),"87",IF(AND(ABS(C77)<=(53+(14/60)),ABS(C77)>=45,D77>60,D77<=70),"5851",IF(AND(ABS(C77)<(49+(24/60)),ABS(C77)>=45,D77>=70,D77<80),"5851",IF(AND(ABS(C77)>=(53+(14/60)),ABS(C77)<56,D77>=60,D77<=80),"5852","")))))))))))))))))))))))))))))))),"") -> 
B78: =IF('Raw Set and Haul Details'!$B78="","",'Raw Set and Haul Details'!$B78) ->  | C78: =IF(B78="","",IF('Raw Set and Haul Details'!$E78<0,-1*(ABS('Raw Set and Haul Details'!$E78)+('Raw Set and Haul Details'!$F78/60)),ABS('Raw Set and Haul Details'!$E78)+('Raw Set and Haul Details'!$F78/60))) ->  | D78: =IF(B78="","",IF('Raw Set and Haul Details'!$G78<0,-1*(ABS('Raw Set and Haul Details'!$G78)+('Raw Set and Haul Details'!$H78/60)),'Raw Set and Haul Details'!$G78+('Raw Set and Haul Details'!$H78/60))) ->  | E78: =IFERROR(IF(AND(ABS(C78)>=45,ABS(C78)<=50,D78>=30,D78<=44),"587",IF(AND(ABS(C78)>=45,ABS(C78)<=50,D78>=44,D78<=60),"586",IF(AND(ABS(C78)>=50,ABS(C78)<=62,D78>=30,D78<=43),"5844a",IF(AND(ABS(C78)>=50,ABS(C78)<=62,D78>=43,D78<=60),"5844b",IF(AND(ABS(C78)<=50,(D78)<=30,D78>=(-50)),"47",IF(AND(ABS(C78)<=45,D78>=30,D78<=80),"51",IF(AND(ABS(C78)>=62,D78>=30,D78<=80),"5842",IF(AND(ABS(C78)>=50,D78<=30,D78>=(-20)),"486",IF(AND(ABS(C78)>=50,ABS(C78)<=64,D78<=(-20),D78>=(-30)),"484",IF(AND(ABS(C78)>=50,ABS(C78)<=57,D78<=(-30),D78>=(-50)),"483",IF(AND(ABS(C78)>57,ABS(C78)<=64,D78<(-30),D78>=(-50)),"482",IF(AND(ABS(C78)>64,D78<=(-20),D78>(-60)),"485",IF(AND(ABS(C78)>=60,D78<=(-50),D78>=(-70)),"481",IF(AND(ABS(C78)<60,D78<=(-50),D78>=(-70)),"41",IF(AND(SUBSTITUTE('Raw Set and Haul Details'!D$41,".","")="5851",C$3="FRA"),"5851",IF(AND(SUBSTITUTE('Raw Set and Haul Details'!D$41,".","")="5852",C$3="AUS"),"5852",IF(AND(ABS(C78)>=56,ABS(C78)<=62,D78>60,D78<=73.17),"5843a",IF(AND(ABS(C78)>=55,ABS(C78)<=64,D78>=73.17,D78<=86),"5843b",IF(AND(ABS(C78)>=55,D78>80,D78<=150),"5841",IF(AND(ABS(C78)<55,D78>80,D78<=150),"57",IF(AND(ABS(C78)>=60,ABS(C78)<=65,D78>=150,D78<180),"881",IF(AND(ABS(C78)>65,D78>=150,D78<180),"881",IF(AND(ABS(C78)>=60,D78>=(-180),D78<=(-170),ABS(C78)<=65),"881",IF(AND(ABS(C78)>65,D78>=(-180),D78<=(-170)),"881",IF(AND(ABS(C78)>=60,D78>(-170),D78<(-105)),"882",IF(AND(ABS(C78)>=60,D78>(-105),D78<(-70)),"883",IF(AND(ABS(C78)<60,D78>(-180),D78<(-110)),"81",IF(AND(ABS(C78)<60,D78<180,D78>=150),"81",IF(AND(ABS(C78)<60,D78>=(-110),D78<=(-50)),"87",IF(AND(ABS(C78)<=(53+(14/60)),ABS(C78)>=45,D78>60,D78<=70),"5851",IF(AND(ABS(C78)<(49+(24/60)),ABS(C78)>=45,D78>=70,D78<80),"5851",IF(AND(ABS(C78)>=(53+(14/60)),ABS(C78)<56,D78>=60,D78<=80),"5852","")))))))))))))))))))))))))))))))),"") -> 
B79: =IF('Raw Set and Haul Details'!$B79="","",'Raw Set and Haul Details'!$B79) ->  | C79: =IF(B79="","",IF('Raw Set and Haul Details'!$E79<0,-1*(ABS('Raw Set and Haul Details'!$E79)+('Raw Set and Haul Details'!$F79/60)),ABS('Raw Set and Haul Details'!$E79)+('Raw Set and Haul Details'!$F79/60))) ->  | D79: =IF(B79="","",IF('Raw Set and Haul Details'!$G79<0,-1*(ABS('Raw Set and Haul Details'!$G79)+('Raw Set and Haul Details'!$H79/60)),'Raw Set and Haul Details'!$G79+('Raw Set and Haul Details'!$H79/60))) ->  | E79: =IFERROR(IF(AND(ABS(C79)>=45,ABS(C79)<=50,D79>=30,D79<=44),"587",IF(AND(ABS(C79)>=45,ABS(C79)<=50,D79>=44,D79<=60),"586",IF(AND(ABS(C79)>=50,ABS(C79)<=62,D79>=30,D79<=43),"5844a",IF(AND(ABS(C79)>=50,ABS(C79)<=62,D79>=43,D79<=60),"5844b",IF(AND(ABS(C79)<=50,(D79)<=30,D79>=(-50)),"47",IF(AND(ABS(C79)<=45,D79>=30,D79<=80),"51",IF(AND(ABS(C79)>=62,D79>=30,D79<=80),"5842",IF(AND(ABS(C79)>=50,D79<=30,D79>=(-20)),"486",IF(AND(ABS(C79)>=50,ABS(C79)<=64,D79<=(-20),D79>=(-30)),"484",IF(AND(ABS(C79)>=50,ABS(C79)<=57,D79<=(-30),D79>=(-50)),"483",IF(AND(ABS(C79)>57,ABS(C79)<=64,D79<(-30),D79>=(-50)),"482",IF(AND(ABS(C79)>64,D79<=(-20),D79>(-60)),"485",IF(AND(ABS(C79)>=60,D79<=(-50),D79>=(-70)),"481",IF(AND(ABS(C79)<60,D79<=(-50),D79>=(-70)),"41",IF(AND(SUBSTITUTE('Raw Set and Haul Details'!D$41,".","")="5851",C$3="FRA"),"5851",IF(AND(SUBSTITUTE('Raw Set and Haul Details'!D$41,".","")="5852",C$3="AUS"),"5852",IF(AND(ABS(C79)>=56,ABS(C79)<=62,D79>60,D79<=73.17),"5843a",IF(AND(ABS(C79)>=55,ABS(C79)<=64,D79>=73.17,D79<=86),"5843b",IF(AND(ABS(C79)>=55,D79>80,D79<=150),"5841",IF(AND(ABS(C79)<55,D79>80,D79<=150),"57",IF(AND(ABS(C79)>=60,ABS(C79)<=65,D79>=150,D79<180),"881",IF(AND(ABS(C79)>65,D79>=150,D79<180),"881",IF(AND(ABS(C79)>=60,D79>=(-180),D79<=(-170),ABS(C79)<=65),"881",IF(AND(ABS(C79)>65,D79>=(-180),D79<=(-170)),"881",IF(AND(ABS(C79)>=60,D79>(-170),D79<(-105)),"882",IF(AND(ABS(C79)>=60,D79>(-105),D79<(-70)),"883",IF(AND(ABS(C79)<60,D79>(-180),D79<(-110)),"81",IF(AND(ABS(C79)<60,D79<180,D79>=150),"81",IF(AND(ABS(C79)<60,D79>=(-110),D79<=(-50)),"87",IF(AND(ABS(C79)<=(53+(14/60)),ABS(C79)>=45,D79>60,D79<=70),"5851",IF(AND(ABS(C79)<(49+(24/60)),ABS(C79)>=45,D79>=70,D79<80),"5851",IF(AND(ABS(C79)>=(53+(14/60)),ABS(C79)<56,D79>=60,D79<=80),"5852","")))))))))))))))))))))))))))))))),"") -> 
B80: =IF('Raw Set and Haul Details'!$B80="","",'Raw Set and Haul Details'!$B80) ->  | C80: =IF(B80="","",IF('Raw Set and Haul Details'!$E80<0,-1*(ABS('Raw Set and Haul Details'!$E80)+('Raw Set and Haul Details'!$F80/60)),ABS('Raw Set and Haul Details'!$E80)+('Raw Set and Haul Details'!$F80/60))) ->  | D80: =IF(B80="","",IF('Raw Set and Haul Details'!$G80<0,-1*(ABS('Raw Set and Haul Details'!$G80)+('Raw Set and Haul Details'!$H80/60)),'Raw Set and Haul Details'!$G80+('Raw Set and Haul Details'!$H80/60))) ->  | E80: =IFERROR(IF(AND(ABS(C80)>=45,ABS(C80)<=50,D80>=30,D80<=44),"587",IF(AND(ABS(C80)>=45,ABS(C80)<=50,D80>=44,D80<=60),"586",IF(AND(ABS(C80)>=50,ABS(C80)<=62,D80>=30,D80<=43),"5844a",IF(AND(ABS(C80)>=50,ABS(C80)<=62,D80>=43,D80<=60),"5844b",IF(AND(ABS(C80)<=50,(D80)<=30,D80>=(-50)),"47",IF(AND(ABS(C80)<=45,D80>=30,D80<=80),"51",IF(AND(ABS(C80)>=62,D80>=30,D80<=80),"5842",IF(AND(ABS(C80)>=50,D80<=30,D80>=(-20)),"486",IF(AND(ABS(C80)>=50,ABS(C80)<=64,D80<=(-20),D80>=(-30)),"484",IF(AND(ABS(C80)>=50,ABS(C80)<=57,D80<=(-30),D80>=(-50)),"483",IF(AND(ABS(C80)>57,ABS(C80)<=64,D80<(-30),D80>=(-50)),"482",IF(AND(ABS(C80)>64,D80<=(-20),D80>(-60)),"485",IF(AND(ABS(C80)>=60,D80<=(-50),D80>=(-70)),"481",IF(AND(ABS(C80)<60,D80<=(-50),D80>=(-70)),"41",IF(AND(SUBSTITUTE('Raw Set and Haul Details'!D$41,".","")="5851",C$3="FRA"),"5851",IF(AND(SUBSTITUTE('Raw Set and Haul Details'!D$41,".","")="5852",C$3="AUS"),"5852",IF(AND(ABS(C80)>=56,ABS(C80)<=62,D80>60,D80<=73.17),"5843a",IF(AND(ABS(C80)>=55,ABS(C80)<=64,D80>=73.17,D80<=86),"5843b",IF(AND(ABS(C80)>=55,D80>80,D80<=150),"5841",IF(AND(ABS(C80)<55,D80>80,D80<=150),"57",IF(AND(ABS(C80)>=60,ABS(C80)<=65,D80>=150,D80<180),"881",IF(AND(ABS(C80)>65,D80>=150,D80<180),"881",IF(AND(ABS(C80)>=60,D80>=(-180),D80<=(-170),ABS(C80)<=65),"881",IF(AND(ABS(C80)>65,D80>=(-180),D80<=(-170)),"881",IF(AND(ABS(C80)>=60,D80>(-170),D80<(-105)),"882",IF(AND(ABS(C80)>=60,D80>(-105),D80<(-70)),"883",IF(AND(ABS(C80)<60,D80>(-180),D80<(-110)),"81",IF(AND(ABS(C80)<60,D80<180,D80>=150),"81",IF(AND(ABS(C80)<60,D80>=(-110),D80<=(-50)),"87",IF(AND(ABS(C80)<=(53+(14/60)),ABS(C80)>=45,D80>60,D80<=70),"5851",IF(AND(ABS(C80)<(49+(24/60)),ABS(C80)>=45,D80>=70,D80<80),"5851",IF(AND(ABS(C80)>=(53+(14/60)),ABS(C80)<56,D80>=60,D80<=80),"5852","")))))))))))))))))))))))))))))))),"") -> 
B81: =IF('Raw Set and Haul Details'!$B81="","",'Raw Set and Haul Details'!$B81) ->  | C81: =IF(B81="","",IF('Raw Set and Haul Details'!$E81<0,-1*(ABS('Raw Set and Haul Details'!$E81)+('Raw Set and Haul Details'!$F81/60)),ABS('Raw Set and Haul Details'!$E81)+('Raw Set and Haul Details'!$F81/60))) ->  | D81: =IF(B81="","",IF('Raw Set and Haul Details'!$G81<0,-1*(ABS('Raw Set and Haul Details'!$G81)+('Raw Set and Haul Details'!$H81/60)),'Raw Set and Haul Details'!$G81+('Raw Set and Haul Details'!$H81/60))) ->  | E81: =IFERROR(IF(AND(ABS(C81)>=45,ABS(C81)<=50,D81>=30,D81<=44),"587",IF(AND(ABS(C81)>=45,ABS(C81)<=50,D81>=44,D81<=60),"586",IF(AND(ABS(C81)>=50,ABS(C81)<=62,D81>=30,D81<=43),"5844a",IF(AND(ABS(C81)>=50,ABS(C81)<=62,D81>=43,D81<=60),"5844b",IF(AND(ABS(C81)<=50,(D81)<=30,D81>=(-50)),"47",IF(AND(ABS(C81)<=45,D81>=30,D81<=80),"51",IF(AND(ABS(C81)>=62,D81>=30,D81<=80),"5842",IF(AND(ABS(C81)>=50,D81<=30,D81>=(-20)),"486",IF(AND(ABS(C81)>=50,ABS(C81)<=64,D81<=(-20),D81>=(-30)),"484",IF(AND(ABS(C81)>=50,ABS(C81)<=57,D81<=(-30),D81>=(-50)),"483",IF(AND(ABS(C81)>57,ABS(C81)<=64,D81<(-30),D81>=(-50)),"482",IF(AND(ABS(C81)>64,D81<=(-20),D81>(-60)),"485",IF(AND(ABS(C81)>=60,D81<=(-50),D81>=(-70)),"481",IF(AND(ABS(C81)<60,D81<=(-50),D81>=(-70)),"41",IF(AND(SUBSTITUTE('Raw Set and Haul Details'!D$41,".","")="5851",C$3="FRA"),"5851",IF(AND(SUBSTITUTE('Raw Set and Haul Details'!D$41,".","")="5852",C$3="AUS"),"5852",IF(AND(ABS(C81)>=56,ABS(C81)<=62,D81>60,D81<=73.17),"5843a",IF(AND(ABS(C81)>=55,ABS(C81)<=64,D81>=73.17,D81<=86),"5843b",IF(AND(ABS(C81)>=55,D81>80,D81<=150),"5841",IF(AND(ABS(C81)<55,D81>80,D81<=150),"57",IF(AND(ABS(C81)>=60,ABS(C81)<=65,D81>=150,D81<180),"881",IF(AND(ABS(C81)>65,D81>=150,D81<180),"881",IF(AND(ABS(C81)>=60,D81>=(-180),D81<=(-170),ABS(C81)<=65),"881",IF(AND(ABS(C81)>65,D81>=(-180),D81<=(-170)),"881",IF(AND(ABS(C81)>=60,D81>(-170),D81<(-105)),"882",IF(AND(ABS(C81)>=60,D81>(-105),D81<(-70)),"883",IF(AND(ABS(C81)<60,D81>(-180),D81<(-110)),"81",IF(AND(ABS(C81)<60,D81<180,D81>=150),"81",IF(AND(ABS(C81)<60,D81>=(-110),D81<=(-50)),"87",IF(AND(ABS(C81)<=(53+(14/60)),ABS(C81)>=45,D81>60,D81<=70),"5851",IF(AND(ABS(C81)<(49+(24/60)),ABS(C81)>=45,D81>=70,D81<80),"5851",IF(AND(ABS(C81)>=(53+(14/60)),ABS(C81)<56,D81>=60,D81<=80),"5852","")))))))))))))))))))))))))))))))),"") -> 
B82: =IF('Raw Set and Haul Details'!$B82="","",'Raw Set and Haul Details'!$B82) ->  | C82: =IF(B82="","",IF('Raw Set and Haul Details'!$E82<0,-1*(ABS('Raw Set and Haul Details'!$E82)+('Raw Set and Haul Details'!$F82/60)),ABS('Raw Set and Haul Details'!$E82)+('Raw Set and Haul Details'!$F82/60))) ->  | D82: =IF(B82="","",IF('Raw Set and Haul Details'!$G82<0,-1*(ABS('Raw Set and Haul Details'!$G82)+('Raw Set and Haul Details'!$H82/60)),'Raw Set and Haul Details'!$G82+('Raw Set and Haul Details'!$H82/60))) ->  | E82: =IFERROR(IF(AND(ABS(C82)>=45,ABS(C82)<=50,D82>=30,D82<=44),"587",IF(AND(ABS(C82)>=45,ABS(C82)<=50,D82>=44,D82<=60),"586",IF(AND(ABS(C82)>=50,ABS(C82)<=62,D82>=30,D82<=43),"5844a",IF(AND(ABS(C82)>=50,ABS(C82)<=62,D82>=43,D82<=60),"5844b",IF(AND(ABS(C82)<=50,(D82)<=30,D82>=(-50)),"47",IF(AND(ABS(C82)<=45,D82>=30,D82<=80),"51",IF(AND(ABS(C82)>=62,D82>=30,D82<=80),"5842",IF(AND(ABS(C82)>=50,D82<=30,D82>=(-20)),"486",IF(AND(ABS(C82)>=50,ABS(C82)<=64,D82<=(-20),D82>=(-30)),"484",IF(AND(ABS(C82)>=50,ABS(C82)<=57,D82<=(-30),D82>=(-50)),"483",IF(AND(ABS(C82)>57,ABS(C82)<=64,D82<(-30),D82>=(-50)),"482",IF(AND(ABS(C82)>64,D82<=(-20),D82>(-60)),"485",IF(AND(ABS(C82)>=60,D82<=(-50),D82>=(-70)),"481",IF(AND(ABS(C82)<60,D82<=(-50),D82>=(-70)),"41",IF(AND(SUBSTITUTE('Raw Set and Haul Details'!D$41,".","")="5851",C$3="FRA"),"5851",IF(AND(SUBSTITUTE('Raw Set and Haul Details'!D$41,".","")="5852",C$3="AUS"),"5852",IF(AND(ABS(C82)>=56,ABS(C82)<=62,D82>60,D82<=73.17),"5843a",IF(AND(ABS(C82)>=55,ABS(C82)<=64,D82>=73.17,D82<=86),"5843b",IF(AND(ABS(C82)>=55,D82>80,D82<=150),"5841",IF(AND(ABS(C82)<55,D82>80,D82<=150),"57",IF(AND(ABS(C82)>=60,ABS(C82)<=65,D82>=150,D82<180),"881",IF(AND(ABS(C82)>65,D82>=150,D82<180),"881",IF(AND(ABS(C82)>=60,D82>=(-180),D82<=(-170),ABS(C82)<=65),"881",IF(AND(ABS(C82)>65,D82>=(-180),D82<=(-170)),"881",IF(AND(ABS(C82)>=60,D82>(-170),D82<(-105)),"882",IF(AND(ABS(C82)>=60,D82>(-105),D82<(-70)),"883",IF(AND(ABS(C82)<60,D82>(-180),D82<(-110)),"81",IF(AND(ABS(C82)<60,D82<180,D82>=150),"81",IF(AND(ABS(C82)<60,D82>=(-110),D82<=(-50)),"87",IF(AND(ABS(C82)<=(53+(14/60)),ABS(C82)>=45,D82>60,D82<=70),"5851",IF(AND(ABS(C82)<(49+(24/60)),ABS(C82)>=45,D82>=70,D82<80),"5851",IF(AND(ABS(C82)>=(53+(14/60)),ABS(C82)<56,D82>=60,D82<=80),"5852","")))))))))))))))))))))))))))))))),"") -> 
B83: =IF('Raw Set and Haul Details'!$B83="","",'Raw Set and Haul Details'!$B83) ->  | C83: =IF(B83="","",IF('Raw Set and Haul Details'!$E83<0,-1*(ABS('Raw Set and Haul Details'!$E83)+('Raw Set and Haul Details'!$F83/60)),ABS('Raw Set and Haul Details'!$E83)+('Raw Set and Haul Details'!$F83/60))) ->  | D83: =IF(B83="","",IF('Raw Set and Haul Details'!$G83<0,-1*(ABS('Raw Set and Haul Details'!$G83)+('Raw Set and Haul Details'!$H83/60)),'Raw Set and Haul Details'!$G83+('Raw Set and Haul Details'!$H83/60))) ->  | E83: =IFERROR(IF(AND(ABS(C83)>=45,ABS(C83)<=50,D83>=30,D83<=44),"587",IF(AND(ABS(C83)>=45,ABS(C83)<=50,D83>=44,D83<=60),"586",IF(AND(ABS(C83)>=50,ABS(C83)<=62,D83>=30,D83<=43),"5844a",IF(AND(ABS(C83)>=50,ABS(C83)<=62,D83>=43,D83<=60),"5844b",IF(AND(ABS(C83)<=50,(D83)<=30,D83>=(-50)),"47",IF(AND(ABS(C83)<=45,D83>=30,D83<=80),"51",IF(AND(ABS(C83)>=62,D83>=30,D83<=80),"5842",IF(AND(ABS(C83)>=50,D83<=30,D83>=(-20)),"486",IF(AND(ABS(C83)>=50,ABS(C83)<=64,D83<=(-20),D83>=(-30)),"484",IF(AND(ABS(C83)>=50,ABS(C83)<=57,D83<=(-30),D83>=(-50)),"483",IF(AND(ABS(C83)>57,ABS(C83)<=64,D83<(-30),D83>=(-50)),"482",IF(AND(ABS(C83)>64,D83<=(-20),D83>(-60)),"485",IF(AND(ABS(C83)>=60,D83<=(-50),D83>=(-70)),"481",IF(AND(ABS(C83)<60,D83<=(-50),D83>=(-70)),"41",IF(AND(SUBSTITUTE('Raw Set and Haul Details'!D$41,".","")="5851",C$3="FRA"),"5851",IF(AND(SUBSTITUTE('Raw Set and Haul Details'!D$41,".","")="5852",C$3="AUS"),"5852",IF(AND(ABS(C83)>=56,ABS(C83)<=62,D83>60,D83<=73.17),"5843a",IF(AND(ABS(C83)>=55,ABS(C83)<=64,D83>=73.17,D83<=86),"5843b",IF(AND(ABS(C83)>=55,D83>80,D83<=150),"5841",IF(AND(ABS(C83)<55,D83>80,D83<=150),"57",IF(AND(ABS(C83)>=60,ABS(C83)<=65,D83>=150,D83<180),"881",IF(AND(ABS(C83)>65,D83>=150,D83<180),"881",IF(AND(ABS(C83)>=60,D83>=(-180),D83<=(-170),ABS(C83)<=65),"881",IF(AND(ABS(C83)>65,D83>=(-180),D83<=(-170)),"881",IF(AND(ABS(C83)>=60,D83>(-170),D83<(-105)),"882",IF(AND(ABS(C83)>=60,D83>(-105),D83<(-70)),"883",IF(AND(ABS(C83)<60,D83>(-180),D83<(-110)),"81",IF(AND(ABS(C83)<60,D83<180,D83>=150),"81",IF(AND(ABS(C83)<60,D83>=(-110),D83<=(-50)),"87",IF(AND(ABS(C83)<=(53+(14/60)),ABS(C83)>=45,D83>60,D83<=70),"5851",IF(AND(ABS(C83)<(49+(24/60)),ABS(C83)>=45,D83>=70,D83<80),"5851",IF(AND(ABS(C83)>=(53+(14/60)),ABS(C83)<56,D83>=60,D83<=80),"5852","")))))))))))))))))))))))))))))))),"") -> 
B84: =IF('Raw Set and Haul Details'!$B84="","",'Raw Set and Haul Details'!$B84) ->  | C84: =IF(B84="","",IF('Raw Set and Haul Details'!$E84<0,-1*(ABS('Raw Set and Haul Details'!$E84)+('Raw Set and Haul Details'!$F84/60)),ABS('Raw Set and Haul Details'!$E84)+('Raw Set and Haul Details'!$F84/60))) ->  | D84: =IF(B84="","",IF('Raw Set and Haul Details'!$G84<0,-1*(ABS('Raw Set and Haul Details'!$G84)+('Raw Set and Haul Details'!$H84/60)),'Raw Set and Haul Details'!$G84+('Raw Set and Haul Details'!$H84/60))) ->  | E84: =IFERROR(IF(AND(ABS(C84)>=45,ABS(C84)<=50,D84>=30,D84<=44),"587",IF(AND(ABS(C84)>=45,ABS(C84)<=50,D84>=44,D84<=60),"586",IF(AND(ABS(C84)>=50,ABS(C84)<=62,D84>=30,D84<=43),"5844a",IF(AND(ABS(C84)>=50,ABS(C84)<=62,D84>=43,D84<=60),"5844b",IF(AND(ABS(C84)<=50,(D84)<=30,D84>=(-50)),"47",IF(AND(ABS(C84)<=45,D84>=30,D84<=80),"51",IF(AND(ABS(C84)>=62,D84>=30,D84<=80),"5842",IF(AND(ABS(C84)>=50,D84<=30,D84>=(-20)),"486",IF(AND(ABS(C84)>=50,ABS(C84)<=64,D84<=(-20),D84>=(-30)),"484",IF(AND(ABS(C84)>=50,ABS(C84)<=57,D84<=(-30),D84>=(-50)),"483",IF(AND(ABS(C84)>57,ABS(C84)<=64,D84<(-30),D84>=(-50)),"482",IF(AND(ABS(C84)>64,D84<=(-20),D84>(-60)),"485",IF(AND(ABS(C84)>=60,D84<=(-50),D84>=(-70)),"481",IF(AND(ABS(C84)<60,D84<=(-50),D84>=(-70)),"41",IF(AND(SUBSTITUTE('Raw Set and Haul Details'!D$41,".","")="5851",C$3="FRA"),"5851",IF(AND(SUBSTITUTE('Raw Set and Haul Details'!D$41,".","")="5852",C$3="AUS"),"5852",IF(AND(ABS(C84)>=56,ABS(C84)<=62,D84>60,D84<=73.17),"5843a",IF(AND(ABS(C84)>=55,ABS(C84)<=64,D84>=73.17,D84<=86),"5843b",IF(AND(ABS(C84)>=55,D84>80,D84<=150),"5841",IF(AND(ABS(C84)<55,D84>80,D84<=150),"57",IF(AND(ABS(C84)>=60,ABS(C84)<=65,D84>=150,D84<180),"881",IF(AND(ABS(C84)>65,D84>=150,D84<180),"881",IF(AND(ABS(C84)>=60,D84>=(-180),D84<=(-170),ABS(C84)<=65),"881",IF(AND(ABS(C84)>65,D84>=(-180),D84<=(-170)),"881",IF(AND(ABS(C84)>=60,D84>(-170),D84<(-105)),"882",IF(AND(ABS(C84)>=60,D84>(-105),D84<(-70)),"883",IF(AND(ABS(C84)<60,D84>(-180),D84<(-110)),"81",IF(AND(ABS(C84)<60,D84<180,D84>=150),"81",IF(AND(ABS(C84)<60,D84>=(-110),D84<=(-50)),"87",IF(AND(ABS(C84)<=(53+(14/60)),ABS(C84)>=45,D84>60,D84<=70),"5851",IF(AND(ABS(C84)<(49+(24/60)),ABS(C84)>=45,D84>=70,D84<80),"5851",IF(AND(ABS(C84)>=(53+(14/60)),ABS(C84)<56,D84>=60,D84<=80),"5852","")))))))))))))))))))))))))))))))),"") -> 
B85: =IF('Raw Set and Haul Details'!$B85="","",'Raw Set and Haul Details'!$B85) ->  | C85: =IF(B85="","",IF('Raw Set and Haul Details'!$E85<0,-1*(ABS('Raw Set and Haul Details'!$E85)+('Raw Set and Haul Details'!$F85/60)),ABS('Raw Set and Haul Details'!$E85)+('Raw Set and Haul Details'!$F85/60))) ->  | D85: =IF(B85="","",IF('Raw Set and Haul Details'!$G85<0,-1*(ABS('Raw Set and Haul Details'!$G85)+('Raw Set and Haul Details'!$H85/60)),'Raw Set and Haul Details'!$G85+('Raw Set and Haul Details'!$H85/60))) ->  | E85: =IFERROR(IF(AND(ABS(C85)>=45,ABS(C85)<=50,D85>=30,D85<=44),"587",IF(AND(ABS(C85)>=45,ABS(C85)<=50,D85>=44,D85<=60),"586",IF(AND(ABS(C85)>=50,ABS(C85)<=62,D85>=30,D85<=43),"5844a",IF(AND(ABS(C85)>=50,ABS(C85)<=62,D85>=43,D85<=60),"5844b",IF(AND(ABS(C85)<=50,(D85)<=30,D85>=(-50)),"47",IF(AND(ABS(C85)<=45,D85>=30,D85<=80),"51",IF(AND(ABS(C85)>=62,D85>=30,D85<=80),"5842",IF(AND(ABS(C85)>=50,D85<=30,D85>=(-20)),"486",IF(AND(ABS(C85)>=50,ABS(C85)<=64,D85<=(-20),D85>=(-30)),"484",IF(AND(ABS(C85)>=50,ABS(C85)<=57,D85<=(-30),D85>=(-50)),"483",IF(AND(ABS(C85)>57,ABS(C85)<=64,D85<(-30),D85>=(-50)),"482",IF(AND(ABS(C85)>64,D85<=(-20),D85>(-60)),"485",IF(AND(ABS(C85)>=60,D85<=(-50),D85>=(-70)),"481",IF(AND(ABS(C85)<60,D85<=(-50),D85>=(-70)),"41",IF(AND(SUBSTITUTE('Raw Set and Haul Details'!D$41,".","")="5851",C$3="FRA"),"5851",IF(AND(SUBSTITUTE('Raw Set and Haul Details'!D$41,".","")="5852",C$3="AUS"),"5852",IF(AND(ABS(C85)>=56,ABS(C85)<=62,D85>60,D85<=73.17),"5843a",IF(AND(ABS(C85)>=55,ABS(C85)<=64,D85>=73.17,D85<=86),"5843b",IF(AND(ABS(C85)>=55,D85>80,D85<=150),"5841",IF(AND(ABS(C85)<55,D85>80,D85<=150),"57",IF(AND(ABS(C85)>=60,ABS(C85)<=65,D85>=150,D85<180),"881",IF(AND(ABS(C85)>65,D85>=150,D85<180),"881",IF(AND(ABS(C85)>=60,D85>=(-180),D85<=(-170),ABS(C85)<=65),"881",IF(AND(ABS(C85)>65,D85>=(-180),D85<=(-170)),"881",IF(AND(ABS(C85)>=60,D85>(-170),D85<(-105)),"882",IF(AND(ABS(C85)>=60,D85>(-105),D85<(-70)),"883",IF(AND(ABS(C85)<60,D85>(-180),D85<(-110)),"81",IF(AND(ABS(C85)<60,D85<180,D85>=150),"81",IF(AND(ABS(C85)<60,D85>=(-110),D85<=(-50)),"87",IF(AND(ABS(C85)<=(53+(14/60)),ABS(C85)>=45,D85>60,D85<=70),"5851",IF(AND(ABS(C85)<(49+(24/60)),ABS(C85)>=45,D85>=70,D85<80),"5851",IF(AND(ABS(C85)>=(53+(14/60)),ABS(C85)<56,D85>=60,D85<=80),"5852","")))))))))))))))))))))))))))))))),"") -> 
B86: =IF('Raw Set and Haul Details'!$B86="","",'Raw Set and Haul Details'!$B86) ->  | C86: =IF(B86="","",IF('Raw Set and Haul Details'!$E86<0,-1*(ABS('Raw Set and Haul Details'!$E86)+('Raw Set and Haul Details'!$F86/60)),ABS('Raw Set and Haul Details'!$E86)+('Raw Set and Haul Details'!$F86/60))) ->  | D86: =IF(B86="","",IF('Raw Set and Haul Details'!$G86<0,-1*(ABS('Raw Set and Haul Details'!$G86)+('Raw Set and Haul Details'!$H86/60)),'Raw Set and Haul Details'!$G86+('Raw Set and Haul Details'!$H86/60))) ->  | E86: =IFERROR(IF(AND(ABS(C86)>=45,ABS(C86)<=50,D86>=30,D86<=44),"587",IF(AND(ABS(C86)>=45,ABS(C86)<=50,D86>=44,D86<=60),"586",IF(AND(ABS(C86)>=50,ABS(C86)<=62,D86>=30,D86<=43),"5844a",IF(AND(ABS(C86)>=50,ABS(C86)<=62,D86>=43,D86<=60),"5844b",IF(AND(ABS(C86)<=50,(D86)<=30,D86>=(-50)),"47",IF(AND(ABS(C86)<=45,D86>=30,D86<=80),"51",IF(AND(ABS(C86)>=62,D86>=30,D86<=80),"5842",IF(AND(ABS(C86)>=50,D86<=30,D86>=(-20)),"486",IF(AND(ABS(C86)>=50,ABS(C86)<=64,D86<=(-20),D86>=(-30)),"484",IF(AND(ABS(C86)>=50,ABS(C86)<=57,D86<=(-30),D86>=(-50)),"483",IF(AND(ABS(C86)>57,ABS(C86)<=64,D86<(-30),D86>=(-50)),"482",IF(AND(ABS(C86)>64,D86<=(-20),D86>(-60)),"485",IF(AND(ABS(C86)>=60,D86<=(-50),D86>=(-70)),"481",IF(AND(ABS(C86)<60,D86<=(-50),D86>=(-70)),"41",IF(AND(SUBSTITUTE('Raw Set and Haul Details'!D$41,".","")="5851",C$3="FRA"),"5851",IF(AND(SUBSTITUTE('Raw Set and Haul Details'!D$41,".","")="5852",C$3="AUS"),"5852",IF(AND(ABS(C86)>=56,ABS(C86)<=62,D86>60,D86<=73.17),"5843a",IF(AND(ABS(C86)>=55,ABS(C86)<=64,D86>=73.17,D86<=86),"5843b",IF(AND(ABS(C86)>=55,D86>80,D86<=150),"5841",IF(AND(ABS(C86)<55,D86>80,D86<=150),"57",IF(AND(ABS(C86)>=60,ABS(C86)<=65,D86>=150,D86<180),"881",IF(AND(ABS(C86)>65,D86>=150,D86<180),"881",IF(AND(ABS(C86)>=60,D86>=(-180),D86<=(-170),ABS(C86)<=65),"881",IF(AND(ABS(C86)>65,D86>=(-180),D86<=(-170)),"881",IF(AND(ABS(C86)>=60,D86>(-170),D86<(-105)),"882",IF(AND(ABS(C86)>=60,D86>(-105),D86<(-70)),"883",IF(AND(ABS(C86)<60,D86>(-180),D86<(-110)),"81",IF(AND(ABS(C86)<60,D86<180,D86>=150),"81",IF(AND(ABS(C86)<60,D86>=(-110),D86<=(-50)),"87",IF(AND(ABS(C86)<=(53+(14/60)),ABS(C86)>=45,D86>60,D86<=70),"5851",IF(AND(ABS(C86)<(49+(24/60)),ABS(C86)>=45,D86>=70,D86<80),"5851",IF(AND(ABS(C86)>=(53+(14/60)),ABS(C86)<56,D86>=60,D86<=80),"5852","")))))))))))))))))))))))))))))))),"") -> 
B87: =IF('Raw Set and Haul Details'!$B87="","",'Raw Set and Haul Details'!$B87) ->  | C87: =IF(B87="","",IF('Raw Set and Haul Details'!$E87<0,-1*(ABS('Raw Set and Haul Details'!$E87)+('Raw Set and Haul Details'!$F87/60)),ABS('Raw Set and Haul Details'!$E87)+('Raw Set and Haul Details'!$F87/60))) ->  | D87: =IF(B87="","",IF('Raw Set and Haul Details'!$G87<0,-1*(ABS('Raw Set and Haul Details'!$G87)+('Raw Set and Haul Details'!$H87/60)),'Raw Set and Haul Details'!$G87+('Raw Set and Haul Details'!$H87/60))) ->  | E87: =IFERROR(IF(AND(ABS(C87)>=45,ABS(C87)<=50,D87>=30,D87<=44),"587",IF(AND(ABS(C87)>=45,ABS(C87)<=50,D87>=44,D87<=60),"586",IF(AND(ABS(C87)>=50,ABS(C87)<=62,D87>=30,D87<=43),"5844a",IF(AND(ABS(C87)>=50,ABS(C87)<=62,D87>=43,D87<=60),"5844b",IF(AND(ABS(C87)<=50,(D87)<=30,D87>=(-50)),"47",IF(AND(ABS(C87)<=45,D87>=30,D87<=80),"51",IF(AND(ABS(C87)>=62,D87>=30,D87<=80),"5842",IF(AND(ABS(C87)>=50,D87<=30,D87>=(-20)),"486",IF(AND(ABS(C87)>=50,ABS(C87)<=64,D87<=(-20),D87>=(-30)),"484",IF(AND(ABS(C87)>=50,ABS(C87)<=57,D87<=(-30),D87>=(-50)),"483",IF(AND(ABS(C87)>57,ABS(C87)<=64,D87<(-30),D87>=(-50)),"482",IF(AND(ABS(C87)>64,D87<=(-20),D87>(-60)),"485",IF(AND(ABS(C87)>=60,D87<=(-50),D87>=(-70)),"481",IF(AND(ABS(C87)<60,D87<=(-50),D87>=(-70)),"41",IF(AND(SUBSTITUTE('Raw Set and Haul Details'!D$41,".","")="5851",C$3="FRA"),"5851",IF(AND(SUBSTITUTE('Raw Set and Haul Details'!D$41,".","")="5852",C$3="AUS"),"5852",IF(AND(ABS(C87)>=56,ABS(C87)<=62,D87>60,D87<=73.17),"5843a",IF(AND(ABS(C87)>=55,ABS(C87)<=64,D87>=73.17,D87<=86),"5843b",IF(AND(ABS(C87)>=55,D87>80,D87<=150),"5841",IF(AND(ABS(C87)<55,D87>80,D87<=150),"57",IF(AND(ABS(C87)>=60,ABS(C87)<=65,D87>=150,D87<180),"881",IF(AND(ABS(C87)>65,D87>=150,D87<180),"881",IF(AND(ABS(C87)>=60,D87>=(-180),D87<=(-170),ABS(C87)<=65),"881",IF(AND(ABS(C87)>65,D87>=(-180),D87<=(-170)),"881",IF(AND(ABS(C87)>=60,D87>(-170),D87<(-105)),"882",IF(AND(ABS(C87)>=60,D87>(-105),D87<(-70)),"883",IF(AND(ABS(C87)<60,D87>(-180),D87<(-110)),"81",IF(AND(ABS(C87)<60,D87<180,D87>=150),"81",IF(AND(ABS(C87)<60,D87>=(-110),D87<=(-50)),"87",IF(AND(ABS(C87)<=(53+(14/60)),ABS(C87)>=45,D87>60,D87<=70),"5851",IF(AND(ABS(C87)<(49+(24/60)),ABS(C87)>=45,D87>=70,D87<80),"5851",IF(AND(ABS(C87)>=(53+(14/60)),ABS(C87)<56,D87>=60,D87<=80),"5852","")))))))))))))))))))))))))))))))),"") -> 
B88: =IF('Raw Set and Haul Details'!$B88="","",'Raw Set and Haul Details'!$B88) ->  | C88: =IF(B88="","",IF('Raw Set and Haul Details'!$E88<0,-1*(ABS('Raw Set and Haul Details'!$E88)+('Raw Set and Haul Details'!$F88/60)),ABS('Raw Set and Haul Details'!$E88)+('Raw Set and Haul Details'!$F88/60))) ->  | D88: =IF(B88="","",IF('Raw Set and Haul Details'!$G88<0,-1*(ABS('Raw Set and Haul Details'!$G88)+('Raw Set and Haul Details'!$H88/60)),'Raw Set and Haul Details'!$G88+('Raw Set and Haul Details'!$H88/60))) ->  | E88: =IFERROR(IF(AND(ABS(C88)>=45,ABS(C88)<=50,D88>=30,D88<=44),"587",IF(AND(ABS(C88)>=45,ABS(C88)<=50,D88>=44,D88<=60),"586",IF(AND(ABS(C88)>=50,ABS(C88)<=62,D88>=30,D88<=43),"5844a",IF(AND(ABS(C88)>=50,ABS(C88)<=62,D88>=43,D88<=60),"5844b",IF(AND(ABS(C88)<=50,(D88)<=30,D88>=(-50)),"47",IF(AND(ABS(C88)<=45,D88>=30,D88<=80),"51",IF(AND(ABS(C88)>=62,D88>=30,D88<=80),"5842",IF(AND(ABS(C88)>=50,D88<=30,D88>=(-20)),"486",IF(AND(ABS(C88)>=50,ABS(C88)<=64,D88<=(-20),D88>=(-30)),"484",IF(AND(ABS(C88)>=50,ABS(C88)<=57,D88<=(-30),D88>=(-50)),"483",IF(AND(ABS(C88)>57,ABS(C88)<=64,D88<(-30),D88>=(-50)),"482",IF(AND(ABS(C88)>64,D88<=(-20),D88>(-60)),"485",IF(AND(ABS(C88)>=60,D88<=(-50),D88>=(-70)),"481",IF(AND(ABS(C88)<60,D88<=(-50),D88>=(-70)),"41",IF(AND(SUBSTITUTE('Raw Set and Haul Details'!D$41,".","")="5851",C$3="FRA"),"5851",IF(AND(SUBSTITUTE('Raw Set and Haul Details'!D$41,".","")="5852",C$3="AUS"),"5852",IF(AND(ABS(C88)>=56,ABS(C88)<=62,D88>60,D88<=73.17),"5843a",IF(AND(ABS(C88)>=55,ABS(C88)<=64,D88>=73.17,D88<=86),"5843b",IF(AND(ABS(C88)>=55,D88>80,D88<=150),"5841",IF(AND(ABS(C88)<55,D88>80,D88<=150),"57",IF(AND(ABS(C88)>=60,ABS(C88)<=65,D88>=150,D88<180),"881",IF(AND(ABS(C88)>65,D88>=150,D88<180),"881",IF(AND(ABS(C88)>=60,D88>=(-180),D88<=(-170),ABS(C88)<=65),"881",IF(AND(ABS(C88)>65,D88>=(-180),D88<=(-170)),"881",IF(AND(ABS(C88)>=60,D88>(-170),D88<(-105)),"882",IF(AND(ABS(C88)>=60,D88>(-105),D88<(-70)),"883",IF(AND(ABS(C88)<60,D88>(-180),D88<(-110)),"81",IF(AND(ABS(C88)<60,D88<180,D88>=150),"81",IF(AND(ABS(C88)<60,D88>=(-110),D88<=(-50)),"87",IF(AND(ABS(C88)<=(53+(14/60)),ABS(C88)>=45,D88>60,D88<=70),"5851",IF(AND(ABS(C88)<(49+(24/60)),ABS(C88)>=45,D88>=70,D88<80),"5851",IF(AND(ABS(C88)>=(53+(14/60)),ABS(C88)<56,D88>=60,D88<=80),"5852","")))))))))))))))))))))))))))))))),"") -> 
B89: =IF('Raw Set and Haul Details'!$B89="","",'Raw Set and Haul Details'!$B89) ->  | C89: =IF(B89="","",IF('Raw Set and Haul Details'!$E89<0,-1*(ABS('Raw Set and Haul Details'!$E89)+('Raw Set and Haul Details'!$F89/60)),ABS('Raw Set and Haul Details'!$E89)+('Raw Set and Haul Details'!$F89/60))) ->  | D89: =IF(B89="","",IF('Raw Set and Haul Details'!$G89<0,-1*(ABS('Raw Set and Haul Details'!$G89)+('Raw Set and Haul Details'!$H89/60)),'Raw Set and Haul Details'!$G89+('Raw Set and Haul Details'!$H89/60))) ->  | E89: =IFERROR(IF(AND(ABS(C89)>=45,ABS(C89)<=50,D89>=30,D89<=44),"587",IF(AND(ABS(C89)>=45,ABS(C89)<=50,D89>=44,D89<=60),"586",IF(AND(ABS(C89)>=50,ABS(C89)<=62,D89>=30,D89<=43),"5844a",IF(AND(ABS(C89)>=50,ABS(C89)<=62,D89>=43,D89<=60),"5844b",IF(AND(ABS(C89)<=50,(D89)<=30,D89>=(-50)),"47",IF(AND(ABS(C89)<=45,D89>=30,D89<=80),"51",IF(AND(ABS(C89)>=62,D89>=30,D89<=80),"5842",IF(AND(ABS(C89)>=50,D89<=30,D89>=(-20)),"486",IF(AND(ABS(C89)>=50,ABS(C89)<=64,D89<=(-20),D89>=(-30)),"484",IF(AND(ABS(C89)>=50,ABS(C89)<=57,D89<=(-30),D89>=(-50)),"483",IF(AND(ABS(C89)>57,ABS(C89)<=64,D89<(-30),D89>=(-50)),"482",IF(AND(ABS(C89)>64,D89<=(-20),D89>(-60)),"485",IF(AND(ABS(C89)>=60,D89<=(-50),D89>=(-70)),"481",IF(AND(ABS(C89)<60,D89<=(-50),D89>=(-70)),"41",IF(AND(SUBSTITUTE('Raw Set and Haul Details'!D$41,".","")="5851",C$3="FRA"),"5851",IF(AND(SUBSTITUTE('Raw Set and Haul Details'!D$41,".","")="5852",C$3="AUS"),"5852",IF(AND(ABS(C89)>=56,ABS(C89)<=62,D89>60,D89<=73.17),"5843a",IF(AND(ABS(C89)>=55,ABS(C89)<=64,D89>=73.17,D89<=86),"5843b",IF(AND(ABS(C89)>=55,D89>80,D89<=150),"5841",IF(AND(ABS(C89)<55,D89>80,D89<=150),"57",IF(AND(ABS(C89)>=60,ABS(C89)<=65,D89>=150,D89<180),"881",IF(AND(ABS(C89)>65,D89>=150,D89<180),"881",IF(AND(ABS(C89)>=60,D89>=(-180),D89<=(-170),ABS(C89)<=65),"881",IF(AND(ABS(C89)>65,D89>=(-180),D89<=(-170)),"881",IF(AND(ABS(C89)>=60,D89>(-170),D89<(-105)),"882",IF(AND(ABS(C89)>=60,D89>(-105),D89<(-70)),"883",IF(AND(ABS(C89)<60,D89>(-180),D89<(-110)),"81",IF(AND(ABS(C89)<60,D89<180,D89>=150),"81",IF(AND(ABS(C89)<60,D89>=(-110),D89<=(-50)),"87",IF(AND(ABS(C89)<=(53+(14/60)),ABS(C89)>=45,D89>60,D89<=70),"5851",IF(AND(ABS(C89)<(49+(24/60)),ABS(C89)>=45,D89>=70,D89<80),"5851",IF(AND(ABS(C89)>=(53+(14/60)),ABS(C89)<56,D89>=60,D89<=80),"5852","")))))))))))))))))))))))))))))))),"") -> 
B90: =IF('Raw Set and Haul Details'!$B90="","",'Raw Set and Haul Details'!$B90) ->  | C90: =IF(B90="","",IF('Raw Set and Haul Details'!$E90<0,-1*(ABS('Raw Set and Haul Details'!$E90)+('Raw Set and Haul Details'!$F90/60)),ABS('Raw Set and Haul Details'!$E90)+('Raw Set and Haul Details'!$F90/60))) ->  | D90: =IF(B90="","",IF('Raw Set and Haul Details'!$G90<0,-1*(ABS('Raw Set and Haul Details'!$G90)+('Raw Set and Haul Details'!$H90/60)),'Raw Set and Haul Details'!$G90+('Raw Set and Haul Details'!$H90/60))) ->  | E90: =IFERROR(IF(AND(ABS(C90)>=45,ABS(C90)<=50,D90>=30,D90<=44),"587",IF(AND(ABS(C90)>=45,ABS(C90)<=50,D90>=44,D90<=60),"586",IF(AND(ABS(C90)>=50,ABS(C90)<=62,D90>=30,D90<=43),"5844a",IF(AND(ABS(C90)>=50,ABS(C90)<=62,D90>=43,D90<=60),"5844b",IF(AND(ABS(C90)<=50,(D90)<=30,D90>=(-50)),"47",IF(AND(ABS(C90)<=45,D90>=30,D90<=80),"51",IF(AND(ABS(C90)>=62,D90>=30,D90<=80),"5842",IF(AND(ABS(C90)>=50,D90<=30,D90>=(-20)),"486",IF(AND(ABS(C90)>=50,ABS(C90)<=64,D90<=(-20),D90>=(-30)),"484",IF(AND(ABS(C90)>=50,ABS(C90)<=57,D90<=(-30),D90>=(-50)),"483",IF(AND(ABS(C90)>57,ABS(C90)<=64,D90<(-30),D90>=(-50)),"482",IF(AND(ABS(C90)>64,D90<=(-20),D90>(-60)),"485",IF(AND(ABS(C90)>=60,D90<=(-50),D90>=(-70)),"481",IF(AND(ABS(C90)<60,D90<=(-50),D90>=(-70)),"41",IF(AND(SUBSTITUTE('Raw Set and Haul Details'!D$41,".","")="5851",C$3="FRA"),"5851",IF(AND(SUBSTITUTE('Raw Set and Haul Details'!D$41,".","")="5852",C$3="AUS"),"5852",IF(AND(ABS(C90)>=56,ABS(C90)<=62,D90>60,D90<=73.17),"5843a",IF(AND(ABS(C90)>=55,ABS(C90)<=64,D90>=73.17,D90<=86),"5843b",IF(AND(ABS(C90)>=55,D90>80,D90<=150),"5841",IF(AND(ABS(C90)<55,D90>80,D90<=150),"57",IF(AND(ABS(C90)>=60,ABS(C90)<=65,D90>=150,D90<180),"881",IF(AND(ABS(C90)>65,D90>=150,D90<180),"881",IF(AND(ABS(C90)>=60,D90>=(-180),D90<=(-170),ABS(C90)<=65),"881",IF(AND(ABS(C90)>65,D90>=(-180),D90<=(-170)),"881",IF(AND(ABS(C90)>=60,D90>(-170),D90<(-105)),"882",IF(AND(ABS(C90)>=60,D90>(-105),D90<(-70)),"883",IF(AND(ABS(C90)<60,D90>(-180),D90<(-110)),"81",IF(AND(ABS(C90)<60,D90<180,D90>=150),"81",IF(AND(ABS(C90)<60,D90>=(-110),D90<=(-50)),"87",IF(AND(ABS(C90)<=(53+(14/60)),ABS(C90)>=45,D90>60,D90<=70),"5851",IF(AND(ABS(C90)<(49+(24/60)),ABS(C90)>=45,D90>=70,D90<80),"5851",IF(AND(ABS(C90)>=(53+(14/60)),ABS(C90)<56,D90>=60,D90<=80),"5852","")))))))))))))))))))))))))))))))),"") -> 
B91: =IF('Raw Set and Haul Details'!$B91="","",'Raw Set and Haul Details'!$B91) ->  | C91: =IF(B91="","",IF('Raw Set and Haul Details'!$E91<0,-1*(ABS('Raw Set and Haul Details'!$E91)+('Raw Set and Haul Details'!$F91/60)),ABS('Raw Set and Haul Details'!$E91)+('Raw Set and Haul Details'!$F91/60))) ->  | D91: =IF(B91="","",IF('Raw Set and Haul Details'!$G91<0,-1*(ABS('Raw Set and Haul Details'!$G91)+('Raw Set and Haul Details'!$H91/60)),'Raw Set and Haul Details'!$G91+('Raw Set and Haul Details'!$H91/60))) ->  | E91: =IFERROR(IF(AND(ABS(C91)>=45,ABS(C91)<=50,D91>=30,D91<=44),"587",IF(AND(ABS(C91)>=45,ABS(C91)<=50,D91>=44,D91<=60),"586",IF(AND(ABS(C91)>=50,ABS(C91)<=62,D91>=30,D91<=43),"5844a",IF(AND(ABS(C91)>=50,ABS(C91)<=62,D91>=43,D91<=60),"5844b",IF(AND(ABS(C91)<=50,(D91)<=30,D91>=(-50)),"47",IF(AND(ABS(C91)<=45,D91>=30,D91<=80),"51",IF(AND(ABS(C91)>=62,D91>=30,D91<=80),"5842",IF(AND(ABS(C91)>=50,D91<=30,D91>=(-20)),"486",IF(AND(ABS(C91)>=50,ABS(C91)<=64,D91<=(-20),D91>=(-30)),"484",IF(AND(ABS(C91)>=50,ABS(C91)<=57,D91<=(-30),D91>=(-50)),"483",IF(AND(ABS(C91)>57,ABS(C91)<=64,D91<(-30),D91>=(-50)),"482",IF(AND(ABS(C91)>64,D91<=(-20),D91>(-60)),"485",IF(AND(ABS(C91)>=60,D91<=(-50),D91>=(-70)),"481",IF(AND(ABS(C91)<60,D91<=(-50),D91>=(-70)),"41",IF(AND(SUBSTITUTE('Raw Set and Haul Details'!D$41,".","")="5851",C$3="FRA"),"5851",IF(AND(SUBSTITUTE('Raw Set and Haul Details'!D$41,".","")="5852",C$3="AUS"),"5852",IF(AND(ABS(C91)>=56,ABS(C91)<=62,D91>60,D91<=73.17),"5843a",IF(AND(ABS(C91)>=55,ABS(C91)<=64,D91>=73.17,D91<=86),"5843b",IF(AND(ABS(C91)>=55,D91>80,D91<=150),"5841",IF(AND(ABS(C91)<55,D91>80,D91<=150),"57",IF(AND(ABS(C91)>=60,ABS(C91)<=65,D91>=150,D91<180),"881",IF(AND(ABS(C91)>65,D91>=150,D91<180),"881",IF(AND(ABS(C91)>=60,D91>=(-180),D91<=(-170),ABS(C91)<=65),"881",IF(AND(ABS(C91)>65,D91>=(-180),D91<=(-170)),"881",IF(AND(ABS(C91)>=60,D91>(-170),D91<(-105)),"882",IF(AND(ABS(C91)>=60,D91>(-105),D91<(-70)),"883",IF(AND(ABS(C91)<60,D91>(-180),D91<(-110)),"81",IF(AND(ABS(C91)<60,D91<180,D91>=150),"81",IF(AND(ABS(C91)<60,D91>=(-110),D91<=(-50)),"87",IF(AND(ABS(C91)<=(53+(14/60)),ABS(C91)>=45,D91>60,D91<=70),"5851",IF(AND(ABS(C91)<(49+(24/60)),ABS(C91)>=45,D91>=70,D91<80),"5851",IF(AND(ABS(C91)>=(53+(14/60)),ABS(C91)<56,D91>=60,D91<=80),"5852","")))))))))))))))))))))))))))))))),"") -> 
B92: =IF('Raw Set and Haul Details'!$B92="","",'Raw Set and Haul Details'!$B92) ->  | C92: =IF(B92="","",IF('Raw Set and Haul Details'!$E92<0,-1*(ABS('Raw Set and Haul Details'!$E92)+('Raw Set and Haul Details'!$F92/60)),ABS('Raw Set and Haul Details'!$E92)+('Raw Set and Haul Details'!$F92/60))) ->  | D92: =IF(B92="","",IF('Raw Set and Haul Details'!$G92<0,-1*(ABS('Raw Set and Haul Details'!$G92)+('Raw Set and Haul Details'!$H92/60)),'Raw Set and Haul Details'!$G92+('Raw Set and Haul Details'!$H92/60))) ->  | E92: =IFERROR(IF(AND(ABS(C92)>=45,ABS(C92)<=50,D92>=30,D92<=44),"587",IF(AND(ABS(C92)>=45,ABS(C92)<=50,D92>=44,D92<=60),"586",IF(AND(ABS(C92)>=50,ABS(C92)<=62,D92>=30,D92<=43),"5844a",IF(AND(ABS(C92)>=50,ABS(C92)<=62,D92>=43,D92<=60),"5844b",IF(AND(ABS(C92)<=50,(D92)<=30,D92>=(-50)),"47",IF(AND(ABS(C92)<=45,D92>=30,D92<=80),"51",IF(AND(ABS(C92)>=62,D92>=30,D92<=80),"5842",IF(AND(ABS(C92)>=50,D92<=30,D92>=(-20)),"486",IF(AND(ABS(C92)>=50,ABS(C92)<=64,D92<=(-20),D92>=(-30)),"484",IF(AND(ABS(C92)>=50,ABS(C92)<=57,D92<=(-30),D92>=(-50)),"483",IF(AND(ABS(C92)>57,ABS(C92)<=64,D92<(-30),D92>=(-50)),"482",IF(AND(ABS(C92)>64,D92<=(-20),D92>(-60)),"485",IF(AND(ABS(C92)>=60,D92<=(-50),D92>=(-70)),"481",IF(AND(ABS(C92)<60,D92<=(-50),D92>=(-70)),"41",IF(AND(SUBSTITUTE('Raw Set and Haul Details'!D$41,".","")="5851",C$3="FRA"),"5851",IF(AND(SUBSTITUTE('Raw Set and Haul Details'!D$41,".","")="5852",C$3="AUS"),"5852",IF(AND(ABS(C92)>=56,ABS(C92)<=62,D92>60,D92<=73.17),"5843a",IF(AND(ABS(C92)>=55,ABS(C92)<=64,D92>=73.17,D92<=86),"5843b",IF(AND(ABS(C92)>=55,D92>80,D92<=150),"5841",IF(AND(ABS(C92)<55,D92>80,D92<=150),"57",IF(AND(ABS(C92)>=60,ABS(C92)<=65,D92>=150,D92<180),"881",IF(AND(ABS(C92)>65,D92>=150,D92<180),"881",IF(AND(ABS(C92)>=60,D92>=(-180),D92<=(-170),ABS(C92)<=65),"881",IF(AND(ABS(C92)>65,D92>=(-180),D92<=(-170)),"881",IF(AND(ABS(C92)>=60,D92>(-170),D92<(-105)),"882",IF(AND(ABS(C92)>=60,D92>(-105),D92<(-70)),"883",IF(AND(ABS(C92)<60,D92>(-180),D92<(-110)),"81",IF(AND(ABS(C92)<60,D92<180,D92>=150),"81",IF(AND(ABS(C92)<60,D92>=(-110),D92<=(-50)),"87",IF(AND(ABS(C92)<=(53+(14/60)),ABS(C92)>=45,D92>60,D92<=70),"5851",IF(AND(ABS(C92)<(49+(24/60)),ABS(C92)>=45,D92>=70,D92<80),"5851",IF(AND(ABS(C92)>=(53+(14/60)),ABS(C92)<56,D92>=60,D92<=80),"5852","")))))))))))))))))))))))))))))))),"") -> 
B93: =IF('Raw Set and Haul Details'!$B93="","",'Raw Set and Haul Details'!$B93) ->  | C93: =IF(B93="","",IF('Raw Set and Haul Details'!$E93<0,-1*(ABS('Raw Set and Haul Details'!$E93)+('Raw Set and Haul Details'!$F93/60)),ABS('Raw Set and Haul Details'!$E93)+('Raw Set and Haul Details'!$F93/60))) ->  | D93: =IF(B93="","",IF('Raw Set and Haul Details'!$G93<0,-1*(ABS('Raw Set and Haul Details'!$G93)+('Raw Set and Haul Details'!$H93/60)),'Raw Set and Haul Details'!$G93+('Raw Set and Haul Details'!$H93/60))) ->  | E93: =IFERROR(IF(AND(ABS(C93)>=45,ABS(C93)<=50,D93>=30,D93<=44),"587",IF(AND(ABS(C93)>=45,ABS(C93)<=50,D93>=44,D93<=60),"586",IF(AND(ABS(C93)>=50,ABS(C93)<=62,D93>=30,D93<=43),"5844a",IF(AND(ABS(C93)>=50,ABS(C93)<=62,D93>=43,D93<=60),"5844b",IF(AND(ABS(C93)<=50,(D93)<=30,D93>=(-50)),"47",IF(AND(ABS(C93)<=45,D93>=30,D93<=80),"51",IF(AND(ABS(C93)>=62,D93>=30,D93<=80),"5842",IF(AND(ABS(C93)>=50,D93<=30,D93>=(-20)),"486",IF(AND(ABS(C93)>=50,ABS(C93)<=64,D93<=(-20),D93>=(-30)),"484",IF(AND(ABS(C93)>=50,ABS(C93)<=57,D93<=(-30),D93>=(-50)),"483",IF(AND(ABS(C93)>57,ABS(C93)<=64,D93<(-30),D93>=(-50)),"482",IF(AND(ABS(C93)>64,D93<=(-20),D93>(-60)),"485",IF(AND(ABS(C93)>=60,D93<=(-50),D93>=(-70)),"481",IF(AND(ABS(C93)<60,D93<=(-50),D93>=(-70)),"41",IF(AND(SUBSTITUTE('Raw Set and Haul Details'!D$41,".","")="5851",C$3="FRA"),"5851",IF(AND(SUBSTITUTE('Raw Set and Haul Details'!D$41,".","")="5852",C$3="AUS"),"5852",IF(AND(ABS(C93)>=56,ABS(C93)<=62,D93>60,D93<=73.17),"5843a",IF(AND(ABS(C93)>=55,ABS(C93)<=64,D93>=73.17,D93<=86),"5843b",IF(AND(ABS(C93)>=55,D93>80,D93<=150),"5841",IF(AND(ABS(C93)<55,D93>80,D93<=150),"57",IF(AND(ABS(C93)>=60,ABS(C93)<=65,D93>=150,D93<180),"881",IF(AND(ABS(C93)>65,D93>=150,D93<180),"881",IF(AND(ABS(C93)>=60,D93>=(-180),D93<=(-170),ABS(C93)<=65),"881",IF(AND(ABS(C93)>65,D93>=(-180),D93<=(-170)),"881",IF(AND(ABS(C93)>=60,D93>(-170),D93<(-105)),"882",IF(AND(ABS(C93)>=60,D93>(-105),D93<(-70)),"883",IF(AND(ABS(C93)<60,D93>(-180),D93<(-110)),"81",IF(AND(ABS(C93)<60,D93<180,D93>=150),"81",IF(AND(ABS(C93)<60,D93>=(-110),D93<=(-50)),"87",IF(AND(ABS(C93)<=(53+(14/60)),ABS(C93)>=45,D93>60,D93<=70),"5851",IF(AND(ABS(C93)<(49+(24/60)),ABS(C93)>=45,D93>=70,D93<80),"5851",IF(AND(ABS(C93)>=(53+(14/60)),ABS(C93)<56,D93>=60,D93<=80),"5852","")))))))))))))))))))))))))))))))),"") -> 
B94: =IF('Raw Set and Haul Details'!$B94="","",'Raw Set and Haul Details'!$B94) ->  | C94: =IF(B94="","",IF('Raw Set and Haul Details'!$E94<0,-1*(ABS('Raw Set and Haul Details'!$E94)+('Raw Set and Haul Details'!$F94/60)),ABS('Raw Set and Haul Details'!$E94)+('Raw Set and Haul Details'!$F94/60))) ->  | D94: =IF(B94="","",IF('Raw Set and Haul Details'!$G94<0,-1*(ABS('Raw Set and Haul Details'!$G94)+('Raw Set and Haul Details'!$H94/60)),'Raw Set and Haul Details'!$G94+('Raw Set and Haul Details'!$H94/60))) ->  | E94: =IFERROR(IF(AND(ABS(C94)>=45,ABS(C94)<=50,D94>=30,D94<=44),"587",IF(AND(ABS(C94)>=45,ABS(C94)<=50,D94>=44,D94<=60),"586",IF(AND(ABS(C94)>=50,ABS(C94)<=62,D94>=30,D94<=43),"5844a",IF(AND(ABS(C94)>=50,ABS(C94)<=62,D94>=43,D94<=60),"5844b",IF(AND(ABS(C94)<=50,(D94)<=30,D94>=(-50)),"47",IF(AND(ABS(C94)<=45,D94>=30,D94<=80),"51",IF(AND(ABS(C94)>=62,D94>=30,D94<=80),"5842",IF(AND(ABS(C94)>=50,D94<=30,D94>=(-20)),"486",IF(AND(ABS(C94)>=50,ABS(C94)<=64,D94<=(-20),D94>=(-30)),"484",IF(AND(ABS(C94)>=50,ABS(C94)<=57,D94<=(-30),D94>=(-50)),"483",IF(AND(ABS(C94)>57,ABS(C94)<=64,D94<(-30),D94>=(-50)),"482",IF(AND(ABS(C94)>64,D94<=(-20),D94>(-60)),"485",IF(AND(ABS(C94)>=60,D94<=(-50),D94>=(-70)),"481",IF(AND(ABS(C94)<60,D94<=(-50),D94>=(-70)),"41",IF(AND(SUBSTITUTE('Raw Set and Haul Details'!D$41,".","")="5851",C$3="FRA"),"5851",IF(AND(SUBSTITUTE('Raw Set and Haul Details'!D$41,".","")="5852",C$3="AUS"),"5852",IF(AND(ABS(C94)>=56,ABS(C94)<=62,D94>60,D94<=73.17),"5843a",IF(AND(ABS(C94)>=55,ABS(C94)<=64,D94>=73.17,D94<=86),"5843b",IF(AND(ABS(C94)>=55,D94>80,D94<=150),"5841",IF(AND(ABS(C94)<55,D94>80,D94<=150),"57",IF(AND(ABS(C94)>=60,ABS(C94)<=65,D94>=150,D94<180),"881",IF(AND(ABS(C94)>65,D94>=150,D94<180),"881",IF(AND(ABS(C94)>=60,D94>=(-180),D94<=(-170),ABS(C94)<=65),"881",IF(AND(ABS(C94)>65,D94>=(-180),D94<=(-170)),"881",IF(AND(ABS(C94)>=60,D94>(-170),D94<(-105)),"882",IF(AND(ABS(C94)>=60,D94>(-105),D94<(-70)),"883",IF(AND(ABS(C94)<60,D94>(-180),D94<(-110)),"81",IF(AND(ABS(C94)<60,D94<180,D94>=150),"81",IF(AND(ABS(C94)<60,D94>=(-110),D94<=(-50)),"87",IF(AND(ABS(C94)<=(53+(14/60)),ABS(C94)>=45,D94>60,D94<=70),"5851",IF(AND(ABS(C94)<(49+(24/60)),ABS(C94)>=45,D94>=70,D94<80),"5851",IF(AND(ABS(C94)>=(53+(14/60)),ABS(C94)<56,D94>=60,D94<=80),"5852","")))))))))))))))))))))))))))))))),"") -> 
B95: =IF('Raw Set and Haul Details'!$B95="","",'Raw Set and Haul Details'!$B95) ->  | C95: =IF(B95="","",IF('Raw Set and Haul Details'!$E95<0,-1*(ABS('Raw Set and Haul Details'!$E95)+('Raw Set and Haul Details'!$F95/60)),ABS('Raw Set and Haul Details'!$E95)+('Raw Set and Haul Details'!$F95/60))) ->  | D95: =IF(B95="","",IF('Raw Set and Haul Details'!$G95<0,-1*(ABS('Raw Set and Haul Details'!$G95)+('Raw Set and Haul Details'!$H95/60)),'Raw Set and Haul Details'!$G95+('Raw Set and Haul Details'!$H95/60))) ->  | E95: =IFERROR(IF(AND(ABS(C95)>=45,ABS(C95)<=50,D95>=30,D95<=44),"587",IF(AND(ABS(C95)>=45,ABS(C95)<=50,D95>=44,D95<=60),"586",IF(AND(ABS(C95)>=50,ABS(C95)<=62,D95>=30,D95<=43),"5844a",IF(AND(ABS(C95)>=50,ABS(C95)<=62,D95>=43,D95<=60),"5844b",IF(AND(ABS(C95)<=50,(D95)<=30,D95>=(-50)),"47",IF(AND(ABS(C95)<=45,D95>=30,D95<=80),"51",IF(AND(ABS(C95)>=62,D95>=30,D95<=80),"5842",IF(AND(ABS(C95)>=50,D95<=30,D95>=(-20)),"486",IF(AND(ABS(C95)>=50,ABS(C95)<=64,D95<=(-20),D95>=(-30)),"484",IF(AND(ABS(C95)>=50,ABS(C95)<=57,D95<=(-30),D95>=(-50)),"483",IF(AND(ABS(C95)>57,ABS(C95)<=64,D95<(-30),D95>=(-50)),"482",IF(AND(ABS(C95)>64,D95<=(-20),D95>(-60)),"485",IF(AND(ABS(C95)>=60,D95<=(-50),D95>=(-70)),"481",IF(AND(ABS(C95)<60,D95<=(-50),D95>=(-70)),"41",IF(AND(SUBSTITUTE('Raw Set and Haul Details'!D$41,".","")="5851",C$3="FRA"),"5851",IF(AND(SUBSTITUTE('Raw Set and Haul Details'!D$41,".","")="5852",C$3="AUS"),"5852",IF(AND(ABS(C95)>=56,ABS(C95)<=62,D95>60,D95<=73.17),"5843a",IF(AND(ABS(C95)>=55,ABS(C95)<=64,D95>=73.17,D95<=86),"5843b",IF(AND(ABS(C95)>=55,D95>80,D95<=150),"5841",IF(AND(ABS(C95)<55,D95>80,D95<=150),"57",IF(AND(ABS(C95)>=60,ABS(C95)<=65,D95>=150,D95<180),"881",IF(AND(ABS(C95)>65,D95>=150,D95<180),"881",IF(AND(ABS(C95)>=60,D95>=(-180),D95<=(-170),ABS(C95)<=65),"881",IF(AND(ABS(C95)>65,D95>=(-180),D95<=(-170)),"881",IF(AND(ABS(C95)>=60,D95>(-170),D95<(-105)),"882",IF(AND(ABS(C95)>=60,D95>(-105),D95<(-70)),"883",IF(AND(ABS(C95)<60,D95>(-180),D95<(-110)),"81",IF(AND(ABS(C95)<60,D95<180,D95>=150),"81",IF(AND(ABS(C95)<60,D95>=(-110),D95<=(-50)),"87",IF(AND(ABS(C95)<=(53+(14/60)),ABS(C95)>=45,D95>60,D95<=70),"5851",IF(AND(ABS(C95)<(49+(24/60)),ABS(C95)>=45,D95>=70,D95<80),"5851",IF(AND(ABS(C95)>=(53+(14/60)),ABS(C95)<56,D95>=60,D95<=80),"5852","")))))))))))))))))))))))))))))))),"") -> 
B96: =IF('Raw Set and Haul Details'!$B96="","",'Raw Set and Haul Details'!$B96) ->  | C96: =IF(B96="","",IF('Raw Set and Haul Details'!$E96<0,-1*(ABS('Raw Set and Haul Details'!$E96)+('Raw Set and Haul Details'!$F96/60)),ABS('Raw Set and Haul Details'!$E96)+('Raw Set and Haul Details'!$F96/60))) ->  | D96: =IF(B96="","",IF('Raw Set and Haul Details'!$G96<0,-1*(ABS('Raw Set and Haul Details'!$G96)+('Raw Set and Haul Details'!$H96/60)),'Raw Set and Haul Details'!$G96+('Raw Set and Haul Details'!$H96/60))) ->  | E96: =IFERROR(IF(AND(ABS(C96)>=45,ABS(C96)<=50,D96>=30,D96<=44),"587",IF(AND(ABS(C96)>=45,ABS(C96)<=50,D96>=44,D96<=60),"586",IF(AND(ABS(C96)>=50,ABS(C96)<=62,D96>=30,D96<=43),"5844a",IF(AND(ABS(C96)>=50,ABS(C96)<=62,D96>=43,D96<=60),"5844b",IF(AND(ABS(C96)<=50,(D96)<=30,D96>=(-50)),"47",IF(AND(ABS(C96)<=45,D96>=30,D96<=80),"51",IF(AND(ABS(C96)>=62,D96>=30,D96<=80),"5842",IF(AND(ABS(C96)>=50,D96<=30,D96>=(-20)),"486",IF(AND(ABS(C96)>=50,ABS(C96)<=64,D96<=(-20),D96>=(-30)),"484",IF(AND(ABS(C96)>=50,ABS(C96)<=57,D96<=(-30),D96>=(-50)),"483",IF(AND(ABS(C96)>57,ABS(C96)<=64,D96<(-30),D96>=(-50)),"482",IF(AND(ABS(C96)>64,D96<=(-20),D96>(-60)),"485",IF(AND(ABS(C96)>=60,D96<=(-50),D96>=(-70)),"481",IF(AND(ABS(C96)<60,D96<=(-50),D96>=(-70)),"41",IF(AND(SUBSTITUTE('Raw Set and Haul Details'!D$41,".","")="5851",C$3="FRA"),"5851",IF(AND(SUBSTITUTE('Raw Set and Haul Details'!D$41,".","")="5852",C$3="AUS"),"5852",IF(AND(ABS(C96)>=56,ABS(C96)<=62,D96>60,D96<=73.17),"5843a",IF(AND(ABS(C96)>=55,ABS(C96)<=64,D96>=73.17,D96<=86),"5843b",IF(AND(ABS(C96)>=55,D96>80,D96<=150),"5841",IF(AND(ABS(C96)<55,D96>80,D96<=150),"57",IF(AND(ABS(C96)>=60,ABS(C96)<=65,D96>=150,D96<180),"881",IF(AND(ABS(C96)>65,D96>=150,D96<180),"881",IF(AND(ABS(C96)>=60,D96>=(-180),D96<=(-170),ABS(C96)<=65),"881",IF(AND(ABS(C96)>65,D96>=(-180),D96<=(-170)),"881",IF(AND(ABS(C96)>=60,D96>(-170),D96<(-105)),"882",IF(AND(ABS(C96)>=60,D96>(-105),D96<(-70)),"883",IF(AND(ABS(C96)<60,D96>(-180),D96<(-110)),"81",IF(AND(ABS(C96)<60,D96<180,D96>=150),"81",IF(AND(ABS(C96)<60,D96>=(-110),D96<=(-50)),"87",IF(AND(ABS(C96)<=(53+(14/60)),ABS(C96)>=45,D96>60,D96<=70),"5851",IF(AND(ABS(C96)<(49+(24/60)),ABS(C96)>=45,D96>=70,D96<80),"5851",IF(AND(ABS(C96)>=(53+(14/60)),ABS(C96)<56,D96>=60,D96<=80),"5852","")))))))))))))))))))))))))))))))),"") -> 
B97: =IF('Raw Set and Haul Details'!$B97="","",'Raw Set and Haul Details'!$B97) ->  | C97: =IF(B97="","",IF('Raw Set and Haul Details'!$E97<0,-1*(ABS('Raw Set and Haul Details'!$E97)+('Raw Set and Haul Details'!$F97/60)),ABS('Raw Set and Haul Details'!$E97)+('Raw Set and Haul Details'!$F97/60))) ->  | D97: =IF(B97="","",IF('Raw Set and Haul Details'!$G97<0,-1*(ABS('Raw Set and Haul Details'!$G97)+('Raw Set and Haul Details'!$H97/60)),'Raw Set and Haul Details'!$G97+('Raw Set and Haul Details'!$H97/60))) ->  | E97: =IFERROR(IF(AND(ABS(C97)>=45,ABS(C97)<=50,D97>=30,D97<=44),"587",IF(AND(ABS(C97)>=45,ABS(C97)<=50,D97>=44,D97<=60),"586",IF(AND(ABS(C97)>=50,ABS(C97)<=62,D97>=30,D97<=43),"5844a",IF(AND(ABS(C97)>=50,ABS(C97)<=62,D97>=43,D97<=60),"5844b",IF(AND(ABS(C97)<=50,(D97)<=30,D97>=(-50)),"47",IF(AND(ABS(C97)<=45,D97>=30,D97<=80),"51",IF(AND(ABS(C97)>=62,D97>=30,D97<=80),"5842",IF(AND(ABS(C97)>=50,D97<=30,D97>=(-20)),"486",IF(AND(ABS(C97)>=50,ABS(C97)<=64,D97<=(-20),D97>=(-30)),"484",IF(AND(ABS(C97)>=50,ABS(C97)<=57,D97<=(-30),D97>=(-50)),"483",IF(AND(ABS(C97)>57,ABS(C97)<=64,D97<(-30),D97>=(-50)),"482",IF(AND(ABS(C97)>64,D97<=(-20),D97>(-60)),"485",IF(AND(ABS(C97)>=60,D97<=(-50),D97>=(-70)),"481",IF(AND(ABS(C97)<60,D97<=(-50),D97>=(-70)),"41",IF(AND(SUBSTITUTE('Raw Set and Haul Details'!D$41,".","")="5851",C$3="FRA"),"5851",IF(AND(SUBSTITUTE('Raw Set and Haul Details'!D$41,".","")="5852",C$3="AUS"),"5852",IF(AND(ABS(C97)>=56,ABS(C97)<=62,D97>60,D97<=73.17),"5843a",IF(AND(ABS(C97)>=55,ABS(C97)<=64,D97>=73.17,D97<=86),"5843b",IF(AND(ABS(C97)>=55,D97>80,D97<=150),"5841",IF(AND(ABS(C97)<55,D97>80,D97<=150),"57",IF(AND(ABS(C97)>=60,ABS(C97)<=65,D97>=150,D97<180),"881",IF(AND(ABS(C97)>65,D97>=150,D97<180),"881",IF(AND(ABS(C97)>=60,D97>=(-180),D97<=(-170),ABS(C97)<=65),"881",IF(AND(ABS(C97)>65,D97>=(-180),D97<=(-170)),"881",IF(AND(ABS(C97)>=60,D97>(-170),D97<(-105)),"882",IF(AND(ABS(C97)>=60,D97>(-105),D97<(-70)),"883",IF(AND(ABS(C97)<60,D97>(-180),D97<(-110)),"81",IF(AND(ABS(C97)<60,D97<180,D97>=150),"81",IF(AND(ABS(C97)<60,D97>=(-110),D97<=(-50)),"87",IF(AND(ABS(C97)<=(53+(14/60)),ABS(C97)>=45,D97>60,D97<=70),"5851",IF(AND(ABS(C97)<(49+(24/60)),ABS(C97)>=45,D97>=70,D97<80),"5851",IF(AND(ABS(C97)>=(53+(14/60)),ABS(C97)<56,D97>=60,D97<=80),"5852","")))))))))))))))))))))))))))))))),"") -> 
B98: =IF('Raw Set and Haul Details'!$B98="","",'Raw Set and Haul Details'!$B98) ->  | C98: =IF(B98="","",IF('Raw Set and Haul Details'!$E98<0,-1*(ABS('Raw Set and Haul Details'!$E98)+('Raw Set and Haul Details'!$F98/60)),ABS('Raw Set and Haul Details'!$E98)+('Raw Set and Haul Details'!$F98/60))) ->  | D98: =IF(B98="","",IF('Raw Set and Haul Details'!$G98<0,-1*(ABS('Raw Set and Haul Details'!$G98)+('Raw Set and Haul Details'!$H98/60)),'Raw Set and Haul Details'!$G98+('Raw Set and Haul Details'!$H98/60))) ->  | E98: =IFERROR(IF(AND(ABS(C98)>=45,ABS(C98)<=50,D98>=30,D98<=44),"587",IF(AND(ABS(C98)>=45,ABS(C98)<=50,D98>=44,D98<=60),"586",IF(AND(ABS(C98)>=50,ABS(C98)<=62,D98>=30,D98<=43),"5844a",IF(AND(ABS(C98)>=50,ABS(C98)<=62,D98>=43,D98<=60),"5844b",IF(AND(ABS(C98)<=50,(D98)<=30,D98>=(-50)),"47",IF(AND(ABS(C98)<=45,D98>=30,D98<=80),"51",IF(AND(ABS(C98)>=62,D98>=30,D98<=80),"5842",IF(AND(ABS(C98)>=50,D98<=30,D98>=(-20)),"486",IF(AND(ABS(C98)>=50,ABS(C98)<=64,D98<=(-20),D98>=(-30)),"484",IF(AND(ABS(C98)>=50,ABS(C98)<=57,D98<=(-30),D98>=(-50)),"483",IF(AND(ABS(C98)>57,ABS(C98)<=64,D98<(-30),D98>=(-50)),"482",IF(AND(ABS(C98)>64,D98<=(-20),D98>(-60)),"485",IF(AND(ABS(C98)>=60,D98<=(-50),D98>=(-70)),"481",IF(AND(ABS(C98)<60,D98<=(-50),D98>=(-70)),"41",IF(AND(SUBSTITUTE('Raw Set and Haul Details'!D$41,".","")="5851",C$3="FRA"),"5851",IF(AND(SUBSTITUTE('Raw Set and Haul Details'!D$41,".","")="5852",C$3="AUS"),"5852",IF(AND(ABS(C98)>=56,ABS(C98)<=62,D98>60,D98<=73.17),"5843a",IF(AND(ABS(C98)>=55,ABS(C98)<=64,D98>=73.17,D98<=86),"5843b",IF(AND(ABS(C98)>=55,D98>80,D98<=150),"5841",IF(AND(ABS(C98)<55,D98>80,D98<=150),"57",IF(AND(ABS(C98)>=60,ABS(C98)<=65,D98>=150,D98<180),"881",IF(AND(ABS(C98)>65,D98>=150,D98<180),"881",IF(AND(ABS(C98)>=60,D98>=(-180),D98<=(-170),ABS(C98)<=65),"881",IF(AND(ABS(C98)>65,D98>=(-180),D98<=(-170)),"881",IF(AND(ABS(C98)>=60,D98>(-170),D98<(-105)),"882",IF(AND(ABS(C98)>=60,D98>(-105),D98<(-70)),"883",IF(AND(ABS(C98)<60,D98>(-180),D98<(-110)),"81",IF(AND(ABS(C98)<60,D98<180,D98>=150),"81",IF(AND(ABS(C98)<60,D98>=(-110),D98<=(-50)),"87",IF(AND(ABS(C98)<=(53+(14/60)),ABS(C98)>=45,D98>60,D98<=70),"5851",IF(AND(ABS(C98)<(49+(24/60)),ABS(C98)>=45,D98>=70,D98<80),"5851",IF(AND(ABS(C98)>=(53+(14/60)),ABS(C98)<56,D98>=60,D98<=80),"5852","")))))))))))))))))))))))))))))))),"") -> 
B99: =IF('Raw Set and Haul Details'!$B99="","",'Raw Set and Haul Details'!$B99) ->  | C99: =IF(B99="","",IF('Raw Set and Haul Details'!$E99<0,-1*(ABS('Raw Set and Haul Details'!$E99)+('Raw Set and Haul Details'!$F99/60)),ABS('Raw Set and Haul Details'!$E99)+('Raw Set and Haul Details'!$F99/60))) ->  | D99: =IF(B99="","",IF('Raw Set and Haul Details'!$G99<0,-1*(ABS('Raw Set and Haul Details'!$G99)+('Raw Set and Haul Details'!$H99/60)),'Raw Set and Haul Details'!$G99+('Raw Set and Haul Details'!$H99/60))) ->  | E99: =IFERROR(IF(AND(ABS(C99)>=45,ABS(C99)<=50,D99>=30,D99<=44),"587",IF(AND(ABS(C99)>=45,ABS(C99)<=50,D99>=44,D99<=60),"586",IF(AND(ABS(C99)>=50,ABS(C99)<=62,D99>=30,D99<=43),"5844a",IF(AND(ABS(C99)>=50,ABS(C99)<=62,D99>=43,D99<=60),"5844b",IF(AND(ABS(C99)<=50,(D99)<=30,D99>=(-50)),"47",IF(AND(ABS(C99)<=45,D99>=30,D99<=80),"51",IF(AND(ABS(C99)>=62,D99>=30,D99<=80),"5842",IF(AND(ABS(C99)>=50,D99<=30,D99>=(-20)),"486",IF(AND(ABS(C99)>=50,ABS(C99)<=64,D99<=(-20),D99>=(-30)),"484",IF(AND(ABS(C99)>=50,ABS(C99)<=57,D99<=(-30),D99>=(-50)),"483",IF(AND(ABS(C99)>57,ABS(C99)<=64,D99<(-30),D99>=(-50)),"482",IF(AND(ABS(C99)>64,D99<=(-20),D99>(-60)),"485",IF(AND(ABS(C99)>=60,D99<=(-50),D99>=(-70)),"481",IF(AND(ABS(C99)<60,D99<=(-50),D99>=(-70)),"41",IF(AND(SUBSTITUTE('Raw Set and Haul Details'!D$41,".","")="5851",C$3="FRA"),"5851",IF(AND(SUBSTITUTE('Raw Set and Haul Details'!D$41,".","")="5852",C$3="AUS"),"5852",IF(AND(ABS(C99)>=56,ABS(C99)<=62,D99>60,D99<=73.17),"5843a",IF(AND(ABS(C99)>=55,ABS(C99)<=64,D99>=73.17,D99<=86),"5843b",IF(AND(ABS(C99)>=55,D99>80,D99<=150),"5841",IF(AND(ABS(C99)<55,D99>80,D99<=150),"57",IF(AND(ABS(C99)>=60,ABS(C99)<=65,D99>=150,D99<180),"881",IF(AND(ABS(C99)>65,D99>=150,D99<180),"881",IF(AND(ABS(C99)>=60,D99>=(-180),D99<=(-170),ABS(C99)<=65),"881",IF(AND(ABS(C99)>65,D99>=(-180),D99<=(-170)),"881",IF(AND(ABS(C99)>=60,D99>(-170),D99<(-105)),"882",IF(AND(ABS(C99)>=60,D99>(-105),D99<(-70)),"883",IF(AND(ABS(C99)<60,D99>(-180),D99<(-110)),"81",IF(AND(ABS(C99)<60,D99<180,D99>=150),"81",IF(AND(ABS(C99)<60,D99>=(-110),D99<=(-50)),"87",IF(AND(ABS(C99)<=(53+(14/60)),ABS(C99)>=45,D99>60,D99<=70),"5851",IF(AND(ABS(C99)<(49+(24/60)),ABS(C99)>=45,D99>=70,D99<80),"5851",IF(AND(ABS(C99)>=(53+(14/60)),ABS(C99)<56,D99>=60,D99<=80),"5852","")))))))))))))))))))))))))))))))),"") -> 
B100: =IF('Raw Set and Haul Details'!$B100="","",'Raw Set and Haul Details'!$B100) ->  | C100: =IF(B100="","",IF('Raw Set and Haul Details'!$E100<0,-1*(ABS('Raw Set and Haul Details'!$E100)+('Raw Set and Haul Details'!$F100/60)),ABS('Raw Set and Haul Details'!$E100)+('Raw Set and Haul Details'!$F100/60))) ->  | D100: =IF(B100="","",IF('Raw Set and Haul Details'!$G100<0,-1*(ABS('Raw Set and Haul Details'!$G100)+('Raw Set and Haul Details'!$H100/60)),'Raw Set and Haul Details'!$G100+('Raw Set and Haul Details'!$H100/60))) ->  | E100: =IFERROR(IF(AND(ABS(C100)>=45,ABS(C100)<=50,D100>=30,D100<=44),"587",IF(AND(ABS(C100)>=45,ABS(C100)<=50,D100>=44,D100<=60),"586",IF(AND(ABS(C100)>=50,ABS(C100)<=62,D100>=30,D100<=43),"5844a",IF(AND(ABS(C100)>=50,ABS(C100)<=62,D100>=43,D100<=60),"5844b",IF(AND(ABS(C100)<=50,(D100)<=30,D100>=(-50)),"47",IF(AND(ABS(C100)<=45,D100>=30,D100<=80),"51",IF(AND(ABS(C100)>=62,D100>=30,D100<=80),"5842",IF(AND(ABS(C100)>=50,D100<=30,D100>=(-20)),"486",IF(AND(ABS(C100)>=50,ABS(C100)<=64,D100<=(-20),D100>=(-30)),"484",IF(AND(ABS(C100)>=50,ABS(C100)<=57,D100<=(-30),D100>=(-50)),"483",IF(AND(ABS(C100)>57,ABS(C100)<=64,D100<(-30),D100>=(-50)),"482",IF(AND(ABS(C100)>64,D100<=(-20),D100>(-60)),"485",IF(AND(ABS(C100)>=60,D100<=(-50),D100>=(-70)),"481",IF(AND(ABS(C100)<60,D100<=(-50),D100>=(-70)),"41",IF(AND(SUBSTITUTE('Raw Set and Haul Details'!D$41,".","")="5851",C$3="FRA"),"5851",IF(AND(SUBSTITUTE('Raw Set and Haul Details'!D$41,".","")="5852",C$3="AUS"),"5852",IF(AND(ABS(C100)>=56,ABS(C100)<=62,D100>60,D100<=73.17),"5843a",IF(AND(ABS(C100)>=55,ABS(C100)<=64,D100>=73.17,D100<=86),"5843b",IF(AND(ABS(C100)>=55,D100>80,D100<=150),"5841",IF(AND(ABS(C100)<55,D100>80,D100<=150),"57",IF(AND(ABS(C100)>=60,ABS(C100)<=65,D100>=150,D100<180),"881",IF(AND(ABS(C100)>65,D100>=150,D100<180),"881",IF(AND(ABS(C100)>=60,D100>=(-180),D100<=(-170),ABS(C100)<=65),"881",IF(AND(ABS(C100)>65,D100>=(-180),D100<=(-170)),"881",IF(AND(ABS(C100)>=60,D100>(-170),D100<(-105)),"882",IF(AND(ABS(C100)>=60,D100>(-105),D100<(-70)),"883",IF(AND(ABS(C100)<60,D100>(-180),D100<(-110)),"81",IF(AND(ABS(C100)<60,D100<180,D100>=150),"81",IF(AND(ABS(C100)<60,D100>=(-110),D100<=(-50)),"87",IF(AND(ABS(C100)<=(53+(14/60)),ABS(C100)>=45,D100>60,D100<=70),"5851",IF(AND(ABS(C100)<(49+(24/60)),ABS(C100)>=45,D100>=70,D100<80),"5851",IF(AND(ABS(C100)>=(53+(14/60)),ABS(C100)<56,D100>=60,D100<=80),"5852","")))))))))))))))))))))))))))))))),"") -> 
B101: =IF('Raw Set and Haul Details'!$B101="","",'Raw Set and Haul Details'!$B101) ->  | C101: =IF(B101="","",IF('Raw Set and Haul Details'!$E101<0,-1*(ABS('Raw Set and Haul Details'!$E101)+('Raw Set and Haul Details'!$F101/60)),ABS('Raw Set and Haul Details'!$E101)+('Raw Set and Haul Details'!$F101/60))) ->  | D101: =IF(B101="","",IF('Raw Set and Haul Details'!$G101<0,-1*(ABS('Raw Set and Haul Details'!$G101)+('Raw Set and Haul Details'!$H101/60)),'Raw Set and Haul Details'!$G101+('Raw Set and Haul Details'!$H101/60))) ->  | E101: =IFERROR(IF(AND(ABS(C101)>=45,ABS(C101)<=50,D101>=30,D101<=44),"587",IF(AND(ABS(C101)>=45,ABS(C101)<=50,D101>=44,D101<=60),"586",IF(AND(ABS(C101)>=50,ABS(C101)<=62,D101>=30,D101<=43),"5844a",IF(AND(ABS(C101)>=50,ABS(C101)<=62,D101>=43,D101<=60),"5844b",IF(AND(ABS(C101)<=50,(D101)<=30,D101>=(-50)),"47",IF(AND(ABS(C101)<=45,D101>=30,D101<=80),"51",IF(AND(ABS(C101)>=62,D101>=30,D101<=80),"5842",IF(AND(ABS(C101)>=50,D101<=30,D101>=(-20)),"486",IF(AND(ABS(C101)>=50,ABS(C101)<=64,D101<=(-20),D101>=(-30)),"484",IF(AND(ABS(C101)>=50,ABS(C101)<=57,D101<=(-30),D101>=(-50)),"483",IF(AND(ABS(C101)>57,ABS(C101)<=64,D101<(-30),D101>=(-50)),"482",IF(AND(ABS(C101)>64,D101<=(-20),D101>(-60)),"485",IF(AND(ABS(C101)>=60,D101<=(-50),D101>=(-70)),"481",IF(AND(ABS(C101)<60,D101<=(-50),D101>=(-70)),"41",IF(AND(SUBSTITUTE('Raw Set and Haul Details'!D$41,".","")="5851",C$3="FRA"),"5851",IF(AND(SUBSTITUTE('Raw Set and Haul Details'!D$41,".","")="5852",C$3="AUS"),"5852",IF(AND(ABS(C101)>=56,ABS(C101)<=62,D101>60,D101<=73.17),"5843a",IF(AND(ABS(C101)>=55,ABS(C101)<=64,D101>=73.17,D101<=86),"5843b",IF(AND(ABS(C101)>=55,D101>80,D101<=150),"5841",IF(AND(ABS(C101)<55,D101>80,D101<=150),"57",IF(AND(ABS(C101)>=60,ABS(C101)<=65,D101>=150,D101<180),"881",IF(AND(ABS(C101)>65,D101>=150,D101<180),"881",IF(AND(ABS(C101)>=60,D101>=(-180),D101<=(-170),ABS(C101)<=65),"881",IF(AND(ABS(C101)>65,D101>=(-180),D101<=(-170)),"881",IF(AND(ABS(C101)>=60,D101>(-170),D101<(-105)),"882",IF(AND(ABS(C101)>=60,D101>(-105),D101<(-70)),"883",IF(AND(ABS(C101)<60,D101>(-180),D101<(-110)),"81",IF(AND(ABS(C101)<60,D101<180,D101>=150),"81",IF(AND(ABS(C101)<60,D101>=(-110),D101<=(-50)),"87",IF(AND(ABS(C101)<=(53+(14/60)),ABS(C101)>=45,D101>60,D101<=70),"5851",IF(AND(ABS(C101)<(49+(24/60)),ABS(C101)>=45,D101>=70,D101<80),"5851",IF(AND(ABS(C101)>=(53+(14/60)),ABS(C101)<56,D101>=60,D101<=80),"5852","")))))))))))))))))))))))))))))))),"") -> 
B102: =IF('Raw Set and Haul Details'!$B102="","",'Raw Set and Haul Details'!$B102) ->  | C102: =IF(B102="","",IF('Raw Set and Haul Details'!$E102<0,-1*(ABS('Raw Set and Haul Details'!$E102)+('Raw Set and Haul Details'!$F102/60)),ABS('Raw Set and Haul Details'!$E102)+('Raw Set and Haul Details'!$F102/60))) ->  | D102: =IF(B102="","",IF('Raw Set and Haul Details'!$G102<0,-1*(ABS('Raw Set and Haul Details'!$G102)+('Raw Set and Haul Details'!$H102/60)),'Raw Set and Haul Details'!$G102+('Raw Set and Haul Details'!$H102/60))) ->  | E102: =IFERROR(IF(AND(ABS(C102)>=45,ABS(C102)<=50,D102>=30,D102<=44),"587",IF(AND(ABS(C102)>=45,ABS(C102)<=50,D102>=44,D102<=60),"586",IF(AND(ABS(C102)>=50,ABS(C102)<=62,D102>=30,D102<=43),"5844a",IF(AND(ABS(C102)>=50,ABS(C102)<=62,D102>=43,D102<=60),"5844b",IF(AND(ABS(C102)<=50,(D102)<=30,D102>=(-50)),"47",IF(AND(ABS(C102)<=45,D102>=30,D102<=80),"51",IF(AND(ABS(C102)>=62,D102>=30,D102<=80),"5842",IF(AND(ABS(C102)>=50,D102<=30,D102>=(-20)),"486",IF(AND(ABS(C102)>=50,ABS(C102)<=64,D102<=(-20),D102>=(-30)),"484",IF(AND(ABS(C102)>=50,ABS(C102)<=57,D102<=(-30),D102>=(-50)),"483",IF(AND(ABS(C102)>57,ABS(C102)<=64,D102<(-30),D102>=(-50)),"482",IF(AND(ABS(C102)>64,D102<=(-20),D102>(-60)),"485",IF(AND(ABS(C102)>=60,D102<=(-50),D102>=(-70)),"481",IF(AND(ABS(C102)<60,D102<=(-50),D102>=(-70)),"41",IF(AND(SUBSTITUTE('Raw Set and Haul Details'!D$41,".","")="5851",C$3="FRA"),"5851",IF(AND(SUBSTITUTE('Raw Set and Haul Details'!D$41,".","")="5852",C$3="AUS"),"5852",IF(AND(ABS(C102)>=56,ABS(C102)<=62,D102>60,D102<=73.17),"5843a",IF(AND(ABS(C102)>=55,ABS(C102)<=64,D102>=73.17,D102<=86),"5843b",IF(AND(ABS(C102)>=55,D102>80,D102<=150),"5841",IF(AND(ABS(C102)<55,D102>80,D102<=150),"57",IF(AND(ABS(C102)>=60,ABS(C102)<=65,D102>=150,D102<180),"881",IF(AND(ABS(C102)>65,D102>=150,D102<180),"881",IF(AND(ABS(C102)>=60,D102>=(-180),D102<=(-170),ABS(C102)<=65),"881",IF(AND(ABS(C102)>65,D102>=(-180),D102<=(-170)),"881",IF(AND(ABS(C102)>=60,D102>(-170),D102<(-105)),"882",IF(AND(ABS(C102)>=60,D102>(-105),D102<(-70)),"883",IF(AND(ABS(C102)<60,D102>(-180),D102<(-110)),"81",IF(AND(ABS(C102)<60,D102<180,D102>=150),"81",IF(AND(ABS(C102)<60,D102>=(-110),D102<=(-50)),"87",IF(AND(ABS(C102)<=(53+(14/60)),ABS(C102)>=45,D102>60,D102<=70),"5851",IF(AND(ABS(C102)<(49+(24/60)),ABS(C102)>=45,D102>=70,D102<80),"5851",IF(AND(ABS(C102)>=(53+(14/60)),ABS(C102)<56,D102>=60,D102<=80),"5852","")))))))))))))))))))))))))))))))),"") -> 
B103: =IF('Raw Set and Haul Details'!$B103="","",'Raw Set and Haul Details'!$B103) ->  | C103: =IF(B103="","",IF('Raw Set and Haul Details'!$E103<0,-1*(ABS('Raw Set and Haul Details'!$E103)+('Raw Set and Haul Details'!$F103/60)),ABS('Raw Set and Haul Details'!$E103)+('Raw Set and Haul Details'!$F103/60))) ->  | D103: =IF(B103="","",IF('Raw Set and Haul Details'!$G103<0,-1*(ABS('Raw Set and Haul Details'!$G103)+('Raw Set and Haul Details'!$H103/60)),'Raw Set and Haul Details'!$G103+('Raw Set and Haul Details'!$H103/60))) ->  | E103: =IFERROR(IF(AND(ABS(C103)>=45,ABS(C103)<=50,D103>=30,D103<=44),"587",IF(AND(ABS(C103)>=45,ABS(C103)<=50,D103>=44,D103<=60),"586",IF(AND(ABS(C103)>=50,ABS(C103)<=62,D103>=30,D103<=43),"5844a",IF(AND(ABS(C103)>=50,ABS(C103)<=62,D103>=43,D103<=60),"5844b",IF(AND(ABS(C103)<=50,(D103)<=30,D103>=(-50)),"47",IF(AND(ABS(C103)<=45,D103>=30,D103<=80),"51",IF(AND(ABS(C103)>=62,D103>=30,D103<=80),"5842",IF(AND(ABS(C103)>=50,D103<=30,D103>=(-20)),"486",IF(AND(ABS(C103)>=50,ABS(C103)<=64,D103<=(-20),D103>=(-30)),"484",IF(AND(ABS(C103)>=50,ABS(C103)<=57,D103<=(-30),D103>=(-50)),"483",IF(AND(ABS(C103)>57,ABS(C103)<=64,D103<(-30),D103>=(-50)),"482",IF(AND(ABS(C103)>64,D103<=(-20),D103>(-60)),"485",IF(AND(ABS(C103)>=60,D103<=(-50),D103>=(-70)),"481",IF(AND(ABS(C103)<60,D103<=(-50),D103>=(-70)),"41",IF(AND(SUBSTITUTE('Raw Set and Haul Details'!D$41,".","")="5851",C$3="FRA"),"5851",IF(AND(SUBSTITUTE('Raw Set and Haul Details'!D$41,".","")="5852",C$3="AUS"),"5852",IF(AND(ABS(C103)>=56,ABS(C103)<=62,D103>60,D103<=73.17),"5843a",IF(AND(ABS(C103)>=55,ABS(C103)<=64,D103>=73.17,D103<=86),"5843b",IF(AND(ABS(C103)>=55,D103>80,D103<=150),"5841",IF(AND(ABS(C103)<55,D103>80,D103<=150),"57",IF(AND(ABS(C103)>=60,ABS(C103)<=65,D103>=150,D103<180),"881",IF(AND(ABS(C103)>65,D103>=150,D103<180),"881",IF(AND(ABS(C103)>=60,D103>=(-180),D103<=(-170),ABS(C103)<=65),"881",IF(AND(ABS(C103)>65,D103>=(-180),D103<=(-170)),"881",IF(AND(ABS(C103)>=60,D103>(-170),D103<(-105)),"882",IF(AND(ABS(C103)>=60,D103>(-105),D103<(-70)),"883",IF(AND(ABS(C103)<60,D103>(-180),D103<(-110)),"81",IF(AND(ABS(C103)<60,D103<180,D103>=150),"81",IF(AND(ABS(C103)<60,D103>=(-110),D103<=(-50)),"87",IF(AND(ABS(C103)<=(53+(14/60)),ABS(C103)>=45,D103>60,D103<=70),"5851",IF(AND(ABS(C103)<(49+(24/60)),ABS(C103)>=45,D103>=70,D103<80),"5851",IF(AND(ABS(C103)>=(53+(14/60)),ABS(C103)<56,D103>=60,D103<=80),"5852","")))))))))))))))))))))))))))))))),"") -> 
B104: =IF('Raw Set and Haul Details'!$B104="","",'Raw Set and Haul Details'!$B104) ->  | C104: =IF(B104="","",IF('Raw Set and Haul Details'!$E104<0,-1*(ABS('Raw Set and Haul Details'!$E104)+('Raw Set and Haul Details'!$F104/60)),ABS('Raw Set and Haul Details'!$E104)+('Raw Set and Haul Details'!$F104/60))) ->  | D104: =IF(B104="","",IF('Raw Set and Haul Details'!$G104<0,-1*(ABS('Raw Set and Haul Details'!$G104)+('Raw Set and Haul Details'!$H104/60)),'Raw Set and Haul Details'!$G104+('Raw Set and Haul Details'!$H104/60))) ->  | E104: =IFERROR(IF(AND(ABS(C104)>=45,ABS(C104)<=50,D104>=30,D104<=44),"587",IF(AND(ABS(C104)>=45,ABS(C104)<=50,D104>=44,D104<=60),"586",IF(AND(ABS(C104)>=50,ABS(C104)<=62,D104>=30,D104<=43),"5844a",IF(AND(ABS(C104)>=50,ABS(C104)<=62,D104>=43,D104<=60),"5844b",IF(AND(ABS(C104)<=50,(D104)<=30,D104>=(-50)),"47",IF(AND(ABS(C104)<=45,D104>=30,D104<=80),"51",IF(AND(ABS(C104)>=62,D104>=30,D104<=80),"5842",IF(AND(ABS(C104)>=50,D104<=30,D104>=(-20)),"486",IF(AND(ABS(C104)>=50,ABS(C104)<=64,D104<=(-20),D104>=(-30)),"484",IF(AND(ABS(C104)>=50,ABS(C104)<=57,D104<=(-30),D104>=(-50)),"483",IF(AND(ABS(C104)>57,ABS(C104)<=64,D104<(-30),D104>=(-50)),"482",IF(AND(ABS(C104)>64,D104<=(-20),D104>(-60)),"485",IF(AND(ABS(C104)>=60,D104<=(-50),D104>=(-70)),"481",IF(AND(ABS(C104)<60,D104<=(-50),D104>=(-70)),"41",IF(AND(SUBSTITUTE('Raw Set and Haul Details'!D$41,".","")="5851",C$3="FRA"),"5851",IF(AND(SUBSTITUTE('Raw Set and Haul Details'!D$41,".","")="5852",C$3="AUS"),"5852",IF(AND(ABS(C104)>=56,ABS(C104)<=62,D104>60,D104<=73.17),"5843a",IF(AND(ABS(C104)>=55,ABS(C104)<=64,D104>=73.17,D104<=86),"5843b",IF(AND(ABS(C104)>=55,D104>80,D104<=150),"5841",IF(AND(ABS(C104)<55,D104>80,D104<=150),"57",IF(AND(ABS(C104)>=60,ABS(C104)<=65,D104>=150,D104<180),"881",IF(AND(ABS(C104)>65,D104>=150,D104<180),"881",IF(AND(ABS(C104)>=60,D104>=(-180),D104<=(-170),ABS(C104)<=65),"881",IF(AND(ABS(C104)>65,D104>=(-180),D104<=(-170)),"881",IF(AND(ABS(C104)>=60,D104>(-170),D104<(-105)),"882",IF(AND(ABS(C104)>=60,D104>(-105),D104<(-70)),"883",IF(AND(ABS(C104)<60,D104>(-180),D104<(-110)),"81",IF(AND(ABS(C104)<60,D104<180,D104>=150),"81",IF(AND(ABS(C104)<60,D104>=(-110),D104<=(-50)),"87",IF(AND(ABS(C104)<=(53+(14/60)),ABS(C104)>=45,D104>60,D104<=70),"5851",IF(AND(ABS(C104)<(49+(24/60)),ABS(C104)>=45,D104>=70,D104<80),"5851",IF(AND(ABS(C104)>=(53+(14/60)),ABS(C104)<56,D104>=60,D104<=80),"5852","")))))))))))))))))))))))))))))))),"") -> 
B105: =IF('Raw Set and Haul Details'!$B105="","",'Raw Set and Haul Details'!$B105) ->  | C105: =IF(B105="","",IF('Raw Set and Haul Details'!$E105<0,-1*(ABS('Raw Set and Haul Details'!$E105)+('Raw Set and Haul Details'!$F105/60)),ABS('Raw Set and Haul Details'!$E105)+('Raw Set and Haul Details'!$F105/60))) ->  | D105: =IF(B105="","",IF('Raw Set and Haul Details'!$G105<0,-1*(ABS('Raw Set and Haul Details'!$G105)+('Raw Set and Haul Details'!$H105/60)),'Raw Set and Haul Details'!$G105+('Raw Set and Haul Details'!$H105/60))) ->  | E105: =IFERROR(IF(AND(ABS(C105)>=45,ABS(C105)<=50,D105>=30,D105<=44),"587",IF(AND(ABS(C105)>=45,ABS(C105)<=50,D105>=44,D105<=60),"586",IF(AND(ABS(C105)>=50,ABS(C105)<=62,D105>=30,D105<=43),"5844a",IF(AND(ABS(C105)>=50,ABS(C105)<=62,D105>=43,D105<=60),"5844b",IF(AND(ABS(C105)<=50,(D105)<=30,D105>=(-50)),"47",IF(AND(ABS(C105)<=45,D105>=30,D105<=80),"51",IF(AND(ABS(C105)>=62,D105>=30,D105<=80),"5842",IF(AND(ABS(C105)>=50,D105<=30,D105>=(-20)),"486",IF(AND(ABS(C105)>=50,ABS(C105)<=64,D105<=(-20),D105>=(-30)),"484",IF(AND(ABS(C105)>=50,ABS(C105)<=57,D105<=(-30),D105>=(-50)),"483",IF(AND(ABS(C105)>57,ABS(C105)<=64,D105<(-30),D105>=(-50)),"482",IF(AND(ABS(C105)>64,D105<=(-20),D105>(-60)),"485",IF(AND(ABS(C105)>=60,D105<=(-50),D105>=(-70)),"481",IF(AND(ABS(C105)<60,D105<=(-50),D105>=(-70)),"41",IF(AND(SUBSTITUTE('Raw Set and Haul Details'!D$41,".","")="5851",C$3="FRA"),"5851",IF(AND(SUBSTITUTE('Raw Set and Haul Details'!D$41,".","")="5852",C$3="AUS"),"5852",IF(AND(ABS(C105)>=56,ABS(C105)<=62,D105>60,D105<=73.17),"5843a",IF(AND(ABS(C105)>=55,ABS(C105)<=64,D105>=73.17,D105<=86),"5843b",IF(AND(ABS(C105)>=55,D105>80,D105<=150),"5841",IF(AND(ABS(C105)<55,D105>80,D105<=150),"57",IF(AND(ABS(C105)>=60,ABS(C105)<=65,D105>=150,D105<180),"881",IF(AND(ABS(C105)>65,D105>=150,D105<180),"881",IF(AND(ABS(C105)>=60,D105>=(-180),D105<=(-170),ABS(C105)<=65),"881",IF(AND(ABS(C105)>65,D105>=(-180),D105<=(-170)),"881",IF(AND(ABS(C105)>=60,D105>(-170),D105<(-105)),"882",IF(AND(ABS(C105)>=60,D105>(-105),D105<(-70)),"883",IF(AND(ABS(C105)<60,D105>(-180),D105<(-110)),"81",IF(AND(ABS(C105)<60,D105<180,D105>=150),"81",IF(AND(ABS(C105)<60,D105>=(-110),D105<=(-50)),"87",IF(AND(ABS(C105)<=(53+(14/60)),ABS(C105)>=45,D105>60,D105<=70),"5851",IF(AND(ABS(C105)<(49+(24/60)),ABS(C105)>=45,D105>=70,D105<80),"5851",IF(AND(ABS(C105)>=(53+(14/60)),ABS(C105)<56,D105>=60,D105<=80),"5852","")))))))))))))))))))))))))))))))),"") -> 
B106: =IF('Raw Set and Haul Details'!$B106="","",'Raw Set and Haul Details'!$B106) ->  | C106: =IF(B106="","",IF('Raw Set and Haul Details'!$E106<0,-1*(ABS('Raw Set and Haul Details'!$E106)+('Raw Set and Haul Details'!$F106/60)),ABS('Raw Set and Haul Details'!$E106)+('Raw Set and Haul Details'!$F106/60))) ->  | D106: =IF(B106="","",IF('Raw Set and Haul Details'!$G106<0,-1*(ABS('Raw Set and Haul Details'!$G106)+('Raw Set and Haul Details'!$H106/60)),'Raw Set and Haul Details'!$G106+('Raw Set and Haul Details'!$H106/60))) ->  | E106: =IFERROR(IF(AND(ABS(C106)>=45,ABS(C106)<=50,D106>=30,D106<=44),"587",IF(AND(ABS(C106)>=45,ABS(C106)<=50,D106>=44,D106<=60),"586",IF(AND(ABS(C106)>=50,ABS(C106)<=62,D106>=30,D106<=43),"5844a",IF(AND(ABS(C106)>=50,ABS(C106)<=62,D106>=43,D106<=60),"5844b",IF(AND(ABS(C106)<=50,(D106)<=30,D106>=(-50)),"47",IF(AND(ABS(C106)<=45,D106>=30,D106<=80),"51",IF(AND(ABS(C106)>=62,D106>=30,D106<=80),"5842",IF(AND(ABS(C106)>=50,D106<=30,D106>=(-20)),"486",IF(AND(ABS(C106)>=50,ABS(C106)<=64,D106<=(-20),D106>=(-30)),"484",IF(AND(ABS(C106)>=50,ABS(C106)<=57,D106<=(-30),D106>=(-50)),"483",IF(AND(ABS(C106)>57,ABS(C106)<=64,D106<(-30),D106>=(-50)),"482",IF(AND(ABS(C106)>64,D106<=(-20),D106>(-60)),"485",IF(AND(ABS(C106)>=60,D106<=(-50),D106>=(-70)),"481",IF(AND(ABS(C106)<60,D106<=(-50),D106>=(-70)),"41",IF(AND(SUBSTITUTE('Raw Set and Haul Details'!D$41,".","")="5851",C$3="FRA"),"5851",IF(AND(SUBSTITUTE('Raw Set and Haul Details'!D$41,".","")="5852",C$3="AUS"),"5852",IF(AND(ABS(C106)>=56,ABS(C106)<=62,D106>60,D106<=73.17),"5843a",IF(AND(ABS(C106)>=55,ABS(C106)<=64,D106>=73.17,D106<=86),"5843b",IF(AND(ABS(C106)>=55,D106>80,D106<=150),"5841",IF(AND(ABS(C106)<55,D106>80,D106<=150),"57",IF(AND(ABS(C106)>=60,ABS(C106)<=65,D106>=150,D106<180),"881",IF(AND(ABS(C106)>65,D106>=150,D106<180),"881",IF(AND(ABS(C106)>=60,D106>=(-180),D106<=(-170),ABS(C106)<=65),"881",IF(AND(ABS(C106)>65,D106>=(-180),D106<=(-170)),"881",IF(AND(ABS(C106)>=60,D106>(-170),D106<(-105)),"882",IF(AND(ABS(C106)>=60,D106>(-105),D106<(-70)),"883",IF(AND(ABS(C106)<60,D106>(-180),D106<(-110)),"81",IF(AND(ABS(C106)<60,D106<180,D106>=150),"81",IF(AND(ABS(C106)<60,D106>=(-110),D106<=(-50)),"87",IF(AND(ABS(C106)<=(53+(14/60)),ABS(C106)>=45,D106>60,D106<=70),"5851",IF(AND(ABS(C106)<(49+(24/60)),ABS(C106)>=45,D106>=70,D106<80),"5851",IF(AND(ABS(C106)>=(53+(14/60)),ABS(C106)<56,D106>=60,D106<=80),"5852","")))))))))))))))))))))))))))))))),"") -> 
B107: =IF('Raw Set and Haul Details'!$B107="","",'Raw Set and Haul Details'!$B107) ->  | C107: =IF(B107="","",IF('Raw Set and Haul Details'!$E107<0,-1*(ABS('Raw Set and Haul Details'!$E107)+('Raw Set and Haul Details'!$F107/60)),ABS('Raw Set and Haul Details'!$E107)+('Raw Set and Haul Details'!$F107/60))) ->  | D107: =IF(B107="","",IF('Raw Set and Haul Details'!$G107<0,-1*(ABS('Raw Set and Haul Details'!$G107)+('Raw Set and Haul Details'!$H107/60)),'Raw Set and Haul Details'!$G107+('Raw Set and Haul Details'!$H107/60))) ->  | E107: =IFERROR(IF(AND(ABS(C107)>=45,ABS(C107)<=50,D107>=30,D107<=44),"587",IF(AND(ABS(C107)>=45,ABS(C107)<=50,D107>=44,D107<=60),"586",IF(AND(ABS(C107)>=50,ABS(C107)<=62,D107>=30,D107<=43),"5844a",IF(AND(ABS(C107)>=50,ABS(C107)<=62,D107>=43,D107<=60),"5844b",IF(AND(ABS(C107)<=50,(D107)<=30,D107>=(-50)),"47",IF(AND(ABS(C107)<=45,D107>=30,D107<=80),"51",IF(AND(ABS(C107)>=62,D107>=30,D107<=80),"5842",IF(AND(ABS(C107)>=50,D107<=30,D107>=(-20)),"486",IF(AND(ABS(C107)>=50,ABS(C107)<=64,D107<=(-20),D107>=(-30)),"484",IF(AND(ABS(C107)>=50,ABS(C107)<=57,D107<=(-30),D107>=(-50)),"483",IF(AND(ABS(C107)>57,ABS(C107)<=64,D107<(-30),D107>=(-50)),"482",IF(AND(ABS(C107)>64,D107<=(-20),D107>(-60)),"485",IF(AND(ABS(C107)>=60,D107<=(-50),D107>=(-70)),"481",IF(AND(ABS(C107)<60,D107<=(-50),D107>=(-70)),"41",IF(AND(SUBSTITUTE('Raw Set and Haul Details'!D$41,".","")="5851",C$3="FRA"),"5851",IF(AND(SUBSTITUTE('Raw Set and Haul Details'!D$41,".","")="5852",C$3="AUS"),"5852",IF(AND(ABS(C107)>=56,ABS(C107)<=62,D107>60,D107<=73.17),"5843a",IF(AND(ABS(C107)>=55,ABS(C107)<=64,D107>=73.17,D107<=86),"5843b",IF(AND(ABS(C107)>=55,D107>80,D107<=150),"5841",IF(AND(ABS(C107)<55,D107>80,D107<=150),"57",IF(AND(ABS(C107)>=60,ABS(C107)<=65,D107>=150,D107<180),"881",IF(AND(ABS(C107)>65,D107>=150,D107<180),"881",IF(AND(ABS(C107)>=60,D107>=(-180),D107<=(-170),ABS(C107)<=65),"881",IF(AND(ABS(C107)>65,D107>=(-180),D107<=(-170)),"881",IF(AND(ABS(C107)>=60,D107>(-170),D107<(-105)),"882",IF(AND(ABS(C107)>=60,D107>(-105),D107<(-70)),"883",IF(AND(ABS(C107)<60,D107>(-180),D107<(-110)),"81",IF(AND(ABS(C107)<60,D107<180,D107>=150),"81",IF(AND(ABS(C107)<60,D107>=(-110),D107<=(-50)),"87",IF(AND(ABS(C107)<=(53+(14/60)),ABS(C107)>=45,D107>60,D107<=70),"5851",IF(AND(ABS(C107)<(49+(24/60)),ABS(C107)>=45,D107>=70,D107<80),"5851",IF(AND(ABS(C107)>=(53+(14/60)),ABS(C107)<56,D107>=60,D107<=80),"5852","")))))))))))))))))))))))))))))))),"") -> 
B108: =IF('Raw Set and Haul Details'!$B108="","",'Raw Set and Haul Details'!$B108) ->  | C108: =IF(B108="","",IF('Raw Set and Haul Details'!$E108<0,-1*(ABS('Raw Set and Haul Details'!$E108)+('Raw Set and Haul Details'!$F108/60)),ABS('Raw Set and Haul Details'!$E108)+('Raw Set and Haul Details'!$F108/60))) ->  | D108: =IF(B108="","",IF('Raw Set and Haul Details'!$G108<0,-1*(ABS('Raw Set and Haul Details'!$G108)+('Raw Set and Haul Details'!$H108/60)),'Raw Set and Haul Details'!$G108+('Raw Set and Haul Details'!$H108/60))) ->  | E108: =IFERROR(IF(AND(ABS(C108)>=45,ABS(C108)<=50,D108>=30,D108<=44),"587",IF(AND(ABS(C108)>=45,ABS(C108)<=50,D108>=44,D108<=60),"586",IF(AND(ABS(C108)>=50,ABS(C108)<=62,D108>=30,D108<=43),"5844a",IF(AND(ABS(C108)>=50,ABS(C108)<=62,D108>=43,D108<=60),"5844b",IF(AND(ABS(C108)<=50,(D108)<=30,D108>=(-50)),"47",IF(AND(ABS(C108)<=45,D108>=30,D108<=80),"51",IF(AND(ABS(C108)>=62,D108>=30,D108<=80),"5842",IF(AND(ABS(C108)>=50,D108<=30,D108>=(-20)),"486",IF(AND(ABS(C108)>=50,ABS(C108)<=64,D108<=(-20),D108>=(-30)),"484",IF(AND(ABS(C108)>=50,ABS(C108)<=57,D108<=(-30),D108>=(-50)),"483",IF(AND(ABS(C108)>57,ABS(C108)<=64,D108<(-30),D108>=(-50)),"482",IF(AND(ABS(C108)>64,D108<=(-20),D108>(-60)),"485",IF(AND(ABS(C108)>=60,D108<=(-50),D108>=(-70)),"481",IF(AND(ABS(C108)<60,D108<=(-50),D108>=(-70)),"41",IF(AND(SUBSTITUTE('Raw Set and Haul Details'!D$41,".","")="5851",C$3="FRA"),"5851",IF(AND(SUBSTITUTE('Raw Set and Haul Details'!D$41,".","")="5852",C$3="AUS"),"5852",IF(AND(ABS(C108)>=56,ABS(C108)<=62,D108>60,D108<=73.17),"5843a",IF(AND(ABS(C108)>=55,ABS(C108)<=64,D108>=73.17,D108<=86),"5843b",IF(AND(ABS(C108)>=55,D108>80,D108<=150),"5841",IF(AND(ABS(C108)<55,D108>80,D108<=150),"57",IF(AND(ABS(C108)>=60,ABS(C108)<=65,D108>=150,D108<180),"881",IF(AND(ABS(C108)>65,D108>=150,D108<180),"881",IF(AND(ABS(C108)>=60,D108>=(-180),D108<=(-170),ABS(C108)<=65),"881",IF(AND(ABS(C108)>65,D108>=(-180),D108<=(-170)),"881",IF(AND(ABS(C108)>=60,D108>(-170),D108<(-105)),"882",IF(AND(ABS(C108)>=60,D108>(-105),D108<(-70)),"883",IF(AND(ABS(C108)<60,D108>(-180),D108<(-110)),"81",IF(AND(ABS(C108)<60,D108<180,D108>=150),"81",IF(AND(ABS(C108)<60,D108>=(-110),D108<=(-50)),"87",IF(AND(ABS(C108)<=(53+(14/60)),ABS(C108)>=45,D108>60,D108<=70),"5851",IF(AND(ABS(C108)<(49+(24/60)),ABS(C108)>=45,D108>=70,D108<80),"5851",IF(AND(ABS(C108)>=(53+(14/60)),ABS(C108)<56,D108>=60,D108<=80),"5852","")))))))))))))))))))))))))))))))),"") -> 
B109: =IF('Raw Set and Haul Details'!$B109="","",'Raw Set and Haul Details'!$B109) ->  | C109: =IF(B109="","",IF('Raw Set and Haul Details'!$E109<0,-1*(ABS('Raw Set and Haul Details'!$E109)+('Raw Set and Haul Details'!$F109/60)),ABS('Raw Set and Haul Details'!$E109)+('Raw Set and Haul Details'!$F109/60))) ->  | D109: =IF(B109="","",IF('Raw Set and Haul Details'!$G109<0,-1*(ABS('Raw Set and Haul Details'!$G109)+('Raw Set and Haul Details'!$H109/60)),'Raw Set and Haul Details'!$G109+('Raw Set and Haul Details'!$H109/60))) ->  | E109: =IFERROR(IF(AND(ABS(C109)>=45,ABS(C109)<=50,D109>=30,D109<=44),"587",IF(AND(ABS(C109)>=45,ABS(C109)<=50,D109>=44,D109<=60),"586",IF(AND(ABS(C109)>=50,ABS(C109)<=62,D109>=30,D109<=43),"5844a",IF(AND(ABS(C109)>=50,ABS(C109)<=62,D109>=43,D109<=60),"5844b",IF(AND(ABS(C109)<=50,(D109)<=30,D109>=(-50)),"47",IF(AND(ABS(C109)<=45,D109>=30,D109<=80),"51",IF(AND(ABS(C109)>=62,D109>=30,D109<=80),"5842",IF(AND(ABS(C109)>=50,D109<=30,D109>=(-20)),"486",IF(AND(ABS(C109)>=50,ABS(C109)<=64,D109<=(-20),D109>=(-30)),"484",IF(AND(ABS(C109)>=50,ABS(C109)<=57,D109<=(-30),D109>=(-50)),"483",IF(AND(ABS(C109)>57,ABS(C109)<=64,D109<(-30),D109>=(-50)),"482",IF(AND(ABS(C109)>64,D109<=(-20),D109>(-60)),"485",IF(AND(ABS(C109)>=60,D109<=(-50),D109>=(-70)),"481",IF(AND(ABS(C109)<60,D109<=(-50),D109>=(-70)),"41",IF(AND(SUBSTITUTE('Raw Set and Haul Details'!D$41,".","")="5851",C$3="FRA"),"5851",IF(AND(SUBSTITUTE('Raw Set and Haul Details'!D$41,".","")="5852",C$3="AUS"),"5852",IF(AND(ABS(C109)>=56,ABS(C109)<=62,D109>60,D109<=73.17),"5843a",IF(AND(ABS(C109)>=55,ABS(C109)<=64,D109>=73.17,D109<=86),"5843b",IF(AND(ABS(C109)>=55,D109>80,D109<=150),"5841",IF(AND(ABS(C109)<55,D109>80,D109<=150),"57",IF(AND(ABS(C109)>=60,ABS(C109)<=65,D109>=150,D109<180),"881",IF(AND(ABS(C109)>65,D109>=150,D109<180),"881",IF(AND(ABS(C109)>=60,D109>=(-180),D109<=(-170),ABS(C109)<=65),"881",IF(AND(ABS(C109)>65,D109>=(-180),D109<=(-170)),"881",IF(AND(ABS(C109)>=60,D109>(-170),D109<(-105)),"882",IF(AND(ABS(C109)>=60,D109>(-105),D109<(-70)),"883",IF(AND(ABS(C109)<60,D109>(-180),D109<(-110)),"81",IF(AND(ABS(C109)<60,D109<180,D109>=150),"81",IF(AND(ABS(C109)<60,D109>=(-110),D109<=(-50)),"87",IF(AND(ABS(C109)<=(53+(14/60)),ABS(C109)>=45,D109>60,D109<=70),"5851",IF(AND(ABS(C109)<(49+(24/60)),ABS(C109)>=45,D109>=70,D109<80),"5851",IF(AND(ABS(C109)>=(53+(14/60)),ABS(C109)<56,D109>=60,D109<=80),"5852","")))))))))))))))))))))))))))))))),"") -> 
B110: =IF('Raw Set and Haul Details'!$B110="","",'Raw Set and Haul Details'!$B110) ->  | C110: =IF(B110="","",IF('Raw Set and Haul Details'!$E110<0,-1*(ABS('Raw Set and Haul Details'!$E110)+('Raw Set and Haul Details'!$F110/60)),ABS('Raw Set and Haul Details'!$E110)+('Raw Set and Haul Details'!$F110/60))) ->  | D110: =IF(B110="","",IF('Raw Set and Haul Details'!$G110<0,-1*(ABS('Raw Set and Haul Details'!$G110)+('Raw Set and Haul Details'!$H110/60)),'Raw Set and Haul Details'!$G110+('Raw Set and Haul Details'!$H110/60))) ->  | E110: =IFERROR(IF(AND(ABS(C110)>=45,ABS(C110)<=50,D110>=30,D110<=44),"587",IF(AND(ABS(C110)>=45,ABS(C110)<=50,D110>=44,D110<=60),"586",IF(AND(ABS(C110)>=50,ABS(C110)<=62,D110>=30,D110<=43),"5844a",IF(AND(ABS(C110)>=50,ABS(C110)<=62,D110>=43,D110<=60),"5844b",IF(AND(ABS(C110)<=50,(D110)<=30,D110>=(-50)),"47",IF(AND(ABS(C110)<=45,D110>=30,D110<=80),"51",IF(AND(ABS(C110)>=62,D110>=30,D110<=80),"5842",IF(AND(ABS(C110)>=50,D110<=30,D110>=(-20)),"486",IF(AND(ABS(C110)>=50,ABS(C110)<=64,D110<=(-20),D110>=(-30)),"484",IF(AND(ABS(C110)>=50,ABS(C110)<=57,D110<=(-30),D110>=(-50)),"483",IF(AND(ABS(C110)>57,ABS(C110)<=64,D110<(-30),D110>=(-50)),"482",IF(AND(ABS(C110)>64,D110<=(-20),D110>(-60)),"485",IF(AND(ABS(C110)>=60,D110<=(-50),D110>=(-70)),"481",IF(AND(ABS(C110)<60,D110<=(-50),D110>=(-70)),"41",IF(AND(SUBSTITUTE('Raw Set and Haul Details'!D$41,".","")="5851",C$3="FRA"),"5851",IF(AND(SUBSTITUTE('Raw Set and Haul Details'!D$41,".","")="5852",C$3="AUS"),"5852",IF(AND(ABS(C110)>=56,ABS(C110)<=62,D110>60,D110<=73.17),"5843a",IF(AND(ABS(C110)>=55,ABS(C110)<=64,D110>=73.17,D110<=86),"5843b",IF(AND(ABS(C110)>=55,D110>80,D110<=150),"5841",IF(AND(ABS(C110)<55,D110>80,D110<=150),"57",IF(AND(ABS(C110)>=60,ABS(C110)<=65,D110>=150,D110<180),"881",IF(AND(ABS(C110)>65,D110>=150,D110<180),"881",IF(AND(ABS(C110)>=60,D110>=(-180),D110<=(-170),ABS(C110)<=65),"881",IF(AND(ABS(C110)>65,D110>=(-180),D110<=(-170)),"881",IF(AND(ABS(C110)>=60,D110>(-170),D110<(-105)),"882",IF(AND(ABS(C110)>=60,D110>(-105),D110<(-70)),"883",IF(AND(ABS(C110)<60,D110>(-180),D110<(-110)),"81",IF(AND(ABS(C110)<60,D110<180,D110>=150),"81",IF(AND(ABS(C110)<60,D110>=(-110),D110<=(-50)),"87",IF(AND(ABS(C110)<=(53+(14/60)),ABS(C110)>=45,D110>60,D110<=70),"5851",IF(AND(ABS(C110)<(49+(24/60)),ABS(C110)>=45,D110>=70,D110<80),"5851",IF(AND(ABS(C110)>=(53+(14/60)),ABS(C110)<56,D110>=60,D110<=80),"5852","")))))))))))))))))))))))))))))))),"") -> 
B111: =IF('Raw Set and Haul Details'!$B111="","",'Raw Set and Haul Details'!$B111) ->  | C111: =IF(B111="","",IF('Raw Set and Haul Details'!$E111<0,-1*(ABS('Raw Set and Haul Details'!$E111)+('Raw Set and Haul Details'!$F111/60)),ABS('Raw Set and Haul Details'!$E111)+('Raw Set and Haul Details'!$F111/60))) ->  | D111: =IF(B111="","",IF('Raw Set and Haul Details'!$G111<0,-1*(ABS('Raw Set and Haul Details'!$G111)+('Raw Set and Haul Details'!$H111/60)),'Raw Set and Haul Details'!$G111+('Raw Set and Haul Details'!$H111/60))) ->  | E111: =IFERROR(IF(AND(ABS(C111)>=45,ABS(C111)<=50,D111>=30,D111<=44),"587",IF(AND(ABS(C111)>=45,ABS(C111)<=50,D111>=44,D111<=60),"586",IF(AND(ABS(C111)>=50,ABS(C111)<=62,D111>=30,D111<=43),"5844a",IF(AND(ABS(C111)>=50,ABS(C111)<=62,D111>=43,D111<=60),"5844b",IF(AND(ABS(C111)<=50,(D111)<=30,D111>=(-50)),"47",IF(AND(ABS(C111)<=45,D111>=30,D111<=80),"51",IF(AND(ABS(C111)>=62,D111>=30,D111<=80),"5842",IF(AND(ABS(C111)>=50,D111<=30,D111>=(-20)),"486",IF(AND(ABS(C111)>=50,ABS(C111)<=64,D111<=(-20),D111>=(-30)),"484",IF(AND(ABS(C111)>=50,ABS(C111)<=57,D111<=(-30),D111>=(-50)),"483",IF(AND(ABS(C111)>57,ABS(C111)<=64,D111<(-30),D111>=(-50)),"482",IF(AND(ABS(C111)>64,D111<=(-20),D111>(-60)),"485",IF(AND(ABS(C111)>=60,D111<=(-50),D111>=(-70)),"481",IF(AND(ABS(C111)<60,D111<=(-50),D111>=(-70)),"41",IF(AND(SUBSTITUTE('Raw Set and Haul Details'!D$41,".","")="5851",C$3="FRA"),"5851",IF(AND(SUBSTITUTE('Raw Set and Haul Details'!D$41,".","")="5852",C$3="AUS"),"5852",IF(AND(ABS(C111)>=56,ABS(C111)<=62,D111>60,D111<=73.17),"5843a",IF(AND(ABS(C111)>=55,ABS(C111)<=64,D111>=73.17,D111<=86),"5843b",IF(AND(ABS(C111)>=55,D111>80,D111<=150),"5841",IF(AND(ABS(C111)<55,D111>80,D111<=150),"57",IF(AND(ABS(C111)>=60,ABS(C111)<=65,D111>=150,D111<180),"881",IF(AND(ABS(C111)>65,D111>=150,D111<180),"881",IF(AND(ABS(C111)>=60,D111>=(-180),D111<=(-170),ABS(C111)<=65),"881",IF(AND(ABS(C111)>65,D111>=(-180),D111<=(-170)),"881",IF(AND(ABS(C111)>=60,D111>(-170),D111<(-105)),"882",IF(AND(ABS(C111)>=60,D111>(-105),D111<(-70)),"883",IF(AND(ABS(C111)<60,D111>(-180),D111<(-110)),"81",IF(AND(ABS(C111)<60,D111<180,D111>=150),"81",IF(AND(ABS(C111)<60,D111>=(-110),D111<=(-50)),"87",IF(AND(ABS(C111)<=(53+(14/60)),ABS(C111)>=45,D111>60,D111<=70),"5851",IF(AND(ABS(C111)<(49+(24/60)),ABS(C111)>=45,D111>=70,D111<80),"5851",IF(AND(ABS(C111)>=(53+(14/60)),ABS(C111)<56,D111>=60,D111<=80),"5852","")))))))))))))))))))))))))))))))),"") -> 
B112: =IF('Raw Set and Haul Details'!$B112="","",'Raw Set and Haul Details'!$B112) ->  | C112: =IF(B112="","",IF('Raw Set and Haul Details'!$E112<0,-1*(ABS('Raw Set and Haul Details'!$E112)+('Raw Set and Haul Details'!$F112/60)),ABS('Raw Set and Haul Details'!$E112)+('Raw Set and Haul Details'!$F112/60))) ->  | D112: =IF(B112="","",IF('Raw Set and Haul Details'!$G112<0,-1*(ABS('Raw Set and Haul Details'!$G112)+('Raw Set and Haul Details'!$H112/60)),'Raw Set and Haul Details'!$G112+('Raw Set and Haul Details'!$H112/60))) ->  | E112: =IFERROR(IF(AND(ABS(C112)>=45,ABS(C112)<=50,D112>=30,D112<=44),"587",IF(AND(ABS(C112)>=45,ABS(C112)<=50,D112>=44,D112<=60),"586",IF(AND(ABS(C112)>=50,ABS(C112)<=62,D112>=30,D112<=43),"5844a",IF(AND(ABS(C112)>=50,ABS(C112)<=62,D112>=43,D112<=60),"5844b",IF(AND(ABS(C112)<=50,(D112)<=30,D112>=(-50)),"47",IF(AND(ABS(C112)<=45,D112>=30,D112<=80),"51",IF(AND(ABS(C112)>=62,D112>=30,D112<=80),"5842",IF(AND(ABS(C112)>=50,D112<=30,D112>=(-20)),"486",IF(AND(ABS(C112)>=50,ABS(C112)<=64,D112<=(-20),D112>=(-30)),"484",IF(AND(ABS(C112)>=50,ABS(C112)<=57,D112<=(-30),D112>=(-50)),"483",IF(AND(ABS(C112)>57,ABS(C112)<=64,D112<(-30),D112>=(-50)),"482",IF(AND(ABS(C112)>64,D112<=(-20),D112>(-60)),"485",IF(AND(ABS(C112)>=60,D112<=(-50),D112>=(-70)),"481",IF(AND(ABS(C112)<60,D112<=(-50),D112>=(-70)),"41",IF(AND(SUBSTITUTE('Raw Set and Haul Details'!D$41,".","")="5851",C$3="FRA"),"5851",IF(AND(SUBSTITUTE('Raw Set and Haul Details'!D$41,".","")="5852",C$3="AUS"),"5852",IF(AND(ABS(C112)>=56,ABS(C112)<=62,D112>60,D112<=73.17),"5843a",IF(AND(ABS(C112)>=55,ABS(C112)<=64,D112>=73.17,D112<=86),"5843b",IF(AND(ABS(C112)>=55,D112>80,D112<=150),"5841",IF(AND(ABS(C112)<55,D112>80,D112<=150),"57",IF(AND(ABS(C112)>=60,ABS(C112)<=65,D112>=150,D112<180),"881",IF(AND(ABS(C112)>65,D112>=150,D112<180),"881",IF(AND(ABS(C112)>=60,D112>=(-180),D112<=(-170),ABS(C112)<=65),"881",IF(AND(ABS(C112)>65,D112>=(-180),D112<=(-170)),"881",IF(AND(ABS(C112)>=60,D112>(-170),D112<(-105)),"882",IF(AND(ABS(C112)>=60,D112>(-105),D112<(-70)),"883",IF(AND(ABS(C112)<60,D112>(-180),D112<(-110)),"81",IF(AND(ABS(C112)<60,D112<180,D112>=150),"81",IF(AND(ABS(C112)<60,D112>=(-110),D112<=(-50)),"87",IF(AND(ABS(C112)<=(53+(14/60)),ABS(C112)>=45,D112>60,D112<=70),"5851",IF(AND(ABS(C112)<(49+(24/60)),ABS(C112)>=45,D112>=70,D112<80),"5851",IF(AND(ABS(C112)>=(53+(14/60)),ABS(C112)<56,D112>=60,D112<=80),"5852","")))))))))))))))))))))))))))))))),"") -> 
B113: =IF('Raw Set and Haul Details'!$B113="","",'Raw Set and Haul Details'!$B113) ->  | C113: =IF(B113="","",IF('Raw Set and Haul Details'!$E113<0,-1*(ABS('Raw Set and Haul Details'!$E113)+('Raw Set and Haul Details'!$F113/60)),ABS('Raw Set and Haul Details'!$E113)+('Raw Set and Haul Details'!$F113/60))) ->  | D113: =IF(B113="","",IF('Raw Set and Haul Details'!$G113<0,-1*(ABS('Raw Set and Haul Details'!$G113)+('Raw Set and Haul Details'!$H113/60)),'Raw Set and Haul Details'!$G113+('Raw Set and Haul Details'!$H113/60))) ->  | E113: =IFERROR(IF(AND(ABS(C113)>=45,ABS(C113)<=50,D113>=30,D113<=44),"587",IF(AND(ABS(C113)>=45,ABS(C113)<=50,D113>=44,D113<=60),"586",IF(AND(ABS(C113)>=50,ABS(C113)<=62,D113>=30,D113<=43),"5844a",IF(AND(ABS(C113)>=50,ABS(C113)<=62,D113>=43,D113<=60),"5844b",IF(AND(ABS(C113)<=50,(D113)<=30,D113>=(-50)),"47",IF(AND(ABS(C113)<=45,D113>=30,D113<=80),"51",IF(AND(ABS(C113)>=62,D113>=30,D113<=80),"5842",IF(AND(ABS(C113)>=50,D113<=30,D113>=(-20)),"486",IF(AND(ABS(C113)>=50,ABS(C113)<=64,D113<=(-20),D113>=(-30)),"484",IF(AND(ABS(C113)>=50,ABS(C113)<=57,D113<=(-30),D113>=(-50)),"483",IF(AND(ABS(C113)>57,ABS(C113)<=64,D113<(-30),D113>=(-50)),"482",IF(AND(ABS(C113)>64,D113<=(-20),D113>(-60)),"485",IF(AND(ABS(C113)>=60,D113<=(-50),D113>=(-70)),"481",IF(AND(ABS(C113)<60,D113<=(-50),D113>=(-70)),"41",IF(AND(SUBSTITUTE('Raw Set and Haul Details'!D$41,".","")="5851",C$3="FRA"),"5851",IF(AND(SUBSTITUTE('Raw Set and Haul Details'!D$41,".","")="5852",C$3="AUS"),"5852",IF(AND(ABS(C113)>=56,ABS(C113)<=62,D113>60,D113<=73.17),"5843a",IF(AND(ABS(C113)>=55,ABS(C113)<=64,D113>=73.17,D113<=86),"5843b",IF(AND(ABS(C113)>=55,D113>80,D113<=150),"5841",IF(AND(ABS(C113)<55,D113>80,D113<=150),"57",IF(AND(ABS(C113)>=60,ABS(C113)<=65,D113>=150,D113<180),"881",IF(AND(ABS(C113)>65,D113>=150,D113<180),"881",IF(AND(ABS(C113)>=60,D113>=(-180),D113<=(-170),ABS(C113)<=65),"881",IF(AND(ABS(C113)>65,D113>=(-180),D113<=(-170)),"881",IF(AND(ABS(C113)>=60,D113>(-170),D113<(-105)),"882",IF(AND(ABS(C113)>=60,D113>(-105),D113<(-70)),"883",IF(AND(ABS(C113)<60,D113>(-180),D113<(-110)),"81",IF(AND(ABS(C113)<60,D113<180,D113>=150),"81",IF(AND(ABS(C113)<60,D113>=(-110),D113<=(-50)),"87",IF(AND(ABS(C113)<=(53+(14/60)),ABS(C113)>=45,D113>60,D113<=70),"5851",IF(AND(ABS(C113)<(49+(24/60)),ABS(C113)>=45,D113>=70,D113<80),"5851",IF(AND(ABS(C113)>=(53+(14/60)),ABS(C113)<56,D113>=60,D113<=80),"5852","")))))))))))))))))))))))))))))))),"") -> 
B114: =IF('Raw Set and Haul Details'!$B114="","",'Raw Set and Haul Details'!$B114) ->  | C114: =IF(B114="","",IF('Raw Set and Haul Details'!$E114<0,-1*(ABS('Raw Set and Haul Details'!$E114)+('Raw Set and Haul Details'!$F114/60)),ABS('Raw Set and Haul Details'!$E114)+('Raw Set and Haul Details'!$F114/60))) ->  | D114: =IF(B114="","",IF('Raw Set and Haul Details'!$G114<0,-1*(ABS('Raw Set and Haul Details'!$G114)+('Raw Set and Haul Details'!$H114/60)),'Raw Set and Haul Details'!$G114+('Raw Set and Haul Details'!$H114/60))) ->  | E114: =IFERROR(IF(AND(ABS(C114)>=45,ABS(C114)<=50,D114>=30,D114<=44),"587",IF(AND(ABS(C114)>=45,ABS(C114)<=50,D114>=44,D114<=60),"586",IF(AND(ABS(C114)>=50,ABS(C114)<=62,D114>=30,D114<=43),"5844a",IF(AND(ABS(C114)>=50,ABS(C114)<=62,D114>=43,D114<=60),"5844b",IF(AND(ABS(C114)<=50,(D114)<=30,D114>=(-50)),"47",IF(AND(ABS(C114)<=45,D114>=30,D114<=80),"51",IF(AND(ABS(C114)>=62,D114>=30,D114<=80),"5842",IF(AND(ABS(C114)>=50,D114<=30,D114>=(-20)),"486",IF(AND(ABS(C114)>=50,ABS(C114)<=64,D114<=(-20),D114>=(-30)),"484",IF(AND(ABS(C114)>=50,ABS(C114)<=57,D114<=(-30),D114>=(-50)),"483",IF(AND(ABS(C114)>57,ABS(C114)<=64,D114<(-30),D114>=(-50)),"482",IF(AND(ABS(C114)>64,D114<=(-20),D114>(-60)),"485",IF(AND(ABS(C114)>=60,D114<=(-50),D114>=(-70)),"481",IF(AND(ABS(C114)<60,D114<=(-50),D114>=(-70)),"41",IF(AND(SUBSTITUTE('Raw Set and Haul Details'!D$41,".","")="5851",C$3="FRA"),"5851",IF(AND(SUBSTITUTE('Raw Set and Haul Details'!D$41,".","")="5852",C$3="AUS"),"5852",IF(AND(ABS(C114)>=56,ABS(C114)<=62,D114>60,D114<=73.17),"5843a",IF(AND(ABS(C114)>=55,ABS(C114)<=64,D114>=73.17,D114<=86),"5843b",IF(AND(ABS(C114)>=55,D114>80,D114<=150),"5841",IF(AND(ABS(C114)<55,D114>80,D114<=150),"57",IF(AND(ABS(C114)>=60,ABS(C114)<=65,D114>=150,D114<180),"881",IF(AND(ABS(C114)>65,D114>=150,D114<180),"881",IF(AND(ABS(C114)>=60,D114>=(-180),D114<=(-170),ABS(C114)<=65),"881",IF(AND(ABS(C114)>65,D114>=(-180),D114<=(-170)),"881",IF(AND(ABS(C114)>=60,D114>(-170),D114<(-105)),"882",IF(AND(ABS(C114)>=60,D114>(-105),D114<(-70)),"883",IF(AND(ABS(C114)<60,D114>(-180),D114<(-110)),"81",IF(AND(ABS(C114)<60,D114<180,D114>=150),"81",IF(AND(ABS(C114)<60,D114>=(-110),D114<=(-50)),"87",IF(AND(ABS(C114)<=(53+(14/60)),ABS(C114)>=45,D114>60,D114<=70),"5851",IF(AND(ABS(C114)<(49+(24/60)),ABS(C114)>=45,D114>=70,D114<80),"5851",IF(AND(ABS(C114)>=(53+(14/60)),ABS(C114)<56,D114>=60,D114<=80),"5852","")))))))))))))))))))))))))))))))),"") -> 
B115: =IF('Raw Set and Haul Details'!$B115="","",'Raw Set and Haul Details'!$B115) ->  | C115: =IF(B115="","",IF('Raw Set and Haul Details'!$E115<0,-1*(ABS('Raw Set and Haul Details'!$E115)+('Raw Set and Haul Details'!$F115/60)),ABS('Raw Set and Haul Details'!$E115)+('Raw Set and Haul Details'!$F115/60))) ->  | D115: =IF(B115="","",IF('Raw Set and Haul Details'!$G115<0,-1*(ABS('Raw Set and Haul Details'!$G115)+('Raw Set and Haul Details'!$H115/60)),'Raw Set and Haul Details'!$G115+('Raw Set and Haul Details'!$H115/60))) ->  | E115: =IFERROR(IF(AND(ABS(C115)>=45,ABS(C115)<=50,D115>=30,D115<=44),"587",IF(AND(ABS(C115)>=45,ABS(C115)<=50,D115>=44,D115<=60),"586",IF(AND(ABS(C115)>=50,ABS(C115)<=62,D115>=30,D115<=43),"5844a",IF(AND(ABS(C115)>=50,ABS(C115)<=62,D115>=43,D115<=60),"5844b",IF(AND(ABS(C115)<=50,(D115)<=30,D115>=(-50)),"47",IF(AND(ABS(C115)<=45,D115>=30,D115<=80),"51",IF(AND(ABS(C115)>=62,D115>=30,D115<=80),"5842",IF(AND(ABS(C115)>=50,D115<=30,D115>=(-20)),"486",IF(AND(ABS(C115)>=50,ABS(C115)<=64,D115<=(-20),D115>=(-30)),"484",IF(AND(ABS(C115)>=50,ABS(C115)<=57,D115<=(-30),D115>=(-50)),"483",IF(AND(ABS(C115)>57,ABS(C115)<=64,D115<(-30),D115>=(-50)),"482",IF(AND(ABS(C115)>64,D115<=(-20),D115>(-60)),"485",IF(AND(ABS(C115)>=60,D115<=(-50),D115>=(-70)),"481",IF(AND(ABS(C115)<60,D115<=(-50),D115>=(-70)),"41",IF(AND(SUBSTITUTE('Raw Set and Haul Details'!D$41,".","")="5851",C$3="FRA"),"5851",IF(AND(SUBSTITUTE('Raw Set and Haul Details'!D$41,".","")="5852",C$3="AUS"),"5852",IF(AND(ABS(C115)>=56,ABS(C115)<=62,D115>60,D115<=73.17),"5843a",IF(AND(ABS(C115)>=55,ABS(C115)<=64,D115>=73.17,D115<=86),"5843b",IF(AND(ABS(C115)>=55,D115>80,D115<=150),"5841",IF(AND(ABS(C115)<55,D115>80,D115<=150),"57",IF(AND(ABS(C115)>=60,ABS(C115)<=65,D115>=150,D115<180),"881",IF(AND(ABS(C115)>65,D115>=150,D115<180),"881",IF(AND(ABS(C115)>=60,D115>=(-180),D115<=(-170),ABS(C115)<=65),"881",IF(AND(ABS(C115)>65,D115>=(-180),D115<=(-170)),"881",IF(AND(ABS(C115)>=60,D115>(-170),D115<(-105)),"882",IF(AND(ABS(C115)>=60,D115>(-105),D115<(-70)),"883",IF(AND(ABS(C115)<60,D115>(-180),D115<(-110)),"81",IF(AND(ABS(C115)<60,D115<180,D115>=150),"81",IF(AND(ABS(C115)<60,D115>=(-110),D115<=(-50)),"87",IF(AND(ABS(C115)<=(53+(14/60)),ABS(C115)>=45,D115>60,D115<=70),"5851",IF(AND(ABS(C115)<(49+(24/60)),ABS(C115)>=45,D115>=70,D115<80),"5851",IF(AND(ABS(C115)>=(53+(14/60)),ABS(C115)<56,D115>=60,D115<=80),"5852","")))))))))))))))))))))))))))))))),"") -> 
B116: =IF('Raw Set and Haul Details'!$B116="","",'Raw Set and Haul Details'!$B116) ->  | C116: =IF(B116="","",IF('Raw Set and Haul Details'!$E116<0,-1*(ABS('Raw Set and Haul Details'!$E116)+('Raw Set and Haul Details'!$F116/60)),ABS('Raw Set and Haul Details'!$E116)+('Raw Set and Haul Details'!$F116/60))) ->  | D116: =IF(B116="","",IF('Raw Set and Haul Details'!$G116<0,-1*(ABS('Raw Set and Haul Details'!$G116)+('Raw Set and Haul Details'!$H116/60)),'Raw Set and Haul Details'!$G116+('Raw Set and Haul Details'!$H116/60))) ->  | E116: =IFERROR(IF(AND(ABS(C116)>=45,ABS(C116)<=50,D116>=30,D116<=44),"587",IF(AND(ABS(C116)>=45,ABS(C116)<=50,D116>=44,D116<=60),"586",IF(AND(ABS(C116)>=50,ABS(C116)<=62,D116>=30,D116<=43),"5844a",IF(AND(ABS(C116)>=50,ABS(C116)<=62,D116>=43,D116<=60),"5844b",IF(AND(ABS(C116)<=50,(D116)<=30,D116>=(-50)),"47",IF(AND(ABS(C116)<=45,D116>=30,D116<=80),"51",IF(AND(ABS(C116)>=62,D116>=30,D116<=80),"5842",IF(AND(ABS(C116)>=50,D116<=30,D116>=(-20)),"486",IF(AND(ABS(C116)>=50,ABS(C116)<=64,D116<=(-20),D116>=(-30)),"484",IF(AND(ABS(C116)>=50,ABS(C116)<=57,D116<=(-30),D116>=(-50)),"483",IF(AND(ABS(C116)>57,ABS(C116)<=64,D116<(-30),D116>=(-50)),"482",IF(AND(ABS(C116)>64,D116<=(-20),D116>(-60)),"485",IF(AND(ABS(C116)>=60,D116<=(-50),D116>=(-70)),"481",IF(AND(ABS(C116)<60,D116<=(-50),D116>=(-70)),"41",IF(AND(SUBSTITUTE('Raw Set and Haul Details'!D$41,".","")="5851",C$3="FRA"),"5851",IF(AND(SUBSTITUTE('Raw Set and Haul Details'!D$41,".","")="5852",C$3="AUS"),"5852",IF(AND(ABS(C116)>=56,ABS(C116)<=62,D116>60,D116<=73.17),"5843a",IF(AND(ABS(C116)>=55,ABS(C116)<=64,D116>=73.17,D116<=86),"5843b",IF(AND(ABS(C116)>=55,D116>80,D116<=150),"5841",IF(AND(ABS(C116)<55,D116>80,D116<=150),"57",IF(AND(ABS(C116)>=60,ABS(C116)<=65,D116>=150,D116<180),"881",IF(AND(ABS(C116)>65,D116>=150,D116<180),"881",IF(AND(ABS(C116)>=60,D116>=(-180),D116<=(-170),ABS(C116)<=65),"881",IF(AND(ABS(C116)>65,D116>=(-180),D116<=(-170)),"881",IF(AND(ABS(C116)>=60,D116>(-170),D116<(-105)),"882",IF(AND(ABS(C116)>=60,D116>(-105),D116<(-70)),"883",IF(AND(ABS(C116)<60,D116>(-180),D116<(-110)),"81",IF(AND(ABS(C116)<60,D116<180,D116>=150),"81",IF(AND(ABS(C116)<60,D116>=(-110),D116<=(-50)),"87",IF(AND(ABS(C116)<=(53+(14/60)),ABS(C116)>=45,D116>60,D116<=70),"5851",IF(AND(ABS(C116)<(49+(24/60)),ABS(C116)>=45,D116>=70,D116<80),"5851",IF(AND(ABS(C116)>=(53+(14/60)),ABS(C116)<56,D116>=60,D116<=80),"5852","")))))))))))))))))))))))))))))))),"") -> 
B117: =IF('Raw Set and Haul Details'!$B117="","",'Raw Set and Haul Details'!$B117) ->  | C117: =IF(B117="","",IF('Raw Set and Haul Details'!$E117<0,-1*(ABS('Raw Set and Haul Details'!$E117)+('Raw Set and Haul Details'!$F117/60)),ABS('Raw Set and Haul Details'!$E117)+('Raw Set and Haul Details'!$F117/60))) ->  | D117: =IF(B117="","",IF('Raw Set and Haul Details'!$G117<0,-1*(ABS('Raw Set and Haul Details'!$G117)+('Raw Set and Haul Details'!$H117/60)),'Raw Set and Haul Details'!$G117+('Raw Set and Haul Details'!$H117/60))) ->  | E117: =IFERROR(IF(AND(ABS(C117)>=45,ABS(C117)<=50,D117>=30,D117<=44),"587",IF(AND(ABS(C117)>=45,ABS(C117)<=50,D117>=44,D117<=60),"586",IF(AND(ABS(C117)>=50,ABS(C117)<=62,D117>=30,D117<=43),"5844a",IF(AND(ABS(C117)>=50,ABS(C117)<=62,D117>=43,D117<=60),"5844b",IF(AND(ABS(C117)<=50,(D117)<=30,D117>=(-50)),"47",IF(AND(ABS(C117)<=45,D117>=30,D117<=80),"51",IF(AND(ABS(C117)>=62,D117>=30,D117<=80),"5842",IF(AND(ABS(C117)>=50,D117<=30,D117>=(-20)),"486",IF(AND(ABS(C117)>=50,ABS(C117)<=64,D117<=(-20),D117>=(-30)),"484",IF(AND(ABS(C117)>=50,ABS(C117)<=57,D117<=(-30),D117>=(-50)),"483",IF(AND(ABS(C117)>57,ABS(C117)<=64,D117<(-30),D117>=(-50)),"482",IF(AND(ABS(C117)>64,D117<=(-20),D117>(-60)),"485",IF(AND(ABS(C117)>=60,D117<=(-50),D117>=(-70)),"481",IF(AND(ABS(C117)<60,D117<=(-50),D117>=(-70)),"41",IF(AND(SUBSTITUTE('Raw Set and Haul Details'!D$41,".","")="5851",C$3="FRA"),"5851",IF(AND(SUBSTITUTE('Raw Set and Haul Details'!D$41,".","")="5852",C$3="AUS"),"5852",IF(AND(ABS(C117)>=56,ABS(C117)<=62,D117>60,D117<=73.17),"5843a",IF(AND(ABS(C117)>=55,ABS(C117)<=64,D117>=73.17,D117<=86),"5843b",IF(AND(ABS(C117)>=55,D117>80,D117<=150),"5841",IF(AND(ABS(C117)<55,D117>80,D117<=150),"57",IF(AND(ABS(C117)>=60,ABS(C117)<=65,D117>=150,D117<180),"881",IF(AND(ABS(C117)>65,D117>=150,D117<180),"881",IF(AND(ABS(C117)>=60,D117>=(-180),D117<=(-170),ABS(C117)<=65),"881",IF(AND(ABS(C117)>65,D117>=(-180),D117<=(-170)),"881",IF(AND(ABS(C117)>=60,D117>(-170),D117<(-105)),"882",IF(AND(ABS(C117)>=60,D117>(-105),D117<(-70)),"883",IF(AND(ABS(C117)<60,D117>(-180),D117<(-110)),"81",IF(AND(ABS(C117)<60,D117<180,D117>=150),"81",IF(AND(ABS(C117)<60,D117>=(-110),D117<=(-50)),"87",IF(AND(ABS(C117)<=(53+(14/60)),ABS(C117)>=45,D117>60,D117<=70),"5851",IF(AND(ABS(C117)<(49+(24/60)),ABS(C117)>=45,D117>=70,D117<80),"5851",IF(AND(ABS(C117)>=(53+(14/60)),ABS(C117)<56,D117>=60,D117<=80),"5852","")))))))))))))))))))))))))))))))),"") -> 
B118: =IF('Raw Set and Haul Details'!$B118="","",'Raw Set and Haul Details'!$B118) ->  | C118: =IF(B118="","",IF('Raw Set and Haul Details'!$E118<0,-1*(ABS('Raw Set and Haul Details'!$E118)+('Raw Set and Haul Details'!$F118/60)),ABS('Raw Set and Haul Details'!$E118)+('Raw Set and Haul Details'!$F118/60))) ->  | D118: =IF(B118="","",IF('Raw Set and Haul Details'!$G118<0,-1*(ABS('Raw Set and Haul Details'!$G118)+('Raw Set and Haul Details'!$H118/60)),'Raw Set and Haul Details'!$G118+('Raw Set and Haul Details'!$H118/60))) ->  | E118: =IFERROR(IF(AND(ABS(C118)>=45,ABS(C118)<=50,D118>=30,D118<=44),"587",IF(AND(ABS(C118)>=45,ABS(C118)<=50,D118>=44,D118<=60),"586",IF(AND(ABS(C118)>=50,ABS(C118)<=62,D118>=30,D118<=43),"5844a",IF(AND(ABS(C118)>=50,ABS(C118)<=62,D118>=43,D118<=60),"5844b",IF(AND(ABS(C118)<=50,(D118)<=30,D118>=(-50)),"47",IF(AND(ABS(C118)<=45,D118>=30,D118<=80),"51",IF(AND(ABS(C118)>=62,D118>=30,D118<=80),"5842",IF(AND(ABS(C118)>=50,D118<=30,D118>=(-20)),"486",IF(AND(ABS(C118)>=50,ABS(C118)<=64,D118<=(-20),D118>=(-30)),"484",IF(AND(ABS(C118)>=50,ABS(C118)<=57,D118<=(-30),D118>=(-50)),"483",IF(AND(ABS(C118)>57,ABS(C118)<=64,D118<(-30),D118>=(-50)),"482",IF(AND(ABS(C118)>64,D118<=(-20),D118>(-60)),"485",IF(AND(ABS(C118)>=60,D118<=(-50),D118>=(-70)),"481",IF(AND(ABS(C118)<60,D118<=(-50),D118>=(-70)),"41",IF(AND(SUBSTITUTE('Raw Set and Haul Details'!D$41,".","")="5851",C$3="FRA"),"5851",IF(AND(SUBSTITUTE('Raw Set and Haul Details'!D$41,".","")="5852",C$3="AUS"),"5852",IF(AND(ABS(C118)>=56,ABS(C118)<=62,D118>60,D118<=73.17),"5843a",IF(AND(ABS(C118)>=55,ABS(C118)<=64,D118>=73.17,D118<=86),"5843b",IF(AND(ABS(C118)>=55,D118>80,D118<=150),"5841",IF(AND(ABS(C118)<55,D118>80,D118<=150),"57",IF(AND(ABS(C118)>=60,ABS(C118)<=65,D118>=150,D118<180),"881",IF(AND(ABS(C118)>65,D118>=150,D118<180),"881",IF(AND(ABS(C118)>=60,D118>=(-180),D118<=(-170),ABS(C118)<=65),"881",IF(AND(ABS(C118)>65,D118>=(-180),D118<=(-170)),"881",IF(AND(ABS(C118)>=60,D118>(-170),D118<(-105)),"882",IF(AND(ABS(C118)>=60,D118>(-105),D118<(-70)),"883",IF(AND(ABS(C118)<60,D118>(-180),D118<(-110)),"81",IF(AND(ABS(C118)<60,D118<180,D118>=150),"81",IF(AND(ABS(C118)<60,D118>=(-110),D118<=(-50)),"87",IF(AND(ABS(C118)<=(53+(14/60)),ABS(C118)>=45,D118>60,D118<=70),"5851",IF(AND(ABS(C118)<(49+(24/60)),ABS(C118)>=45,D118>=70,D118<80),"5851",IF(AND(ABS(C118)>=(53+(14/60)),ABS(C118)<56,D118>=60,D118<=80),"5852","")))))))))))))))))))))))))))))))),"") -> 
